Workbook

Sheet Kold
B2: Bruger: | C2: =Makro!D20 -> 0 | K2: Søjleberegning | N2: Betonelement-Foreningen feb 2019
B3: Sagsnavn: | C3: Betonelementhuset | H3: Sag nr.: | I3: 23 - 4545 | L3: =AU18&AU19&AU20&AU21&AU22&AU23&AU24&AU25&AU26&AU27&AU28&AU29&AU30 -> For ny bruger: Klik på knappen 'angiv nyt brugernavn' for ibrugtagning.
B4: Bygningsdel: | C4: Søjle i modul D/12, stueetage | H4: Dato: | I4: 2007-01-02
B5: Emne: | C5: Normale lastkombinationer | H5: Init: | I5: JFJ | AN5: Aktivt ark: | AO5: 1 | AP5: -1
K7: Materialer | M7: fck | N7: 40 | O7: Regningsmæssige parametre
M8: fyk | N8: 550 | P8: fcd | Q8: =N7/(N9) -> 28.57142857
M9: gc | N9: 1.4 | P9: fyd | Q9: =N8/MAX(1,N10) -> 458.3333333 | AN9: 1 | AO9: =AW10*1000+0.001 -> 0.101 | AP9: =IF(Makro!$E$20=1,"-",AX10*1000) -> - | AS9: Forskydningscheck | AW9: N | AX9: M | AY9: hc | AZ9: e0 | BA9: sac | BB9: sat | BD9: Lastpunkt | BE9: 1 | BF9: 2 | BG9: 3 | BH9: 4 | BI9: 5 | BJ9: 6 | BK9: 4 | BL9: A
M10: gs | N10: 1.2 | P10: Ecd | Q10: =1000*22*((N7+8)/10)^0.3/N9 -> 25157.47306 | AN10: 2 | AO10: =AW11*1000 -> 170.4754205 | AP10: =IF(Makro!$E$20=1,"-",AX11*1000) -> - | AS10: f_ctd | AT10: =SQRT(N7/10)/N9 -> 1.428571429 | AU10: MPa | AW10: =IF($AO$5=1,'Ark1'!M10,0)*$AY$38 -> 0.0001 | AX10: =IF($AO$5=1,'Ark1'!N10,0)*$AY$38 -> 0.1197242527 | AY10: =IF($AO$5=1,'Ark1'!O10,0) -> 0.1294560717 | AZ10: =IF($AO$5=1,'Ark1'!P10,0) -> 0.0003274293193 | BA10: =IF($AO$5=1,'Ark1'!Q10,0) -> 90.81208847 | BB10: =IF($AO$5=1,'Ark1'!R10,0) -> 458.3274788 | BD10: Indeks | BE10: =Makro!B1 -> 1 | BF10: =Makro!C1 -> 1 | BG10: =Makro!D1 -> 1 | BH10: =Makro!E1 -> 1 | BI10: =Makro!F1 -> 1 | BJ10: =Makro!G1 -> 1 | BK10: 9 | BL10: B
K11: Søjlelængde | M11: Ls | N11: 6000 | O11: Krybetal | AN11: 3 | AO11: 316.4362129 | AP11: =IF(Makro!$E$20=1,"-",AX12*1000) -> - | AS11: r | AT11: =AP41/(N12*N13) -> 0.002659549336 | AW11: =IF($AO$5=1,'Ark1'!M11,0)*$AY$38 -> 0.1704754205 | AX11: =IF($AO$5=1,'Ark1'!N11,0)*$AY$38 -> 0.1499322135 | AY11: =IF($AO$5=1,'Ark1'!O11,0) -> 0.1539818791 | AZ11: =IF($AO$5=1,'Ark1'!P11,0) -> 0.0004573967513 | BA11: =IF($AO$5=1,'Ark1'!Q11,0) -> 144.3131447 | BB11: =IF($AO$5=1,'Ark1'!R11,0) -> 458.3333333 | BE11: =INDEX($BL$9:$BL$17,Makro!B1) -> A | BF11: =INDEX($BL$9:$BL$17,Makro!C1) -> A | BG11: =INDEX($BL$9:$BL$17,Makro!D1) -> A | BH11: =INDEX($BL$9:$BL$17,Makro!E1) -> A | BI11: =INDEX($BL$9:$BL$17,Makro!F1) -> A | BJ11: =INDEX($BL$9:$BL$17,Makro!G1) -> A | BK11: =INDEX(BL9:BL17,BK10) -> I | BL11: C
K12: Tværsnit | M12: h | N12: 540 | P12: RH | Q12: 0.55 | AN12: 4 | AO12: 470.2194705 | AP12: =IF(Makro!$E$20=1,"-",AX13*1000) -> - | AS12: k | AT12: =MAX(1,1.6-N12/1000) -> 1.06 | AW12: =IF($AO$5=1,'Ark1'!M12,0)*$AY$38 -> 0.3164362129 | AX12: =IF($AO$5=1,'Ark1'!N12,0)*$AY$38 -> 0.1735104795 | AY12: =IF($AO$5=1,'Ark1'!O12,0) -> 0.1739496446 | AZ12: =IF($AO$5=1,'Ark1'!P12,0) -> 0.0005499419113 | BA12: =IF($AO$5=1,'Ark1'!Q12,0) -> 186.2278176 | BB12: =IF($AO$5=1,'Ark1'!R12,0) -> 458.3333333 | BD12: N | BE12: =INDEX($AN$30:$AQ$38,Makro!B1,2) -> 1331.46 | BF12: =INDEX($AN$30:$AQ$38,Makro!C1,2) -> 1331.46 | BG12: =INDEX($AN$30:$AQ$38,Makro!D1,2) -> 1331.46 | BH12: =INDEX($AN$30:$AQ$38,Makro!E1,2) -> 1331.46 | BI12: =INDEX($AN$30:$AQ$38,Makro!F1,2) -> 1331.46 | BJ12: =INDEX($AN$30:$AQ$38,Makro!G1,2) -> 1331.46 | BK12: =INDEX($AN$30:$AQ$38,BK10,2) -> 3458.1 | BL12: D
M13: b | N13: 420 | P13: to | Q13: 28 | AN13: 5 | AO13: 740.1575351 | AP13: =IF(Makro!$E$20=1,"-",AX14*1000) -> - | AS13: s_p | AU13: MPa | AW13: =IF($AO$5=1,'Ark1'!M13,0)*$AY$38 -> 0.4702194705 | AX13: =IF($AO$5=1,'Ark1'!N13,0)*$AY$38 -> 0.196696783 | AY13: =IF($AO$5=1,'Ark1'!O13,0) -> 0.1902071471 | AZ13: =IF($AO$5=1,'Ark1'!P13,0) -> 0.0006483357234 | BA13: =IF($AO$5=1,'Ark1'!Q13,0) -> 229.4279104 | BB13: =IF($AO$5=1,'Ark1'!R13,0) -> 458.3333333 | BD13: N | BE13: =INDEX(Lastresult,1+5*(BE9-1),16)*1000 -> 1331.527223 | BF13: 1331.527223 | BG13: 1331.527223 | BH13: 1331.527223 | BI13: 1331.527223 | BJ13: 1331.527223 | BK13: 1331.527223 | BL13: E
M14: c | N14: 60 | P14: fo | Q14: =AT41 -> 1.760765659 | AN14: 6 | AO14: 1034.701656 | AP14: =IF(Makro!$E$20=1,"-",AX15*1000) -> - | AS14: t_0d | AT14: =0.25*AT12*(1.2+40*AT11)*AT10+0.15*AT13 -> 0.49455889 | AU14: MPa | AW14: =IF($AO$5=1,'Ark1'!M14,0)*$AY$38 -> 0.7401575351 | AX14: =IF($AO$5=1,'Ark1'!N14,0)*$AY$38 -> 0.2336597362 | AY14: =IF($AO$5=1,'Ark1'!O14,0) -> 0.2097697917 | AZ14: =IF($AO$5=1,'Ark1'!P14,0) -> 0.0008317346547 | BA14: =IF($AO$5=1,'Ark1'!Q14,0) -> 306.9759709 | BB14: =IF($AO$5=1,'Ark1'!R14,0) -> 458.3333333 | BD14: M | BE14: =INDEX($AN$30:$AQ$38,Makro!B1,4) -> 94.0608 | BF14: =INDEX($AN$30:$AQ$38,Makro!C1,4) -> 94.0608 | BG14: =INDEX($AN$30:$AQ$38,Makro!D1,4) -> 94.0608 | BH14: =INDEX($AN$30:$AQ$38,Makro!E1,4) -> 94.0608 | BI14: =INDEX($AN$30:$AQ$38,Makro!F1,4) -> 94.0608 | BJ14: =INDEX($AN$30:$AQ$38,Makro!G1,4) -> 94.0608 | BK14: =INDEX($AN$30:$AQ$38,BK10,4) -> 172.7112 | BL14: F
K15: Trykarm. | M15: da | N15: 16 | P15: M0Eqp/M0Ed | Q15: 0.9 | AN15: 7 | AO15: 1392.271357 | AP15: =IF(Makro!$E$20=1,"-",AX16*1000) -> - | AW15: =IF($AO$5=1,'Ark1'!M15,0)*$AY$38 -> 1.034701656 | AX15: =IF($AO$5=1,'Ark1'!N15,0)*$AY$38 -> 0.26872442 | AY15: =IF($AO$5=1,'Ark1'!O15,0) -> 0.2321097583 | AZ15: =IF($AO$5=1,'Ark1'!P15,0) -> 0.001008101268 | BA15: =IF($AO$5=1,'Ark1'!Q15,0) -> 386.4155211 | BB15: =IF($AO$5=1,'Ark1'!R15,0) -> 458.3333333 | BD15: Mud | BE15: =INDEX(Lastresult,1+5*(BE9-1),17)*1000 -> 298.7995215 | BF15: 298.7995215 | BG15: 298.7995215 | BH15: 298.7995215 | BI15: 298.7995215 | BJ15: 298.7995215 | BK15: 298.7995215 | BL15: G
M16: Antal | N16: 3 | P16: fef | Q16: =Q15*Q14 -> 1.584689093 | AN16: 8 | AO16: 1844.779311 | AP16: =IF(Makro!$E$20=1,"-",AX17*1000) -> - | AS16: t_d | AT16: =0.5*N11*MAX(Q25:Q28)/(0.8*N12*N13) -> 0.1984126984 | AU16: MPa | AW16: =IF($AO$5=1,'Ark1'!M16,0)*$AY$38 -> 1.392271357 | AX16: =IF($AO$5=1,'Ark1'!N16,0)*$AY$38 -> 0.3035794014 | AY16: =IF($AO$5=1,'Ark1'!O16,0) -> 0.2577379418 | AZ16: =IF($AO$5=1,'Ark1'!P16,0) -> 0.001222576549 | BA16: =IF($AO$5=1,'Ark1'!Q16,0) -> 458.3333333 | BB16: =IF($AO$5=1,'Ark1'!R16,0) -> 458.3333333 | BD16: u | BE16: =INDEX(Lastresult,1+5*(BE9-1),15)*1000 -> 43.49285549 | BF16: 43.49285549 | BG16: 43.49285549 | BH16: 43.49285549 | BI16: 43.49285549 | BJ16: 43.49285549 | BK16: 43.49285549 | BL16: H
K17: Trækarm. | M17: da | N17: 16 | O17: Bøjler | P17: ="Generelt: ø "&CEILING(MAX(6,N15/4,N17/4),1)&" / "&CEILING(MIN(20*MIN(N15,N17),MIN(N12,N13),400),1)&" mm" -> Generelt: ø 6 / 320 mm | AN17: 9 | AO17: 2401.333305 | AP17: =IF(Makro!$E$20=1,"-",AX18*1000) -> - | AW17: =IF($AO$5=1,'Ark1'!M17,0)*$AY$38 -> 1.844779311 | AX17: =IF($AO$5=1,'Ark1'!N17,0)*$AY$38 -> 0.3302791957 | AY17: =IF($AO$5=1,'Ark1'!O17,0) -> 0.2872822932 | AZ17: =IF($AO$5=1,'Ark1'!P17,0) -> 0.001553280537 | BA17: =IF($AO$5=1,'Ark1'!Q17,0) -> 458.3333333 | BB17: =IF($AO$5=1,'Ark1'!R17,0) -> 458.3333333 | BD17: wr | BE17: - | BF17: - | BG17: - | BH17: - | BI17: - | BJ17: - | BK17: - | BL17: I
M18: Antal | N18: 3 | P18: ="Top og bund: ø "&CEILING(MAX(6,N15/4,N17/4),1)&" / "&CEILING(0.6*MIN(20*MIN(N15,N17),MIN(N12,N13),400),1)&" mm" -> Top og bund: ø 6 / 192 mm | AN18: 10 | AO18: 2990.882456 | AP18: =IF(Makro!$E$20=1,"-",AX19*1000) -> - | AS18: Ingen negative inddata | AT18: =IF(MIN(N7,N8,N9,N10,N11,N14,N15,N16,N17,N18,AP40,AP41,N12,N13,N25:Q34,N35:P35,Q12,Q13,Q15,N23)<0,1,0) -> 0 | AU18: =IF(AT18=1,AS18&" ! ","") ->  | AW18: =IF($AO$5=1,'Ark1'!M18,0)*$AY$38 -> 2.401333305 | AX18: =IF($AO$5=1,'Ark1'!N18,0)*$AY$38 -> 0.3416009047 | AY18: =IF($AO$5=1,'Ark1'!O18,0) -> 0.3215203423 | AZ18: =IF($AO$5=1,'Ark1'!P18,0) -> 0.001973366606 | BA18: =IF($AO$5=1,'Ark1'!Q18,0) -> 458.3333333 | BB18: =IF($AO$5=1,'Ark1'!R18,0) -> 458.3333333 | BD18: e0 | BE18: =INDEX(Lastresult,1+5*(BE9-1),3)*1000 -> 1.182124371 | BF18: 1.182124371 | BG18: 1.182124371 | BH18: 1.182124371 | BI18: 1.182124371 | BJ18: 1.182124371 | BK18: 1.182124371
K19: Anvendelsestilstand | O19: Kritisk last (central) | AN19: 11 | AO19: 3505.726571 | AP19: =IF(Makro!$E$20=1,"-",AX20*1000) -> - | AS19: f_ck højst 50 MPa | AT19: =IF(N7>50,1,0) -> 0 | AW19: =IF($AO$5=1,'Ark1'!M19,0)*$AY$38 -> 2.990882456 | AX19: =IF($AO$5=1,'Ark1'!N19,0)*$AY$38 -> 0.3203077294 | AY19: =IF($AO$5=1,'Ark1'!O19,0) -> 0.3614224729 | AZ19: =IF($AO$5=1,'Ark1'!P19,0) -> 0.002344545484 | BA19: =IF($AO$5=1,'Ark1'!Q19,0) -> 458.3333333 | BB19: =IF($AO$5=1,'Ark1'!R19,0) -> 397.6346338 | BD19: sc0 | BE19: =('Ark1'!$O$31*'Ark1'!$O$30*Kold!BE18/1000-(Kold!BE18/1000)^2)*$Q$8/('Ark1'!$O$30^2+('Ark1'!$O$31-2)*'Ark1'!$O$30*Kold!BE18/1000) -> 22.15786528 | BF19: =('Ark1'!$O$31*'Ark1'!$O$30*Kold!BF18/1000-(Kold!BF18/1000)^2)*$Q$8/('Ark1'!$O$30^2+('Ark1'!$O$31-2)*'Ark1'!$O$30*Kold!BF18/1000) -> 22.15786528 | BG19: =('Ark1'!$O$31*'Ark1'!$O$30*Kold!BG18/1000-(Kold!BG18/1000)^2)*$Q$8/('Ark1'!$O$30^2+('Ark1'!$O$31-2)*'Ark1'!$O$30*Kold!BG18/1000) -> 22.15786528 | BH19: =('Ark1'!$O$31*'Ark1'!$O$30*Kold!BH18/1000-(Kold!BH18/1000)^2)*$Q$8/('Ark1'!$O$30^2+('Ark1'!$O$31-2)*'Ark1'!$O$30*Kold!BH18/1000) -> 22.15786528 | BI19: =('Ark1'!$O$31*'Ark1'!$O$30*Kold!BI18/1000-(Kold!BI18/1000)^2)*$Q$8/('Ark1'!$O$30^2+('Ark1'!$O$31-2)*'Ark1'!$O$30*Kold!BI18/1000) -> 22.15786528 | BJ19: =('Ark1'!$O$31*'Ark1'!$O$30*Kold!BJ18/1000-(Kold!BJ18/1000)^2)*$Q$8/('Ark1'!$O$30^2+('Ark1'!$O$31-2)*'Ark1'!$O$30*Kold!BJ18/1000) -> 22.15786528 | BK19: =('Ark1'!$O$31*'Ark1'!$O$30*Kold!BK18/1000-(Kold!BK18/1000)^2)*$Q$8/('Ark1'!$O$30^2+('Ark1'!$O$31-2)*'Ark1'!$O$30*Kold!BK18/1000) -> 22.15786528
L20: I anvendelsestilstand skønnes a | P20: scrd | Q20: =Q8/(1+12*Q8*N11^2/(PI()^2*Q10*N12^2)) -> 24.41010842 | AN20: 12 | AO20: 4078.35751 | AP20: =IF(Makro!$E$20=1,"-",AX21*1000) -> - | AS20: f_ck mindst 20 MPa | AT20: =IF(N7<20,1,0) -> 0 | AW20: =IF($AO$5=1,'Ark1'!M20,0)*$AY$38 -> 3.505726571 | AX20: =IF($AO$5=1,'Ark1'!N20,0)*$AY$38 -> 0.2806037132 | AY20: =IF($AO$5=1,'Ark1'!O20,0) -> 0.4082101177 | AZ20: =IF($AO$5=1,'Ark1'!P20,0) -> 0.002379689803 | BA20: =IF($AO$5=1,'Ark1'!Q20,0) -> 458.3333333 | BB20: =IF($AO$5=1,'Ark1'!R20,0) -> 216.340651 | BD20: sst | BE20: =INDEX(Lastresult,1+5*(BE9-1),12) -> 458.3333333 | BF20: 458.3333333 | BG20: 458.3333333 | BH20: 458.3333333 | BI20: 458.3333333 | BJ20: 458.3333333 | BK20: 458.3333333
L21: til en passende værdi afhængig af | P21: fc | Q21: =AP40/(N12*N13) -> 0.002659549336 | AN21: 13 | AO21: 4684.973049 | AP21: =IF(Makro!$E$20=1,"-",AX22*1000) -> - | AS21: b og h mindst 90 mm | AT21: =IF(MIN(N12,N13)<90,1,0) -> 0 | AW21: =IF($AO$5=1,'Ark1'!M21,0)*$AY$38 -> 4.07835751 | AX21: =IF($AO$5=1,'Ark1'!N21,0)*$AY$38 -> 0.2248615146 | AY21: =IF($AO$5=1,'Ark1'!O21,0) -> 0.4634349203 | AZ21: =IF($AO$5=1,'Ark1'!P21,0) -> 0.002399448908 | BA21: =IF($AO$5=1,'Ark1'!Q21,0) -> 458.3333333 | BB21: =IF($AO$5=1,'Ark1'!R21,0) -> 44.33580382 | BD21: ssc | BE21: =INDEX(Lastresult,1+5*(BE9-1),10) -> 458.3333333 | BF21: 458.3333333 | BG21: 458.3333333 | BH21: 458.3333333 | BI21: 458.3333333 | BJ21: 458.3333333 | BK21: 458.3333333
L22: forholdet mellem lang- og kort- | P22: ft | Q22: =AP41/(N12*N13) -> 0.002659549336 | AN22: 14 | AO22: 5193.20257 | AP22: =IF(Makro!$E$20=1,"-",AX23*1000) -> - | AS22: ="A_c og A_t må højst være "&BB35&" mm^2" -> A_c og A_t må højst være 4536 mm^2 | AT22: =IF(OR(AP40>BB35,AP41>BB35),1,0) -> 0 | AW22: =IF($AO$5=1,'Ark1'!M22,0)*$AY$38 -> 4.684973049 | AX22: =IF($AO$5=1,'Ark1'!N22,0)*$AY$38 -> 0.1482515073 | AY22: =IF($AO$5=1,'Ark1'!O22,0) -> 0.5290877597 | AZ22: =IF($AO$5=1,'Ark1'!P22,0) -> 0.002362526735 | BA22: =IF($AO$5=1,'Ark1'!Q22,0) -> 458.3333333 | BB22: =IF($AO$5=1,'Ark1'!R22,0) -> -113.3079899 | BD22: hc | BE22: =INDEX(Lastresult,1+5*(BE9-1),2)*1000 -> 252.9042106 | BF22: 252.9042106 | BG22: 252.9042106 | BH22: 252.9042106 | BI22: 252.9042106 | BJ22: 252.9042106 | BK22: 252.9042106
L23: tidslast: | M23: aanv. = | N23: 15 | P23: Ncr | Q23: =MIN(N12*N13*Q20*(1+(200000/Q10)*2*MIN(Q21,Q22)),N12*N13*Q20*(1+(Q9/Q20)*2*MIN(Q21,Q22)))/1000 -> 5770.319258 | AN23: 15 | AO23: 5501.963564 | AP23: =IF(Makro!$E$20=1,"-",AX24*1000) -> - | AS23: a højst h/3 | AT23: =IF(N14>N12/3,1,0) -> 0 | AW23: =IF($AO$5=1,'Ark1'!M23,0)*$AY$38 -> 5.19320257 | AX23: =IF($AO$5=1,'Ark1'!N23,0)*$AY$38 -> 0.0747434401 | AY23: =IF($AO$5=1,'Ark1'!O23,0) -> 0.6077509315 | AZ23: =IF($AO$5=1,'Ark1'!P23,0) -> 0.002240317151 | BA23: =IF($AO$5=1,'Ark1'!Q23,0) -> 458.3333333 | BB23: =IF($AO$5=1,'Ark1'!R23,0) -> -243.436812
C24: Kontrolparametre | D24: Brudlasttilfælde | J24: Anv. - | K24: Brudlasttilfælde | N24: N1 (kN) | O24: N0 (kN) | P24: N2 (kN) | Q24: w (kN/m) | AN24: 16 | AO24: 5501.963564 | AP24: =IF(Makro!$E$20=1,"-",AX25*1000) -> - | AS24: Armeringsdiameteren skal være større end 8 mm | AT24: =IF(OR(N15<8,N17<8),1,0) -> 0 | AW24: =IF($AO$5=1,'Ark1'!M24,0)*$AY$38 -> 5.501963564 | AX24: =IF($AO$5=1,'Ark1'!N24,0)*$AY$38 -> 0.03573972621 | AY24: =IF($AO$5=1,'Ark1'!O24,0) -> 0.7028136984 | AZ24: =IF($AO$5=1,'Ark1'!P24,0) -> 0.002089703091 | BA24: =IF($AO$5=1,'Ark1'!Q24,0) -> 458.3333333 | BB24: =IF($AO$5=1,'Ark1'!R24,0) -> -342.4715983
D25: =IF($AO$5=1,BE11,"-") -> A | E25: =IF($AO$5=1,BF11,"-") -> A | F25: =IF($AO$5=1,BG11,"-") -> A | G25: =IF($AO$5=1,BK11,"-") -> I | H25: =IF($AO$5=1,BL11,"-") -> C | I25: =IF($AO$5=1,BJ11,"-") -> A | J25: tilfælde | K25: A | N25: 107.64 | O25: 1146.6 | P25: 77.22 | Q25: 12 | AN25: 17 | AO25: 5501.963564 | AP25: =IF(Makro!$E$20=1,"-",AX26*1000) -> - | AS25: f_yk højst 600 MPa | AT25: =IF(N8>600,1,0) -> 0 | AW25: =IF($AO$5=1,'Ark1'!M25,0)*$AY$38 -> 5.501963564 | AX25: =IF($AO$5=1,'Ark1'!N25,0)*$AY$38 -> 0.03573972621 | AY25: =IF($AO$5=1,'Ark1'!O25,0) -> 0.7028136984 | AZ25: =IF($AO$5=1,'Ark1'!P25,0) -> 0.002089703091 | BA25: =IF($AO$5=1,'Ark1'!Q25,0) -> 458.3333333 | BB25: =IF($AO$5=1,'Ark1'!R25,0) -> -342.4715983
B26: NEd | C26: (kN) | D26: =IF($AO$5=1,BE13,"-") -> 1331.527223 | E26: =IF($AO$5=1,BF13,"-") -> 1331.527223 | F26: =IF($AO$5=1,BG13,"-") -> 1331.527223 | G26: =IF($AO$5=1,BH13,"-") -> 1331.527223 | H26: =IF($AO$5=1,BI13,"-") -> 1331.527223 | I26: =IF($AO$5=1,BJ13,"-") -> 1331.527223 | J26: =N34+O34+P34 -> 600 | K26: B | N26: 609.18 | O26: 1146.6 | P26: 77.22 | Q26: 12 | AN26: 18 | AO26: 5501.963564 | AP26: =IF(Makro!$E$20=1,"-",AX27*1000) -> - | AS26: ="A_c og A_t skal være større end "&AY35&" mm^2" -> A_c og A_t skal være større end 377 mm^2 | AT26: =IF(OR(AP40<AY35,AP41<AY35),1,0) -> 0 | AU26: =IF(AT26=1,AS26&" ! ","") ->  | AW26: =IF($AO$5=1,'Ark1'!M26,0)*$AY$38 -> 5.501963564 | AX26: =IF($AO$5=1,'Ark1'!N26,0)*$AY$38 -> 0.03573972621 | AY26: =IF($AO$5=1,'Ark1'!O26,0) -> 0.7028136984 | AZ26: =IF($AO$5=1,'Ark1'!P26,0) -> 0.002089703091 | BA26: =IF($AO$5=1,'Ark1'!Q26,0) -> 458.3333333 | BB26: =IF($AO$5=1,'Ark1'!R26,0) -> -342.4715983
B27: M0Ed | C27: (kNm) | D27: 94.0608 | E27: 94.0608 | F27: 94.0608 | G27: 94.0608 | H27: 94.0608 | I27: 94.0608 | J27: =(N34*N35+O34*O35-P34*P35)/1000+0.125*Q34*(N11/1000)^2 -> 157.8 | K27: C | N27: 609.18 | O27: 2205.84 | P27: 77.22 | Q27: 12 | AN27: 19 | AO27: 5501.963564 | AP27: =IF(Makro!$E$20=1,"-",AX28*1000) -> - | AS27: Partialkoefficienter mindst 1,0 | AT27: =IF(MIN(N9,N10)<1,1,0) -> 0 | AW27: =IF($AO$5=1,'Ark1'!M27,0)*$AY$38 -> 5.501963564 | AX27: =IF($AO$5=1,'Ark1'!N27,0)*$AY$38 -> 0.03573972621 | AY27: =IF($AO$5=1,'Ark1'!O27,0) -> 0.7028136984 | AZ27: =IF($AO$5=1,'Ark1'!P27,0) -> 0.002089703091 | BA27: =IF($AO$5=1,'Ark1'!Q27,0) -> 458.3333333 | BB27: =IF($AO$5=1,'Ark1'!R27,0) -> -342.4715983
B28: M0Rd | C28: (kNm) | D28: =IF($AO$5=1,BE15,"-") -> 298.7995215 | E28: 298.7995215 | F28: 298.7995215 | G28: 298.7995215 | H28: 298.7995215 | I28: 298.7995215 | J28: =IF(AT57+0.00001<0.9*AR51,"ustabil","-") -> - | K28: D | N28: 609.18 | O28: 2205.84 | P28: 435.24 | Q28: 12 | AS28: Søjlelængde må højst være 60 h | AT28: =IF(N11>60*N12,1,0) -> 0 | AU28: =IF(AT28=1,AS28&" ! ","") ->  | AW28: =IF($AO$5=1,'Ark1'!M28,0)*$AY$38 -> 5.501963564 | AX28: =IF($AO$5=1,'Ark1'!N28,0)*$AY$38 -> 0.03573972621 | AY28: =IF($AO$5=1,'Ark1'!O28,0) -> 0.7028136984 | AZ28: =IF($AO$5=1,'Ark1'!P28,0) -> 0.002089703091 | BA28: =IF($AO$5=1,'Ark1'!Q28,0) -> 458.3333333 | BB28: =IF($AO$5=1,'Ark1'!R28,0) -> -342.4715983
B29: u | C29: (mm) | D29: 43.49285549 | E29: 43.49285549 | F29: 43.49285549 | G29: 43.49285549 | H29: 43.49285549 | I29: 43.49285549 | J29: =AQ86 -> 15.92559079 | K29: E | N29: 609.18 | O29: 1146.6 | P29: 77.22 | Q29: 6 | AS29: Programmet indstillet til brandberegning ! | AT29: =IF(AO5=1,0,1) -> 0 | AU29: =IF(AT29=1,AS29&" ! ","") -> 
B30: wk | C30: (mm) | D30: - | E30: - | F30: - | G30: - | H30: - | I30: - | J30: =IF(AQ81=0,"urevnet",AS86) -> 0.2461536354 | K30: F | N30: 609.18 | O30: 2205.84 | P30: 77.22 | Q30: 6 | AO30: =N25+O25+P25 -> 1331.46 | AQ30: =(N25*$N$35+O25*$O$35-P25*$P$35)/1000+0.125*Q25*($N$11/1000)^2 -> 94.0608 | AS30: For ny bruger: Klik på knappen 'angiv nyt brugernavn' for ibrugtagning. | AT30: =Makro!E20 -> 1 | AU30: =IF(AT30=1,AS30,"") -> For ny bruger: Klik på knappen 'angiv nyt brugernavn' for ibrugtagning.
B31: e0 / (1+f) | C31: (o/oo) | D31: 1.182124371 | E31: 1.182124371 | F31: 1.182124371 | G31: 1.182124371 | H31: 1.182124371 | I31: 1.182124371 | J31: - | K31: G | N31: 609.18 | O31: 2205.84 | P31: 435.24 | Q31: 6 | AO31: 1833 | AQ31: 274.6152 | AS31: Beregning af krybetal | AW31: Minimumsarmering
B32: sc0 | C32: (Mpa) | D32: 22.15786528 | E32: 22.15786528 | F32: 22.15786528 | G32: 22.15786528 | H32: 22.15786528 | I32: 22.15786528 | J32: =IF($J$28="-",IF(AQ81=0,AP78,AQ78),"-") -> 12.99223311 | K32: H | N32: 609.18 | O32: 2413.68 | P32: 77.22 | Q32: 6 | S32: NB: Resultaterne skal altid kontrolleres af ansvarlig statiker | AO32: 2892.24 | AQ32: 295.8 | AS32: to | AT32: =Q13 -> 28 | AX32: Maks N | AY32: =MAX($AO$30:$AO$38)*1000 -> 3458100 | AZ32: N
B33: sst | C33: (Mpa) | D33: 458.3333333 | E33: 458.3333333 | F33: 458.3333333 | G33: 458.3333333 | H33: 458.3333333 | I33: 458.3333333 | J33: =IF($J$28="-",IF(AQ81=0,AP76,AQ76),"-") -> 205.8718605 | K33: I | N33: 609.18 | O33: 2413.68 | P33: 435.24 | Q33: 6 | AO33: 3250.26 | AQ33: 195.5544 | AS33: RH | AT33: =Q12*100 -> 55 | AX33: Ac | AY33: =$N$12*$N$13 -> 226800 | AZ33: mm2
B34: ssc | C34: (Mpa) | D34: 458.3333333 | E34: 458.3333333 | F34: 458.3333333 | G34: 458.3333333 | H34: 458.3333333 | I34: 458.3333333 | J34: =IF($J$28="-",IF(AQ81=0,AP79,AQ79),"-") -> 144.789077 | K34: Anvendelsestilfælde: | N34: 480 | O34: 62 | P34: 58 | Q34: 0 | S34: Vejledning: | V34: Betonelementbyggeriers statik | AO34: 1833 | AQ34: 247.6152 | AS34: h | AT34: =N12 -> 540 | AX34: Asmin | AY34: =ROUND(MAX(0.002*AY33,0.1*$AY$32/Q9),0) -> 754 | AZ34: mm2 | BA34: Asmax | BB34: =ROUND(MAX(0.04*AY33,0.1*$AY$32/Q9),0) -> 9072
B35: x | C35: (mm) | D35: 252.9042106 | E35: 252.9042106 | F35: 252.9042106 | G35: 252.9042106 | H35: 252.9042106 | I35: 252.9042106 | J35: =IF(AND($J$28="-",J26>0),IF(AQ81=0,"urevnet",AR57*1000),"-") -> 233.4194084 | K35: Excentriciteter (mm) : | N35: 360 | O35: 20 | P35: 280 | S35: Polyteknisk Forlag 2010 eller www.bef.dk | AO35: 2892.24 | AQ35: 268.8 | AS35: b | AT35: =N13 -> 420 | AX35: ½ Asmin | AY35: =ROUND(AY34/2,0) -> 377 | AZ35: mm2 | BA35: ½ Asmax | BB35: =BB34*0.5 -> 4536
AO36: 3250.26 | AQ36: 168.5544 | AS36: ho | AT36: =2*AT34*AT35/(2*(AT34+AT35)) -> 236.25
AO37: 3100.08 | AQ37: 272.9568 | AS37: fck | AT37: =N7 -> 40 | AW37: Nulstilling for fejl
AO38: 3458.1 | AQ38: 172.7112 | AS38: fcm | AT38: =AT37+8 -> 48 | AX38: Testfaktor | AY38: =IF(MAX(AT18,AT19,AT20,AT22,AT23,AT24,AT27,AT28)=1,0,1) -> 1
AS39: a1 | AT39: =IF(AT38<35,1,(35/AT38)^0.7) -> 0.8016388658
AN40: Trykarmering | AP40: =N15^2*N16*PI()/4 -> 603.1857895 | AQ40: mm^2 | AS40: a2 | AT40: =IF(AT38<35,1,(35/AT38)^0.2) -> 0.9387833131
AN41: Trækarmering | AP41: =N17^2*N18*PI()/4 -> 603.1857895 | AQ41: mm^2 | AS41: f | AT41: =(1/(0.1+AT32^0.2))*(16.8/AT38^0.5)*(1+10*AT39*(1-AT33/100)/AT36^(1/3))*AT40 -> 1.760765659
AN44: gc | AO44: 1 | AQ44: ANVENDELSESLAST | AT44: Mo | AV44: sc,max | AW44: sc,min | AX44: sc | AY44: st | AZ44: hc | BA44: u | BB44: a | BC44: Mt | BD44: a*fc | BE44: a*ft | BF44: B | BG44: C | BH44: D | BI44: p | BJ44: q | BK44: C' | BL44: y' | BM44: b | BN44: m | BO44: Ec | BP44: Atr | BQ44: Syt | BR44: Iyt | BS44: z | BT44: Io | BU44: sc | BV44: sm | BW44: hc
AN45: ga | AO45: 1 | AT45: =BC45-AR48*BA45 -> 0.1642510053 | AV45: =IF(BL45*SQRT(4*ABS(BI45)/3)-BF45/3<=AO51,BC45/(BN45*AO52*AO51^2),BU45) -> 13.6221829 | AW45: =IF(BL45*SQRT(4*ABS(BI45)/3)-BF45/3<=AO51,0,BV45) -> 0 | AX45: =BB45*(AZ45-AO53)*AV45/AZ45 -> 150.1710646 | AY45: =BB45*(AO51-AO53-AZ45)*AV45/AZ45 -> 228.9606873 | AZ45: =IF(BL45*SQRT(4*ABS(BI45)/3)-BF45/3<=AO51,BL45*SQRT(4*ABS(BI45)/3)-BF45/3,BW45) -> 0.2263586519 | BA45: =0.1*(AV45/(AZ45*BO45))*AO57^2 -> 0.01624850365 | BB45: =AO54 -> 15 | BC45: =IF(J27>0,AR51+AO51*AR48/20,0)+0.000000000001 -> 0.17400027 | BD45: =BB45*AO55/(AO51*AO52) -> 0.03989324005 | BE45: =BB45*AO56/(AO51*AO52) -> 0.03989324005 | BF45: =-6*AO51*(0.25-0.5*BC45/(AO51*AR50)) -> 0.05998685022 | BG45: =-6*AO51*(BD45*(0.5*AO51-AO53)-BE45*(0.5*AO51-AO53)-(BD45+BE45)*AO51*BC45/(AO51*AR50)) -> 0.07496624359 | BH45: =6*AO51*((BD45*AO53-BE45*(AO51-AO53))*(0.5*AO51-AO53)-(BD45*AO53+BE45*(AO51-AO53))*BC45/AR50) -> -0.03164109719 | BI45: =(3*BG45-BF45^2)/3 -> 0.07376676952 | BJ45: =(9*BG45*BF45-27*BH45-2*BF45^3)/27 -> 0.03312410398 | BK45: =0.5*BJ45*(3/ABS(BI45))^(3/2) -> 4.295412519 | BL45: =IF(BI45>0,SINH(ASINH(BK45)/3),IF(BK45>=1,COSH(ACOSH(BK45)/3),IF(BK45<=-1,-COSH(ACOSH(ABS(BK45))/3),COS(ACOS(BK45)/3)))) -> 0.7855255964 | BM45: =AZ45/AO51 -> 0.4191826887 | BN45: =0.5*BM45*(0.5-BM45/3)+BD45*(0.5-AO53/AO51)*(BM45-AO53/AO51)/BM45+BE45*(0.5-AO53/AO51)*(1-AO53/AO51-BM45)/BM45 -> 0.1042957005 | BO45: =IF(BL45*SQRT(4*ABS(BI45)/3)-BF45/3<=AO51,AO50*(1-AO49*AV45/AO48),AO50*(1-AO49*AV45/AO48-(1-1)*BV45/AO48)) -> 13333.33333 | BP45: =(1+BD45+BE45)*AO51*AO52 -> 0.2448955737 | BQ45: =0.5*(AO51-AO53)*(BE45-BD45)*AO51*AO52 -> 0 | BR45: =AO52*AO51^3/12+(0.5*AO51-AO53)^2*(BD45+BE45)*AO52*AO51 -> 0.006309254799 | BS45: =BQ45/BP45 -> 0 | BT45: =BR45-BP45*BS45^2 -> 0.006309254799 | BU45: =AR50/BP45+(BC45+BS45*AR50)*(0.5*AO51+BS45)/BT45 -> 9.896280519 | BV45: =AR50/BP45+(BC45+BS45*AR50)*(-0.5*AO51+BS45)/BT45 -> -4.996151121 | BW45: =AR50*BT45/((BC45+AR50*BS45)*BP45)+(0.5*AO51+BS45) -> 0.3588394165
AN46: fck | AO46: =N7 -> 40 | AP46: MPa | AT46: =BC46-AR48*BA46 -> 0.1584580239 | AU46: =BA46/BA45 -> 0.9325052741 | AV46: =IF(BL46*SQRT(4*ABS(BI46)/3)-BF46/3<=AO51,BC46/(BN46*AO52*AO51^2),BU46) -> 13.05647872 | AW46: =IF(BL46*SQRT(4*ABS(BI46)/3)-BF46/3<=AO51,0,BV46) -> 0 | AX46: =BB46*(AZ46-AO53)*AV46/AZ46 -> 145.3411296 | AY46: =BB46*(AO51-AO53-AZ46)*AV46/AZ46 -> 208.2012287 | AZ46: =IF(BL46*SQRT(4*ABS(BI46)/3)-BF46/3<=AO51,BL46*SQRT(4*ABS(BI46)/3)-BF46/3,BW46) -> 0.2326618409 | BA46: =0.1*(AV46/(AZ46*BO46))*AO57^2 -> 0.01515181535 | BB46: =AO54 -> 15 | BC46: =AR51+BA45*AR48 -> 0.1675492647 | BD46: =BB46*AO55/(AO51*AO52) -> 0.03989324005 | BE46: =BB46*AO56/(AO51*AO52) -> 0.03989324005 | BF46: =-6*AO51*(0.25-0.5*BC46/(AO51*AR50)) -> 0.02773236118 | BG46: =-6*AO51*(BD46*(0.5*AO51-AO53)-BE46*(0.5*AO51-AO53)-(BD46+BE46)*AO51*BC46/(AO51*AR50)) -> 0.07218689367 | BH46: =6*AO51*((BD46*AO53-BE46*(AO51-AO53))*(0.5*AO51-AO53)-(BD46*AO53+BE46*(AO51-AO53))*BC46/AR50) -> -0.03089067271 | BI46: =(3*BG46-BF46^2)/3 -> 0.07193053238 | BJ46: =(9*BG46*BF46-27*BH46-2*BF46^3)/27 -> 0.03155639716 | BK46: =0.5*BJ46*(3/ABS(BI46))^(3/2) -> 4.249808763 | BL46: =IF(BI46>0,SINH(ASINH(BK46)/3),IF(BK46>=1,COSH(ACOSH(BK46)/3),IF(BK46<=-1,-COSH(ACOSH(ABS(BK46))/3),COS(ACOS(BK46)/3)))) -> 0.7811250495 | BM46: =AZ46/AO51 -> 0.430855261 | BN46: =0.5*BM46*(0.5-BM46/3)+BD46*(0.5-AO53/AO51)*(BM46-AO53/AO51)/BM46+BE46*(0.5-AO53/AO51)*(1-AO53/AO51-BM46)/BM46 -> 0.1047803033 | BO46: =IF(BL46*SQRT(4*ABS(BI46)/3)-BF46/3<=AO51,AO50*(1-AO49*AV46/AO48),AO50*(1-AO49*AV46/AO48-(1-1)*BV46/AO48)) -> 13333.33333 | BP46: =(1+BD46+BE46)*AO51*AO52 -> 0.2448955737 | BQ46: =0.5*(AO51-AO53)*(BE46-BD46)*AO51*AO52 -> 0 | BR46: =AO52*AO51^3/12+(0.5*AO51-AO53)^2*(BD46+BE46)*AO52*AO51 -> 0.006309254799 | BS46: =BQ46/BP46 -> 0 | BT46: =BR46-BP46*BS46^2 -> 0.006309254799 | BU46: =AR50/BP46+(BC46+BS46*AR50)*(0.5*AO51+BS46)/BT46 -> 9.620214408 | BV46: =AR50/BP46+(BC46+BS46*AR50)*(-0.5*AO51+BS46)/BT46 -> -4.72008501 | BW46: =AR50*BT46/((BC46+AR50*BS46)*BP46)+(0.5*AO51+BS46) -> 0.3622599242
AN47: Es | AO47: 200000 | AP47: MPa | AQ47: Max_N | AR47: =(AO51*AO52+AO54*(AO55+AO56))*AO48/(1+(12*(AO48/AO50)/PI()^2)*(AO57/AO51)^2) -> 6.754266268 | AT47: =BC47-AR48*BA47 -> 0.1578666018 | AU47: =BA47/BA46 -> 0.9926740683 | AV47: =IF(BL47*SQRT(4*ABS(BI47)/3)-BF47/3<=AO51,BC47/(BN47*AO52*AO51^2),BU47) -> 12.99873546 | AW47: =IF(BL47*SQRT(4*ABS(BI47)/3)-BF47/3<=AO51,0,BV47) -> 0 | AX47: =BB47*(AZ47-AO53)*AV47/AZ47 -> 144.8449846 | AY47: =BB47*(AO51-AO53-AZ47)*AV47/AZ47 -> 206.1073465 | AZ47: =IF(BL47*SQRT(4*ABS(BI47)/3)-BF47/3<=AO51,BL47*SQRT(4*ABS(BI47)/3)-BF47/3,BW47) -> 0.2333423264 | BA47: =0.1*(AV47/(AZ47*BO47))*AO57^2 -> 0.01504081419 | BB47: =AO54 -> 15 | BC47: =AR51+BA46*AR48 -> 0.1668912407 | BD47: =BB47*AO55/(AO51*AO52) -> 0.03989324005 | BE47: =BB47*AO56/(AO51*AO52) -> 0.03989324005 | BF47: =-6*AO51*(0.25-0.5*BC47/(AO51*AR50)) -> 0.02444229628 | BG47: =-6*AO51*(BD47*(0.5*AO51-AO53)-BE47*(0.5*AO51-AO53)-(BD47+BE47)*AO51*BC47/(AO51*AR50)) -> 0.07190339075 | BH47: =6*AO51*((BD47*AO53-BE47*(AO51-AO53))*(0.5*AO51-AO53)-(BD47*AO53+BE47*(AO51-AO53))*BC47/AR50) -> -0.03081412692 | BI47: =(3*BG47-BF47^2)/3 -> 0.0717042488 | BJ47: =(9*BG47*BF47-27*BH47-2*BF47^3)/27 -> 0.03139887325 | BK47: =0.5*BJ47*(3/ABS(BI47))^(3/2) -> 4.248627097 | BL47: 0.7810105559 | BM47: =AZ47/AO51 -> 0.4321154193 | BN47: =0.5*BM47*(0.5-BM47/3)+BD47*(0.5-AO53/AO51)*(BM47-AO53/AO51)/BM47+BE47*(0.5-AO53/AO51)*(1-AO53/AO51-BM47)/BM47 -> 0.104832424 | BO47: =IF(BL47*SQRT(4*ABS(BI47)/3)-BF47/3<=AO51,AO50*(1-AO49*AV47/AO48),AO50*(1-AO49*AV47/AO48-(1-1)*BV47/AO48)) -> 13333.33333 | BP47: =(1+BD47+BE47)*AO51*AO52 -> 0.2448955737 | BQ47: =0.5*(AO51-AO53)*(BE47-BD47)*AO51*AO52 -> 0 | BR47: =AO52*AO51^3/12+(0.5*AO51-AO53)^2*(BD47+BE47)*AO52*AO51 -> 0.006309254799 | BS47: 0 | BT47: 0.006309254799 | BU47: =AR50/BP47+(BC47+BS47*AR50)*(0.5*AO51+BS47)/BT47 -> 9.592054748 | BV47: =AR50/BP47+(BC47+BS47*AR50)*(-0.5*AO51+BS47)/BT47 -> -4.69192535 | BW47: =AR50*BT47/((BC47+AR50*BS47)*BP47)+(0.5*AO51+BS47) -> 0.3626236895
AN48: fcd | AO48: =AO46/AO44 -> 40 | AP48: MPa | AQ48: Nd | AR48: =J26/1000+0.00001 -> 0.60001 | AS48: MN | AT48: =BC48-AR48*BA48 -> 0.1578067354 | AU48: 0.9992536658 | AV48: =IF(BL48*SQRT(4*ABS(BI48)/3)-BF48/3<=AO51,BC48/(BN48*AO52*AO51^2),BU48) -> 12.99289068 | AW48: =IF(BL48*SQRT(4*ABS(BI48)/3)-BF48/3<=AO51,0,BV48) -> 0 | AX48: =BB48*(AZ48-AO53)*AV48/AZ48 -> 144.7947312 | AY48: =BB48*(AO51-AO53-AZ48)*AV48/AZ48 -> 205.8956721 | AZ48: =IF(BL48*SQRT(4*ABS(BI48)/3)-BF48/3<=AO51,BL48*SQRT(4*ABS(BI48)/3)-BF48/3,BW48) -> 0.233411609 | BA48: =0.1*(AV48/(AZ48*BO48))*AO57^2 -> 0.01502958871 | BB48: =AO54 -> 15 | BC48: =AR51+BA47*AR48 -> 0.1668246389 | BD48: =BB48*AO55/(AO51*AO52) -> 0.03989324005 | BE48: =BB48*AO56/(AO51*AO52) -> 0.03989324005 | BF48: =-6*AO51*(0.25-0.5*BC48/(AO51*AR50)) -> 0.02410929278 | BG48: =-6*AO51*(BD48*(0.5*AO51-AO53)-BE48*(0.5*AO51-AO53)-(BD48+BE48)*AO51*BC48/(AO51*AR50)) -> 0.07187469604 | BH48: =6*AO51*((BD48*AO53-BE48*(AO51-AO53))*(0.5*AO51-AO53)-(BD48*AO53+BE48*(AO51-AO53))*BC48/AR50) -> -0.03080637935 | BI48: 0.07168094338 | BJ48: 0.03138295733 | BK48: 4.248544625 | BL48: 0.7810025641 | BM48: =AZ48/AO51 -> 0.4322437204 | BN48: =0.5*BM48*(0.5-BM48/3)+BD48*(0.5-AO53/AO51)*(BM48-AO53/AO51)/BM48+BE48*(0.5-AO53/AO51)*(1-AO53/AO51-BM48)/BM48 -> 0.1048377276 | BO48: =IF(BL48*SQRT(4*ABS(BI48)/3)-BF48/3<=AO51,AO50*(1-AO49*AV48/AO48),AO50*(1-AO49*AV48/AO48-(1-1)*BV48/AO48)) -> 13333.33333 | BP48: =(1+BD48+BE48)*AO51*AO52 -> 0.2448955737 | BQ48: =0.5*(AO51-AO53)*(BE48-BD48)*AO51*AO52 -> 0 | BR48: =AO52*AO51^3/12+(0.5*AO51-AO53)^2*(BD48+BE48)*AO52*AO51 -> 0.006309254799 | BS48: 0 | BT48: 0.006309254799 | BU48: =AR50/BP48+(BC48+BS48*AR50)*(0.5*AO51+BS48)/BT48 -> 9.589204572 | BV48: =AR50/BP48+(BC48+BS48*AR50)*(-0.5*AO51+BS48)/BT48 -> -4.689075174 | BW48: =AR50*BT48/((BC48+AR50*BS48)*BP48)+(0.5*AO51+BS48) -> 0.3626606679
AN49: k | AO49: 0 | AQ49: Nf | AR49: 0 | AS49: MN | AT49: =BC49-AR48*BA49 -> 0.1578006811 | AU49: 0.9999244738 | AV49: =IF(BL49*SQRT(4*ABS(BI49)/3)-BF49/3<=AO51,BC49/(BN49*AO52*AO51^2),BU49) -> 12.9922996 | AW49: =IF(BL49*SQRT(4*ABS(BI49)/3)-BF49/3<=AO51,0,BV49) -> 0 | AX49: =BB49*(AZ49-AO53)*AV49/AZ49 -> 144.7896488 | AY49: =BB49*(AO51-AO53-AZ49)*AV49/AZ49 -> 205.8742683 | AZ49: =IF(BL49*SQRT(4*ABS(BI49)/3)-BF49/3<=AO51,BL49*SQRT(4*ABS(BI49)/3)-BF49/3,BW49) -> 0.2334186197 | BA49: =0.1*(AV49/(AZ49*BO49))*AO57^2 -> 0.01502845359 | BB49: =AO54 -> 15 | BC49: =AR51+BA48*AR48 -> 0.1668179035 | BD49: =BB49*AO55/(AO51*AO52) -> 0.03989324005 | BE49: =BB49*AO56/(AO51*AO52) -> 0.03989324005 | BF49: =-6*AO51*(0.25-0.5*BC49/(AO51*AR50)) -> 0.02407561636 | BG49: =-6*AO51*(BD49*(0.5*AO51-AO53)-BE49*(0.5*AO51-AO53)-(BD49+BE49)*AO51*BC49/(AO51*AR50)) -> 0.07187179416 | BH49: =6*AO51*((BD49*AO53-BE49*(AO51-AO53))*(0.5*AO51-AO53)-(BD49*AO53+BE49*(AO51-AO53))*BC49/AR50) -> -0.03080559585 | BI49: 0.0716785824 | BJ49: 0.03138134805 | BK49: 4.248536666 | BL49: 0.7810017929 | BM49: =AZ49/AO51 -> 0.4322567032 | BN49: =0.5*BM49*(0.5-BM49/3)+BD49*(0.5-AO53/AO51)*(BM49-AO53/AO51)/BM49+BE49*(0.5-AO53/AO51)*(1-AO53/AO51-BM49)/BM49 -> 0.1048382643 | BO49: =IF(BL49*SQRT(4*ABS(BI49)/3)-BF49/3<=AO51,AO50*(1-AO49*AV49/AO48),AO50*(1-AO49*AV49/AO48-(1-1)*BV49/AO48)) -> 13333.33333 | BP49: =(1+BD49+BE49)*AO51*AO52 -> 0.2448955737 | BQ49: =0.5*(AO51-AO53)*(BE49-BD49)*AO51*AO52 -> 0 | BR49: =AO52*AO51^3/12+(0.5*AO51-AO53)^2*(BD49+BE49)*AO52*AO51 -> 0.006309254799 | BS49: 0 | BT49: 0.006309254799 | BU49: =AR50/BP49+(BC49+BS49*AR50)*(0.5*AO51+BS49)/BT49 -> 9.588916336 | BV49: =AR50/BP49+(BC49+BS49*AR50)*(-0.5*AO51+BS49)/BT49 -> -4.688786938 | BW49: =AR50*BT49/((BC49+AR50*BS49)*BP49)+(0.5*AO51+BS49) -> 0.3626644091
AN50: E | AO50: =AO47/AO54 -> 13333.33333 | AP50: MPa | AQ50: N | AR50: =AR49+AR48 -> 0.60001 | AS50: MN | AT50: =BC50-AR48*BA50 -> 0.1578000689 | AU50: 0.9999923622 | AV50: =IF(BL50*SQRT(4*ABS(BI50)/3)-BF50/3<=AO51,BC50/(BN50*AO52*AO51^2),BU50) -> 12.99223983 | AW50: =IF(BL50*SQRT(4*ABS(BI50)/3)-BF50/3<=AO51,0,BV50) -> 0 | AX50: =BB50*(AZ50-AO53)*AV50/AZ50 -> 144.7891348 | AY50: =BB50*(AO51-AO53-AZ50)*AV50/AZ50 -> 205.8721039 | AZ50: =IF(BL50*SQRT(4*ABS(BI50)/3)-BF50/3<=AO51,BL50*SQRT(4*ABS(BI50)/3)-BF50/3,BW50) -> 0.2334193287 | BA50: =0.1*(AV50/(AZ50*BO50))*AO57^2 -> 0.0150283388 | BB50: =AO54 -> 15 | BC50: =AR51+BA49*AR48 -> 0.1668172224 | BD50: =BB50*AO55/(AO51*AO52) -> 0.03989324005 | BE50: =BB50*AO56/(AO51*AO52) -> 0.03989324005 | BF50: =-6*AO51*(0.25-0.5*BC50/(AO51*AR50)) -> 0.02407221098 | BG50: =-6*AO51*(BD50*(0.5*AO51-AO53)-BE50*(0.5*AO51-AO53)-(BD50+BE50)*AO51*BC50/(AO51*AR50)) -> 0.07187150072 | BH50: =6*AO51*((BD50*AO53-BE50*(AO51-AO53))*(0.5*AO51-AO53)-(BD50*AO53+BE50*(AO51-AO53))*BC50/AR50) -> -0.03080551662 | BI50: =(3*BG50-BF50^2)/3 -> 0.07167834361 | BJ50: =(9*BG50*BF50-27*BH50-2*BF50^3)/27 -> 0.03138118532 | BK50: =0.5*BJ50*(3/ABS(BI50))^(3/2) -> 4.248535865 | BL50: =IF(BI50>0,SINH(ASINH(BK50)/3),IF(BK50>=1,COSH(ACOSH(BK50)/3),IF(BK50<=-1,-COSH(ACOSH(ABS(BK50))/3),COS(ACOS(BK50)/3)))) -> 0.7810017153 | BM50: =AZ50/AO51 -> 0.4322580161 | BN50: =0.5*BM50*(0.5-BM50/3)+BD50*(0.5-AO53/AO51)*(BM50-AO53/AO51)/BM50+BE50*(0.5-AO53/AO51)*(1-AO53/AO51-BM50)/BM50 -> 0.1048383185 | BO50: =IF(BL50*SQRT(4*ABS(BI50)/3)-BF50/3<=AO51,AO50*(1-AO49*AV50/AO48),AO50*(1-AO49*AV50/AO48-(1-1)*BV50/AO48)) -> 13333.33333 | BP50: =(1+BD50+BE50)*AO51*AO52 -> 0.2448955737 | BQ50: =0.5*(AO51-AO53)*(BE50-BD50)*AO51*AO52 -> 0 | BR50: =AO52*AO51^3/12+(0.5*AO51-AO53)^2*(BD50+BE50)*AO52*AO51 -> 0.006309254799 | BS50: 0 | BT50: 0.006309254799 | BU50: =AR50/BP50+(BC50+BS50*AR50)*(0.5*AO51+BS50)/BT50 -> 9.588887189 | BV50: =AR50/BP50+(BC50+BS50*AR50)*(-0.5*AO51+BS50)/BT50 -> -4.688757791 | BW50: =AR50*BT50/((BC50+AR50*BS50)*BP50)+(0.5*AO51+BS50) -> 0.3626647875
AN51: h | AO51: =$N$12/1000 -> 0.54 | AP51: m | AQ51: Mo | AR51: =J27/1000 -> 0.1578 | AS51: MNm | AT51: =BC51-AR48*BA51 -> 0.157800007 | AU51: 0.9999992277 | AV51: =IF(BL51*SQRT(4*ABS(BI51)/3)-BF51/3<=AO51,BC51/(BN51*AO52*AO51^2),BU51) -> 12.99223379 | AW51: =IF(BL51*SQRT(4*ABS(BI51)/3)-BF51/3<=AO51,0,BV51) -> 0 | AX51: =BB51*(AZ51-AO53)*AV51/AZ51 -> 144.7890828 | AY51: =BB51*(AO51-AO53-AZ51)*AV51/AZ51 -> 205.8718851 | AZ51: =IF(BL51*SQRT(4*ABS(BI51)/3)-BF51/3<=AO51,BL51*SQRT(4*ABS(BI51)/3)-BF51/3,BW51) -> 0.2334194004 | BA51: =0.1*(AV51/(AZ51*BO51))*AO57^2 -> 0.0150283272 | BB51: =AO54 -> 15 | BC51: =AR51+BA50*AR48 -> 0.1668171536 | BD51: =BB51*AO55/(AO51*AO52) -> 0.03989324005 | BE51: =BB51*AO56/(AO51*AO52) -> 0.03989324005 | BF51: =-6*AO51*(0.25-0.5*BC51/(AO51*AR50)) -> 0.02407186663 | BG51: =-6*AO51*(BD51*(0.5*AO51-AO53)-BE51*(0.5*AO51-AO53)-(BD51+BE51)*AO51*BC51/(AO51*AR50)) -> 0.07187147105 | BH51: =6*AO51*((BD51*AO53-BE51*(AO51-AO53))*(0.5*AO51-AO53)-(BD51*AO53+BE51*(AO51-AO53))*BC51/AR50) -> -0.03080550861 | BI51: 0.07167831946 | BJ51: 0.03138116887 | BK51: 4.248535784 | BL51: 0.7810017075 | BM51: =AZ51/AO51 -> 0.4322581488 | BN51: =0.5*BM51*(0.5-BM51/3)+BD51*(0.5-AO53/AO51)*(BM51-AO53/AO51)/BM51+BE51*(0.5-AO53/AO51)*(1-AO53/AO51-BM51)/BM51 -> 0.104838324 | BO51: =IF(BL51*SQRT(4*ABS(BI51)/3)-BF51/3<=AO51,AO50*(1-AO49*AV51/AO48),AO50*(1-AO49*AV51/AO48-(1-1)*BV51/AO48)) -> 13333.33333 | BP51: =(1+BD51+BE51)*AO51*AO52 -> 0.2448955737 | BQ51: =0.5*(AO51-AO53)*(BE51-BD51)*AO51*AO52 -> 0 | BR51: =AO52*AO51^3/12+(0.5*AO51-AO53)^2*(BD51+BE51)*AO52*AO51 -> 0.006309254799 | BS51: 0 | BT51: 0.006309254799 | BU51: =AR50/BP51+(BC51+BS51*AR50)*(0.5*AO51+BS51)/BT51 -> 9.588884242 | BV51: =AR50/BP51+(BC51+BS51*AR50)*(-0.5*AO51+BS51)/BT51 -> -4.688754844 | BW51: =AR50*BT51/((BC51+AR50*BS51)*BP51)+(0.5*AO51+BS51) -> 0.3626648257
AN52: b | AO52: =$N$13/1000 -> 0.42 | AP52: m | AQ52: u | AR52: =BA57 -> 0.01502832589 | AS52: m | AT52: =BC52-AR48*BA52 -> 0.1578000007 | AU52: 0.9999999219 | AV52: =IF(BL52*SQRT(4*ABS(BI52)/3)-BF52/3<=AO51,BC52/(BN52*AO52*AO51^2),BU52) -> 12.99223318 | AW52: =IF(BL52*SQRT(4*ABS(BI52)/3)-BF52/3<=AO51,0,BV52) -> 0 | AX52: =BB52*(AZ52-AO53)*AV52/AZ52 -> 144.7890776 | AY52: =BB52*(AO51-AO53-AZ52)*AV52/AZ52 -> 205.8718629 | AZ52: =IF(BL52*SQRT(4*ABS(BI52)/3)-BF52/3<=AO51,BL52*SQRT(4*ABS(BI52)/3)-BF52/3,BW52) -> 0.2334194076 | BA52: =0.1*(AV52/(AZ52*BO52))*AO57^2 -> 0.01502832602 | BB52: =AO54 -> 15 | BC52: =AR51+BA51*AR48 -> 0.1668171466 | BD52: =BB52*AO55/(AO51*AO52) -> 0.03989324005 | BE52: =BB52*AO56/(AO51*AO52) -> 0.03989324005 | BF52: =-6*AO51*(0.25-0.5*BC52/(AO51*AR50)) -> 0.02407183181 | BG52: =-6*AO51*(BD52*(0.5*AO51-AO53)-BE52*(0.5*AO51-AO53)-(BD52+BE52)*AO51*BC52/(AO51*AR50)) -> 0.07187146805 | BH52: =6*AO51*((BD52*AO53-BE52*(AO51-AO53))*(0.5*AO51-AO53)-(BD52*AO53+BE52*(AO51-AO53))*BC52/AR50) -> -0.0308055078 | BI52: 0.07167831702 | BJ52: 0.0313811672 | BK52: 4.248535776 | BL52: 0.7810017067 | BM52: =AZ52/AO51 -> 0.4322581623 | BN52: =0.5*BM52*(0.5-BM52/3)+BD52*(0.5-AO53/AO51)*(BM52-AO53/AO51)/BM52+BE52*(0.5-AO53/AO51)*(1-AO53/AO51-BM52)/BM52 -> 0.1048383246 | BO52: =IF(BL52*SQRT(4*ABS(BI52)/3)-BF52/3<=AO51,AO50*(1-AO49*AV52/AO48),AO50*(1-AO49*AV52/AO48-(1-1)*BV52/AO48)) -> 13333.33333 | BP52: =(1+BD52+BE52)*AO51*AO52 -> 0.2448955737 | BQ52: =0.5*(AO51-AO53)*(BE52-BD52)*AO51*AO52 -> 0 | BR52: =AO52*AO51^3/12+(0.5*AO51-AO53)^2*(BD52+BE52)*AO52*AO51 -> 0.006309254799 | BS52: 0 | BT52: 0.006309254799 | BU52: =AR50/BP52+(BC52+BS52*AR50)*(0.5*AO51+BS52)/BT52 -> 9.588883944 | BV52: =AR50/BP52+(BC52+BS52*AR50)*(-0.5*AO51+BS52)/BT52 -> -4.688754546 | BW52: =AR50*BT52/((BC52+AR50*BS52)*BP52)+(0.5*AO51+BS52) -> 0.3626648296
AN53: a | AO53: =N14/1000 -> 0.06 | AP53: m | AQ53: ec,max | AR53: =1000*AV57/BO57 -> 0.9744174831 | AS53: o/oo | AT53: =BC53-AR48*BA53 -> 0.1578000001 | AU53: 0.9999999921 | AV53: =IF(BL53*SQRT(4*ABS(BI53)/3)-BF53/3<=AO51,BC53/(BN53*AO52*AO51^2),BU53) -> 12.99223312 | AW53: =IF(BL53*SQRT(4*ABS(BI53)/3)-BF53/3<=AO51,0,BV53) -> 0 | AX53: =BB53*(AZ53-AO53)*AV53/AZ53 -> 144.7890771 | AY53: =BB53*(AO51-AO53-AZ53)*AV53/AZ53 -> 205.8718607 | AZ53: =IF(BL53*SQRT(4*ABS(BI53)/3)-BF53/3<=AO51,BL53*SQRT(4*ABS(BI53)/3)-BF53/3,BW53) -> 0.2334194084 | BA53: =0.1*(AV53/(AZ53*BO53))*AO57^2 -> 0.0150283259 | BB53: =AO54 -> 15 | BC53: =AR51+BA52*AR48 -> 0.1668171459 | BD53: =BB53*AO55/(AO51*AO52) -> 0.03989324005 | BE53: =BB53*AO56/(AO51*AO52) -> 0.03989324005 | BF53: =-6*AO51*(0.25-0.5*BC53/(AO51*AR50)) -> 0.02407182829 | BG53: =-6*AO51*(BD53*(0.5*AO51-AO53)-BE53*(0.5*AO51-AO53)-(BD53+BE53)*AO51*BC53/(AO51*AR50)) -> 0.07187146775 | BH53: =6*AO51*((BD53*AO53-BE53*(AO51-AO53))*(0.5*AO51-AO53)-(BD53*AO53+BE53*(AO51-AO53))*BC53/AR50) -> -0.03080550771 | BI53: 0.07167831678 | BJ53: 0.03138116704 | BK53: 4.248535775 | BL53: 0.7810017066 | BM53: =AZ53/AO51 -> 0.4322581636 | BN53: =0.5*BM53*(0.5-BM53/3)+BD53*(0.5-AO53/AO51)*(BM53-AO53/AO51)/BM53+BE53*(0.5-AO53/AO51)*(1-AO53/AO51-BM53)/BM53 -> 0.1048383246 | BO53: =IF(BL53*SQRT(4*ABS(BI53)/3)-BF53/3<=AO51,AO50*(1-AO49*AV53/AO48),AO50*(1-AO49*AV53/AO48-(1-1)*BV53/AO48)) -> 13333.33333 | BP53: =(1+BD53+BE53)*AO51*AO52 -> 0.2448955737 | BQ53: =0.5*(AO51-AO53)*(BE53-BD53)*AO51*AO52 -> 0 | BR53: =AO52*AO51^3/12+(0.5*AO51-AO53)^2*(BD53+BE53)*AO52*AO51 -> 0.006309254799 | BS53: 0 | BT53: 0.006309254799 | BU53: =AR50/BP53+(BC53+BS53*AR50)*(0.5*AO51+BS53)/BT53 -> 9.588883913 | BV53: =AR50/BP53+(BC53+BS53*AR50)*(-0.5*AO51+BS53)/BT53 -> -4.688754516 | BW53: =AR50*BT53/((BC53+AR50*BS53)*BP53)+(0.5*AO51+BS53) -> 0.36266483
AN54: a | AO54: =$N$23 -> 15 | AQ54: ec,min | AR54: =1000*AW57/BO57 -> 0 | AS54: o/oo | AT54: =BC54-AR48*BA54 -> 0.1578 | AU54: =BA54/BA53 -> 0.9999999992 | AV54: =IF(BL54*SQRT(4*ABS(BI54)/3)-BF54/3<=AO51,BC54/(BN54*AO52*AO51^2),BU54) -> 12.99223311 | AW54: =IF(BL54*SQRT(4*ABS(BI54)/3)-BF54/3<=AO51,0,BV54) -> 0 | AX54: =BB54*(AZ54-AO53)*AV54/AZ54 -> 144.789077 | AY54: =BB54*(AO51-AO53-AZ54)*AV54/AZ54 -> 205.8718605 | AZ54: =IF(BL54*SQRT(4*ABS(BI54)/3)-BF54/3<=AO51,BL54*SQRT(4*ABS(BI54)/3)-BF54/3,BW54) -> 0.2334194084 | BA54: =0.1*(AV54/(AZ54*BO54))*AO57^2 -> 0.01502832589 | BB54: =AO54 -> 15 | BC54: =AR51+BA53*AR48 -> 0.1668171458 | BD54: =BB54*AO55/(AO51*AO52) -> 0.03989324005 | BE54: =BB54*AO56/(AO51*AO52) -> 0.03989324005 | BF54: =-6*AO51*(0.25-0.5*BC54/(AO51*AR50)) -> 0.02407182793 | BG54: =-6*AO51*(BD54*(0.5*AO51-AO53)-BE54*(0.5*AO51-AO53)-(BD54+BE54)*AO51*BC54/(AO51*AR50)) -> 0.07187146772 | BH54: =6*AO51*((BD54*AO53-BE54*(AO51-AO53))*(0.5*AO51-AO53)-(BD54*AO53+BE54*(AO51-AO53))*BC54/AR50) -> -0.03080550771 | BI54: 0.07167831675 | BJ54: 0.03138116702 | BK54: 4.248535775 | BL54: 0.7810017066 | BM54: =AZ54/AO51 -> 0.4322581638 | BN54: =0.5*BM54*(0.5-BM54/3)+BD54*(0.5-AO53/AO51)*(BM54-AO53/AO51)/BM54+BE54*(0.5-AO53/AO51)*(1-AO53/AO51-BM54)/BM54 -> 0.1048383246 | BO54: =IF(BL54*SQRT(4*ABS(BI54)/3)-BF54/3<=AO51,AO50*(1-AO49*AV54/AO48),AO50*(1-AO49*AV54/AO48-(1-1)*BV54/AO48)) -> 13333.33333 | BP54: =(1+BD54+BE54)*AO51*AO52 -> 0.2448955737 | BQ54: =0.5*(AO51-AO53)*(BE54-BD54)*AO51*AO52 -> 0 | BR54: =AO52*AO51^3/12+(0.5*AO51-AO53)^2*(BD54+BE54)*AO52*AO51 -> 0.006309254799 | BS54: 0 | BT54: 0.006309254799 | BU54: =AR50/BP54+(BC54+BS54*AR50)*(0.5*AO51+BS54)/BT54 -> 9.58888391 | BV54: =AR50/BP54+(BC54+BS54*AR50)*(-0.5*AO51+BS54)/BT54 -> -4.688754513 | BW54: =AR50*BT54/((BC54+AR50*BS54)*BP54)+(0.5*AO51+BS54) -> 0.36266483
AN55: Ac | AO55: =$AP$40/1000000 -> 0.0006031857895 | AP55: m2 | AQ55: sa,c | AR55: =AX57 -> 144.789077 | AS55: MPa | AT55: =BC55-AR48*BA55 -> 0.1578 | AU55: =BA55/BA54 -> 0.9999999999 | AV55: =IF(BL55*SQRT(4*ABS(BI55)/3)-BF55/3<=AO51,BC55/(BN55*AO52*AO51^2),BU55) -> 12.99223311 | AW55: =IF(BL55*SQRT(4*ABS(BI55)/3)-BF55/3<=AO51,0,BV55) -> 0 | AX55: =BB55*(AZ55-AO53)*AV55/AZ55 -> 144.789077 | AY55: =BB55*(AO51-AO53-AZ55)*AV55/AZ55 -> 205.8718605 | AZ55: =IF(BL55*SQRT(4*ABS(BI55)/3)-BF55/3<=AO51,BL55*SQRT(4*ABS(BI55)/3)-BF55/3,BW55) -> 0.2334194084 | BA55: =0.1*(AV55/(AZ55*BO55))*AO57^2 -> 0.01502832589 | BB55: =AO54 -> 15 | BC55: =AR51+BA54*AR48 -> 0.1668171458 | BD55: =BB55*AO55/(AO51*AO52) -> 0.03989324005 | BE55: =BB55*AO56/(AO51*AO52) -> 0.03989324005 | BF55: =-6*AO51*(0.25-0.5*BC55/(AO51*AR50)) -> 0.02407182789 | BG55: =-6*AO51*(BD55*(0.5*AO51-AO53)-BE55*(0.5*AO51-AO53)-(BD55+BE55)*AO51*BC55/(AO51*AR50)) -> 0.07187146771 | BH55: =6*AO51*((BD55*AO53-BE55*(AO51-AO53))*(0.5*AO51-AO53)-(BD55*AO53+BE55*(AO51-AO53))*BC55/AR50) -> -0.0308055077 | BI55: 0.07167831675 | BJ55: 0.03138116702 | BK55: 4.248535775 | BL55: 0.7810017066 | BM55: =AZ55/AO51 -> 0.4322581638 | BN55: =0.5*BM55*(0.5-BM55/3)+BD55*(0.5-AO53/AO51)*(BM55-AO53/AO51)/BM55+BE55*(0.5-AO53/AO51)*(1-AO53/AO51-BM55)/BM55 -> 0.1048383246 | BO55: =IF(BL55*SQRT(4*ABS(BI55)/3)-BF55/3<=AO51,AO50*(1-AO49*AV55/AO48),AO50*(1-AO49*AV55/AO48-(1-1)*BV55/AO48)) -> 13333.33333 | BP55: =(1+BD55+BE55)*AO51*AO52 -> 0.2448955737 | BQ55: =0.5*(AO51-AO53)*(BE55-BD55)*AO51*AO52 -> 0 | BR55: =AO52*AO51^3/12+(0.5*AO51-AO53)^2*(BD55+BE55)*AO52*AO51 -> 0.006309254799 | BS55: 0 | BT55: 0.006309254799 | BU55: =AR50/BP55+(BC55+BS55*AR50)*(0.5*AO51+BS55)/BT55 -> 9.58888391 | BV55: =AR50/BP55+(BC55+BS55*AR50)*(-0.5*AO51+BS55)/BT55 -> -4.688754512 | BW55: =AR50*BT55/((BC55+AR50*BS55)*BP55)+(0.5*AO51+BS55) -> 0.36266483
AN56: At | AO56: =$AP$41/1000000 -> 0.0006031857895 | AP56: m2 | AQ56: sa,t | AR56: =AY57 -> 205.8718605 | AS56: MPa | AT56: =BC56-AR48*BA56 -> 0.1578 | AU56: =BA56/BA55 -> 1 | AV56: =IF(BL56*SQRT(4*ABS(BI56)/3)-BF56/3<=AO51,BC56/(BN56*AO52*AO51^2),BU56) -> 12.99223311 | AW56: =IF(BL56*SQRT(4*ABS(BI56)/3)-BF56/3<=AO51,0,BV56) -> 0 | AX56: =BB56*(AZ56-AO53)*AV56/AZ56 -> 144.789077 | AY56: =BB56*(AO51-AO53-AZ56)*AV56/AZ56 -> 205.8718605 | AZ56: =IF(BL56*SQRT(4*ABS(BI56)/3)-BF56/3<=AO51,BL56*SQRT(4*ABS(BI56)/3)-BF56/3,BW56) -> 0.2334194084 | BA56: =0.1*(AV56/(AZ56*BO56))*AO57^2 -> 0.01502832589 | BB56: =AO54 -> 15 | BC56: =AR51+BA55*AR48 -> 0.1668171458 | BD56: =BB56*AO55/(AO51*AO52) -> 0.03989324005 | BE56: =BB56*AO56/(AO51*AO52) -> 0.03989324005 | BF56: =-6*AO51*(0.25-0.5*BC56/(AO51*AR50)) -> 0.02407182789 | BG56: =-6*AO51*(BD56*(0.5*AO51-AO53)-BE56*(0.5*AO51-AO53)-(BD56+BE56)*AO51*BC56/(AO51*AR50)) -> 0.07187146771 | BH56: =6*AO51*((BD56*AO53-BE56*(AO51-AO53))*(0.5*AO51-AO53)-(BD56*AO53+BE56*(AO51-AO53))*BC56/AR50) -> -0.0308055077 | BI56: 0.07167831675 | BJ56: 0.03138116702 | BK56: 4.248535775 | BL56: 0.7810017066 | BM56: =AZ56/AO51 -> 0.4322581638 | BN56: =0.5*BM56*(0.5-BM56/3)+BD56*(0.5-AO53/AO51)*(BM56-AO53/AO51)/BM56+BE56*(0.5-AO53/AO51)*(1-AO53/AO51-BM56)/BM56 -> 0.1048383246 | BO56: =IF(BL56*SQRT(4*ABS(BI56)/3)-BF56/3<=AO51,AO50*(1-AO49*AV56/AO48),AO50*(1-AO49*AV56/AO48-(1-1)*BV56/AO48)) -> 13333.33333 | BP56: =(1+BD56+BE56)*AO51*AO52 -> 0.2448955737 | BQ56: =0.5*(AO51-AO53)*(BE56-BD56)*AO51*AO52 -> 0 | BR56: =AO52*AO51^3/12+(0.5*AO51-AO53)^2*(BD56+BE56)*AO52*AO51 -> 0.006309254799 | BS56: 0 | BT56: 0.006309254799 | BU56: =AR50/BP56+(BC56+BS56*AR50)*(0.5*AO51+BS56)/BT56 -> 9.58888391 | BV56: =AR50/BP56+(BC56+BS56*AR50)*(-0.5*AO51+BS56)/BT56 -> -4.688754512 | BW56: =AR50*BT56/((BC56+AR50*BS56)*BP56)+(0.5*AO51+BS56) -> 0.36266483
AN57: L | AO57: =$N$11/1000 -> 6 | AP57: m | AQ57: hc | AR57: =AZ57 -> 0.2334194084 | AS57: m | AT57: =BC57-AR48*BA57 -> 0.1578 | AU57: =BA57/BA56 -> 1 | AV57: =IF(BL57*SQRT(4*ABS(BI57)/3)-BF57/3<=AO51,BC57/(BN57*AO52*AO51^2),BU57) -> 12.99223311 | AW57: =IF(BL57*SQRT(4*ABS(BI57)/3)-BF57/3<=AO51,0,BV57) -> 0 | AX57: =BB57*(AZ57-AO53)*AV57/AZ57 -> 144.789077 | AY57: =BB57*(AO51-AO53-AZ57)*AV57/AZ57 -> 205.8718605 | AZ57: =IF(BL57*SQRT(4*ABS(BI57)/3)-BF57/3<=AO51,BL57*SQRT(4*ABS(BI57)/3)-BF57/3,BW57) -> 0.2334194084 | BA57: =0.1*(AV57/(AZ57*BO57))*AO57^2 -> 0.01502832589 | BB57: =AO54 -> 15 | BC57: =AR51+BA56*AR48 -> 0.1668171458 | BD57: =BB57*AO55/(AO51*AO52) -> 0.03989324005 | BE57: =BB57*AO56/(AO51*AO52) -> 0.03989324005 | BF57: =-6*AO51*(0.25-0.5*BC57/(AO51*AR50)) -> 0.02407182789 | BG57: =-6*AO51*(BD57*(0.5*AO51-AO53)-BE57*(0.5*AO51-AO53)-(BD57+BE57)*AO51*BC57/(AO51*AR50)) -> 0.07187146771 | BH57: =6*AO51*((BD57*AO53-BE57*(AO51-AO53))*(0.5*AO51-AO53)-(BD57*AO53+BE57*(AO51-AO53))*BC57/AR50) -> -0.0308055077 | BI57: 0.07167831675 | BJ57: 0.03138116702 | BK57: 4.248535775 | BL57: 0.7810017066 | BM57: =AZ57/AO51 -> 0.4322581638 | BN57: =0.5*BM57*(0.5-BM57/3)+BD57*(0.5-AO53/AO51)*(BM57-AO53/AO51)/BM57+BE57*(0.5-AO53/AO51)*(1-AO53/AO51-BM57)/BM57 -> 0.1048383246 | BO57: =IF(BL57*SQRT(4*ABS(BI57)/3)-BF57/3<=AO51,AO50*(1-AO49*AV57/AO48),AO50*(1-AO49*AV57/AO48-(1-1)*BV57/AO48)) -> 13333.33333 | BP57: =(1+BD57+BE57)*AO51*AO52 -> 0.2448955737 | BQ57: =0.5*(AO51-AO53)*(BE57-BD57)*AO51*AO52 -> 0 | BR57: =AO52*AO51^3/12+(0.5*AO51-AO53)^2*(BD57+BE57)*AO52*AO51 -> 0.006309254799 | BS57: 0 | BT57: 0.006309254799 | BU57: =AR50/BP57+(BC57+BS57*AR50)*(0.5*AO51+BS57)/BT57 -> 9.58888391 | BV57: =AR50/BP57+(BC57+BS57*AR50)*(-0.5*AO51+BS57)/BT57 -> -4.688754512 | BW57: =AR50*BT57/((BC57+AR50*BS57)*BP57)+(0.5*AO51+BS57) -> 0.36266483
AN60: ANVENDELSESSTADIE - HENSYN TIL KRYBNING, TENSION STIFFENING, SVIND MV:
AN61: L | AO61: h | AP61: b | AQ61: fck | AR61: fcd | AS61: Ecd | AT61: Ac | AU61: ac | AV61: Esc | AW61: fyd_c | AX61: At | AY61: at | AZ61: Est | BA61: fyd_t | BB61: aeff | BC61: RH | BD61: feff = fctm | BE61: N
AN62: (m) | AO62: (m) | AP62: (m) | AQ62: (Mpa) | AR62: (Mpa) | AS62: (Mpa) | AT62: (m2) | AU62: (m) | AV62: (Mpa) | AW62: (Mpa) | AX62: (m2) | AY62: (m) | AZ62: (Mpa) | BA62: (Mpa) | BD62: (Mpa) | BE62: (MN)
AN63: =AO57 -> 6 | AO63: =AO51 -> 0.54 | AP63: =AO52 -> 0.42 | AQ63: =AO46 -> 40 | AR63: =AO48 -> 40 | AS63: =AO50 -> 13333.33333 | AT63: =AO55 -> 0.0006031857895 | AU63: =AO53 -> 0.06 | AV63: 200000 | AW63: =N8 -> 550 | AX63: =AO56 -> 0.0006031857895 | AY63: =AO53 -> 0.06 | AZ63: 200000 | BA63: =AW63 -> 550 | BB63: =AO54 -> 15 | BC63: =Q12 -> 0.55 | BD63: =0.3*AQ63^(2/3) -> 3.508821286 | BE63: =AR50 -> 0.60001
AN64: Nedbøjninger | AP64: Urevnet | AQ64: Revnet | AR64: Revnevidder | AT64: Udtørringssvind
AN65: (1+ f) | AP65: 1 | AQ65: 1 | AU65: CEM-klasse: | AV65: N
AN66: aeff | AO66: - | AP66: =BB63 -> 15 | AQ66: =BB63 -> 15 | AR66: aeff | AS66: =BB63 -> 15 | AU66: fcmo | AV66: 10 | AW66: MPa
AN67: hc | AO67: (m) | AP67: - | AQ67: =AR57 -> 0.2334194084 | AR67: kt | AS67: 0.4 | AU67: fcm | AV67: =AQ63+8 -> 48 | AW67: MPa
AN68: Atr | AO68: (m2) | AP68: =AO63*AP63+AP66*AT63+AP66*AX63 -> 0.2448955737 | AQ68: =IF(AQ67>AO63,AP68,AQ67*AP63+AQ66*AT63+AQ66*AX63) -> 0.1161317252 | AR68: x1 | AS68: 0 | AU68: ads1 | AV68: 4
AN69: Sy | AO69: (m3) | AP69: =AP66*(0.5*AO63-AU63)*AT63-AP66*(0.5*AO63-AY63)*AX63 -> 0 | AQ69: =IF(AQ67>AO63,AP69,AQ67*AP63*(0.5*AO63-0.5*AQ67)+AQ66*(0.5*AO63-AU63)*AT63-AQ66*(0.5*AO63-AY63)*AX63) -> 0.01502799067 | AR69: As | AS69: =AX63 -> 0.0006031857895 | AU69: ads2 | AV69: 0.12
AN70: Iy | AO70: (m4) | AP70: =AP63*AO63^3/12+AP66*(0.5*AO63-AU63)^2*AT63+AP66*(0.5*AO63-AY63)^2*AX63 -> 0.006309254799 | AQ70: =IF(AQ67>AO63,AP70,AP63*AQ67^3/12+AP63*AQ67*(0.5*AO63-0.5*AQ67)^2+AQ66*(0.5*AO63-AU63)^2*AT63+AQ66*(0.5*AO63-AY63)^2*AX63) -> 0.003546781808 | AR70: d | AS70: =AO63-(AX63*AY63)/(AX63) -> 0.48 | AU70: RH0 | AV70: 1
AN71: z | AO71: (m) | AP71: =AP69/AP68 -> 0 | AQ71: =AQ69/AQ68 -> 0.1294046966 | AR71: hc,eff | AS71: =MIN(2.5*(AO63-AS70),(AO63-AQ67)/3,AO63/2) -> 0.1021935305 | AU71: RH | AV71: =BC63 -> 0.55
AN72: Io | AO72: (m4) | AP72: =AP70-AP68*AP71^2 -> 0.006309254799 | AQ72: =AQ70-AQ68*AQ71^2 -> 0.001602089235 | AR72: Ac,eff | AS72: =AS71*AP63 -> 0.04292128282 | AU72: bRH | AV72: =1.55*(1-(AV71/AV70)^3) -> 1.29211875
AN73: aeff*Sa | AO73: (m3) | AP73: =-(AP66*(0.5*AO63-AU63-AP71)*AT63-AP66*(0.5*AO63-AY63+AP71)*AX63) -> 0 | AQ73: =-(AQ66*(0.5*AO63-AU63-AQ71)*AT63-AQ66*(0.5*AO63-AY63+AQ71)*AX63) -> 0.002341652222 | AR73: rp,eff | AS73: =AS69/AS72 -> 0.01405330293 | AU73: ecd,0 | AV73: =0.85*((220+110*AV68)*EXP(-AV69*AV67/AV66))*AV72/1000000 -> 0.0004074850392
AN74: Sa/Io | AO74: (m) | AP74: =MAX(AP73/AP72,0) -> 0 | AQ74: =MAX(AQ73/AQ72,0) -> 1.461624091 | AR74: esm-ecm | AS74: =MAX(AQ76-AS67*BD63*(1+AS66*AS73)/AS73,0.6*AQ76)/AV63 -> 0.0006176155814 | AU74: b | AV74: 1
AN75: Mcr | AO75: (MNm) | AP75: =(BD63+BE63/AP68)*AP72/(0.5*AO63+AP71) -> 0.1392449259 | AR75: feq | AS75: =N17/1000 -> 0.016 | AU75: h0 | AV75: =2*AO63*AP63/(2*(AO63+AP63)) -> 0.23625 | AW75: m
AN76: sat | AO76: (MPa) | AP76: =-AP66*AR50/AP68+AP66*(AR51-AR50*(AP71-AP82/1000))*(0.5*AO63+AP71-AY63)/AP72 -> 44.1095493 | AQ76: =-AQ66*AR50/AQ68+AQ66*(BC57-AR50*AQ71)*(0.5*AO63+AQ71-AY63)/AQ72 -> 205.8718605 | AR76: c | AS76: =AO63-AS70-0.5*AS75 -> 0.052 | AU76: kn | AV76: =IF(AV75<0.1,1,IF(AV75<0.2,0.85+0.15*(0.2-AV75)/0.1,IF(AV75<0.3,0.75+0.1*(0.3-AV75)/0.1,IF(AV75<0.5,0.7+0.05*(0.5-AV75)/0.2,0.7)))) -> 0.81375
AN77: sr | AO77: (MPa, v/revnemoment) | AQ77: =-AQ66*AR50/AQ68+AQ66*(AP75-AR50*AQ71)*(0.5*AO63+AQ71-AY63)/AQ72 -> 118.2536986 | AR77: k1 | AS77: 0.8 | AU77: ecd | AV77: =AV73*AV74*AV76 -> 0.0003315909507
AN78: sc0 | AO78: (MPa) | AP78: =-(-AR50/AP68+(AR51-AR50*(AP71-AP82/1000))*(-0.5*AO63+AP71)/AP72) -> 9.380966395 | AQ78: =-(-AR50/AQ68+(BC57-AR50*AQ71)*(-0.5*AO63+AQ71)/AQ72) -> 12.99223311 | AR78: k2 | AS78: 0.5
AN79: sac | AO79: (MPa) | AP79: =-(-AP66*AR50/AP68+AP66*(AR51-AR50*(AP71-AP82/1000))*(-0.5*AO63+AP71+AU63)/AP72) -> 117.6114903 | AQ79: =-(-AQ66*AR50/AQ68+AQ66*(BC57-AR50*AQ71)*(-0.5*AO63+AQ71+AU63)/AQ72) -> 144.789077 | AR79: k3 | AS79: =3.4*(25/N17)^(2/3) -> 4.578173716 | AT79: Autogent svind
AN80: EI | AO80: (MNm2) | AP80: =AP72*AS63 -> 84.12339733 | AQ80: =AQ72*AS63 -> 21.3611898 | AR80: k4 | AS80: 0.425 | AU80: eca | AV80: =2.5*(AQ63-10)/1000000 -> 7.5e-05
AN81: x | AO81: (faktor vedr. tension stiffening) | AQ81: =MAX(IF(AQ77>AQ76,0,1-0.5*(AQ77/AQ76)^2),0) -> 0.8350298035 | AR81: s,rmaks | AS81: =MIN(1.3*(AO63-AQ67),AS79*AS76+AS77*AS78*AS80*AS75/AS73) -> 0.398554769
AN82: u | AO82: (mm, elastisk u) | AP82: =1000*AR51/(10*AP80/AN63^2-AR50) -> 6.930901696 | AQ82: =AR52*1000 -> 15.02832589 | AR82: wk | AS82: =MAX(1000*AS81*AS74,0) -> 0.2461536354 | AT82: Resulterende svind
AN83: uts | AO83: (mm, incl tension stiffening) | AQ83: =AQ81*AQ82+(1-AQ81)*AP82 -> 13.69249223 | AU83: esc | AV83: =AV77+AV80 -> 0.0004065909507
AN84: us | AO84: (mm, svindtillæg - langtid) | AP84: =1000*0.125*AV83*AP74*AN63^2 -> 0 | AQ84: =1000*0.125*AV83*AQ74*AN63^2 -> 2.674274079
AN85: ucs | AO85: (mm, svindtillæg incl tension stiffening) | AQ85: =AQ81*AQ84+(1-AQ81)*AP84 -> 2.233098559
AN86: ures | AO86: (mm, resulterende udbøjning) | AQ86: =AQ85+AQ83 -> 15.92559079 | AR86: wk, res | AS86: =AS82 -> 0.2461536354

Sheet Brand
B2: Bruger: | C2: =Kold!C2 -> 0 | K2: =Kold!K2 -> Søjleberegning | N2: =Kold!N2 -> Betonelement-Foreningen feb 2019
B3: Sagsnavn: | C3: =Kold!C3 -> Betonelementhuset | H3: Sag nr.: | I3: =Kold!I3 -> 23 - 4545 | L3: =AU28&AU29&AU30&AU31&AU32&AU33&AU34&AU35&AU36&AU37 -> Underliggende konstruktion skal kontrolleres for forsætning af søjlens reaktion under brand på exc( R ) = 25 mm mod søjlens trækside Programmet indstillet til kold beregning ! | AS3: 2
B4: Bygningsdel: | C4: =Kold!C4 -> Søjle i modul D/12, stueetage | H4: Dato: | I4: =Kold!I4 -> 2007-01-02 | AS4: Tilslag: Kvartsholdigt
B5: Emne: | C5: Brandlastkombinationer | H5: Init: | I5: =Kold!I5 -> JFJ | AS5: Tilslag: Søsand / granit
K7: Materialer | M7: fck | N7: =Kold!N7 -> 40 | O7: Regningsmæssige parametre
M8: fyk | N8: =Kold!N8 -> 550 | P8: fcd | Q8: =N7/(N9)*Q19 -> 40
M9: gc | N9: 1 | P9: fyd,tryk | Q9: =N8/MAX(1,N10)*Q20 -> 388.2693312 | AN9: 1 | AO9: 0 | AP9: =BB10*1000 -> 0 | AW9: gc | AX9: =N9 -> 1 | BA9: N | BB9: M | BC9: hc | BD9: e0 | BE9: sac | BF9: sat | BH9: =Kold!N25 -> 107.64 | BI9: =Kold!O25 -> 1146.6 | BJ9: =Kold!P25 -> 77.22 | BK9: =Kold!Q25 -> 12 | HA9: =Makro!A20 -> 0 | HD9: Bruger skal registreres | HE9: 1
M10: gs | N10: 1 | P10: fyd,træk | Q10: =N8/MAX(1,N10)*Q22 -> 388.2693312 | AN10: 2 | AO10: =BA11*1000 -> 0 | AP10: 0 | AS10: Tillægsexc fra svækket rand | AT10: =0.5*(AU20-AU21)*Q18/1000 -> 0 | AW10: ga | AX10: =N10 -> 1 | BA10: =IF(Kold!$AO$5=-1,'Ark1'!M10,0)*$AT$40 -> 0 | BB10: =IF(Kold!$AO$5=-1,'Ark1'!N10,0)*$AT$40 -> 0 | BC10: =IF(Kold!$AO$5=-1,'Ark1'!O10,0) -> 0 | BD10: =IF(Kold!$AO$5=-1,'Ark1'!P10,0) -> 0 | BE10: =IF(Kold!$AO$5=-1,'Ark1'!Q10,0) -> 0 | BF10: =IF(Kold!$AO$5=-1,'Ark1'!R10,0) -> 0 | BH10: =Kold!N26 -> 609.18 | BI10: =Kold!O26 -> 1146.6 | BJ10: =Kold!P26 -> 77.22 | BK10: =Kold!Q26 -> 12
K11: Søjlelængde | M11: Ls | N11: =Kold!N11 -> 6000 | O11: Krybning | AN11: 3 | AO11: 0 | AP11: 0 | AS11: uterminsk, revnet tværsnit | AT11: =1.1*firsidig!X34*AX27^2/(800000*(AX21-AX24))+IF(OR(Makro!H2=10,AR61=1),0,$Q$16/1000)-0.4*AX32 -> 0.02772842958 | AU11: m | AW11: fck | AX11: =N7 -> 40 | AY11: MPa | BA11: =IF(Kold!$AO$5=-1,'Ark1'!M11,0)*$AT$40 -> 0 | BB11: =IF(Kold!$AO$5=-1,'Ark1'!N11,0)*$AT$40 -> 0 | BC11: =IF(Kold!$AO$5=-1,'Ark1'!O11,0) -> 0 | BD11: =IF(Kold!$AO$5=-1,'Ark1'!P11,0) -> 0 | BE11: =IF(Kold!$AO$5=-1,'Ark1'!Q11,0) -> 0 | BF11: =IF(Kold!$AO$5=-1,'Ark1'!R11,0) -> 0 | BH11: =Kold!N27 -> 609.18 | BI11: =Kold!O27 -> 2205.84 | BJ11: =Kold!P27 -> 77.22 | BK11: =Kold!Q27 -> 12
K12: Tværsnit | M12: h | N12: =Kold!N12 -> 540 | P12: fo | Q12: =Kold!Q14 -> 1.760765659 | AN12: 4 | AO12: 0 | AP12: 0 | AS12: uterminsk, urevnet tværsnit | AT12: =IF(1.1*firsidig!V13*AX27^2/(800000*AX21)+IF(OR(Makro!H2=10,AR61=1),0,$Q$16/1000)>AT11,1.1*firsidig!V13*AX27^2/(800000*AX21)+IF(OR(Makro!H2=10,AR61=1),0,$Q$16/1000),AT11) -> 0.03842392805 | AU12: m | AW12: Es_c | AX12: =firsidig!E34*200000 -> 150181.9449 | AY12: MPa | BA12: =IF(Kold!$AO$5=-1,'Ark1'!M12,0)*$AT$40 -> 0 | BB12: =IF(Kold!$AO$5=-1,'Ark1'!N12,0)*$AT$40 -> 0 | BC12: =IF(Kold!$AO$5=-1,'Ark1'!O12,0) -> 0 | BD12: =IF(Kold!$AO$5=-1,'Ark1'!P12,0) -> 0 | BE12: =IF(Kold!$AO$5=-1,'Ark1'!Q12,0) -> 0 | BF12: =IF(Kold!$AO$5=-1,'Ark1'!R12,0) -> 0 | BH12: =Kold!N28 -> 609.18 | BI12: =Kold!O28 -> 2205.84 | BJ12: =Kold!P28 -> 435.24 | BK12: =Kold!Q28 -> 12
M13: b | N13: =Kold!N13 -> 420 | P13: M0Eqp/M0Ed | Q13: 1 | AN13: 5 | AO13: 0 | AP13: 0 | AW13: Es_t | AX13: =firsidig!E40*200000 -> 150181.9449 | AY13: MPa | BA13: =IF(Kold!$AO$5=-1,'Ark1'!M13,0)*$AT$40 -> 0 | BB13: =IF(Kold!$AO$5=-1,'Ark1'!N13,0)*$AT$40 -> 0 | BC13: =IF(Kold!$AO$5=-1,'Ark1'!O13,0) -> 0 | BD13: =IF(Kold!$AO$5=-1,'Ark1'!P13,0) -> 0 | BE13: =IF(Kold!$AO$5=-1,'Ark1'!Q13,0) -> 0 | BF13: =IF(Kold!$AO$5=-1,'Ark1'!R13,0) -> 0 | BH13: =Kold!N29 -> 609.18 | BI13: =Kold!O29 -> 1146.6 | BJ13: =Kold!P29 -> 77.22 | BK13: =Kold!Q29 -> 6
M14: c | N14: =Kold!N14 -> 60 | P14: fef | Q14: =Q12*Q13 -> 1.760765659 | AN14: 6 | AO14: 0 | AP14: 0 | AS14: 1 | AT14: h | AU14: =N12-AU20*Q18-Q18*AU21 -> 450.8789329 | AW14: fcd | AX14: =AX11/AX9 -> 40 | AY14: MPa | BA14: =IF(Kold!$AO$5=-1,'Ark1'!M14,0)*$AT$40 -> 0 | BB14: =IF(Kold!$AO$5=-1,'Ark1'!N14,0)*$AT$40 -> 0 | BC14: =IF(Kold!$AO$5=-1,'Ark1'!O14,0) -> 0 | BD14: =IF(Kold!$AO$5=-1,'Ark1'!P14,0) -> 0 | BE14: =IF(Kold!$AO$5=-1,'Ark1'!Q14,0) -> 0 | BF14: =IF(Kold!$AO$5=-1,'Ark1'!R14,0) -> 0 | BH14: =Kold!N30 -> 609.18 | BI14: =Kold!O30 -> 2205.84 | BJ14: =Kold!P30 -> 77.22 | BK14: =Kold!Q30 -> 6
K15: Trykarm. | M15: da | N15: =Kold!N15 -> 16 | P15: =IF(OR(Makro!H2=10,AR61=1),"Der regnes med fuld krybning","Udbøjningstillæg fra krybning:") -> Udbøjningstillæg fra krybning: | AN15: 7 | AO15: 0 | AP15: 0 | AS15: Stål: Varmvalset | AT15: b | AU15: =N13-2*Q18*AU22 -> 330.8789329 | AW15: k | AX15: =0.8-400*AX14/AX16 -> 0.3 | AY15: MPa | BA15: =IF(Kold!$AO$5=-1,'Ark1'!M15,0)*$AT$40 -> 0 | BB15: =IF(Kold!$AO$5=-1,'Ark1'!N15,0)*$AT$40 -> 0 | BC15: =IF(Kold!$AO$5=-1,'Ark1'!O15,0) -> 0 | BD15: =IF(Kold!$AO$5=-1,'Ark1'!P15,0) -> 0 | BE15: =IF(Kold!$AO$5=-1,'Ark1'!Q15,0) -> 0 | BF15: =IF(Kold!$AO$5=-1,'Ark1'!R15,0) -> 0 | BH15: =Kold!N31 -> 609.18 | BI15: =Kold!O31 -> 2205.84 | BJ15: =Kold!P31 -> 435.24 | BK15: =Kold!Q31 -> 6
M16: Antal | N16: =Kold!N16 -> 3 | P16: Dukrybning | Q16: =IF(OR(Makro!H2=10,AR61=1),"- ",AS68*1000) -> 0.3180203324 | AN16: 8 | AO16: 0 | AP16: 0 | AS16: Stål: Bratkølet | AT16: ac | AU16: =N14-AU20*Q18 -> 15.43946647 | AW16: Eo | AX16: =2*AX14/firsidig!F21 -> 32000 | AY16: MPa | BA16: =IF(Kold!$AO$5=-1,'Ark1'!M16,0)*$AT$40 -> 0 | BB16: =IF(Kold!$AO$5=-1,'Ark1'!N16,0)*$AT$40 -> 0 | BC16: =IF(Kold!$AO$5=-1,'Ark1'!O16,0) -> 0 | BD16: =IF(Kold!$AO$5=-1,'Ark1'!P16,0) -> 0 | BE16: =IF(Kold!$AO$5=-1,'Ark1'!Q16,0) -> 0 | BF16: =IF(Kold!$AO$5=-1,'Ark1'!R16,0) -> 0 | BH16: =Kold!N32 -> 609.18 | BI16: =Kold!O32 -> 2413.68 | BJ16: =Kold!P32 -> 77.22 | BK16: =Kold!Q32 -> 6
K17: Trækarm. | M17: da | N17: =Kold!N17 -> 16 | O17: Reduktionsparametre | AN17: 9 | AO17: 0 | AP17: 0 | AS17: Stål: Kolddeformeret | AT17: at | AU17: =N14-AU21*Q18 -> 15.43946647 | AW17: Ncr | AX17: =(AX21*AX22+2*MIN(AX12*AX25,AX13*AX26))*AX14/(1+12*(AX14/AX16)*(AX27/(PI()*AX21))^2) -> 5714.886653 | AY17: MN | BA17: =IF(Kold!$AO$5=-1,'Ark1'!M17,0)*$AT$40 -> 0 | BB17: =IF(Kold!$AO$5=-1,'Ark1'!N17,0)*$AT$40 -> 0 | BC17: =IF(Kold!$AO$5=-1,'Ark1'!O17,0) -> 0 | BD17: =IF(Kold!$AO$5=-1,'Ark1'!P17,0) -> 0 | BE17: =IF(Kold!$AO$5=-1,'Ark1'!Q17,0) -> 0 | BF17: =IF(Kold!$AO$5=-1,'Ark1'!R17,0) -> 0 | BH17: =Kold!N33 -> 609.18 | BI17: =Kold!O33 -> 2413.68 | BJ17: =Kold!P33 -> 435.24 | BK17: =Kold!Q33 -> 6
M18: Antal | N18: =Kold!N18 -> 3 | O18: Randzone: | P18: a | Q18: =firsidig!E24*1000 -> 44.56053353 | AN18: 10 | AO18: 0 | AP18: 0 | AS18: =IF(Makro!B3=1,"Q",IF(Makro!B3=2,"AC","C")) -> Q | AW18: fyk | AX18: =N8 -> 550 | BA18: =IF(Kold!$AO$5=-1,'Ark1'!M18,0)*$AT$40 -> 0 | BB18: =IF(Kold!$AO$5=-1,'Ark1'!N18,0)*$AT$40 -> 0 | BC18: =IF(Kold!$AO$5=-1,'Ark1'!O18,0) -> 0 | BD18: =IF(Kold!$AO$5=-1,'Ark1'!P18,0) -> 0 | BE18: =IF(Kold!$AO$5=-1,'Ark1'!Q18,0) -> 0 | BF18: =IF(Kold!$AO$5=-1,'Ark1'!R18,0) -> 0
K19: Brandpåvirkning, tid : | N19: 120 | O19: Beton: | P19: kc,M | Q19: =firsidig!E21 -> 1 | AN19: 11 | AO19: 0 | AP19: 0 | AW19: fyd_c | AX19: =firsidig!E35*AX18/AX10 -> 388.2693312 | BA19: =IF(Kold!$AO$5=-1,'Ark1'!M19,0)*$AT$40 -> 0 | BB19: =IF(Kold!$AO$5=-1,'Ark1'!N19,0)*$AT$40 -> 0 | BC19: =IF(Kold!$AO$5=-1,'Ark1'!O19,0) -> 0 | BD19: =IF(Kold!$AO$5=-1,'Ark1'!P19,0) -> 0 | BE19: =IF(Kold!$AO$5=-1,'Ark1'!Q19,0) -> 0 | BF19: =IF(Kold!$AO$5=-1,'Ark1'!R19,0) -> 0 | BH19: =Kold!N35 -> 360 | BI19: =Kold!O35 -> 20 | BJ19: =Kold!P35 -> 280 | BK19: =Kold!Q35 -> 0
L20: Brand, trykside | N20: =IF(Makro!B4=2,"JA","NEJ") -> JA | O20: Trykarm: | P20: fsy,q / fyk | Q20: =firsidig!E35 -> 0.7059442386 | AN20: 12 | AO20: 0 | AP20: 0 | AS20: Brand, trykside | AT20: 2 | AU20: =Makro!B4-1 -> 1 | AW20: fyd_t | AX20: =firsidig!E41*AX18/AX10 -> 388.2693312 | BA20: =IF(Kold!$AO$5=-1,'Ark1'!M20,0)*$AT$40 -> 0 | BB20: =IF(Kold!$AO$5=-1,'Ark1'!N20,0)*$AT$40 -> 0 | BC20: =IF(Kold!$AO$5=-1,'Ark1'!O20,0) -> 0 | BD20: =IF(Kold!$AO$5=-1,'Ark1'!P20,0) -> 0 | BE20: =IF(Kold!$AO$5=-1,'Ark1'!Q20,0) -> 0 | BF20: =IF(Kold!$AO$5=-1,'Ark1'!R20,0) -> 0
L21: Brand, trækside | N21: =IF(Makro!B5=2,"JA","NEJ") -> JA | P21: Es,q / Es | Q21: =firsidig!E34 -> 0.7509097244 | AN21: 13 | AO21: 0 | AP21: 0 | AS21: Brand, trækside | AT21: 2 | AU21: =Makro!B5-1 -> 1 | AW21: h | AX21: =AU14/1000 -> 0.4508789329 | AY21: m | BA21: =IF(Kold!$AO$5=-1,'Ark1'!M21,0)*$AT$40 -> 0 | BB21: =IF(Kold!$AO$5=-1,'Ark1'!N21,0)*$AT$40 -> 0 | BC21: =IF(Kold!$AO$5=-1,'Ark1'!O21,0) -> 0 | BD21: =IF(Kold!$AO$5=-1,'Ark1'!P21,0) -> 0 | BE21: =IF(Kold!$AO$5=-1,'Ark1'!Q21,0) -> 0 | BF21: =IF(Kold!$AO$5=-1,'Ark1'!R21,0) -> 0
L22: Brand, sider | N22: =IF(Makro!B6=2,"JA","NEJ") -> JA | O22: Trækarm: | P22: fsy,q / fyk | Q22: =firsidig!E41 -> 0.7059442386 | AN22: 14 | AO22: 0 | AP22: 0 | AS22: Brand, sider | AT22: 2 | AU22: =Makro!B6-1 -> 1 | AW22: b | AX22: =AU15/1000 -> 0.3308789329 | AY22: m | BA22: =IF(Kold!$AO$5=-1,'Ark1'!M22,0)*$AT$40 -> 0 | BB22: =IF(Kold!$AO$5=-1,'Ark1'!N22,0)*$AT$40 -> 0 | BC22: =IF(Kold!$AO$5=-1,'Ark1'!O22,0) -> 0 | BD22: =IF(Kold!$AO$5=-1,'Ark1'!P22,0) -> 0 | BE22: =IF(Kold!$AO$5=-1,'Ark1'!Q22,0) -> 0 | BF22: =IF(Kold!$AO$5=-1,'Ark1'!R22,0) -> 0
K23: =INDEX($AS$4:$AS$5,Makro!$A$3,1)&" "&INDEX($AS$15:$AS$17,Makro!$B$3,1) -> Tilslag: Søsand / granit Stål: Varmvalset | P23: Es,q / Es | Q23: =firsidig!E40 -> 0.7509097244 | AN23: 15 | AO23: 0 | AP23: 0 | AW23: ac | AX23: =AU16/1000 -> 0.01543946647 | AY23: m | BA23: =IF(Kold!$AO$5=-1,'Ark1'!M23,0)*$AT$40 -> 0 | BB23: =IF(Kold!$AO$5=-1,'Ark1'!N23,0)*$AT$40 -> 0 | BC23: =IF(Kold!$AO$5=-1,'Ark1'!O23,0) -> 0 | BD23: =IF(Kold!$AO$5=-1,'Ark1'!P23,0) -> 0 | BE23: =IF(Kold!$AO$5=-1,'Ark1'!Q23,0) -> 0 | BF23: =IF(Kold!$AO$5=-1,'Ark1'!R23,0) -> 0
C24: Kontrolparametre | D24: Brandlasttilfælde | J24: Ref-last | K24: Brandlasttilfælde | N24: N1 (kN) | O24: N0 (kN) | P24: N2 (kN) | Q24: w (kN/m) | AN24: 16 | AO24: 0 | AP24: 0 | AU24: NEJ | AW24: at | AX24: =AU17/1000 -> 0.01543946647 | AY24: m | BA24: =IF(Kold!$AO$5=-1,'Ark1'!M24,0)*$AT$40 -> 0 | BB24: =IF(Kold!$AO$5=-1,'Ark1'!N24,0)*$AT$40 -> 0 | BC24: =IF(Kold!$AO$5=-1,'Ark1'!O24,0) -> 0 | BD24: =IF(Kold!$AO$5=-1,'Ark1'!P24,0) -> 0 | BE24: =IF(Kold!$AO$5=-1,'Ark1'!Q24,0) -> 0 | BF24: =IF(Kold!$AO$5=-1,'Ark1'!R24,0) -> 0
D25: =IF(Kold!$AO$5=-1,Brand!BB33,"-") -> - | E25: =IF(Kold!$AO$5=-1,Brand!BC33,"-") -> - | F25: =IF(Kold!$AO$5=-1,Brand!BD33,"-") -> - | G25: =IF(Kold!$AO$5=-1,Brand!BH33,"-") -> - | H25: =IF(Kold!$AO$5=-1,Brand!BI33,"-") -> - | I25: =IF(Kold!$AO$5=-1,Brand!BG33,"-") -> - | J25: =IF(Kold!$AO$5=-1,Brand!BH33,"-") -> - | K25: A | N25: 84.42 | O25: 70.2 | P25: 72.36 | Q25: 0 | AN25: 17 | AO25: 0 | AP25: 0 | AU25: JA | AW25: Ac | AX25: =AP40/1000000 -> 0.0006031857895 | AY25: m2 | BA25: =IF(Kold!$AO$5=-1,'Ark1'!M25,0)*$AT$40 -> 0 | BB25: =IF(Kold!$AO$5=-1,'Ark1'!N25,0)*$AT$40 -> 0 | BC25: =IF(Kold!$AO$5=-1,'Ark1'!O25,0) -> 0 | BD25: =IF(Kold!$AO$5=-1,'Ark1'!P25,0) -> 0 | BE25: =IF(Kold!$AO$5=-1,'Ark1'!Q25,0) -> 0 | BF25: =IF(Kold!$AO$5=-1,'Ark1'!R25,0) -> 0
B26: NEd | C26: (kN) | D26: =IF(Kold!$AO$5=-1,Brand!BB35,"-") -> - | E26: =IF(Kold!$AO$5=-1,Brand!BC35,"-") -> - | F26: =IF(Kold!$AO$5=-1,Brand!BD35,"-") -> - | G26: =IF(Kold!$AO$5=-1,Brand!BE35,"-") -> - | H26: =IF(Kold!$AO$5=-1,Brand!BF35,"-") -> - | I26: =IF(Kold!$AO$5=-1,Brand!BG35,"-") -> - | J26: =IF(Kold!$AO$5=-1,IF(Makro!$H$2=10,"-",Brand!BH35),"-") -> - | K26: B | N26: 329.7 | O26: 70.2 | P26: 72.36 | Q26: 0 | AN26: 18 | AO26: 0 | AP26: 0 | AW26: At | AX26: =AP41/1000000 -> 0.0006031857895 | AY26: m2 | BA26: =IF(Kold!$AO$5=-1,'Ark1'!M26,0)*$AT$40 -> 0 | BB26: =IF(Kold!$AO$5=-1,'Ark1'!N26,0)*$AT$40 -> 0 | BC26: =IF(Kold!$AO$5=-1,'Ark1'!O26,0) -> 0 | BD26: =IF(Kold!$AO$5=-1,'Ark1'!P26,0) -> 0 | BE26: =IF(Kold!$AO$5=-1,'Ark1'!Q26,0) -> 0 | BF26: =IF(Kold!$AO$5=-1,'Ark1'!R26,0) -> 0
B27: M0Ed | C27: (kNm) | D27: =IF(Kold!$AO$5=-1,Brand!BB36,"-") -> - | E27: =IF(Kold!$AO$5=-1,Brand!BC36,"-") -> - | F27: =IF(Kold!$AO$5=-1,Brand!BD36,"-") -> - | G27: =IF(Kold!$AO$5=-1,Brand!BE36,"-") -> - | H27: =IF(Kold!$AO$5=-1,Brand!BF36,"-") -> - | I27: =IF(Kold!$AO$5=-1,Brand!BG36,"-") -> - | J27: =IF(Kold!$AO$5=-1,IF(Makro!$H$2=10,"-",Brand!BH36),"-") -> - | K27: C | N27: 329.7 | O27: 1734.72 | P27: 72.36 | Q27: 0 | AN27: 19 | AO27: 0 | AP27: 0 | AW27: L | AX27: =N11/1000 -> 6 | AY27: m | BA27: =IF(Kold!$AO$5=-1,'Ark1'!M27,0)*$AT$40 -> 0 | BB27: =IF(Kold!$AO$5=-1,'Ark1'!N27,0)*$AT$40 -> 0 | BC27: =IF(Kold!$AO$5=-1,'Ark1'!O27,0) -> 0 | BD27: =IF(Kold!$AO$5=-1,'Ark1'!P27,0) -> 0 | BE27: =IF(Kold!$AO$5=-1,'Ark1'!Q27,0) -> 0 | BF27: =IF(Kold!$AO$5=-1,'Ark1'!R27,0) -> 0
B28: M0Rd | C28: (kNm) | D28: =IF(Kold!$AO$5=-1,Brand!BB37,"-") -> - | E28: =IF(Kold!$AO$5=-1,Brand!BC37,"-") -> - | F28: =IF(Kold!$AO$5=-1,Brand!BD37,"-") -> - | G28: =IF(Kold!$AO$5=-1,Brand!BE37,"-") -> - | H28: =IF(Kold!$AO$5=-1,Brand!BF37,"-") -> - | I28: =IF(Kold!$AO$5=-1,Brand!BG37,"-") -> - | J28: =IF(Kold!$AO$5=-1,IF(Makro!$H$2=10,"-",Brand!BH37),"-") -> - | K28: D | N28: 329.7 | O28: 1734.72 | P28: 282.6 | Q28: 0 | AS28: Ingen negative inddata | AT28: =IF(MIN(N9,N10,Q13,N19,N25:Q33,N35:P35)<0,1,0) -> 0 | AU28: =IF(AT28=1,AS28&" ! ","") ->  | AW28: e1 | AX28: =firsidig!F21 -> 0.0025 | BA28: =IF(Kold!$AO$5=-1,'Ark1'!M28,0)*$AT$40 -> 0 | BB28: =IF(Kold!$AO$5=-1,'Ark1'!N28,0)*$AT$40 -> 0 | BC28: =IF(Kold!$AO$5=-1,'Ark1'!O28,0) -> 0 | BD28: =IF(Kold!$AO$5=-1,'Ark1'!P28,0) -> 0 | BE28: =IF(Kold!$AO$5=-1,'Ark1'!Q28,0) -> 0 | BF28: =IF(Kold!$AO$5=-1,'Ark1'!R28,0) -> 0
B29: u | C29: (mm) | D29: =IF(Kold!$AO$5=-1,Brand!BB38+0.4*$AX$32*1000,"-") -> - | E29: =IF(Kold!$AO$5=-1,Brand!BC38+0.4*$AX$32*1000,"-") -> - | F29: =IF(Kold!$AO$5=-1,Brand!BD38+0.4*$AX$32*1000,"-") -> - | G29: =IF(Kold!$AO$5=-1,Brand!BE38+0.4*$AX$32*1000,"-") -> - | H29: =IF(Kold!$AO$5=-1,Brand!BF38+0.4*$AX$32*1000,"-") -> - | I29: =IF(Kold!$AO$5=-1,Brand!BG38+0.4*$AX$32*1000,"-") -> - | J29: =IF(Kold!$AO$5=-1,IF(Makro!$H$2=10,"-",Brand!BH38+0.4*AX32*1000),"-") -> - | K29: E | N29: 15 | O29: 15 | P29: 15 | Q29: 1 | AR29: =MAX(AP9:AQ38,Kold!AP9:AQ38) -> 295.8 | AS29: f_ck højst 50 MPa | AT29: =IF(N7>50,1,0) -> 0
B30: wk | C30: (mm) | D30: =IF(Kold!$AO$5=-1,Brand!BB39,"-") -> - | E30: =IF(Kold!$AO$5=-1,Brand!BC39,"-") -> - | F30: =IF(Kold!$AO$5=-1,Brand!BD39,"-") -> - | G30: =IF(Kold!$AO$5=-1,Brand!BE39,"-") -> - | H30: =IF(Kold!$AO$5=-1,Brand!BF39,"-") -> - | I30: =IF(Kold!$AO$5=-1,Brand!BG39,"-") -> - | J30: =IF(Kold!$AO$5=-1,Brand!BH39,"-") -> - | K30: F | N30: 5 | O30: 5 | P30: 15 | Q30: 1 | AO30: =N25+O25+P25+$AO$9 -> 226.98 | AQ30: =(N25*$N$35+O25*$O$35-P25*$P$35)/1000+0.125*Q25*($N$11/1000)^2+0.001+AT10*AO30 -> 11.5354 | AS30: f_ck mindst 20 MPa | AT30: =IF(N7<20,1,0) -> 0
B31: e0 | C31: (o/oo) | D31: =IF(Kold!$AO$5=-1,Brand!BB40,"-") -> - | E31: =IF(Kold!$AO$5=-1,Brand!BC40,"-") -> - | F31: =IF(Kold!$AO$5=-1,Brand!BD40,"-") -> - | G31: =IF(Kold!$AO$5=-1,Brand!BE40,"-") -> - | H31: =IF(Kold!$AO$5=-1,Brand!BF40,"-") -> - | I31: =IF(Kold!$AO$5=-1,Brand!BG40,"-") -> - | J31: =IF(Kold!$AO$5=-1,IF(Makro!$H$2=10,"-",Brand!BH40),"-") -> - | K31: G | N31: 15 | O31: 15 | P31: 15 | Q31: 1 | AO31: 472.26 | AQ31: =(N26*$N$35+O26*$O$35-P26*$P$35)/1000+0.125*Q26*($N$11/1000)^2+0.001+AO31*AT10 -> 99.8362 | AU31: =IF(AX32>0,"Underliggende konstruktion skal kontrolleres for forsætning af søjlens reaktion under brand på exc( R ) = "&ROUND(AX32*1000,0)&" mm mod søjlens trækside ","") -> Underliggende konstruktion skal kontrolleres for forsætning af søjlens reaktion under brand på exc( R ) = 25 mm mod søjlens trækside | AW31: Forsætning af reaktion | BA31: Lastpunkt | BB31: 1 | BC31: 2 | BD31: 3 | BE31: 4 | BF31: 5 | BG31: 6 | BH31: 4 | BI31: A
B32: sc0 | C32: (Mpa) | D32: =IF(Kold!$AO$5=-1,Brand!BB41,"-") -> - | E32: =IF(Kold!$AO$5=-1,Brand!BC41,"-") -> - | F32: =IF(Kold!$AO$5=-1,Brand!BD41,"-") -> - | G32: =IF(Kold!$AO$5=-1,Brand!BE41,"-") -> - | H32: =IF(Kold!$AO$5=-1,Brand!BF41,"-") -> - | I32: =IF(Kold!$AO$5=-1,Brand!BG41,"-") -> - | J32: =IF(Kold!$AO$5=-1,IF(Makro!$H$2=10,"-",Brand!BH41),"-") -> - | K32: H | N32: 15 | O32: 15 | P32: 15 | Q32: 1 | S32: NB: Resultaterne skal altid kontrolleres af ansvarlig statiker | AO32: 2136.78 | AQ32: =(N27*$N$35+O27*$O$35-P27*$P$35)/1000+0.125*Q27*($N$11/1000)^2+0.001+AO32*AT10 -> 133.1266 | AW32: exc( R ) | AX32: =IF(AND(Makro!B5=2,N19>5),MIN(AX33:AX35),0) -> 0.025 | BA32: Indeks | BB32: =Makro!B2 -> 1 | BC32: =Makro!C2 -> 1 | BD32: =Makro!D2 -> 1 | BE32: =Makro!E2 -> 1 | BF32: =Makro!F2 -> 1 | BG32: =Makro!G2 -> 1 | BH32: 3 | BI32: B
B33: sst | C33: (Mpa) | D33: =IF(Kold!$AO$5=-1,Brand!BB42,"-") -> - | E33: =IF(Kold!$AO$5=-1,Brand!BC42,"-") -> - | F33: =IF(Kold!$AO$5=-1,Brand!BD42,"-") -> - | G33: =IF(Kold!$AO$5=-1,Brand!BE42,"-") -> - | H33: =IF(Kold!$AO$5=-1,Brand!BF42,"-") -> - | I33: =IF(Kold!$AO$5=-1,Brand!BG42,"-") -> - | J33: =IF(Kold!$AO$5=-1,IF(Makro!$H$2=10,"-",Brand!BH42),"-") -> - | K33: I | N33: 15 | O33: 15 | P33: 15 | Q33: 1 | AO33: 2347.02 | AQ33: =(N28*$N$35+O28*$O$35-P28*$P$35)/1000+0.125*Q28*($N$11/1000)^2+0.001+AO33*AT10 -> 74.2594 | AS33: Ref-last bør ændres - der regnes med fuld krybning | AT33: =IF(AR61=1,1,0) -> 0 | AU33: =IF(AT33=1,AS33&" ! ","") ->  | AW33: 0,5 (h -2a) | AX33: =0.5*(N12-2*Q18)/1000 -> 0.2254394665 | BB33: =INDEX($BI$31:$BI$39,Makro!B2) -> A | BC33: =INDEX($BI$31:$BI$39,Makro!C2) -> A | BD33: =INDEX($BI$31:$BI$39,Makro!D2) -> A | BE33: =INDEX($BI$31:$BI$39,Makro!E2) -> A | BF33: =INDEX($BI$31:$BI$39,Makro!F2) -> A | BG33: =INDEX($BI$31:$BI$39,Makro!G2) -> A | BH33: =INDEX(BI31:BI39,Makro!H2) -> A | BI33: C
B34: ssc | C34: (Mpa) | D34: =IF(Kold!$AO$5=-1,Brand!BB43,"-") -> - | E34: =IF(Kold!$AO$5=-1,Brand!BC43,"-") -> - | F34: =IF(Kold!$AO$5=-1,Brand!BD43,"-") -> - | G34: =IF(Kold!$AO$5=-1,Brand!BE43,"-") -> - | H34: =IF(Kold!$AO$5=-1,Brand!BF43,"-") -> - | I34: =IF(Kold!$AO$5=-1,Brand!BG43,"-") -> - | J34: =IF(Kold!$AO$5=-1,IF(Makro!$H$2=10,"-",Brand!BH43),"-") -> - | Q34: max exc( R )brand | S34: Vejledning: | V34: Betonelementbyggeriers statik | AO34: 45 | AQ34: =(N29*$N$35+O29*$O$35-P29*$P$35)/1000+0.125*Q29*($N$11/1000)^2+0.001+AO34*AT10 -> 6.001 | AS34: Resttværsnit meget spinkelt | AT34: =IF(AT43<0.2*Kold!Q23/1000,1,0) -> 0 | AW34: max exc(R ) | AX34: =Q35/1000 -> 0.025 | BA34: N | BB34: =INDEX($AN$30:$AQ$38,Makro!B2,2) -> 226.98 | BC34: =INDEX($AN$30:$AQ$38,Makro!C2,2) -> 226.98 | BD34: =INDEX($AN$30:$AQ$38,Makro!D2,2) -> 226.98 | BE34: =INDEX($AN$30:$AQ$38,Makro!E2,2) -> 226.98 | BF34: =INDEX($AN$30:$AQ$38,Makro!F2,2) -> 226.98 | BG34: =INDEX($AN$30:$AQ$38,Makro!G2,2) -> 226.98 | BH34: =INDEX(AN30:AQ38,Makro!H2,2) -> 226.98 | BI34: D
B35: x | C35: (mm) | D35: =IF(Kold!$AO$5=-1,Brand!BB44,"-") -> - | E35: =IF(Kold!$AO$5=-1,Brand!BC44,"-") -> - | F35: =IF(Kold!$AO$5=-1,Brand!BD44,"-") -> - | G35: =IF(Kold!$AO$5=-1,Brand!BE44,"-") -> - | H35: =IF(Kold!$AO$5=-1,Brand!BF44,"-") -> - | I35: =IF(Kold!$AO$5=-1,Brand!BG44,"-") -> - | J35: =IF(Kold!$AO$5=-1,IF(Makro!$H$2=10,"-",Brand!BH44),"-") -> - | K35: Excentriciteter (mm) : | N35: 360 | O35: 20 | P35: 280 | Q35: 25 | S35: Polyteknisk Forlag 2010 eller www.bef.dk | AO35: 25 | AQ35: =(N30*$N$35+O30*$O$35-P30*$P$35)/1000+0.125*Q30*($N$11/1000)^2+0.001+AO35*AT10 -> 2.201 | AS35: f_yk højst 600 MPa | AT35: =IF(N8>600,1,0) -> 0 | AW35: 2 utermisk | AX35: =1.1*firsidig!X34*AX27^2/(800000*(AX21-AX24))+IF(OR(Makro!H2=10,AR61=1),0,$Q$16/1000)*2 -> 0.03804644991 | BA35: N | BB35: =INDEX(Lastresult,1+5*(BB31-1),16)*1000 -> 1331.527223 | BC35: 1331.527223 | BD35: 1331.527223 | BE35: 1331.527223 | BF35: 1331.527223 | BG35: 1331.527223 | BH35: 1331.527223 | BI35: E
AO36: 45 | AQ36: =(N31*$N$35+O31*$O$35-P31*$P$35)/1000+0.125*Q31*($N$11/1000)^2+0.001+AO36*AT10 -> 6.001 | AS36: Partialkoefficienter mindst 1,0 | AT36: =IF(MIN(N9,N10)<1,1,0) -> 0 | BA36: M | BB36: =INDEX($AN$30:$AQ$38,Makro!B2,4) -> 11.5354 | BC36: =INDEX($AN$30:$AQ$38,Makro!C2,4) -> 11.5354 | BD36: =INDEX($AN$30:$AQ$38,Makro!D2,4) -> 11.5354 | BE36: =INDEX($AN$30:$AQ$38,Makro!E2,4) -> 11.5354 | BF36: =INDEX($AN$30:$AQ$38,Makro!F2,4) -> 11.5354 | BG36: =INDEX($AN$30:$AQ$38,Makro!G2,4) -> 11.5354 | BH36: =INDEX(AN30:AQ38,Makro!H2,4) -> 11.5354 | BI36: F
AO37: 45 | AQ37: =(N32*$N$35+O32*$O$35-P32*$P$35)/1000+0.125*Q32*($N$11/1000)^2+0.001+AO37*AT10 -> 6.001 | AS37: Programmet indstillet til kold beregning | AT37: =IF(Kold!$AO$5=1,1,0) -> 1 | AU37: Programmet indstillet til kold beregning ! | BA37: Mud | BB37: =INDEX(Lastresult,1+5*(BB31-1),17)*1000 -> 298.7995215 | BC37: 298.7995215 | BD37: 298.7995215 | BE37: 298.7995215 | BF37: 298.7995215 | BG37: 298.7995215 | BH37: 298.7995215 | BI37: G
AO38: 45 | AQ38: =(N33*$N$35+O33*$O$35-P33*$P$35)/1000+0.125*Q33*($N$11/1000)^2+0.001+AO38*AT10 -> 6.001 | BA38: u | BB38: =INDEX(Lastresult,1+5*(BB31-1),15)*1000 -> 43.49285549 | BC38: 43.49285549 | BD38: 43.49285549 | BE38: 43.49285549 | BF38: 43.49285549 | BG38: 43.49285549 | BH38: 43.49285549 | BI38: H
AS39: Nulstilling for fejl | BA39: wr | BB39: - | BC39: - | BD39: - | BE39: - | BF39: - | BG39: - | BH39: - | BI39: I
AN40: Trykarmering | AP40: =N15^2*N16*PI()/4 -> 603.1857895 | AQ40: mm^2 | AS40: Testfaktor | AT40: =IF(MAX(AT28,AT29,AT30,AT34,AT36)=1,0,1) -> 1 | BA40: e0 | BB40: =INDEX(Lastresult,1+5*(BB31-1),3)*1000 -> 1.182124371 | BC40: 1.182124371 | BD40: 1.182124371 | BE40: 1.182124371 | BF40: 1.182124371 | BG40: 1.182124371 | BH40: 1.182124371
AN41: Trækarmering | AP41: =N17^2*N18*PI()/4 -> 603.1857895 | AQ41: mm^2 | BA41: sc0 | BB41: =3*(BB40/1000)*$Q$8/(firsidig!$F$21*(2+((BB40/1000)/firsidig!$F$21)^3)) -> 26.94654983 | BC41: =3*(BC40/1000)*$Q$8/(firsidig!$F$21*(2+((BC40/1000)/firsidig!$F$21)^3)) -> 26.94654983 | BD41: =3*(BD40/1000)*$Q$8/(firsidig!$F$21*(2+((BD40/1000)/firsidig!$F$21)^3)) -> 26.94654983 | BE41: =3*(BE40/1000)*$Q$8/(firsidig!$F$21*(2+((BE40/1000)/firsidig!$F$21)^3)) -> 26.94654983 | BF41: =3*(BF40/1000)*$Q$8/(firsidig!$F$21*(2+((BF40/1000)/firsidig!$F$21)^3)) -> 26.94654983 | BG41: =3*(BG40/1000)*$Q$8/(firsidig!$F$21*(2+((BG40/1000)/firsidig!$F$21)^3)) -> 26.94654983 | BH41: =3*(BH40/1000)*$Q$8/(firsidig!$F$21*(2+((BH40/1000)/firsidig!$F$21)^3)) -> 26.94654983
AS42: Kritisk normalspænding | AT42: =Q8/(1+12*Q8*AX27^2/(PI()^2*AX16*AX21^2)) -> 31.51746891 | AU42: MPa | BA42: sst | BB42: =INDEX(Lastresult,1+5*(BB31-1),12) -> 458.3333333 | BC42: 458.3333333 | BD42: 458.3333333 | BE42: 458.3333333 | BF42: 458.3333333 | BG42: 458.3333333 | BH42: 458.3333333
AS43: Kritisk normalkraft, Ncr | AT43: =AT42*AX22*AX21 -> 4.701975839 | AU43: MN | BA43: ssc | BB43: =INDEX(Lastresult,1+5*(BB31-1),10) -> 458.3333333 | BC43: 458.3333333 | BD43: 458.3333333 | BE43: 458.3333333 | BF43: 458.3333333 | BG43: 458.3333333 | BH43: 458.3333333
BA44: hc | BB44: =INDEX(Lastresult,1+5*(BB31-1),2)*1000 -> 252.9042106 | BC44: 252.9042106 | BD44: 252.9042106 | BE44: 252.9042106 | BF44: 252.9042106 | BG44: 252.9042106 | BH44: 252.9042106
AN46: gc | AO46: 1 | AQ46: Referencelast før krybning | AT46: Mo | AV46: sc,max | AW46: sc,min | AX46: sc | AY46: st | AZ46: hc | BA46: u | BB46: a | BC46: Mt | BD46: a*fc | BE46: a*ft | BF46: B | BG46: C | BH46: D | BI46: p | BJ46: q | BK46: C' | BL46: y' | BM46: b | BN46: m | BO46: Ec | BP46: Atr | BQ46: Syt | BR46: Iyt | BS46: z | BT46: Io | BU46: sc | BV46: sm | BW46: hc | BZ46: Referencelast
AN47: ga | AO47: 1 | AT47: =BC47-AR50*BA47 -> 0.01759336411 | AV47: =IF(BL47*SQRT(4*ABS(BI47)/3)-BF47/3<=AO53,BC47/(BN47*AO54*AO53^2),BU47) -> 1.79190254 | AW47: =IF(BL47*SQRT(4*ABS(BI47)/3)-BF47/3<=AO53,0,BV47) -> 0.1510857733 | AX47: =BB47*(AZ47-AO55)*AV47/AZ47 -> 9.140081995 | AY47: =BB47*(AO53-AO55-AZ47)*AV47/AZ47 -> -1.893210513 | AZ47: =IF(BL47*SQRT(4*ABS(BI47)/3)-BF47/3<=AO53,BL47*SQRT(4*ABS(BI47)/3)-BF47/3,BW47) -> 0.5897229912 | BA47: =0.1*(AV47/(AZ47*BO47))*AO59^2 -> 0.0003117577604 | BB47: =AO56 -> 5.678517174 | BC47: =IF(AR53>0,AR53+AO53*AR50/20,0)+0.000000000001 -> 0.01766413 | BD47: =BB47*AO57/(AO53*AO54) -> 0.01510229658 | BE47: =BB47*AO58/(AO53*AO54) -> 0.01510229658 | BF47: =-6*AO53*(0.25-0.5*BC47/(AO53*AR52)) -> -0.5765430636 | BG47: =-6*AO53*(BD47*(0.5*AO53-AO55)-BE47*(0.5*AO53-AO55)-(BD47+BE47)*AO53*BC47/(AO53*AR52)) -> 0.00761558953 | BH47: =6*AO53*((BD47*AO55-BE47*(AO53-AO55))*(0.5*AO53-AO55)-(BD47*AO55+BE47*(AO53-AO55))*BC47/AR52) -> -0.006371962263 | BI47: =(3*BG47-BF47^2)/3 -> -0.1031850452 | BJ47: =(9*BG47*BF47-27*BH47-2*BF47^3)/27 -> 0.01910424324 | BK47: =0.5*BJ47*(3/ABS(BI47))^(3/2) -> 1.497464679 | BL47: =IF(BI47>0,SINH(ASINH(BK47)/3),IF(BK47>=1,COSH(ACOSH(BK47)/3),IF(BK47<=-1,-COSH(ACOSH(ABS(BK47))/3),COS(ACOS(BK47)/3)))) -> 1.051654951 | BM47: =AZ47/AO53 -> 1.092079613 | BN47: =0.5*BM47*(0.5-BM47/3)+BD47*(0.5-AO55/AO53)*(BM47-AO55/AO53)/BM47+BE47*(0.5-AO55/AO53)*(1-AO55/AO53-BM47)/BM47 -> 0.07842974866 | BO47: =IF(BL47*SQRT(4*ABS(BI47)/3)-BF47/3<=AO53,AO52*(1-AO51*AV47/AO50),AO52*(1-AO51*AV47/AO50-(1-AO51)*BV47/AO50)) -> 35087.42952 | BP47: =(1+BD47+BE47)*AO53*AO54 -> 0.2336504017 | BQ47: =0.5*(AO53-AO55)*(BE47-BD47)*AO53*AO54 -> 0 | BR47: =AO54*AO53^3/12+(0.5*AO53-AO55)^2*(BD47+BE47)*AO54*AO53 -> 0.005813342716 | BS47: =BQ47/BP47 -> 0 | BT47: =BR47-BP47*BS47^2 -> 0.005813342716 | BU47: =AR52/BP47+(BC47+BS47*AR52)*(0.5*AO53+BS47)/BT47 -> 1.79190254 | BV47: =AR52/BP47+(BC47+BS47*AR52)*(-0.5*AO53+BS47)/BT47 -> 0.1510857733 | BW47: =AR52*BT47/((BC47+AR52*BS47)*BP47)+(0.5*AO53+BS47) -> 0.5897229912 | BZ47: A | CA47: =AO30 -> 226.98 | CB47: =(N25*$N$35+O25*$O$35-P25*$P$35)/1000+0.125*Q25*($N$11/1000)^2+0.001 -> 11.5354
AN48: fck | AO48: =$N$7 -> 40 | AP48: MPa | AT48: =BC48-AR50*BA48 -> 0.01155933873 | AU48: =BA48/BA47 -> 0.6617193332 | AV48: =IF(BL48*SQRT(4*ABS(BI48)/3)-BF48/3<=AO53,BC48/(BN48*AO54*AO53^2),BU48) -> 1.510541129 | AW48: =IF(BL48*SQRT(4*ABS(BI48)/3)-BF48/3<=AO53,0,BV48) -> 0.4324471842 | AX48: =BB48*(AZ48-AO55)*AV48/AZ48 -> 7.897414303 | AY48: =BB48*(AO53-AO55-AZ48)*AV48/AZ48 -> -3.135878205 | AZ48: =IF(BL48*SQRT(4*ABS(BI48)/3)-BF48/3<=AO53,BL48*SQRT(4*ABS(BI48)/3)-BF48/3,BW48) -> 0.7566058724 | BA48: =0.1*(AV48/(AZ48*BO48))*AO59^2 -> 0.0002062961373 | BB48: =AO56 -> 5.678517174 | BC48: =AR53+BA47*AR50 -> 0.01160616589 | BD48: =BB48*AO57/(AO53*AO54) -> 0.01510229658 | BE48: =BB48*AO58/(AO53*AO54) -> 0.01510229658 | BF48: =-6*AO53*(0.25-0.5*BC48/(AO53*AR52)) -> -0.6566077903 | BG48: =-6*AO53*(BD48*(0.5*AO53-AO55)-BE48*(0.5*AO53-AO55)-(BD48+BE48)*AO53*BC48/(AO53*AR52)) -> 0.005003801232 | BH48: =6*AO53*((BD48*AO55-BE48*(AO53-AO55))*(0.5*AO53-AO55)-(BD48*AO55+BE48*(AO53-AO55))*BC48/AR52) -> -0.005666779423 | BI48: =(3*BG48-BF48^2)/3 -> -0.1387074622 | BJ48: =(9*BG48*BF48-27*BH48-2*BF48^3)/27 -> 0.02554092005 | BK48: =0.5*BJ48*(3/ABS(BI48))^(3/2) -> 1.284513536 | BL48: =IF(BI48>0,SINH(ASINH(BK48)/3),IF(BK48>=1,COSH(ACOSH(BK48)/3),IF(BK48<=-1,-COSH(ACOSH(ABS(BK48))/3),COS(ACOS(BK48)/3)))) -> 1.030370354 | BM48: =AZ48/AO53 -> 1.401121986 | BN48: =0.5*BM48*(0.5-BM48/3)+BD48*(0.5-AO55/AO53)*(BM48-AO55/AO53)/BM48+BE48*(0.5-AO55/AO53)*(1-AO55/AO53-BM48)/BM48 -> 0.02635025562 | BO48: =IF(BL48*SQRT(4*ABS(BI48)/3)-BF48/3<=AO53,AO52*(1-AO51*AV48/AO50),AO52*(1-AO51*AV48/AO50-(1-AO51)*BV48/AO50)) -> 34839.68755 | BP48: =(1+BD48+BE48)*AO53*AO54 -> 0.2336504017 | BQ48: =0.5*(AO53-AO55)*(BE48-BD48)*AO53*AO54 -> 0 | BR48: =AO54*AO53^3/12+(0.5*AO53-AO55)^2*(BD48+BE48)*AO54*AO53 -> 0.005813342716 | BS48: =BQ48/BP48 -> 0 | BT48: =BR48-BP48*BS48^2 -> 0.005813342716 | BU48: =AR52/BP48+(BC48+BS48*AR52)*(0.5*AO53+BS48)/BT48 -> 1.510541129 | BV48: =AR52/BP48+(BC48+BS48*AR52)*(-0.5*AO53+BS48)/BT48 -> 0.4324471842 | BW48: =AR52*BT48/((BC48+AR52*BS48)*BP48)+(0.5*AO53+BS48) -> 0.7566058724 | BZ48: B | CA48: =AO31 -> 472.26 | CB48: 99.8362
AN49: Es | AO49: 200000 | AP49: MPa | AQ49: Max_N | AR49: =(AO53*AO54+AO56*(AO57+AO58))*AO50/(1+(12*(AO50/AO52)/PI()^2)*(AO59/AO53)^2) -> 7.984804294 | AT49: =BC49-AR50*BA49 -> 0.01153549527 | AU49: =BA49/BA48 -> 0.9979654548 | AV49: =IF(BL49*SQRT(4*ABS(BI49)/3)-BF49/3<=AO53,BC49/(BN49*AO54*AO53^2),BU49) -> 1.509429298 | AW49: =IF(BL49*SQRT(4*ABS(BI49)/3)-BF49/3<=AO53,0,BV49) -> 0.4335590158 | AX49: =BB49*(AZ49-AO55)*AV49/AZ49 -> 7.89250376 | AY49: =BB49*(AO53-AO55-AZ49)*AV49/AZ49 -> -3.140788748 | AZ49: =IF(BL49*SQRT(4*ABS(BI49)/3)-BF49/3<=AO53,BL49*SQRT(4*ABS(BI49)/3)-BF49/3,BW49) -> 0.7576116141 | BA49: =0.1*(AV49/(AZ49*BO49))*AO59^2 -> 0.0002058764185 | BB49: =AO56 -> 5.678517174 | BC49: =AR53+BA48*AR50 -> 0.01158222716 | BD49: =BB49*AO57/(AO53*AO54) -> 0.01510229658 | BE49: =BB49*AO58/(AO53*AO54) -> 0.01510229658 | BF49: =-6*AO53*(0.25-0.5*BC49/(AO53*AR52)) -> -0.6569241752 | BG49: =-6*AO53*(BD49*(0.5*AO53-AO55)-BE49*(0.5*AO53-AO55)-(BD49+BE49)*AO53*BC49/(AO53*AR52)) -> 0.004993480454 | BH49: =6*AO53*((BD49*AO55-BE49*(AO53-AO55))*(0.5*AO53-AO55)-(BD49*AO55+BE49*(AO53-AO55))*BC49/AR52) -> -0.005663992812 | BI49: =(3*BG49-BF49^2)/3 -> -0.1388563102 | BJ49: =(9*BG49*BF49-27*BH49-2*BF49^3)/27 -> 0.02557019237 | BK49: =0.5*BJ49*(3/ABS(BI49))^(3/2) -> 1.283918483 | BL49: 1.030309255 | BM49: =AZ49/AO53 -> 1.40298447 | BN49: =0.5*BM49*(0.5-BM49/3)+BD49*(0.5-AO55/AO53)*(BM49-AO55/AO53)/BM49+BE49*(0.5-AO55/AO53)*(1-AO55/AO53-BM49)/BM49 -> 0.02594111459 | BO49: =IF(BL49*SQRT(4*ABS(BI49)/3)-BF49/3<=AO53,AO52*(1-AO51*AV49/AO50),AO52*(1-AO51*AV49/AO50-(1-AO51)*BV49/AO50)) -> 34838.70856 | BP49: =(1+BD49+BE49)*AO53*AO54 -> 0.2336504017 | BQ49: =0.5*(AO53-AO55)*(BE49-BD49)*AO53*AO54 -> 0 | BR49: =AO54*AO53^3/12+(0.5*AO53-AO55)^2*(BD49+BE49)*AO54*AO53 -> 0.005813342716 | BS49: 0 | BT49: 0.005813342716 | BU49: =AR52/BP49+(BC49+BS49*AR52)*(0.5*AO53+BS49)/BT49 -> 1.509429298 | BV49: =AR52/BP49+(BC49+BS49*AR52)*(-0.5*AO53+BS49)/BT49 -> 0.4335590158 | BW49: =AR52*BT49/((BC49+AR52*BS49)*BP49)+(0.5*AO53+BS49) -> 0.7576116141 | BZ49: C | CA49: 2136.78 | CB49: 133.1266
AN50: fcd | AO50: =AO48/AO46 -> 40 | AP50: MPa | AQ50: Nd | AR50: =INDEX(BZ47:CB56,Makro!H2,2)/1000+0.00001 -> 0.22699 | AS50: MN | AT50: =BC50-AR50*BA50 -> 0.01153540038 | AU50: 0.9999918861 | AV50: =IF(BL50*SQRT(4*ABS(BI50)/3)-BF50/3<=AO53,BC50/(BN50*AO54*AO53^2),BU50) -> 1.509424873 | AW50: =IF(BL50*SQRT(4*ABS(BI50)/3)-BF50/3<=AO53,0,BV50) -> 0.4335634407 | AX50: =BB50*(AZ50-AO55)*AV50/AZ50 -> 7.892484217 | AY50: =BB50*(AO53-AO55-AZ50)*AV50/AZ50 -> -3.140808291 | AZ50: =IF(BL50*SQRT(4*ABS(BI50)/3)-BF50/3<=AO53,BL50*SQRT(4*ABS(BI50)/3)-BF50/3,BW50) -> 0.757615625 | BA50: =0.1*(AV50/(AZ50*BO50))*AO59^2 -> 0.0002058747481 | BB50: =AO56 -> 5.678517174 | BC50: =AR53+BA49*AR50 -> 0.01158213189 | BD50: =BB50*AO57/(AO53*AO54) -> 0.01510229658 | BE50: =BB50*AO58/(AO53*AO54) -> 0.01510229658 | BF50: =-6*AO53*(0.25-0.5*BC50/(AO53*AR52)) -> -0.6569254343 | BG50: =-6*AO53*(BD50*(0.5*AO53-AO55)-BE50*(0.5*AO53-AO55)-(BD50+BE50)*AO53*BC50/(AO53*AR52)) -> 0.004993439379 | BH50: =6*AO53*((BD50*AO55-BE50*(AO53-AO55))*(0.5*AO53-AO55)-(BD50*AO55+BE50*(AO53-AO55))*BC50/AR52) -> -0.005663981722 | BI50: -0.1388569027 | BJ50: 0.02557030893 | BK50: 1.283916118 | BL50: 1.030309012 | BM50: =AZ50/AO53 -> 1.402991898 | BN50: =0.5*BM50*(0.5-BM50/3)+BD50*(0.5-AO55/AO53)*(BM50-AO55/AO53)/BM50+BE50*(0.5-AO55/AO53)*(1-AO55/AO53-BM50)/BM50 -> 0.02593948061 | BO50: =IF(BL50*SQRT(4*ABS(BI50)/3)-BF50/3<=AO53,AO52*(1-AO51*AV50/AO50),AO52*(1-AO51*AV50/AO50-(1-AO51)*BV50/AO50)) -> 34838.70467 | BP50: =(1+BD50+BE50)*AO53*AO54 -> 0.2336504017 | BQ50: =0.5*(AO53-AO55)*(BE50-BD50)*AO53*AO54 -> 0 | BR50: =AO54*AO53^3/12+(0.5*AO53-AO55)^2*(BD50+BE50)*AO54*AO53 -> 0.005813342716 | BS50: 0 | BT50: 0.005813342716 | BU50: =AR52/BP50+(BC50+BS50*AR52)*(0.5*AO53+BS50)/BT50 -> 1.509424873 | BV50: =AR52/BP50+(BC50+BS50*AR52)*(-0.5*AO53+BS50)/BT50 -> 0.4335634407 | BW50: =AR52*BT50/((BC50+AR52*BS50)*BP50)+(0.5*AO53+BS50) -> 0.757615625 | BZ50: D | CA50: 2347.02 | CB50: 74.2594
AN51: k | AO51: 0 | AQ51: Nf | AR51: 0 | AS51: MN | AT51: =BC51-AR50*BA51 -> 0.0115354 | AU51: 0.9999999677 | AV51: =IF(BL51*SQRT(4*ABS(BI51)/3)-BF51/3<=AO53,BC51/(BN51*AO54*AO53^2),BU51) -> 1.509424855 | AW51: =IF(BL51*SQRT(4*ABS(BI51)/3)-BF51/3<=AO53,0,BV51) -> 0.4335634583 | AX51: =BB51*(AZ51-AO55)*AV51/AZ51 -> 7.892484139 | AY51: =BB51*(AO53-AO55-AZ51)*AV51/AZ51 -> -3.140808369 | AZ51: =IF(BL51*SQRT(4*ABS(BI51)/3)-BF51/3<=AO53,BL51*SQRT(4*ABS(BI51)/3)-BF51/3,BW51) -> 0.757615641 | BA51: =0.1*(AV51/(AZ51*BO51))*AO59^2 -> 0.0002058747414 | BB51: =AO56 -> 5.678517174 | BC51: =AR53+BA50*AR50 -> 0.01158213151 | BD51: =BB51*AO57/(AO53*AO54) -> 0.01510229658 | BE51: =BB51*AO58/(AO53*AO54) -> 0.01510229658 | BF51: =-6*AO53*(0.25-0.5*BC51/(AO53*AR52)) -> -0.6569254393 | BG51: =-6*AO53*(BD51*(0.5*AO53-AO55)-BE51*(0.5*AO53-AO55)-(BD51+BE51)*AO53*BC51/(AO53*AR52)) -> 0.004993439216 | BH51: =6*AO53*((BD51*AO55-BE51*(AO53-AO55))*(0.5*AO53-AO55)-(BD51*AO55+BE51*(AO53-AO55))*BC51/AR52) -> -0.005663981678 | BI51: -0.1388569051 | BJ51: 0.0255703094 | BK51: 1.283916108 | BL51: 1.030309011 | BM51: =AZ51/AO53 -> 1.402991928 | BN51: =0.5*BM51*(0.5-BM51/3)+BD51*(0.5-AO55/AO53)*(BM51-AO55/AO53)/BM51+BE51*(0.5-AO55/AO53)*(1-AO55/AO53-BM51)/BM51 -> 0.02593947411 | BO51: =IF(BL51*SQRT(4*ABS(BI51)/3)-BF51/3<=AO53,AO52*(1-AO51*AV51/AO50),AO52*(1-AO51*AV51/AO50-(1-AO51)*BV51/AO50)) -> 34838.70465 | BP51: =(1+BD51+BE51)*AO53*AO54 -> 0.2336504017 | BQ51: =0.5*(AO53-AO55)*(BE51-BD51)*AO53*AO54 -> 0 | BR51: =AO54*AO53^3/12+(0.5*AO53-AO55)^2*(BD51+BE51)*AO54*AO53 -> 0.005813342716 | BS51: 0 | BT51: 0.005813342716 | BU51: =AR52/BP51+(BC51+BS51*AR52)*(0.5*AO53+BS51)/BT51 -> 1.509424855 | BV51: =AR52/BP51+(BC51+BS51*AR52)*(-0.5*AO53+BS51)/BT51 -> 0.4335634583 | BW51: =AR52*BT51/((BC51+AR52*BS51)*BP51)+(0.5*AO53+BS51) -> 0.757615641 | BZ51: E | CA51: 45 | CB51: 6.001
AN52: Ecm | AO52: =1000*22*((AO50+8)/10)^0.3 -> 35220.46229 | AP52: MPa | AQ52: N | AR52: =AR51+AR50 -> 0.22699 | AS52: MN | AT52: =BC52-AR50*BA52 -> 0.0115354 | AU52: 0.9999999999 | AV52: =IF(BL52*SQRT(4*ABS(BI52)/3)-BF52/3<=AO53,BC52/(BN52*AO54*AO53^2),BU52) -> 1.509424855 | AW52: =IF(BL52*SQRT(4*ABS(BI52)/3)-BF52/3<=AO53,0,BV52) -> 0.4335634584 | AX52: =BB52*(AZ52-AO55)*AV52/AZ52 -> 7.892484139 | AY52: =BB52*(AO53-AO55-AZ52)*AV52/AZ52 -> -3.140808369 | AZ52: =IF(BL52*SQRT(4*ABS(BI52)/3)-BF52/3<=AO53,BL52*SQRT(4*ABS(BI52)/3)-BF52/3,BW52) -> 0.7576156411 | BA52: =0.1*(AV52/(AZ52*BO52))*AO59^2 -> 0.0002058747414 | BB52: =AO56 -> 5.678517174 | BC52: =AR53+BA51*AR50 -> 0.01158213151 | BD52: =BB52*AO57/(AO53*AO54) -> 0.01510229658 | BE52: =BB52*AO58/(AO53*AO54) -> 0.01510229658 | BF52: =-6*AO53*(0.25-0.5*BC52/(AO53*AR52)) -> -0.6569254393 | BG52: =-6*AO53*(BD52*(0.5*AO53-AO55)-BE52*(0.5*AO53-AO55)-(BD52+BE52)*AO53*BC52/(AO53*AR52)) -> 0.004993439215 | BH52: =6*AO53*((BD52*AO55-BE52*(AO53-AO55))*(0.5*AO53-AO55)-(BD52*AO55+BE52*(AO53-AO55))*BC52/AR52) -> -0.005663981678 | BI52: =(3*BG52-BF52^2)/3 -> -0.1388569051 | BJ52: =(9*BG52*BF52-27*BH52-2*BF52^3)/27 -> 0.0255703094 | BK52: =0.5*BJ52*(3/ABS(BI52))^(3/2) -> 1.283916108 | BL52: =IF(BI52>0,SINH(ASINH(BK52)/3),IF(BK52>=1,COSH(ACOSH(BK52)/3),IF(BK52<=-1,-COSH(ACOSH(ABS(BK52))/3),COS(ACOS(BK52)/3)))) -> 1.030309011 | BM52: =AZ52/AO53 -> 1.402991928 | BN52: =0.5*BM52*(0.5-BM52/3)+BD52*(0.5-AO55/AO53)*(BM52-AO55/AO53)/BM52+BE52*(0.5-AO55/AO53)*(1-AO55/AO53-BM52)/BM52 -> 0.02593947408 | BO52: =IF(BL52*SQRT(4*ABS(BI52)/3)-BF52/3<=AO53,AO52*(1-AO51*AV52/AO50),AO52*(1-AO51*AV52/AO50-(1-AO51)*BV52/AO50)) -> 34838.70465 | BP52: =(1+BD52+BE52)*AO53*AO54 -> 0.2336504017 | BQ52: =0.5*(AO53-AO55)*(BE52-BD52)*AO53*AO54 -> 0 | BR52: =AO54*AO53^3/12+(0.5*AO53-AO55)^2*(BD52+BE52)*AO54*AO53 -> 0.005813342716 | BS52: 0 | BT52: 0.005813342716 | BU52: =AR52/BP52+(BC52+BS52*AR52)*(0.5*AO53+BS52)/BT52 -> 1.509424855 | BV52: =AR52/BP52+(BC52+BS52*AR52)*(-0.5*AO53+BS52)/BT52 -> 0.4335634584 | BW52: =AR52*BT52/((BC52+AR52*BS52)*BP52)+(0.5*AO53+BS52) -> 0.7576156411 | BZ52: F | CA52: 25 | CB52: 2.201
AN53: h | AO53: =$N$12/1000 -> 0.54 | AP53: m | AQ53: Mo | AR53: =INDEX(BZ47:CB56,Makro!H2,3)/1000 -> 0.0115354 | AS53: MNm | AT53: =BC53-AR50*BA53 -> 0.0115354 | AU53: 1 | AV53: =IF(BL53*SQRT(4*ABS(BI53)/3)-BF53/3<=AO53,BC53/(BN53*AO54*AO53^2),BU53) -> 1.509424855 | AW53: =IF(BL53*SQRT(4*ABS(BI53)/3)-BF53/3<=AO53,0,BV53) -> 0.4335634584 | AX53: =BB53*(AZ53-AO55)*AV53/AZ53 -> 7.892484139 | AY53: =BB53*(AO53-AO55-AZ53)*AV53/AZ53 -> -3.140808369 | AZ53: =IF(BL53*SQRT(4*ABS(BI53)/3)-BF53/3<=AO53,BL53*SQRT(4*ABS(BI53)/3)-BF53/3,BW53) -> 0.7576156411 | BA53: =0.1*(AV53/(AZ53*BO53))*AO59^2 -> 0.0002058747414 | BB53: =AO56 -> 5.678517174 | BC53: =AR53+BA52*AR50 -> 0.01158213151 | BD53: =BB53*AO57/(AO53*AO54) -> 0.01510229658 | BE53: =BB53*AO58/(AO53*AO54) -> 0.01510229658 | BF53: =-6*AO53*(0.25-0.5*BC53/(AO53*AR52)) -> -0.6569254393 | BG53: =-6*AO53*(BD53*(0.5*AO53-AO55)-BE53*(0.5*AO53-AO55)-(BD53+BE53)*AO53*BC53/(AO53*AR52)) -> 0.004993439215 | BH53: =6*AO53*((BD53*AO55-BE53*(AO53-AO55))*(0.5*AO53-AO55)-(BD53*AO55+BE53*(AO53-AO55))*BC53/AR52) -> -0.005663981678 | BI53: -0.1388569051 | BJ53: 0.0255703094 | BK53: 1.283916108 | BL53: 1.030309011 | BM53: =AZ53/AO53 -> 1.402991928 | BN53: =0.5*BM53*(0.5-BM53/3)+BD53*(0.5-AO55/AO53)*(BM53-AO55/AO53)/BM53+BE53*(0.5-AO55/AO53)*(1-AO55/AO53-BM53)/BM53 -> 0.02593947408 | BO53: =IF(BL53*SQRT(4*ABS(BI53)/3)-BF53/3<=AO53,AO52*(1-AO51*AV53/AO50),AO52*(1-AO51*AV53/AO50-(1-AO51)*BV53/AO50)) -> 34838.70465 | BP53: =(1+BD53+BE53)*AO53*AO54 -> 0.2336504017 | BQ53: =0.5*(AO53-AO55)*(BE53-BD53)*AO53*AO54 -> 0 | BR53: =AO54*AO53^3/12+(0.5*AO53-AO55)^2*(BD53+BE53)*AO54*AO53 -> 0.005813342716 | BS53: 0 | BT53: 0.005813342716 | BU53: =AR52/BP53+(BC53+BS53*AR52)*(0.5*AO53+BS53)/BT53 -> 1.509424855 | BV53: =AR52/BP53+(BC53+BS53*AR52)*(-0.5*AO53+BS53)/BT53 -> 0.4335634584 | BW53: =AR52*BT53/((BC53+AR52*BS53)*BP53)+(0.5*AO53+BS53) -> 0.7576156411 | BZ53: G | CA53: 45 | CB53: 6.001
AN54: b | AO54: =$N$13/1000 -> 0.42 | AP54: m | AQ54: u | AR54: =BA59 -> 0.0002058747414 | AS54: m | AT54: =BC54-AR50*BA54 -> 0.0115354 | AU54: 1 | AV54: =IF(BL54*SQRT(4*ABS(BI54)/3)-BF54/3<=AO53,BC54/(BN54*AO54*AO53^2),BU54) -> 1.509424855 | AW54: =IF(BL54*SQRT(4*ABS(BI54)/3)-BF54/3<=AO53,0,BV54) -> 0.4335634584 | AX54: =BB54*(AZ54-AO55)*AV54/AZ54 -> 7.892484139 | AY54: =BB54*(AO53-AO55-AZ54)*AV54/AZ54 -> -3.140808369 | AZ54: =IF(BL54*SQRT(4*ABS(BI54)/3)-BF54/3<=AO53,BL54*SQRT(4*ABS(BI54)/3)-BF54/3,BW54) -> 0.7576156411 | BA54: =0.1*(AV54/(AZ54*BO54))*AO59^2 -> 0.0002058747414 | BB54: =AO56 -> 5.678517174 | BC54: =AR53+BA53*AR50 -> 0.01158213151 | BD54: =BB54*AO57/(AO53*AO54) -> 0.01510229658 | BE54: =BB54*AO58/(AO53*AO54) -> 0.01510229658 | BF54: =-6*AO53*(0.25-0.5*BC54/(AO53*AR52)) -> -0.6569254393 | BG54: =-6*AO53*(BD54*(0.5*AO53-AO55)-BE54*(0.5*AO53-AO55)-(BD54+BE54)*AO53*BC54/(AO53*AR52)) -> 0.004993439215 | BH54: =6*AO53*((BD54*AO55-BE54*(AO53-AO55))*(0.5*AO53-AO55)-(BD54*AO55+BE54*(AO53-AO55))*BC54/AR52) -> -0.005663981678 | BI54: -0.1388569051 | BJ54: 0.0255703094 | BK54: 1.283916108 | BL54: 1.030309011 | BM54: =AZ54/AO53 -> 1.402991928 | BN54: =0.5*BM54*(0.5-BM54/3)+BD54*(0.5-AO55/AO53)*(BM54-AO55/AO53)/BM54+BE54*(0.5-AO55/AO53)*(1-AO55/AO53-BM54)/BM54 -> 0.02593947408 | BO54: =IF(BL54*SQRT(4*ABS(BI54)/3)-BF54/3<=AO53,AO52*(1-AO51*AV54/AO50),AO52*(1-AO51*AV54/AO50-(1-AO51)*BV54/AO50)) -> 34838.70465 | BP54: =(1+BD54+BE54)*AO53*AO54 -> 0.2336504017 | BQ54: =0.5*(AO53-AO55)*(BE54-BD54)*AO53*AO54 -> 0 | BR54: =AO54*AO53^3/12+(0.5*AO53-AO55)^2*(BD54+BE54)*AO54*AO53 -> 0.005813342716 | BS54: 0 | BT54: 0.005813342716 | BU54: =AR52/BP54+(BC54+BS54*AR52)*(0.5*AO53+BS54)/BT54 -> 1.509424855 | BV54: =AR52/BP54+(BC54+BS54*AR52)*(-0.5*AO53+BS54)/BT54 -> 0.4335634584 | BW54: =AR52*BT54/((BC54+AR52*BS54)*BP54)+(0.5*AO53+BS54) -> 0.7576156411 | BZ54: H | CA54: 45 | CB54: 6.001
AN55: a | AO55: =$N$14/1000 -> 0.06 | AP55: m | AQ55: ec,max | AR55: =1000*AV59/BO59 -> 0.04332609005 | AS55: o/oo | AT55: =BC55-AR50*BA55 -> 0.0115354 | AU55: 1 | AV55: =IF(BL55*SQRT(4*ABS(BI55)/3)-BF55/3<=AO53,BC55/(BN55*AO54*AO53^2),BU55) -> 1.509424855 | AW55: =IF(BL55*SQRT(4*ABS(BI55)/3)-BF55/3<=AO53,0,BV55) -> 0.4335634584 | AX55: =BB55*(AZ55-AO55)*AV55/AZ55 -> 7.892484139 | AY55: =BB55*(AO53-AO55-AZ55)*AV55/AZ55 -> -3.140808369 | AZ55: =IF(BL55*SQRT(4*ABS(BI55)/3)-BF55/3<=AO53,BL55*SQRT(4*ABS(BI55)/3)-BF55/3,BW55) -> 0.7576156411 | BA55: =0.1*(AV55/(AZ55*BO55))*AO59^2 -> 0.0002058747414 | BB55: =AO56 -> 5.678517174 | BC55: =AR53+BA54*AR50 -> 0.01158213151 | BD55: =BB55*AO57/(AO53*AO54) -> 0.01510229658 | BE55: =BB55*AO58/(AO53*AO54) -> 0.01510229658 | BF55: =-6*AO53*(0.25-0.5*BC55/(AO53*AR52)) -> -0.6569254393 | BG55: =-6*AO53*(BD55*(0.5*AO53-AO55)-BE55*(0.5*AO53-AO55)-(BD55+BE55)*AO53*BC55/(AO53*AR52)) -> 0.004993439215 | BH55: =6*AO53*((BD55*AO55-BE55*(AO53-AO55))*(0.5*AO53-AO55)-(BD55*AO55+BE55*(AO53-AO55))*BC55/AR52) -> -0.005663981678 | BI55: -0.1388569051 | BJ55: 0.0255703094 | BK55: 1.283916108 | BL55: 1.030309011 | BM55: =AZ55/AO53 -> 1.402991928 | BN55: =0.5*BM55*(0.5-BM55/3)+BD55*(0.5-AO55/AO53)*(BM55-AO55/AO53)/BM55+BE55*(0.5-AO55/AO53)*(1-AO55/AO53-BM55)/BM55 -> 0.02593947408 | BO55: =IF(BL55*SQRT(4*ABS(BI55)/3)-BF55/3<=AO53,AO52*(1-AO51*AV55/AO50),AO52*(1-AO51*AV55/AO50-(1-AO51)*BV55/AO50)) -> 34838.70465 | BP55: =(1+BD55+BE55)*AO53*AO54 -> 0.2336504017 | BQ55: =0.5*(AO53-AO55)*(BE55-BD55)*AO53*AO54 -> 0 | BR55: =AO54*AO53^3/12+(0.5*AO53-AO55)^2*(BD55+BE55)*AO54*AO53 -> 0.005813342716 | BS55: 0 | BT55: 0.005813342716 | BU55: =AR52/BP55+(BC55+BS55*AR52)*(0.5*AO53+BS55)/BT55 -> 1.509424855 | BV55: =AR52/BP55+(BC55+BS55*AR52)*(-0.5*AO53+BS55)/BT55 -> 0.4335634584 | BW55: =AR52*BT55/((BC55+AR52*BS55)*BP55)+(0.5*AO53+BS55) -> 0.7576156411 | BZ55: I | CA55: 45 | CB55: 6.001
AN56: a | AO56: =AO49/AO52 -> 5.678517174 | AQ56: ec,min | AR56: =1000*AW59/BO59 -> 0.01244487884 | AS56: o/oo | AT56: =BC56-AR50*BA56 -> 0.0115354 | AU56: =BA56/BA55 -> 1 | AV56: =IF(BL56*SQRT(4*ABS(BI56)/3)-BF56/3<=AO53,BC56/(BN56*AO54*AO53^2),BU56) -> 1.509424855 | AW56: =IF(BL56*SQRT(4*ABS(BI56)/3)-BF56/3<=AO53,0,BV56) -> 0.4335634584 | AX56: =BB56*(AZ56-AO55)*AV56/AZ56 -> 7.892484139 | AY56: =BB56*(AO53-AO55-AZ56)*AV56/AZ56 -> -3.140808369 | AZ56: =IF(BL56*SQRT(4*ABS(BI56)/3)-BF56/3<=AO53,BL56*SQRT(4*ABS(BI56)/3)-BF56/3,BW56) -> 0.7576156411 | BA56: =0.1*(AV56/(AZ56*BO56))*AO59^2 -> 0.0002058747414 | BB56: =AO56 -> 5.678517174 | BC56: =AR53+BA55*AR50 -> 0.01158213151 | BD56: =BB56*AO57/(AO53*AO54) -> 0.01510229658 | BE56: =BB56*AO58/(AO53*AO54) -> 0.01510229658 | BF56: =-6*AO53*(0.25-0.5*BC56/(AO53*AR52)) -> -0.6569254393 | BG56: =-6*AO53*(BD56*(0.5*AO53-AO55)-BE56*(0.5*AO53-AO55)-(BD56+BE56)*AO53*BC56/(AO53*AR52)) -> 0.004993439215 | BH56: =6*AO53*((BD56*AO55-BE56*(AO53-AO55))*(0.5*AO53-AO55)-(BD56*AO55+BE56*(AO53-AO55))*BC56/AR52) -> -0.005663981678 | BI56: -0.1388569051 | BJ56: 0.0255703094 | BK56: 1.283916108 | BL56: 1.030309011 | BM56: =AZ56/AO53 -> 1.402991928 | BN56: =0.5*BM56*(0.5-BM56/3)+BD56*(0.5-AO55/AO53)*(BM56-AO55/AO53)/BM56+BE56*(0.5-AO55/AO53)*(1-AO55/AO53-BM56)/BM56 -> 0.02593947408 | BO56: =IF(BL56*SQRT(4*ABS(BI56)/3)-BF56/3<=AO53,AO52*(1-AO51*AV56/AO50),AO52*(1-AO51*AV56/AO50-(1-AO51)*BV56/AO50)) -> 34838.70465 | BP56: =(1+BD56+BE56)*AO53*AO54 -> 0.2336504017 | BQ56: =0.5*(AO53-AO55)*(BE56-BD56)*AO53*AO54 -> 0 | BR56: =AO54*AO53^3/12+(0.5*AO53-AO55)^2*(BD56+BE56)*AO54*AO53 -> 0.005813342716 | BS56: 0 | BT56: 0.005813342716 | BU56: =AR52/BP56+(BC56+BS56*AR52)*(0.5*AO53+BS56)/BT56 -> 1.509424855 | BV56: =AR52/BP56+(BC56+BS56*AR52)*(-0.5*AO53+BS56)/BT56 -> 0.4335634584 | BW56: =AR52*BT56/((BC56+AR52*BS56)*BP56)+(0.5*AO53+BS56) -> 0.7576156411 | BZ56: INGEN
AN57: Ac | AO57: =$AP$40/1000000 -> 0.0006031857895 | AP57: m2 | AQ57: sa,c | AR57: =AX59 -> 7.892484139 | AS57: MPa | AT57: =BC57-AR50*BA57 -> 0.0115354 | AU57: =BA57/BA56 -> 1 | AV57: =IF(BL57*SQRT(4*ABS(BI57)/3)-BF57/3<=AO53,BC57/(BN57*AO54*AO53^2),BU57) -> 1.509424855 | AW57: =IF(BL57*SQRT(4*ABS(BI57)/3)-BF57/3<=AO53,0,BV57) -> 0.4335634584 | AX57: =BB57*(AZ57-AO55)*AV57/AZ57 -> 7.892484139 | AY57: =BB57*(AO53-AO55-AZ57)*AV57/AZ57 -> -3.140808369 | AZ57: =IF(BL57*SQRT(4*ABS(BI57)/3)-BF57/3<=AO53,BL57*SQRT(4*ABS(BI57)/3)-BF57/3,BW57) -> 0.7576156411 | BA57: =0.1*(AV57/(AZ57*BO57))*AO59^2 -> 0.0002058747414 | BB57: =AO56 -> 5.678517174 | BC57: =AR53+BA56*AR50 -> 0.01158213151 | BD57: =BB57*AO57/(AO53*AO54) -> 0.01510229658 | BE57: =BB57*AO58/(AO53*AO54) -> 0.01510229658 | BF57: =-6*AO53*(0.25-0.5*BC57/(AO53*AR52)) -> -0.6569254393 | BG57: =-6*AO53*(BD57*(0.5*AO53-AO55)-BE57*(0.5*AO53-AO55)-(BD57+BE57)*AO53*BC57/(AO53*AR52)) -> 0.004993439215 | BH57: =6*AO53*((BD57*AO55-BE57*(AO53-AO55))*(0.5*AO53-AO55)-(BD57*AO55+BE57*(AO53-AO55))*BC57/AR52) -> -0.005663981678 | BI57: -0.1388569051 | BJ57: 0.0255703094 | BK57: 1.283916108 | BL57: 1.030309011 | BM57: =AZ57/AO53 -> 1.402991928 | BN57: =0.5*BM57*(0.5-BM57/3)+BD57*(0.5-AO55/AO53)*(BM57-AO55/AO53)/BM57+BE57*(0.5-AO55/AO53)*(1-AO55/AO53-BM57)/BM57 -> 0.02593947408 | BO57: =IF(BL57*SQRT(4*ABS(BI57)/3)-BF57/3<=AO53,AO52*(1-AO51*AV57/AO50),AO52*(1-AO51*AV57/AO50-(1-AO51)*BV57/AO50)) -> 34838.70465 | BP57: =(1+BD57+BE57)*AO53*AO54 -> 0.2336504017 | BQ57: =0.5*(AO53-AO55)*(BE57-BD57)*AO53*AO54 -> 0 | BR57: =AO54*AO53^3/12+(0.5*AO53-AO55)^2*(BD57+BE57)*AO54*AO53 -> 0.005813342716 | BS57: 0 | BT57: 0.005813342716 | BU57: =AR52/BP57+(BC57+BS57*AR52)*(0.5*AO53+BS57)/BT57 -> 1.509424855 | BV57: =AR52/BP57+(BC57+BS57*AR52)*(-0.5*AO53+BS57)/BT57 -> 0.4335634584 | BW57: =AR52*BT57/((BC57+AR52*BS57)*BP57)+(0.5*AO53+BS57) -> 0.7576156411
AN58: At | AO58: =$AP$41/1000000 -> 0.0006031857895 | AP58: m2 | AQ58: sa,t | AR58: =AY59 -> -3.140808369 | AS58: MPa | AT58: =BC58-AR50*BA58 -> 0.0115354 | AU58: =BA58/BA57 -> 1 | AV58: =IF(BL58*SQRT(4*ABS(BI58)/3)-BF58/3<=AO53,BC58/(BN58*AO54*AO53^2),BU58) -> 1.509424855 | AW58: =IF(BL58*SQRT(4*ABS(BI58)/3)-BF58/3<=AO53,0,BV58) -> 0.4335634584 | AX58: =BB58*(AZ58-AO55)*AV58/AZ58 -> 7.892484139 | AY58: =BB58*(AO53-AO55-AZ58)*AV58/AZ58 -> -3.140808369 | AZ58: =IF(BL58*SQRT(4*ABS(BI58)/3)-BF58/3<=AO53,BL58*SQRT(4*ABS(BI58)/3)-BF58/3,BW58) -> 0.7576156411 | BA58: =0.1*(AV58/(AZ58*BO58))*AO59^2 -> 0.0002058747414 | BB58: =AO56 -> 5.678517174 | BC58: =AR53+BA57*AR50 -> 0.01158213151 | BD58: =BB58*AO57/(AO53*AO54) -> 0.01510229658 | BE58: =BB58*AO58/(AO53*AO54) -> 0.01510229658 | BF58: =-6*AO53*(0.25-0.5*BC58/(AO53*AR52)) -> -0.6569254393 | BG58: =-6*AO53*(BD58*(0.5*AO53-AO55)-BE58*(0.5*AO53-AO55)-(BD58+BE58)*AO53*BC58/(AO53*AR52)) -> 0.004993439215 | BH58: =6*AO53*((BD58*AO55-BE58*(AO53-AO55))*(0.5*AO53-AO55)-(BD58*AO55+BE58*(AO53-AO55))*BC58/AR52) -> -0.005663981678 | BI58: -0.1388569051 | BJ58: 0.0255703094 | BK58: 1.283916108 | BL58: 1.030309011 | BM58: =AZ58/AO53 -> 1.402991928 | BN58: =0.5*BM58*(0.5-BM58/3)+BD58*(0.5-AO55/AO53)*(BM58-AO55/AO53)/BM58+BE58*(0.5-AO55/AO53)*(1-AO55/AO53-BM58)/BM58 -> 0.02593947408 | BO58: =IF(BL58*SQRT(4*ABS(BI58)/3)-BF58/3<=AO53,AO52*(1-AO51*AV58/AO50),AO52*(1-AO51*AV58/AO50-(1-AO51)*BV58/AO50)) -> 34838.70465 | BP58: =(1+BD58+BE58)*AO53*AO54 -> 0.2336504017 | BQ58: =0.5*(AO53-AO55)*(BE58-BD58)*AO53*AO54 -> 0 | BR58: =AO54*AO53^3/12+(0.5*AO53-AO55)^2*(BD58+BE58)*AO54*AO53 -> 0.005813342716 | BS58: 0 | BT58: 0.005813342716 | BU58: =AR52/BP58+(BC58+BS58*AR52)*(0.5*AO53+BS58)/BT58 -> 1.509424855 | BV58: =AR52/BP58+(BC58+BS58*AR52)*(-0.5*AO53+BS58)/BT58 -> 0.4335634584 | BW58: =AR52*BT58/((BC58+AR52*BS58)*BP58)+(0.5*AO53+BS58) -> 0.7576156411
AN59: L | AO59: =$N$11/1000 -> 6 | AP59: m | AQ59: hc | AR59: =AZ59 -> 0.7576156411 | AS59: m | AT59: =BC59-AR50*BA59 -> 0.0115354 | AU59: =BA59/BA58 -> 1 | AV59: =IF(BL59*SQRT(4*ABS(BI59)/3)-BF59/3<=AO53,BC59/(BN59*AO54*AO53^2),BU59) -> 1.509424855 | AW59: =IF(BL59*SQRT(4*ABS(BI59)/3)-BF59/3<=AO53,0,BV59) -> 0.4335634584 | AX59: =BB59*(AZ59-AO55)*AV59/AZ59 -> 7.892484139 | AY59: =BB59*(AO53-AO55-AZ59)*AV59/AZ59 -> -3.140808369 | AZ59: =IF(BL59*SQRT(4*ABS(BI59)/3)-BF59/3<=AO53,BL59*SQRT(4*ABS(BI59)/3)-BF59/3,BW59) -> 0.7576156411 | BA59: =0.1*(AV59/(AZ59*BO59))*AO59^2 -> 0.0002058747414 | BB59: =AO56 -> 5.678517174 | BC59: =AR53+BA58*AR50 -> 0.01158213151 | BD59: =BB59*AO57/(AO53*AO54) -> 0.01510229658 | BE59: =BB59*AO58/(AO53*AO54) -> 0.01510229658 | BF59: =-6*AO53*(0.25-0.5*BC59/(AO53*AR52)) -> -0.6569254393 | BG59: =-6*AO53*(BD59*(0.5*AO53-AO55)-BE59*(0.5*AO53-AO55)-(BD59+BE59)*AO53*BC59/(AO53*AR52)) -> 0.004993439215 | BH59: =6*AO53*((BD59*AO55-BE59*(AO53-AO55))*(0.5*AO53-AO55)-(BD59*AO55+BE59*(AO53-AO55))*BC59/AR52) -> -0.005663981678 | BI59: -0.1388569051 | BJ59: 0.0255703094 | BK59: 1.283916108 | BL59: 1.030309011 | BM59: =AZ59/AO53 -> 1.402991928 | BN59: =0.5*BM59*(0.5-BM59/3)+BD59*(0.5-AO55/AO53)*(BM59-AO55/AO53)/BM59+BE59*(0.5-AO55/AO53)*(1-AO55/AO53-BM59)/BM59 -> 0.02593947408 | BO59: =IF(BL59*SQRT(4*ABS(BI59)/3)-BF59/3<=AO53,AO52*(1-AO51*AV59/AO50),AO52*(1-AO51*AV59/AO50-(1-AO51)*BV59/AO50)) -> 34838.70465 | BP59: =(1+BD59+BE59)*AO53*AO54 -> 0.2336504017 | BQ59: =0.5*(AO53-AO55)*(BE59-BD59)*AO53*AO54 -> 0 | BR59: =AO54*AO53^3/12+(0.5*AO53-AO55)^2*(BD59+BE59)*AO54*AO53 -> 0.005813342716 | BS59: 0 | BT59: 0.005813342716 | BU59: =AR52/BP59+(BC59+BS59*AR52)*(0.5*AO53+BS59)/BT59 -> 1.509424855 | BV59: =AR52/BP59+(BC59+BS59*AR52)*(-0.5*AO53+BS59)/BT59 -> 0.4335634584 | BW59: =AR52*BT59/((BC59+AR52*BS59)*BP59)+(0.5*AO53+BS59) -> 0.7576156411
AN60: gc | AO60: 1 | AQ60: Referencelast efter krybning | AT60: Mo | AV60: sc,max | AW60: sc,min | AX60: sc | AY60: st | AZ60: hc | BA60: u | BB60: a | BC60: Mt | BD60: a*fc | BE60: a*ft | BF60: B | BG60: C | BH60: D | BI60: p | BJ60: q | BK60: C' | BL60: y' | BM60: b | BN60: m | BO60: Ec | BP60: Atr | BQ60: Syt | BR60: Iyt | BS60: z | BT60: Io | BU60: sc | BV60: sm | BW60: hc
AN61: ga | AO61: 1 | AQ61: Kontrol | AR61: =IF(AND(Makro!H2<10,ABS(1-AU73)>0.01),1,0) -> 0 | AT61: =BC61-AR64*BA61 -> 0.01748504513 | AV61: =IF(BL61*SQRT(4*ABS(BI61)/3)-BF61/3<=AO67,BC61/(BN61*AO68*AO67^2),BU61) -> 1.675436328 | AW61: =IF(BL61*SQRT(4*ABS(BI61)/3)-BF61/3<=AO67,0,BV61) -> 0.1721712219 | AX61: =BB61*(AZ61-AO69)*AV61/AZ61 -> 23.6473778 | AY61: =BB61*(AO67-AO69-AZ61)*AV61/AZ61 -> -5.317667757 | AZ61: =IF(BL61*SQRT(4*ABS(BI61)/3)-BF61/3<=AO67,BL61*SQRT(4*ABS(BI61)/3)-BF61/3,BW61) -> 0.6018470152 | BA61: =0.1*(AV61/(AZ61*BO61))*AO73^2 -> 0.000788954885 | BB61: =AO70 -> 15.67705521 | BC61: =IF(AR67>0,AR67+AO67*AR64/20,0)+0.000000000001 -> 0.01766413 | BD61: =BB61*AO71/(AO67*AO68) -> 0.04169390177 | BE61: =BB61*AO72/(AO67*AO68) -> 0.04169390177 | BF61: =-6*AO67*(0.25-0.5*BC61/(AO67*AR66)) -> -0.5765430636 | BG61: =-6*AO67*(BD61*(0.5*AO67-AO69)-BE61*(0.5*AO67-AO69)-(BD61+BE61)*AO67*BC61/(AO67*AR66)) -> 0.02102485804 | BH61: =6*AO67*((BD61*AO69-BE61*(AO67-AO69))*(0.5*AO67-AO69)-(BD61*AO69+BE61*(AO67-AO69))*BC61/AR66) -> -0.01759149459 | BI61: =(3*BG61-BF61^2)/3 -> -0.08977577667 | BJ61: =(9*BG61*BF61-27*BH61-2*BF61^3)/27 -> 0.02774676866 | BK61: =0.5*BJ61*(3/ABS(BI61))^(3/2) -> 2.679942914 | BL61: =IF(BI61>0,SINH(ASINH(BK61)/3),IF(BK61>=1,COSH(ACOSH(BK61)/3),IF(BK61<=-1,-COSH(ACOSH(ABS(BK61))/3),COS(ACOS(BK61)/3)))) -> 1.153594748 | BM61: =AZ61/AO67 -> 1.11453151 | BN61: =0.5*BM61*(0.5-BM61/3)+BD61*(0.5-AO69/AO67)*(BM61-AO69/AO67)/BM61+BE61*(0.5-AO69/AO67)*(1-AO69/AO67-BM61)/BM61 -> 0.08291797085 | BO61: =IF(BL61*SQRT(4*ABS(BI61)/3)-BF61/3<=AO67,AO66*(1-AO65*AV61/AO64),AO66*(1-AO65*AV61/AO64-(1-AO65)*BV61/AO64)) -> 12702.58612 | BP61: =(1+BD61+BE61)*AO67*AO68 -> 0.2457123538 | BQ61: =0.5*(AO67-AO69)*(BE61-BD61)*AO67*AO68 -> 0 | BR61: =AO68*AO67^3/12+(0.5*AO67-AO69)^2*(BD61+BE61)*AO68*AO67 -> 0.006345274805 | BS61: =BQ61/BP61 -> 0 | BT61: =BR61-BP61*BS61^2 -> 0.006345274805 | BU61: =AR66/BP61+(BC61+BS61*AR66)*(0.5*AO67+BS61)/BT61 -> 1.675436328 | BV61: =AR66/BP61+(BC61+BS61*AR66)*(-0.5*AO67+BS61)/BT61 -> 0.1721712219 | BW61: =AR66*BT61/((BC61+AR66*BS61)*BP61)+(0.5*AO67+BS61) -> 0.6018470152
AN62: fck | AO62: =$N$7 -> 40 | AP62: MPa | AQ62: feff | AR62: =$Q$12 -> 1.760765659 | AT62: =BC62-AR64*BA62 -> 0.01159495974 | AU62: =BA62/BA61 -> 0.6674217351 | AV62: =IF(BL62*SQRT(4*ABS(BI62)/3)-BF62/3<=AO67,BC62/(BN62*AO68*AO67^2),BU62) -> 1.422270904 | AW62: =IF(BL62*SQRT(4*ABS(BI62)/3)-BF62/3<=AO67,0,BV62) -> 0.4253366458 | AX62: =BB62*(AZ62-AO69)*AV62/AZ62 -> 20.56046466 | AY62: =BB62*(AO67-AO69-AZ62)*AV62/AZ62 -> -8.4045809 | AZ62: =IF(BL62*SQRT(4*ABS(BI62)/3)-BF62/3<=AO67,BL62*SQRT(4*ABS(BI62)/3)-BF62/3,BW62) -> 0.7703880992 | BA62: =0.1*(AV62/(AZ62*BO62))*AO73^2 -> 0.0005265656383 | BB62: =AO70 -> 15.67705521 | BC62: =AR67+BA61*AR64 -> 0.01171448487 | BD62: =BB62*AO71/(AO67*AO68) -> 0.04169390177 | BE62: =BB62*AO72/(AO67*AO68) -> 0.04169390177 | BF62: =-6*AO67*(0.25-0.5*BC62/(AO67*AR66)) -> -0.6551761989 | BG62: =-6*AO67*(BD62*(0.5*AO67-AO69)-BE62*(0.5*AO67-AO69)-(BD62+BE62)*AO67*BC62/(AO67*AR66)) -> 0.01394325005 | BH62: =6*AO67*((BD62*AO69-BE62*(AO67-AO69))*(0.5*AO67-AO69)-(BD62*AO69+BE62*(AO67-AO69))*BC62/AR66) -> -0.01567946043 | BI62: -0.1291420338 | BJ62: 0.03346682578 | BK62: 1.873548658 | BL62: 1.086739307 | BM62: =AZ62/AO67 -> 1.426644628 | BN62: =0.5*BM62*(0.5-BM62/3)+BD62*(0.5-AO69/AO67)*(BM62-AO69/AO67)/BM62+BE62*(0.5-AO69/AO67)*(1-AO69/AO67-BM62)/BM62 -> 0.02628171342 | BO62: =IF(BL62*SQRT(4*ABS(BI62)/3)-BF62/3<=AO67,AO66*(1-AO65*AV62/AO64),AO66*(1-AO65*AV62/AO64-(1-AO65)*BV62/AO64)) -> 12621.84219 | BP62: =(1+BD62+BE62)*AO67*AO68 -> 0.2457123538 | BQ62: =0.5*(AO67-AO69)*(BE62-BD62)*AO67*AO68 -> 0 | BR62: =AO68*AO67^3/12+(0.5*AO67-AO69)^2*(BD62+BE62)*AO68*AO67 -> 0.006345274805 | BS62: =BQ62/BP62 -> 0 | BT62: =BR62-BP62*BS62^2 -> 0.006345274805 | BU62: =AR66/BP62+(BC62+BS62*AR66)*(0.5*AO67+BS62)/BT62 -> 1.422270904 | BV62: =AR66/BP62+(BC62+BS62*AR66)*(-0.5*AO67+BS62)/BT62 -> 0.4253366458 | BW62: =AR66*BT62/((BC62+AR66*BS62)*BP62)+(0.5*AO67+BS62) -> 0.7703880992
AN63: Es | AO63: 200000 | AP63: MPa | AQ63: Max_N | AR63: =(AO67*AO68+AO70*(AO71+AO72))*AO64/(1+(12*(AO64/AO66)/PI()^2)*(AO73/AO67)^2) -> 6.683130289 | AT63: =BC63-AR64*BA63 -> 0.01153600008 | AU63: =BA63/BA62 -> 0.9949794369 | AV63: =IF(BL63*SQRT(4*ABS(BI63)/3)-BF63/3<=AO67,BC63/(BN63*AO68*AO67^2),BU63) -> 1.419736557 | AW63: =IF(BL63*SQRT(4*ABS(BI63)/3)-BF63/3<=AO67,0,BV63) -> 0.4278709928 | AX63: =BB63*(AZ63-AO69)*AV63/AZ63 -> 20.52956269 | AY63: =BB63*(AO67-AO69-AZ63)*AV63/AZ63 -> -8.435482866 | AZ63: =IF(BL63*SQRT(4*ABS(BI63)/3)-BF63/3<=AO67,BL63*SQRT(4*ABS(BI63)/3)-BF63/3,BW63) -> 0.7729452141 | BA63: =0.1*(AV63/(AZ63*BO63))*AO73^2 -> 0.0005239219823 | BB63: =AO70 -> 15.67705521 | BC63: =AR67+BA62*AR64 -> 0.01165492513 | BD63: =BB63*AO71/(AO67*AO68) -> 0.04169390177 | BE63: =BB63*AO72/(AO67*AO68) -> 0.04169390177 | BF63: =-6*AO67*(0.25-0.5*BC63/(AO67*AR66)) -> -0.6559633667 | BG63: =-6*AO67*(BD63*(0.5*AO67-AO69)-BE63*(0.5*AO67-AO69)-(BD63+BE63)*AO67*BC63/(AO67*AR66)) -> 0.01387235864 | BH63: =6*AO67*((BD63*AO69-BE63*(AO67-AO69))*(0.5*AO67-AO69)-(BD63*AO69+BE63*(AO67-AO69))*BC63/AR66) -> -0.01566031976 | BI63: -0.1295569542 | BJ63: 0.0335347056 | BK63: 1.868337326 | BL63: 1.08627259 | BM63: =AZ63/AO67 -> 1.431380026 | BN63: =0.5*BM63*(0.5-BM63/3)+BD63*(0.5-AO69/AO67)*(BM63-AO69/AO67)/BM63+BE63*(0.5-AO69/AO67)*(1-AO69/AO67-BM63)/BM63 -> 0.02518067139 | BO63: =IF(BL63*SQRT(4*ABS(BI63)/3)-BF63/3<=AO67,AO66*(1-AO65*AV63/AO64),AO66*(1-AO65*AV63/AO64-(1-AO65)*BV63/AO64)) -> 12621.03389 | BP63: =(1+BD63+BE63)*AO67*AO68 -> 0.2457123538 | BQ63: =0.5*(AO67-AO69)*(BE63-BD63)*AO67*AO68 -> 0 | BR63: =AO68*AO67^3/12+(0.5*AO67-AO69)^2*(BD63+BE63)*AO68*AO67 -> 0.006345274805 | BS63: 0 | BT63: 0.006345274805 | BU63: =AR66/BP63+(BC63+BS63*AR66)*(0.5*AO67+BS63)/BT63 -> 1.419736557 | BV63: =AR66/BP63+(BC63+BS63*AR66)*(-0.5*AO67+BS63)/BT63 -> 0.4278709928 | BW63: =AR66*BT63/((BC63+AR66*BS63)*BP63)+(0.5*AO67+BS63) -> 0.7729452141
AN64: fcd | AO64: =AO62/AO60 -> 40 | AP64: MPa | AQ64: Nd | AR64: =INDEX(BZ47:CB56,Makro!H2,2)/1000+0.00001 -> 0.22699 | AS64: MN | AT64: =BC64-AR64*BA64 -> 0.01153540605 | AU64: 0.9999491577 | AV64: =IF(BL64*SQRT(4*ABS(BI64)/3)-BF64/3<=AO67,BC64/(BN64*AO68*AO67^2),BU64) -> 1.419711022 | AW64: =IF(BL64*SQRT(4*ABS(BI64)/3)-BF64/3<=AO67,0,BV64) -> 0.4278965272 | AX64: =BB64*(AZ64-AO69)*AV64/AZ64 -> 20.52925134 | AY64: =BB64*(AO67-AO69-AZ64)*AV64/AZ64 -> -8.435794213 | AZ64: =IF(BL64*SQRT(4*ABS(BI64)/3)-BF64/3<=AO67,BL64*SQRT(4*ABS(BI64)/3)-BF64/3,BW64) -> 0.7729711108 | BA64: =0.1*(AV64/(AZ64*BO64))*AO73^2 -> 0.0005238953449 | BB64: =AO70 -> 15.67705521 | BC64: =AR67+BA63*AR64 -> 0.01165432505 | BD64: =BB64*AO71/(AO67*AO68) -> 0.04169390177 | BE64: =BB64*AO72/(AO67*AO68) -> 0.04169390177 | BF64: =-6*AO67*(0.25-0.5*BC64/(AO67*AR66)) -> -0.6559712976 | BG64: =-6*AO67*(BD64*(0.5*AO67-AO69)-BE64*(0.5*AO67-AO69)-(BD64+BE64)*AO67*BC64/(AO67*AR66)) -> 0.01387164439 | BH64: =6*AO67*((BD64*AO69-BE64*(AO67-AO69))*(0.5*AO67-AO69)-(BD64*AO69+BE64*(AO67-AO69))*BC64/AR66) -> -0.01566012691 | BI64: -0.1295611367 | BJ64: 0.03353539062 | BK64: 1.868285018 | BL64: 1.086267903 | BM64: =AZ64/AO67 -> 1.431427983 | BN64: =0.5*BM64*(0.5-BM64/3)+BD64*(0.5-AO69/AO67)*(BM64-AO69/AO67)/BM64+BE64*(0.5-AO69/AO67)*(1-AO69/AO67-BM64)/BM64 -> 0.02516948353 | BO64: =IF(BL64*SQRT(4*ABS(BI64)/3)-BF64/3<=AO67,AO66*(1-AO65*AV64/AO64),AO66*(1-AO65*AV64/AO64-(1-AO65)*BV64/AO64)) -> 12621.02574 | BP64: =(1+BD64+BE64)*AO67*AO68 -> 0.2457123538 | BQ64: =0.5*(AO67-AO69)*(BE64-BD64)*AO67*AO68 -> 0 | BR64: =AO68*AO67^3/12+(0.5*AO67-AO69)^2*(BD64+BE64)*AO68*AO67 -> 0.006345274805 | BS64: 0 | BT64: 0.006345274805 | BU64: =AR66/BP64+(BC64+BS64*AR66)*(0.5*AO67+BS64)/BT64 -> 1.419711022 | BV64: =AR66/BP64+(BC64+BS64*AR66)*(-0.5*AO67+BS64)/BT64 -> 0.4278965272 | BW64: =AR66*BT64/((BC64+AR66*BS64)*BP64)+(0.5*AO67+BS64) -> 0.7729711108
AN65: k | AO65: 0 | AQ65: Nf | AR65: 0 | AS65: MN | AT65: =BC65-AR64*BA65 -> 0.01153540006 | AU65: 0.9999994877 | AV65: =IF(BL65*SQRT(4*ABS(BI65)/3)-BF65/3<=AO67,BC65/(BN65*AO68*AO67^2),BU65) -> 1.419710765 | AW65: =IF(BL65*SQRT(4*ABS(BI65)/3)-BF65/3<=AO67,0,BV65) -> 0.4278967845 | AX65: =BB65*(AZ65-AO69)*AV65/AZ65 -> 20.52924821 | AY65: =BB65*(AO67-AO69-AZ65)*AV65/AZ65 -> -8.43579735 | AZ65: =IF(BL65*SQRT(4*ABS(BI65)/3)-BF65/3<=AO67,BL65*SQRT(4*ABS(BI65)/3)-BF65/3,BW65) -> 0.7729713718 | BA65: =0.1*(AV65/(AZ65*BO65))*AO73^2 -> 0.0005238950765 | BB65: =AO70 -> 15.67705521 | BC65: =AR67+BA64*AR64 -> 0.011654319 | BD65: =BB65*AO71/(AO67*AO68) -> 0.04169390177 | BE65: =BB65*AO72/(AO67*AO68) -> 0.04169390177 | BF65: =-6*AO67*(0.25-0.5*BC65/(AO67*AR66)) -> -0.6559713775 | BG65: =-6*AO67*(BD65*(0.5*AO67-AO69)-BE65*(0.5*AO67-AO69)-(BD65+BE65)*AO67*BC65/(AO67*AR66)) -> 0.01387163719 | BH65: =6*AO67*((BD65*AO69-BE65*(AO67-AO69))*(0.5*AO67-AO69)-(BD65*AO69+BE65*(AO67-AO69))*BC65/AR66) -> -0.01566012496 | BI65: -0.1295611789 | BJ65: 0.03353539752 | BK65: 1.868284491 | BL65: 1.086267856 | BM65: =AZ65/AO67 -> 1.431428466 | BN65: =0.5*BM65*(0.5-BM65/3)+BD65*(0.5-AO69/AO67)*(BM65-AO69/AO67)/BM65+BE65*(0.5-AO69/AO67)*(1-AO69/AO67-BM65)/BM65 -> 0.02516937079 | BO65: =IF(BL65*SQRT(4*ABS(BI65)/3)-BF65/3<=AO67,AO66*(1-AO65*AV65/AO64),AO66*(1-AO65*AV65/AO64-(1-AO65)*BV65/AO64)) -> 12621.02566 | BP65: =(1+BD65+BE65)*AO67*AO68 -> 0.2457123538 | BQ65: =0.5*(AO67-AO69)*(BE65-BD65)*AO67*AO68 -> 0 | BR65: =AO68*AO67^3/12+(0.5*AO67-AO69)^2*(BD65+BE65)*AO68*AO67 -> 0.006345274805 | BS65: 0 | BT65: 0.006345274805 | BU65: =AR66/BP65+(BC65+BS65*AR66)*(0.5*AO67+BS65)/BT65 -> 1.419710765 | BV65: =AR66/BP65+(BC65+BS65*AR66)*(-0.5*AO67+BS65)/BT65 -> 0.4278967845 | BW65: =AR66*BT65/((BC65+AR66*BS65)*BP65)+(0.5*AO67+BS65) -> 0.7729713718
AN66: Ecm | AO66: =(1000*22*((AO64+8)/10)^0.3)/(1+$Q$12*$Q$13) -> 12757.49797 | AP66: MPa | AQ66: N | AR66: =AR65+AR64 -> 0.22699 | AS66: MN | AT66: =BC66-AR64*BA66 -> 0.0115354 | AU66: 0.9999999948 | AV66: =IF(BL66*SQRT(4*ABS(BI66)/3)-BF66/3<=AO67,BC66/(BN66*AO68*AO67^2),BU66) -> 1.419710763 | AW66: =IF(BL66*SQRT(4*ABS(BI66)/3)-BF66/3<=AO67,0,BV66) -> 0.4278967871 | AX66: =BB66*(AZ66-AO69)*AV66/AZ66 -> 20.52924818 | AY66: =BB66*(AO67-AO69-AZ66)*AV66/AZ66 -> -8.435797382 | AZ66: =IF(BL66*SQRT(4*ABS(BI66)/3)-BF66/3<=AO67,BL66*SQRT(4*ABS(BI66)/3)-BF66/3,BW66) -> 0.7729713744 | BA66: =0.1*(AV66/(AZ66*BO66))*AO73^2 -> 0.0005238950738 | BB66: =AO70 -> 15.67705521 | BC66: =AR67+BA65*AR64 -> 0.01165431894 | BD66: =BB66*AO71/(AO67*AO68) -> 0.04169390177 | BE66: =BB66*AO72/(AO67*AO68) -> 0.04169390177 | BF66: =-6*AO67*(0.25-0.5*BC66/(AO67*AR66)) -> -0.6559713783 | BG66: =-6*AO67*(BD66*(0.5*AO67-AO69)-BE66*(0.5*AO67-AO69)-(BD66+BE66)*AO67*BC66/(AO67*AR66)) -> 0.01387163712 | BH66: =6*AO67*((BD66*AO69-BE66*(AO67-AO69))*(0.5*AO67-AO69)-(BD66*AO69+BE66*(AO67-AO69))*BC66/AR66) -> -0.01566012494 | BI66: -0.1295611793 | BJ66: 0.03353539759 | BK66: 1.868284486 | BL66: 1.086267856 | BM66: =AZ66/AO67 -> 1.431428471 | BN66: =0.5*BM66*(0.5-BM66/3)+BD66*(0.5-AO69/AO67)*(BM66-AO69/AO67)/BM66+BE66*(0.5-AO69/AO67)*(1-AO69/AO67-BM66)/BM66 -> 0.02516936966 | BO66: =IF(BL66*SQRT(4*ABS(BI66)/3)-BF66/3<=AO67,AO66*(1-AO65*AV66/AO64),AO66*(1-AO65*AV66/AO64-(1-AO65)*BV66/AO64)) -> 12621.02566 | BP66: =(1+BD66+BE66)*AO67*AO68 -> 0.2457123538 | BQ66: =0.5*(AO67-AO69)*(BE66-BD66)*AO67*AO68 -> 0 | BR66: =AO68*AO67^3/12+(0.5*AO67-AO69)^2*(BD66+BE66)*AO68*AO67 -> 0.006345274805 | BS66: 0 | BT66: 0.006345274805 | BU66: =AR66/BP66+(BC66+BS66*AR66)*(0.5*AO67+BS66)/BT66 -> 1.419710763 | BV66: =AR66/BP66+(BC66+BS66*AR66)*(-0.5*AO67+BS66)/BT66 -> 0.4278967871 | BW66: =AR66*BT66/((BC66+AR66*BS66)*BP66)+(0.5*AO67+BS66) -> 0.7729713744
AN67: h | AO67: =$N$12/1000 -> 0.54 | AP67: m | AQ67: Mo | AR67: =INDEX(BZ47:CB56,Makro!H2,3)/1000 -> 0.0115354 | AS67: MNm | AT67: =BC67-AR64*BA67 -> 0.0115354 | AU67: 0.9999999999 | AV67: =IF(BL67*SQRT(4*ABS(BI67)/3)-BF67/3<=AO67,BC67/(BN67*AO68*AO67^2),BU67) -> 1.419710763 | AW67: =IF(BL67*SQRT(4*ABS(BI67)/3)-BF67/3<=AO67,0,BV67) -> 0.4278967871 | AX67: =BB67*(AZ67-AO69)*AV67/AZ67 -> 20.52924818 | AY67: =BB67*(AO67-AO69-AZ67)*AV67/AZ67 -> -8.435797382 | AZ67: =IF(BL67*SQRT(4*ABS(BI67)/3)-BF67/3<=AO67,BL67*SQRT(4*ABS(BI67)/3)-BF67/3,BW67) -> 0.7729713744 | BA67: =0.1*(AV67/(AZ67*BO67))*AO73^2 -> 0.0005238950738 | BB67: =AO70 -> 15.67705521 | BC67: =AR67+BA66*AR64 -> 0.01165431894 | BD67: =BB67*AO71/(AO67*AO68) -> 0.04169390177 | BE67: =BB67*AO72/(AO67*AO68) -> 0.04169390177 | BF67: =-6*AO67*(0.25-0.5*BC67/(AO67*AR66)) -> -0.6559713783 | BG67: =-6*AO67*(BD67*(0.5*AO67-AO69)-BE67*(0.5*AO67-AO69)-(BD67+BE67)*AO67*BC67/(AO67*AR66)) -> 0.01387163712 | BH67: =6*AO67*((BD67*AO69-BE67*(AO67-AO69))*(0.5*AO67-AO69)-(BD67*AO69+BE67*(AO67-AO69))*BC67/AR66) -> -0.01566012494 | BI67: -0.1295611793 | BJ67: 0.03353539759 | BK67: 1.868284486 | BL67: 1.086267856 | BM67: =AZ67/AO67 -> 1.431428471 | BN67: =0.5*BM67*(0.5-BM67/3)+BD67*(0.5-AO69/AO67)*(BM67-AO69/AO67)/BM67+BE67*(0.5-AO69/AO67)*(1-AO69/AO67-BM67)/BM67 -> 0.02516936965 | BO67: =IF(BL67*SQRT(4*ABS(BI67)/3)-BF67/3<=AO67,AO66*(1-AO65*AV67/AO64),AO66*(1-AO65*AV67/AO64-(1-AO65)*BV67/AO64)) -> 12621.02566 | BP67: =(1+BD67+BE67)*AO67*AO68 -> 0.2457123538 | BQ67: =0.5*(AO67-AO69)*(BE67-BD67)*AO67*AO68 -> 0 | BR67: =AO68*AO67^3/12+(0.5*AO67-AO69)^2*(BD67+BE67)*AO68*AO67 -> 0.006345274805 | BS67: 0 | BT67: 0.006345274805 | BU67: =AR66/BP67+(BC67+BS67*AR66)*(0.5*AO67+BS67)/BT67 -> 1.419710763 | BV67: =AR66/BP67+(BC67+BS67*AR66)*(-0.5*AO67+BS67)/BT67 -> 0.4278967871 | BW67: =AR66*BT67/((BC67+AR66*BS67)*BP67)+(0.5*AO67+BS67) -> 0.7729713744
AN68: b | AO68: =$N$13/1000 -> 0.42 | AP68: m | AQ68: u | AR68: =BA73 -> 0.0005238950738 | AS68: =AR68-AR54 -> 0.0003180203324 | AT68: =BC68-AR64*BA68 -> 0.0115354 | AU68: 1 | AV68: =IF(BL68*SQRT(4*ABS(BI68)/3)-BF68/3<=AO67,BC68/(BN68*AO68*AO67^2),BU68) -> 1.419710763 | AW68: =IF(BL68*SQRT(4*ABS(BI68)/3)-BF68/3<=AO67,0,BV68) -> 0.4278967871 | AX68: =BB68*(AZ68-AO69)*AV68/AZ68 -> 20.52924818 | AY68: =BB68*(AO67-AO69-AZ68)*AV68/AZ68 -> -8.435797382 | AZ68: =IF(BL68*SQRT(4*ABS(BI68)/3)-BF68/3<=AO67,BL68*SQRT(4*ABS(BI68)/3)-BF68/3,BW68) -> 0.7729713744 | BA68: =0.1*(AV68/(AZ68*BO68))*AO73^2 -> 0.0005238950738 | BB68: =AO70 -> 15.67705521 | BC68: =AR67+BA67*AR64 -> 0.01165431894 | BD68: =BB68*AO71/(AO67*AO68) -> 0.04169390177 | BE68: =BB68*AO72/(AO67*AO68) -> 0.04169390177 | BF68: =-6*AO67*(0.25-0.5*BC68/(AO67*AR66)) -> -0.6559713783 | BG68: =-6*AO67*(BD68*(0.5*AO67-AO69)-BE68*(0.5*AO67-AO69)-(BD68+BE68)*AO67*BC68/(AO67*AR66)) -> 0.01387163712 | BH68: =6*AO67*((BD68*AO69-BE68*(AO67-AO69))*(0.5*AO67-AO69)-(BD68*AO69+BE68*(AO67-AO69))*BC68/AR66) -> -0.01566012494 | BI68: -0.1295611793 | BJ68: 0.03353539759 | BK68: 1.868284486 | BL68: 1.086267856 | BM68: =AZ68/AO67 -> 1.431428471 | BN68: =0.5*BM68*(0.5-BM68/3)+BD68*(0.5-AO69/AO67)*(BM68-AO69/AO67)/BM68+BE68*(0.5-AO69/AO67)*(1-AO69/AO67-BM68)/BM68 -> 0.02516936965 | BO68: =IF(BL68*SQRT(4*ABS(BI68)/3)-BF68/3<=AO67,AO66*(1-AO65*AV68/AO64),AO66*(1-AO65*AV68/AO64-(1-AO65)*BV68/AO64)) -> 12621.02566 | BP68: =(1+BD68+BE68)*AO67*AO68 -> 0.2457123538 | BQ68: =0.5*(AO67-AO69)*(BE68-BD68)*AO67*AO68 -> 0 | BR68: =AO68*AO67^3/12+(0.5*AO67-AO69)^2*(BD68+BE68)*AO68*AO67 -> 0.006345274805 | BS68: 0 | BT68: 0.006345274805 | BU68: =AR66/BP68+(BC68+BS68*AR66)*(0.5*AO67+BS68)/BT68 -> 1.419710763 | BV68: =AR66/BP68+(BC68+BS68*AR66)*(-0.5*AO67+BS68)/BT68 -> 0.4278967871 | BW68: =AR66*BT68/((BC68+AR66*BS68)*BP68)+(0.5*AO67+BS68) -> 0.7729713744
AN69: a | AO69: =$N$14/1000 -> 0.06 | AP69: m | AQ69: ec,max | AR69: =1000*AV73/BO73 -> 0.1124877487 | AS69: o/oo | AT69: =BC69-AR64*BA69 -> 0.0115354 | AU69: 1 | AV69: =IF(BL69*SQRT(4*ABS(BI69)/3)-BF69/3<=AO67,BC69/(BN69*AO68*AO67^2),BU69) -> 1.419710763 | AW69: =IF(BL69*SQRT(4*ABS(BI69)/3)-BF69/3<=AO67,0,BV69) -> 0.4278967871 | AX69: =BB69*(AZ69-AO69)*AV69/AZ69 -> 20.52924818 | AY69: =BB69*(AO67-AO69-AZ69)*AV69/AZ69 -> -8.435797382 | AZ69: =IF(BL69*SQRT(4*ABS(BI69)/3)-BF69/3<=AO67,BL69*SQRT(4*ABS(BI69)/3)-BF69/3,BW69) -> 0.7729713744 | BA69: =0.1*(AV69/(AZ69*BO69))*AO73^2 -> 0.0005238950738 | BB69: =AO70 -> 15.67705521 | BC69: =AR67+BA68*AR64 -> 0.01165431894 | BD69: =BB69*AO71/(AO67*AO68) -> 0.04169390177 | BE69: =BB69*AO72/(AO67*AO68) -> 0.04169390177 | BF69: =-6*AO67*(0.25-0.5*BC69/(AO67*AR66)) -> -0.6559713783 | BG69: =-6*AO67*(BD69*(0.5*AO67-AO69)-BE69*(0.5*AO67-AO69)-(BD69+BE69)*AO67*BC69/(AO67*AR66)) -> 0.01387163712 | BH69: =6*AO67*((BD69*AO69-BE69*(AO67-AO69))*(0.5*AO67-AO69)-(BD69*AO69+BE69*(AO67-AO69))*BC69/AR66) -> -0.01566012494 | BI69: -0.1295611793 | BJ69: 0.03353539759 | BK69: 1.868284486 | BL69: 1.086267856 | BM69: =AZ69/AO67 -> 1.431428471 | BN69: =0.5*BM69*(0.5-BM69/3)+BD69*(0.5-AO69/AO67)*(BM69-AO69/AO67)/BM69+BE69*(0.5-AO69/AO67)*(1-AO69/AO67-BM69)/BM69 -> 0.02516936965 | BO69: =IF(BL69*SQRT(4*ABS(BI69)/3)-BF69/3<=AO67,AO66*(1-AO65*AV69/AO64),AO66*(1-AO65*AV69/AO64-(1-AO65)*BV69/AO64)) -> 12621.02566 | BP69: =(1+BD69+BE69)*AO67*AO68 -> 0.2457123538 | BQ69: =0.5*(AO67-AO69)*(BE69-BD69)*AO67*AO68 -> 0 | BR69: =AO68*AO67^3/12+(0.5*AO67-AO69)^2*(BD69+BE69)*AO68*AO67 -> 0.006345274805 | BS69: 0 | BT69: 0.006345274805 | BU69: =AR66/BP69+(BC69+BS69*AR66)*(0.5*AO67+BS69)/BT69 -> 1.419710763 | BV69: =AR66/BP69+(BC69+BS69*AR66)*(-0.5*AO67+BS69)/BT69 -> 0.4278967871 | BW69: =AR66*BT69/((BC69+AR66*BS69)*BP69)+(0.5*AO67+BS69) -> 0.7729713744
AN70: a | AO70: =AO63/AO66 -> 15.67705521 | AQ70: ec,min | AR70: =1000*AW73/BO73 -> 0.03390348761 | AS70: o/oo | AT70: =BC70-AR64*BA70 -> 0.0115354 | AU70: =BA70/BA69 -> 1 | AV70: =IF(BL70*SQRT(4*ABS(BI70)/3)-BF70/3<=AO67,BC70/(BN70*AO68*AO67^2),BU70) -> 1.419710763 | AW70: =IF(BL70*SQRT(4*ABS(BI70)/3)-BF70/3<=AO67,0,BV70) -> 0.4278967871 | AX70: =BB70*(AZ70-AO69)*AV70/AZ70 -> 20.52924818 | AY70: =BB70*(AO67-AO69-AZ70)*AV70/AZ70 -> -8.435797382 | AZ70: =IF(BL70*SQRT(4*ABS(BI70)/3)-BF70/3<=AO67,BL70*SQRT(4*ABS(BI70)/3)-BF70/3,BW70) -> 0.7729713744 | BA70: =0.1*(AV70/(AZ70*BO70))*AO73^2 -> 0.0005238950738 | BB70: =AO70 -> 15.67705521 | BC70: =AR67+BA69*AR64 -> 0.01165431894 | BD70: =BB70*AO71/(AO67*AO68) -> 0.04169390177 | BE70: =BB70*AO72/(AO67*AO68) -> 0.04169390177 | BF70: =-6*AO67*(0.25-0.5*BC70/(AO67*AR66)) -> -0.6559713783 | BG70: =-6*AO67*(BD70*(0.5*AO67-AO69)-BE70*(0.5*AO67-AO69)-(BD70+BE70)*AO67*BC70/(AO67*AR66)) -> 0.01387163712 | BH70: =6*AO67*((BD70*AO69-BE70*(AO67-AO69))*(0.5*AO67-AO69)-(BD70*AO69+BE70*(AO67-AO69))*BC70/AR66) -> -0.01566012494 | BI70: -0.1295611793 | BJ70: 0.03353539759 | BK70: 1.868284486 | BL70: 1.086267856 | BM70: =AZ70/AO67 -> 1.431428471 | BN70: =0.5*BM70*(0.5-BM70/3)+BD70*(0.5-AO69/AO67)*(BM70-AO69/AO67)/BM70+BE70*(0.5-AO69/AO67)*(1-AO69/AO67-BM70)/BM70 -> 0.02516936965 | BO70: =IF(BL70*SQRT(4*ABS(BI70)/3)-BF70/3<=AO67,AO66*(1-AO65*AV70/AO64),AO66*(1-AO65*AV70/AO64-(1-AO65)*BV70/AO64)) -> 12621.02566 | BP70: =(1+BD70+BE70)*AO67*AO68 -> 0.2457123538 | BQ70: =0.5*(AO67-AO69)*(BE70-BD70)*AO67*AO68 -> 0 | BR70: =AO68*AO67^3/12+(0.5*AO67-AO69)^2*(BD70+BE70)*AO68*AO67 -> 0.006345274805 | BS70: 0 | BT70: 0.006345274805 | BU70: =AR66/BP70+(BC70+BS70*AR66)*(0.5*AO67+BS70)/BT70 -> 1.419710763 | BV70: =AR66/BP70+(BC70+BS70*AR66)*(-0.5*AO67+BS70)/BT70 -> 0.4278967871 | BW70: =AR66*BT70/((BC70+AR66*BS70)*BP70)+(0.5*AO67+BS70) -> 0.7729713744
AN71: Ac | AO71: =$AP$40/1000000 -> 0.0006031857895 | AP71: m2 | AQ71: sa,c | AR71: =AX73 -> 20.52924818 | AS71: MPa | AT71: =BC71-AR64*BA71 -> 0.0115354 | AU71: =BA71/BA70 -> 1 | AV71: =IF(BL71*SQRT(4*ABS(BI71)/3)-BF71/3<=AO67,BC71/(BN71*AO68*AO67^2),BU71) -> 1.419710763 | AW71: =IF(BL71*SQRT(4*ABS(BI71)/3)-BF71/3<=AO67,0,BV71) -> 0.4278967871 | AX71: =BB71*(AZ71-AO69)*AV71/AZ71 -> 20.52924818 | AY71: =BB71*(AO67-AO69-AZ71)*AV71/AZ71 -> -8.435797382 | AZ71: =IF(BL71*SQRT(4*ABS(BI71)/3)-BF71/3<=AO67,BL71*SQRT(4*ABS(BI71)/3)-BF71/3,BW71) -> 0.7729713744 | BA71: =0.1*(AV71/(AZ71*BO71))*AO73^2 -> 0.0005238950738 | BB71: =AO70 -> 15.67705521 | BC71: =AR67+BA70*AR64 -> 0.01165431894 | BD71: =BB71*AO71/(AO67*AO68) -> 0.04169390177 | BE71: =BB71*AO72/(AO67*AO68) -> 0.04169390177 | BF71: =-6*AO67*(0.25-0.5*BC71/(AO67*AR66)) -> -0.6559713783 | BG71: =-6*AO67*(BD71*(0.5*AO67-AO69)-BE71*(0.5*AO67-AO69)-(BD71+BE71)*AO67*BC71/(AO67*AR66)) -> 0.01387163712 | BH71: =6*AO67*((BD71*AO69-BE71*(AO67-AO69))*(0.5*AO67-AO69)-(BD71*AO69+BE71*(AO67-AO69))*BC71/AR66) -> -0.01566012494 | BI71: -0.1295611793 | BJ71: 0.03353539759 | BK71: 1.868284486 | BL71: 1.086267856 | BM71: =AZ71/AO67 -> 1.431428471 | BN71: =0.5*BM71*(0.5-BM71/3)+BD71*(0.5-AO69/AO67)*(BM71-AO69/AO67)/BM71+BE71*(0.5-AO69/AO67)*(1-AO69/AO67-BM71)/BM71 -> 0.02516936965 | BO71: =IF(BL71*SQRT(4*ABS(BI71)/3)-BF71/3<=AO67,AO66*(1-AO65*AV71/AO64),AO66*(1-AO65*AV71/AO64-(1-AO65)*BV71/AO64)) -> 12621.02566 | BP71: =(1+BD71+BE71)*AO67*AO68 -> 0.2457123538 | BQ71: =0.5*(AO67-AO69)*(BE71-BD71)*AO67*AO68 -> 0 | BR71: =AO68*AO67^3/12+(0.5*AO67-AO69)^2*(BD71+BE71)*AO68*AO67 -> 0.006345274805 | BS71: 0 | BT71: 0.006345274805 | BU71: =AR66/BP71+(BC71+BS71*AR66)*(0.5*AO67+BS71)/BT71 -> 1.419710763 | BV71: =AR66/BP71+(BC71+BS71*AR66)*(-0.5*AO67+BS71)/BT71 -> 0.4278967871 | BW71: =AR66*BT71/((BC71+AR66*BS71)*BP71)+(0.5*AO67+BS71) -> 0.7729713744
AN72: At | AO72: =$AP$41/1000000 -> 0.0006031857895 | AP72: m2 | AQ72: sa,t | AR72: =AY73 -> -8.435797382 | AS72: MPa | AT72: =BC72-AR64*BA72 -> 0.0115354 | AU72: =BA72/BA71 -> 1 | AV72: =IF(BL72*SQRT(4*ABS(BI72)/3)-BF72/3<=AO67,BC72/(BN72*AO68*AO67^2),BU72) -> 1.419710763 | AW72: =IF(BL72*SQRT(4*ABS(BI72)/3)-BF72/3<=AO67,0,BV72) -> 0.4278967871 | AX72: =BB72*(AZ72-AO69)*AV72/AZ72 -> 20.52924818 | AY72: =BB72*(AO67-AO69-AZ72)*AV72/AZ72 -> -8.435797382 | AZ72: =IF(BL72*SQRT(4*ABS(BI72)/3)-BF72/3<=AO67,BL72*SQRT(4*ABS(BI72)/3)-BF72/3,BW72) -> 0.7729713744 | BA72: =0.1*(AV72/(AZ72*BO72))*AO73^2 -> 0.0005238950738 | BB72: =AO70 -> 15.67705521 | BC72: =AR67+BA71*AR64 -> 0.01165431894 | BD72: =BB72*AO71/(AO67*AO68) -> 0.04169390177 | BE72: =BB72*AO72/(AO67*AO68) -> 0.04169390177 | BF72: =-6*AO67*(0.25-0.5*BC72/(AO67*AR66)) -> -0.6559713783 | BG72: =-6*AO67*(BD72*(0.5*AO67-AO69)-BE72*(0.5*AO67-AO69)-(BD72+BE72)*AO67*BC72/(AO67*AR66)) -> 0.01387163712 | BH72: =6*AO67*((BD72*AO69-BE72*(AO67-AO69))*(0.5*AO67-AO69)-(BD72*AO69+BE72*(AO67-AO69))*BC72/AR66) -> -0.01566012494 | BI72: -0.1295611793 | BJ72: 0.03353539759 | BK72: 1.868284486 | BL72: 1.086267856 | BM72: =AZ72/AO67 -> 1.431428471 | BN72: =0.5*BM72*(0.5-BM72/3)+BD72*(0.5-AO69/AO67)*(BM72-AO69/AO67)/BM72+BE72*(0.5-AO69/AO67)*(1-AO69/AO67-BM72)/BM72 -> 0.02516936965 | BO72: =IF(BL72*SQRT(4*ABS(BI72)/3)-BF72/3<=AO67,AO66*(1-AO65*AV72/AO64),AO66*(1-AO65*AV72/AO64-(1-AO65)*BV72/AO64)) -> 12621.02566 | BP72: =(1+BD72+BE72)*AO67*AO68 -> 0.2457123538 | BQ72: =0.5*(AO67-AO69)*(BE72-BD72)*AO67*AO68 -> 0 | BR72: =AO68*AO67^3/12+(0.5*AO67-AO69)^2*(BD72+BE72)*AO68*AO67 -> 0.006345274805 | BS72: 0 | BT72: 0.006345274805 | BU72: =AR66/BP72+(BC72+BS72*AR66)*(0.5*AO67+BS72)/BT72 -> 1.419710763 | BV72: =AR66/BP72+(BC72+BS72*AR66)*(-0.5*AO67+BS72)/BT72 -> 0.4278967871 | BW72: =AR66*BT72/((BC72+AR66*BS72)*BP72)+(0.5*AO67+BS72) -> 0.7729713744
AN73: L | AO73: =$N$11/1000 -> 6 | AP73: m | AQ73: hc | AR73: =AZ73 -> 0.7729713744 | AS73: m | AT73: =BC73-AR64*BA73 -> 0.0115354 | AU73: =BA73/BA72 -> 1 | AV73: =IF(BL73*SQRT(4*ABS(BI73)/3)-BF73/3<=AO67,BC73/(BN73*AO68*AO67^2),BU73) -> 1.419710763 | AW73: =IF(BL73*SQRT(4*ABS(BI73)/3)-BF73/3<=AO67,0,BV73) -> 0.4278967871 | AX73: =BB73*(AZ73-AO69)*AV73/AZ73 -> 20.52924818 | AY73: =BB73*(AO67-AO69-AZ73)*AV73/AZ73 -> -8.435797382 | AZ73: =IF(BL73*SQRT(4*ABS(BI73)/3)-BF73/3<=AO67,BL73*SQRT(4*ABS(BI73)/3)-BF73/3,BW73) -> 0.7729713744 | BA73: =0.1*(AV73/(AZ73*BO73))*AO73^2 -> 0.0005238950738 | BB73: =AO70 -> 15.67705521 | BC73: =AR67+BA72*AR64 -> 0.01165431894 | BD73: =BB73*AO71/(AO67*AO68) -> 0.04169390177 | BE73: =BB73*AO72/(AO67*AO68) -> 0.04169390177 | BF73: =-6*AO67*(0.25-0.5*BC73/(AO67*AR66)) -> -0.6559713783 | BG73: =-6*AO67*(BD73*(0.5*AO67-AO69)-BE73*(0.5*AO67-AO69)-(BD73+BE73)*AO67*BC73/(AO67*AR66)) -> 0.01387163712 | BH73: =6*AO67*((BD73*AO69-BE73*(AO67-AO69))*(0.5*AO67-AO69)-(BD73*AO69+BE73*(AO67-AO69))*BC73/AR66) -> -0.01566012494 | BI73: -0.1295611793 | BJ73: 0.03353539759 | BK73: 1.868284486 | BL73: 1.086267856 | BM73: =AZ73/AO67 -> 1.431428471 | BN73: =0.5*BM73*(0.5-BM73/3)+BD73*(0.5-AO69/AO67)*(BM73-AO69/AO67)/BM73+BE73*(0.5-AO69/AO67)*(1-AO69/AO67-BM73)/BM73 -> 0.02516936965 | BO73: =IF(BL73*SQRT(4*ABS(BI73)/3)-BF73/3<=AO67,AO66*(1-AO65*AV73/AO64),AO66*(1-AO65*AV73/AO64-(1-AO65)*BV73/AO64)) -> 12621.02566 | BP73: =(1+BD73+BE73)*AO67*AO68 -> 0.2457123538 | BQ73: =0.5*(AO67-AO69)*(BE73-BD73)*AO67*AO68 -> 0 | BR73: =AO68*AO67^3/12+(0.5*AO67-AO69)^2*(BD73+BE73)*AO68*AO67 -> 0.006345274805 | BS73: 0 | BT73: 0.006345274805 | BU73: =AR66/BP73+(BC73+BS73*AR66)*(0.5*AO67+BS73)/BT73 -> 1.419710763 | BV73: =AR66/BP73+(BC73+BS73*AR66)*(-0.5*AO67+BS73)/BT73 -> 0.4278967871 | BW73: =AR66*BT73/((BC73+AR66*BS73)*BP73)+(0.5*AO67+BS73) -> 0.7729713744

Sheet firsidig
D2: =IF(Brand!N19=0,0,Brand!AU20) -> 1 | K2: Q | M2: y | N2: Q-3 | V2: Q-4
L3: Punkt | O3: 1 | P3: 2 | Q3: 3 | R3: Midte | S3: 4 | T3: 5 | U3: 6
K4: x | O4: =$E$16/(4*$E$19)+(O3-1)*$E$16/(2*$E$19) -> 0.035 | P4: =$E$16/(4*$E$19)+(P3-1)*$E$16/(2*$E$19) -> 0.105 | Q4: =$E$16/(4*$E$19)+(Q3-1)*$E$16/(2*$E$19) -> 0.175 | R4: =0.5*E16 -> 0.21 | S4: =$E$16/(4*$E$19)+(S3-1)*$E$16/(2*$E$19) -> 0.245 | T4: =$E$16/(4*$E$19)+(T3-1)*$E$16/(2*$E$19) -> 0.315 | U4: =$E$16/(4*$E$19)+(U3-1)*$E$16/(2*$E$19) -> 0.385
K5: Q-1 | O5: =MAX(312*LOG10(8*$E$17+1)*EXP(-1.9*O4*$E$18/SQRT($E$17))*SIN(PI()/2-O4*$E$18/SQRT($E$17)),0)*$B$6 -> 437.3601915 | P5: =MAX(312*LOG10(8*$E$17+1)*EXP(-1.9*P4*$E$18/SQRT($E$17))*SIN(PI()/2-P4*$E$18/SQRT($E$17)),0)*$B$6 -> 55.01143394 | Q5: =MAX(312*LOG10(8*$E$17+1)*EXP(-1.9*Q4*$E$18/SQRT($E$17))*SIN(PI()/2-Q4*$E$18/SQRT($E$17)),0)*$B$6 -> 0 | R5: 0 | S5: 0 | T5: 0 | U5: 0 | V5: =MAX(312*LOG10(8*$E$17+1)*EXP(-1.9*($E$16)*$E$18/SQRT($E$17))*SIN(PI()/2-($E$16)*$E$18/SQRT($E$17)),0) -> 0
B6: =IF(Brand!N19=0,0,Brand!AU22) -> 1 | F6: =IF(Brand!N19=0,0,Brand!AU22) -> 1 | L6: 1 | M6: =$E$15/(4*$E$19)+(L6-1)*$E$15/(2*$E$19) -> 0.045 | N6: =MAX(312*LOG10(8*$E$17+1)*EXP(-1.9*M6*$E$18/SQRT($E$17))*SIN(PI()/2-M6*$E$18/SQRT($E$17)),0)*$D$2 -> 343.3275459 | O6: =MAX(((O$5+O$13)*$E$20/($E$20+$V$5))*(1-($N6+$V6)/$E$20)+$N6+$V6,20) -> 619.3451965 | P6: =MAX(((P$5+P$13)*$E$20/($E$20+$V$5))*(1-($N6+$V6)/$E$20)+$N6+$V6,20) -> 378.0644459 | Q6: 343.3495428 | R6: 343.3495428 | S6: 343.3495428 | T6: 378.0644459 | U6: 619.3451965 | V6: =MAX(312*LOG10(8*$E$17+1)*EXP(-1.9*($E$15-M6)*$E$18/SQRT($E$17))*SIN(PI()/2-($E$15-M6)*$E$18/SQRT($E$17)),0)*$D$11 -> 0.02199684737
L7: 2 | M7: =$E$15/(4*$E$19)+(L7-1)*$E$15/(2*$E$19) -> 0.135 | N7: =MAX(312*LOG10(8*$E$17+1)*EXP(-1.9*M7*$E$18/SQRT($E$17))*SIN(PI()/2-M7*$E$18/SQRT($E$17)),0)*$D$2 -> 11.34164955 | O7: 443.3715877 | P7: 65.68264095 | Q7: 20 | R7: 20 | S7: 20 | T7: 65.68264095 | U7: 443.3715877 | V7: =MAX(312*LOG10(8*$E$17+1)*EXP(-1.9*($E$15-M7)*$E$18/SQRT($E$17))*SIN(PI()/2-($E$15-M7)*$E$18/SQRT($E$17)),0)*$D$11 -> 0
L8: 3 | M8: =$E$15/(4*$E$19)+(L8-1)*$E$15/(2*$E$19) -> 0.225 | N8: 0 | O8: 437.3601915 | P8: 55.01143394 | Q8: 20 | R8: 20 | S8: 20 | T8: 55.01143394 | U8: 437.3601915 | V8: 0
L9: Midte | M9: =0.5*E15 -> 0.27 | N9: 0 | O9: 437.3601915 | P9: 55.01143394 | Q9: 20 | R9: 20 | S9: 20 | T9: 55.01143394 | U9: 437.3601915 | V9: 0
L10: 4 | M10: =$E$15/(4*$E$19)+(L10-1)*$E$15/(2*$E$19) -> 0.315 | N10: 0 | O10: 437.3601915 | P10: 55.01143394 | Q10: 20 | R10: 20 | S10: 20 | T10: 55.01143394 | U10: 437.3601915 | V10: 0
D11: =IF(Brand!N19=0,0,Brand!AU21) -> 1 | H11: =VLOOKUP(600,Bet,5) -> 7 | L11: 5 | M11: =$E$15/(4*$E$19)+(L11-1)*$E$15/(2*$E$19) -> 0.405 | N11: 0 | O11: 443.3715877 | P11: 65.68264095 | Q11: 20 | R11: 20 | S11: 20 | T11: 65.68264095 | U11: 443.3715877 | V11: 11.34164955
L12: 6 | M12: =$E$15/(4*$E$19)+(L12-1)*$E$15/(2*$E$19) -> 0.495 | N12: 0.02199684737 | O12: 619.3451965 | P12: 378.0644459 | Q12: 343.3495428 | R12: 343.3495428 | S12: 343.3495428 | T12: 378.0644459 | U12: 619.3451965 | V12: 343.3275459
B13: Betontværsnit | K13: Q-2 | M13: =E15-E27 -> 0.4954394665 | O13: =MAX(312*LOG10(8*$E$17+1)*EXP(-1.9*($E$16-O4)*$E$18/SQRT($E$17))*SIN(PI()/2-($E$16-O4)*$E$18/SQRT($E$17)),0)*$F$6 -> 0 | P13: =MAX(312*LOG10(8*$E$17+1)*EXP(-1.9*($E$16-P4)*$E$18/SQRT($E$17))*SIN(PI()/2-($E$16-P4)*$E$18/SQRT($E$17)),0)*$F$6 -> 0 | Q13: 0 | R13: 0 | S13: 0 | T13: 55.01143394 | U13: 437.3601915 | V13: =MAX(312*LOG10(8*$E$17+1)*EXP(-1.9*($E$15-M13)*$E$18/SQRT($E$17))*SIN(PI()/2-($E$15-M13)*$E$18/SQRT($E$17)),0)*$D$11 -> 347.0939599
K14: z-1
D15: h | E15: =Brand!N12/1000 -> 0.54 | F15: m | L15: Punkt | O15: 1 | P15: 2 | Q15: 3 | R15: Midte | S15: 4 | T15: 5 | U15: 6
D16: b | E16: =Brand!N13/1000 -> 0.42 | F16: m
B17: Brandtid | D17: t | E17: =IF(D2+F6+D11+B6=0,0.0001,Brand!N19+0.0001) -> 120.0001 | F17: min
B18: Svækket tværsnit | D18: k | E18: =SQRT(PI()*2300*1000/(750*0.75)) -> 113.338534 | L18: 1 | O18: =INDEX(Bet,VLOOKUP(O6,Bet,5),2)+(INDEX(Bet,VLOOKUP(O6,Bet,5)+1,2)-INDEX(Bet,VLOOKUP(O6,Bet,5),2))*(O6-INDEX(Bet,VLOOKUP(O6,Bet,5),1))/(INDEX(Bet,VLOOKUP(O6,Bet,5)+1,1)-INDEX(Bet,VLOOKUP(O6,Bet,5),1)) -> 0.561309607 | P18: 0.8812903101 | Q18: 0.9044335904 | S18: =INDEX(Bet,VLOOKUP(S6,Bet,5),2)+(INDEX(Bet,VLOOKUP(S6,Bet,5)+1,2)-INDEX(Bet,VLOOKUP(S6,Bet,5),2))*(S6-INDEX(Bet,VLOOKUP(S6,Bet,5),1))/(INDEX(Bet,VLOOKUP(S6,Bet,5)+1,1)-INDEX(Bet,VLOOKUP(S6,Bet,5),1)) -> 0.9044335904 | T18: 0.8812903101 | U18: 0.561309607
D19: n | E19: 3 | L19: 2 | O19: 0.8377522371 | P19: 1 | Q19: 1 | S19: 1 | T19: 1 | U19: 0.8377522371
D20: Q-maks | E20: =MAX(312*LOG10(8*$E$17+1)*EXP(-1.9*0*$E$18/SQRT($E$17))*SIN(PI()/2-0*$E$18/SQRT($E$17)),0.0001) -> 930.6098098 | G20: ecu | L20: 3 | O20: 0.8417598306 | P20: 1 | Q20: 1 | S20: 1 | T20: 1 | U20: 0.8417598306
D21: z-M / e1 | E21: =R21 -> 1 | F21: =INDEX(Bet,VLOOKUP(R9,Bet,5),3)+(INDEX(Bet,VLOOKUP(R9,Bet,5)+1,3)-INDEX(Bet,VLOOKUP(R9,Bet,5),3))*(R9-INDEX(Bet,VLOOKUP(R9,Bet,5),1))/(INDEX(Bet,VLOOKUP(R9,Bet,5)+1,1)-INDEX(Bet,VLOOKUP(R9,Bet,5),1)) -> 0.0025 | G21: =INDEX(Bet,VLOOKUP(R9,Bet,5),4)+(INDEX(Bet,VLOOKUP(R9,Bet,5)+1,4)-INDEX(Bet,VLOOKUP(R9,Bet,5),4))*(R9-INDEX(Bet,VLOOKUP(R9,Bet,5),1))/(INDEX(Bet,VLOOKUP(R9,Bet,5)+1,1)-INDEX(Bet,VLOOKUP(R9,Bet,5),1)) -> 0.02 | L21: Midte | R21: =INDEX(Bet,VLOOKUP(R9,Bet,5),2)+(INDEX(Bet,VLOOKUP(R9,Bet,5)+1,2)-INDEX(Bet,VLOOKUP(R9,Bet,5),2))*(R9-INDEX(Bet,VLOOKUP(R9,Bet,5),1))/(INDEX(Bet,VLOOKUP(R9,Bet,5)+1,1)-INDEX(Bet,VLOOKUP(R9,Bet,5),1)) -> 1
D22: z-middel | E22: =((1-0.2/E19)/(2*E19)^2)*IF(AND(D2=1,D11=0),2*SUM(O18:U20),IF(AND(D11=1,D2=0),2*SUM(O22:U24),SUM(O18:U20)+SUM(O22:U24))) -> 0.8323825041 | L22: 4 | O22: =INDEX(Bet,VLOOKUP(O10,Bet,5),2)+(INDEX(Bet,VLOOKUP(O10,Bet,5)+1,2)-INDEX(Bet,VLOOKUP(O10,Bet,5),2))*(O10-INDEX(Bet,VLOOKUP(O10,Bet,5),1))/(INDEX(Bet,VLOOKUP(O10,Bet,5)+1,1)-INDEX(Bet,VLOOKUP(O10,Bet,5),1)) -> 0.8417598306 | P22: 1 | Q22: 1 | S22: =INDEX(Bet,VLOOKUP(S10,Bet,5),2)+(INDEX(Bet,VLOOKUP(S10,Bet,5)+1,2)-INDEX(Bet,VLOOKUP(S10,Bet,5),2))*(S10-INDEX(Bet,VLOOKUP(S10,Bet,5),1))/(INDEX(Bet,VLOOKUP(S10,Bet,5)+1,1)-INDEX(Bet,VLOOKUP(S10,Bet,5),1)) -> 1 | T22: 1 | U22: 0.8417598306
D23: a (bjælke) | E23: =IF(D11+B6+D2+F6=0,0,0.5*IF(B6=0,E15,MIN(E15,E16))*(1-E22/E21)) -> 0.03519967414 | F23: m | L23: 5 | O23: 0.8377522371 | P23: 1 | Q23: 1 | S23: 1 | T23: 1 | U23: 0.8377522371
D24: a (instabilitet) | E24: =IF(D11+B6+D2+F6=0,0,0.5*IF(B6=0,E15,MIN(E15,E16))*(1-(E22/E21)^1.3)) -> 0.04456053353 | F24: m | L24: 6 | O24: 0.561309607 | P24: 0.8812903101 | Q24: 0.9044335904 | S24: 0.9044335904 | T24: 0.8812903101 | U24: 0.561309607
B25: Randzoner | D25: atop | E25: =E24*D2 -> 0.04456053353 | F25: m
D26: aside | E26: =E24*MAX(B6,F6) -> 0.04456053353 | F26: m
D27: abund | E27: =E24*D11 -> 0.04456053353 | F27: m
B28: Stål-gen | C28: type | D28: =IF($E$28="Q",1,IF($E$28="AC",3,5)) -> 1 | E28: =Brand!AS18 -> Q | K28: Trykarmering | M28: =M85 -> 0.06 | N28: 0.21 | O28: 0.36 | P28: 0.36 | Q28: 0.36 | R28: 0.36 | S28: 0.36 | T28: 0.36 | U28: 0.36 | V28: 0.36
C29: side-"dæklag" | E29: =E38 -> 0.06 | F29: m | M29: =MAX(312*LOG10(8*$E$17+1)*EXP(-1.9*M28*$E$18/SQRT($E$17))*SIN(PI()/2-M28*$E$18/SQRT($E$17)),0)*$B$6 -> 232.7244959 | N29: =IF(N28=M28,0,MAX(312*LOG10(8*$E$17+1)*EXP(-1.9*N28*$E$18/SQRT($E$17))*SIN(PI()/2-N28*$E$18/SQRT($E$17)),0))*$B$6 -> 0 | O29: =IF(O28=N28,0,MAX(312*LOG10(8*$E$17+1)*EXP(-1.9*O28*$E$18/SQRT($E$17))*SIN(PI()/2-O28*$E$18/SQRT($E$17)),0))*$B$6 -> 0 | P29: 0 | Q29: 0 | R29: 0 | S29: 0 | T29: 0 | U29: 0 | V29: 0
B30: Trykarmering | D30: nc | E30: =Brand!N16 -> 3 | K30: =-M88 -> 0.06 | L30: =MAX(312*LOG10(8*$E$17+1)*EXP(-1.9*K30*$E$18/SQRT($E$17))*SIN(PI()/2-K30*$E$18/SQRT($E$17)),0)*$D$2 -> 232.7244959 | M30: =MAX(((M$29+M$31)*$E$20/($E$20+$V$5))*(1-($L30+$W30)/$E$20)+$L30+$W30,20) -> 407.2638392 | N30: =IF(N28=M28,0,MAX(((N$29+N$31)*$E$20/($E$20+$V$5))*(1-($L30+$W30)/$E$20)+$L30+$W30,20)) -> 232.7431483 | O30: =IF(O28=N28,0,MAX(((O$29+O$31)*$E$20/($E$20+$V$5))*(1-($L30+$W30)/$E$20)+$L30+$W30,20)) -> 407.2638392 | P30: 0 | Q30: 0 | R30: 0 | S30: 0 | T30: 0 | U30: 0 | V30: 0 | W30: =MAX(312*LOG10(8*$E$17+1)*EXP(-1.9*($E$15-K30)*$E$18/SQRT($E$17))*SIN(PI()/2-($E$15-K30)*$E$18/SQRT($E$17)),0)*$D$11 -> 0.01865241422
D31: reduc nc | E31: =MIN(FLOOR(E30,1),10) -> 3 | M31: =MAX(312*LOG10(8*$E$17+1)*EXP(-1.9*($E$16-M28)*$E$18/SQRT($E$17))*SIN(PI()/2-($E$16-M28)*$E$18/SQRT($E$17)),0)*$F$6 -> 0 | N31: =IF(N28=M28,0,MAX(312*LOG10(8*$E$17+1)*EXP(-1.9*($E$16-N28)*$E$18/SQRT($E$17))*SIN(PI()/2-($E$16-N28)*$E$18/SQRT($E$17)),0))*$F$6 -> 0 | O31: =IF(O28=N28,0,MAX(312*LOG10(8*$E$17+1)*EXP(-1.9*($E$16-O28)*$E$18/SQRT($E$17))*SIN(PI()/2-($E$16-O28)*$E$18/SQRT($E$17)),0))*$F$6 -> 232.7244959 | P31: 0 | Q31: 0 | R31: 0 | S31: 0 | T31: 0 | U31: 0 | V31: 0
D32: ac | E32: =Brand!N14/1000 -> 0.06 | F32: m | K32: Trækarmering | M32: =W85 -> 0.06 | N32: 0.21 | O32: 0.36 | P32: 0.36 | Q32: 0.36 | R32: 0.36 | S32: 0.36 | T32: 0.36 | U32: 0.36 | V32: 0.36
D33: dc | E33: =(E16-2*E29)/(E31-1) -> 0.15 | F33: m | M33: =MAX(312*LOG10(8*$E$17+1)*EXP(-1.9*M32*$E$18/SQRT($E$17))*SIN(PI()/2-M32*$E$18/SQRT($E$17)),0)*$B$6 -> 232.7244959 | N33: =IF(N32=M32,0,MAX(312*LOG10(8*$E$17+1)*EXP(-1.9*N32*$E$18/SQRT($E$17))*SIN(PI()/2-N32*$E$18/SQRT($E$17)),0))*$B$6 -> 0 | O33: =IF(O32=N32,0,MAX(312*LOG10(8*$E$17+1)*EXP(-1.9*O32*$E$18/SQRT($E$17))*SIN(PI()/2-O32*$E$18/SQRT($E$17)),0))*$B$6 -> 0 | P33: 0 | Q33: 0 | R33: 0 | S33: 0 | T33: 0 | U33: 0 | V33: 0
D34: E/Ek | E34: =(SUM(E44:E53)+0.5*(E30-E31)*(E48+E49))/E30 -> 0.7509097244 | K34: =-W89 -> 0.48 | L34: =MAX(312*LOG10(8*$E$17+1)*EXP(-1.9*K34*$E$18/SQRT($E$17))*SIN(PI()/2-K34*$E$18/SQRT($E$17)),0)*$D$2 -> 0.01865241422 | M34: =MAX(((M$33+M$35)*$E$20/($E$20+$V$5))*(1-($L34+$W34)/$E$20)+$L34+$W34,20) -> 407.2638392 | N34: =IF(N32=M32,0,MAX(((N$33+N$35)*$E$20/($E$20+$V$5))*(1-($L34+$W34)/$E$20)+$L34+$W34,20)) -> 232.7431483 | O34: =IF(O32=N32,0,MAX(((O$33+O$35)*$E$20/($E$20+$V$5))*(1-($L34+$W34)/$E$20)+$L34+$W34,20)) -> 407.2638392 | P34: 0 | Q34: 0 | R34: 0 | S34: 0 | T34: 0 | U34: 0 | V34: 0 | W34: =MAX(312*LOG10(8*$E$17+1)*EXP(-1.9*($E$15-K34)*$E$18/SQRT($E$17))*SIN(PI()/2-($E$15-K34)*$E$18/SQRT($E$17)),0)*$D$11 -> 232.7244959 | X34: =(SUM(D54:D63)+0.5*(E36-E37)*(D58+D59))/E36-20 -> 329.0902756
D35: fy/fyk | E35: =(SUM(F44:F53)+0.5*(E30-E31)*(F48+F49))/E30 -> 0.7059442386 | M35: =MAX(312*LOG10(8*$E$17+1)*EXP(-1.9*($E$16-M32)*$E$18/SQRT($E$17))*SIN(PI()/2-($E$16-M32)*$E$18/SQRT($E$17)),0)*$F$6 -> 0 | N35: =IF(N32=M32,0,MAX(312*LOG10(8*$E$17+1)*EXP(-1.9*($E$16-N32)*$E$18/SQRT($E$17))*SIN(PI()/2-($E$16-N32)*$E$18/SQRT($E$17)),0))*$F$6 -> 0 | O35: =IF(O32=N32,0,MAX(312*LOG10(8*$E$17+1)*EXP(-1.9*($E$16-O32)*$E$18/SQRT($E$17))*SIN(PI()/2-($E$16-O32)*$E$18/SQRT($E$17)),0))*$F$6 -> 232.7244959 | P35: 0 | Q35: 0 | R35: 0 | S35: 0 | T35: 0 | U35: 0 | V35: 0
B36: Trækarmering | D36: nt | E36: =Brand!N18 -> 3
D37: reduc nt | E37: =MIN(FLOOR(E36,1),10) -> 3
D38: at | E38: =Brand!N14/1000 -> 0.06 | F38: m | K38: Trykarmering | R38: Trækarmering
D39: dt | E39: =(E16-2*E29)/(E37-1) -> 0.15 | F39: m | K39: Tabel | L39: type (+Q) | N39: type (+AC) | P39: type (+C) | R39: Tabel | S39: type (+Q) | U39: type (+AC) | W39: type (+C)
D40: E/Ek | E40: =(SUM(E54:E63)+0.5*(E36-E37)*(E58+E59))/E36 -> 0.7509097244 | K40: Q-stål | L40: E/Ek | M40: fy/fyk | N40: E/Ek | O40: fy/fyk | P40: E/Ek | Q40: fy/fyk | R40: Q-stål | S40: E/Ek | T40: fy/fyk | U40: E/Ek | V40: fy/fyk | W40: E/Ek | X40: fy/fyk
D41: fy/fyk | E41: =(SUM(F54:F63)+0.5*(E36-E37)*(F58+F59))/E36 -> 0.7059442386 | K41: Temp-1 | R41: Temp-11
K42: =D44 -> 407.2638392 | L42: =IF(K42=K44,L44,L44+(L43-L44)*(K42-K44)/(K43-K44)) -> 0.6927361608 | M42: =IF(K42=K44,M44,M44+(M43-M44)*(K42-K44)/(K43-K44)) -> 0.6369250894 | N42: =IF(K42=K44,N44,N44+(N43-N44)*(K42-K44)/(K43-K44)) -> 0.9476514733 | O42: =IF(K42=K44,O44,O44+(O43-O44)*(K42-K44)/(K43-K44)) -> 0.7632931698 | P42: =IF(K42=K44,P44,P44+(P43-P44)*(K42-K44)/(K43-K44)) -> 0.5483778572 | Q42: =IF(K42=K44,Q44,Q44+(Q43-Q44)*(K42-K44)/(K43-K44)) -> 0.7647459376 | R42: =D54 -> 407.2638392 | S42: =IF(R42=R44,S44,S44+(S43-S44)*(R42-R44)/(R43-R44)) -> 0.6927361608 | T42: =IF(R42=R44,T44,T44+(T43-T44)*(R42-R44)/(R43-R44)) -> 0.6369250894 | U42: =IF(R42=R44,U44,U44+(U43-U44)*(R42-R44)/(R43-R44)) -> 0.9476514733 | V42: =IF(R42=R44,V44,V44+(V43-V44)*(R42-R44)/(R43-R44)) -> 0.7632931698 | W42: =IF(R42=R44,W44,W44+(W43-W44)*(R42-R44)/(R43-R44)) -> 0.5483778572 | X42: =IF(R42=R44,X44,X44+(X43-X44)*(R42-R44)/(R43-R44)) -> 0.7647459376
D43: Temp | E43: E/Ek | F43: fy/fyk | K43: =CEILING(K42,100) -> 500 | L43: =VLOOKUP(K43,$B$68:$H$80,2,TRUE) -> 0.6 | M43: =VLOOKUP(K43,$B$68:$H$80,3,TRUE) -> 0.47 | N43: =VLOOKUP(K43,$B$68:$H$80,4,TRUE) -> 0.79 | O43: =VLOOKUP(K43,$B$68:$H$80,5,TRUE) -> 0.55 | P43: =VLOOKUP(K43,$B$68:$H$80,6,TRUE) -> 0.4 | Q43: =VLOOKUP(K43,$B$68:$H$80,7,TRUE) -> 0.57 | R43: =CEILING(R42,100) -> 500 | S43: =VLOOKUP(R43,$B$68:$H$80,2,TRUE) -> 0.6 | T43: =VLOOKUP(R43,$B$68:$H$80,3,TRUE) -> 0.47 | U43: =VLOOKUP(R43,$B$68:$H$80,4,TRUE) -> 0.79 | V43: =VLOOKUP(R43,$B$68:$H$80,5,TRUE) -> 0.55 | W43: =VLOOKUP(R43,$B$68:$H$80,6,TRUE) -> 0.4 | X43: =VLOOKUP(R43,$B$68:$H$80,7,TRUE) -> 0.57
B44: Trykarm. | C44: 1 | D44: =M30 -> 407.2638392 | E44: =IF(D44=0,0,INDEX($L$41:$Q$80,2+(C44-1)*4,$D$28)) -> 0.6927361608 | F44: =IF(D44=0,0,INDEX($L$41:$Q$80,2+(C44-1)*4,$D$28+1)) -> 0.6369250894 | K44: =MAX(FLOOR(K42,100),20) -> 400 | L44: =VLOOKUP(K44,$B$68:$H$80,2,TRUE) -> 0.7 | M44: =VLOOKUP(K44,$B$68:$H$80,3,TRUE) -> 0.65 | N44: =VLOOKUP(K44,$B$68:$H$80,4,TRUE) -> 0.96 | O44: =VLOOKUP(K44,$B$68:$H$80,5,TRUE) -> 0.78 | P44: =VLOOKUP(K44,$B$68:$H$80,6,TRUE) -> 0.56 | Q44: =VLOOKUP(K44,$B$68:$H$80,7,TRUE) -> 0.78 | R44: =MAX(FLOOR(R42,100),20) -> 400 | S44: =VLOOKUP(R44,$B$68:$H$80,2,TRUE) -> 0.7 | T44: =VLOOKUP(R44,$B$68:$H$80,3,TRUE) -> 0.65 | U44: =VLOOKUP(R44,$B$68:$H$80,4,TRUE) -> 0.96 | V44: =VLOOKUP(R44,$B$68:$H$80,5,TRUE) -> 0.78 | W44: =VLOOKUP(R44,$B$68:$H$80,6,TRUE) -> 0.56 | X44: =VLOOKUP(R44,$B$68:$H$80,7,TRUE) -> 0.78
C45: 2 | D45: =N30 -> 232.7431483 | E45: 0.8672568517 | F45: 0.8439825369 | K45: Temp-2 | R45: Temp-12
C46: 3 | D46: =O30 -> 407.2638392 | E46: 0.6927361608 | F46: 0.6369250894 | K46: =D45 -> 232.7431483 | L46: =IF(K46=K48,L48,L48+(L47-L48)*(K46-K48)/(K47-K48)) -> 0.8672568517 | M46: =IF(K46=K48,M48,M48+(M47-M48)*(K46-K48)/(K47-K48)) -> 0.8439825369 | N46: =IF(K46=K48,N48,N48+(N47-N48)*(K46-K48)/(K47-K48)) -> 0.9967256852 | O46: =IF(K46=K48,O48,O48+(O47-O48)*(K46-K48)/(K47-K48)) -> 0.9236284259 | P46: =IF(K46=K48,P48,P48+(P47-P48)*(K46-K48)/(K47-K48)) -> 0.8208852776 | Q46: =IF(K46=K48,Q48,Q48+(Q47-Q48)*(K46-K48)/(K47-K48)) -> 0.930354111 | R46: =D55 -> 232.7431483 | S46: =IF(R46=R48,S48,S48+(S47-S48)*(R46-R48)/(R47-R48)) -> 0.8672568517 | T46: =IF(R46=R48,T48,T48+(T47-T48)*(R46-R48)/(R47-R48)) -> 0.8439825369 | U46: =IF(R46=R48,U48,U48+(U47-U48)*(R46-R48)/(R47-R48)) -> 0.9967256852 | V46: =IF(R46=R48,V48,V48+(V47-V48)*(R46-R48)/(R47-R48)) -> 0.9236284259 | W46: =IF(R46=R48,W48,W48+(W47-W48)*(R46-R48)/(R47-R48)) -> 0.8208852776 | X46: =IF(R46=R48,X48,X48+(X47-X48)*(R46-R48)/(R47-R48)) -> 0.930354111
C47: 4 | D47: =P30 -> 0 | E47: 0 | F47: 0 | K47: =CEILING(K46,100) -> 300 | L47: =VLOOKUP(K47,$B$68:$H$80,2,TRUE) -> 0.8 | M47: =VLOOKUP(K47,$B$68:$H$80,3,TRUE) -> 0.77 | N47: =VLOOKUP(K47,$B$68:$H$80,4,TRUE) -> 0.99 | O47: =VLOOKUP(K47,$B$68:$H$80,5,TRUE) -> 0.89 | P47: =VLOOKUP(K47,$B$68:$H$80,6,TRUE) -> 0.72 | Q47: =VLOOKUP(K47,$B$68:$H$80,7,TRUE) -> 0.89 | R47: =CEILING(R46,100) -> 300 | S47: =VLOOKUP(R47,$B$68:$H$80,2,TRUE) -> 0.8 | T47: =VLOOKUP(R47,$B$68:$H$80,3,TRUE) -> 0.77 | U47: =VLOOKUP(R47,$B$68:$H$80,4,TRUE) -> 0.99 | V47: =VLOOKUP(R47,$B$68:$H$80,5,TRUE) -> 0.89 | W47: =VLOOKUP(R47,$B$68:$H$80,6,TRUE) -> 0.72 | X47: =VLOOKUP(R47,$B$68:$H$80,7,TRUE) -> 0.89
C48: 5 | D48: =Q30 -> 0 | E48: 0 | F48: 0 | K48: =MAX(FLOOR(K46,100),20) -> 200 | L48: =VLOOKUP(K48,$B$68:$H$80,2,TRUE) -> 0.9 | M48: =VLOOKUP(K48,$B$68:$H$80,3,TRUE) -> 0.88 | N48: =VLOOKUP(K48,$B$68:$H$80,4,TRUE) -> 1 | O48: =VLOOKUP(K48,$B$68:$H$80,5,TRUE) -> 0.94 | P48: =VLOOKUP(K48,$B$68:$H$80,6,TRUE) -> 0.87 | Q48: =VLOOKUP(K48,$B$68:$H$80,7,TRUE) -> 0.95 | R48: =MAX(FLOOR(R46,100),20) -> 200 | S48: =VLOOKUP(R48,$B$68:$H$80,2,TRUE) -> 0.9 | T48: =VLOOKUP(R48,$B$68:$H$80,3,TRUE) -> 0.88 | U48: =VLOOKUP(R48,$B$68:$H$80,4,TRUE) -> 1 | V48: =VLOOKUP(R48,$B$68:$H$80,5,TRUE) -> 0.94 | W48: =VLOOKUP(R48,$B$68:$H$80,6,TRUE) -> 0.87 | X48: =VLOOKUP(R48,$B$68:$H$80,7,TRUE) -> 0.95
C49: 6 | D49: =R30 -> 0 | E49: 0 | F49: 0 | K49: Temp-3 | R49: Temp-13
C50: 7 | D50: =S30 -> 0 | E50: 0 | F50: 0 | K50: =D46 -> 407.2638392 | L50: =IF(K50=K52,L52,L52+(L51-L52)*(K50-K52)/(K51-K52)) -> 0.6927361608 | M50: =IF(K50=K52,M52,M52+(M51-M52)*(K50-K52)/(K51-K52)) -> 0.6369250894 | N50: =IF(K50=K52,N52,N52+(N51-N52)*(K50-K52)/(K51-K52)) -> 0.9476514733 | O50: =IF(K50=K52,O52,O52+(O51-O52)*(K50-K52)/(K51-K52)) -> 0.7632931698 | P50: =IF(K50=K52,P52,P52+(P51-P52)*(K50-K52)/(K51-K52)) -> 0.5483778572 | Q50: =IF(K50=K52,Q52,Q52+(Q51-Q52)*(K50-K52)/(K51-K52)) -> 0.7647459376 | R50: =D56 -> 407.2638392 | S50: =IF(R50=R52,S52,S52+(S51-S52)*(R50-R52)/(R51-R52)) -> 0.6927361608 | T50: =IF(R50=R52,T52,T52+(T51-T52)*(R50-R52)/(R51-R52)) -> 0.6369250894 | U50: =IF(R50=R52,U52,U52+(U51-U52)*(R50-R52)/(R51-R52)) -> 0.9476514733 | V50: =IF(R50=R52,V52,V52+(V51-V52)*(R50-R52)/(R51-R52)) -> 0.7632931698 | W50: =IF(R50=R52,W52,W52+(W51-W52)*(R50-R52)/(R51-R52)) -> 0.5483778572 | X50: =IF(R50=R52,X52,X52+(X51-X52)*(R50-R52)/(R51-R52)) -> 0.7647459376
C51: 8 | D51: =T30 -> 0 | E51: 0 | F51: 0 | K51: =CEILING(K50,100) -> 500 | L51: =VLOOKUP(K51,$B$68:$H$80,2,TRUE) -> 0.6 | M51: =VLOOKUP(K51,$B$68:$H$80,3,TRUE) -> 0.47 | N51: =VLOOKUP(K51,$B$68:$H$80,4,TRUE) -> 0.79 | O51: =VLOOKUP(K51,$B$68:$H$80,5,TRUE) -> 0.55 | P51: =VLOOKUP(K51,$B$68:$H$80,6,TRUE) -> 0.4 | Q51: =VLOOKUP(K51,$B$68:$H$80,7,TRUE) -> 0.57 | R51: =CEILING(R50,100) -> 500 | S51: =VLOOKUP(R51,$B$68:$H$80,2,TRUE) -> 0.6 | T51: =VLOOKUP(R51,$B$68:$H$80,3,TRUE) -> 0.47 | U51: =VLOOKUP(R51,$B$68:$H$80,4,TRUE) -> 0.79 | V51: =VLOOKUP(R51,$B$68:$H$80,5,TRUE) -> 0.55 | W51: =VLOOKUP(R51,$B$68:$H$80,6,TRUE) -> 0.4 | X51: =VLOOKUP(R51,$B$68:$H$80,7,TRUE) -> 0.57
C52: 9 | D52: =U30 -> 0 | E52: 0 | F52: 0 | K52: =MAX(FLOOR(K50,100),20) -> 400 | L52: =VLOOKUP(K52,$B$68:$H$80,2,TRUE) -> 0.7 | M52: =VLOOKUP(K52,$B$68:$H$80,3,TRUE) -> 0.65 | N52: =VLOOKUP(K52,$B$68:$H$80,4,TRUE) -> 0.96 | O52: =VLOOKUP(K52,$B$68:$H$80,5,TRUE) -> 0.78 | P52: =VLOOKUP(K52,$B$68:$H$80,6,TRUE) -> 0.56 | Q52: =VLOOKUP(K52,$B$68:$H$80,7,TRUE) -> 0.78 | R52: =MAX(FLOOR(R50,100),20) -> 400 | S52: =VLOOKUP(R52,$B$68:$H$80,2,TRUE) -> 0.7 | T52: =VLOOKUP(R52,$B$68:$H$80,3,TRUE) -> 0.65 | U52: =VLOOKUP(R52,$B$68:$H$80,4,TRUE) -> 0.96 | V52: =VLOOKUP(R52,$B$68:$H$80,5,TRUE) -> 0.78 | W52: =VLOOKUP(R52,$B$68:$H$80,6,TRUE) -> 0.56 | X52: =VLOOKUP(R52,$B$68:$H$80,7,TRUE) -> 0.78
C53: 10 | D53: =V30 -> 0 | E53: 0 | F53: 0 | K53: Temp-4 | R53: Temp-14
B54: trækarm | C54: 11 | D54: =M34 -> 407.2638392 | E54: =IF(D54=0,0,INDEX($S$41:$X$80,2+(C54-11)*4,$D$28)) -> 0.6927361608 | F54: =IF(D54=0,0,INDEX($S$41:$X$80,2+(C54-11)*4,$D$28+1)) -> 0.6369250894 | K54: =D47 -> 0 | L54: =IF(K54=K56,L56,L56+(L55-L56)*(K54-K56)/(K55-K56)) ->  | M54: =IF(K54=K56,M56,M56+(M55-M56)*(K54-K56)/(K55-K56)) ->  | N54: =IF(K54=K56,N56,N56+(N55-N56)*(K54-K56)/(K55-K56)) ->  | O54: =IF(K54=K56,O56,O56+(O55-O56)*(K54-K56)/(K55-K56)) ->  | P54: =IF(K54=K56,P56,P56+(P55-P56)*(K54-K56)/(K55-K56)) ->  | Q54: =IF(K54=K56,Q56,Q56+(Q55-Q56)*(K54-K56)/(K55-K56)) ->  | R54: =D57 -> 0 | S54: =IF(R54=R56,S56,S56+(S55-S56)*(R54-R56)/(R55-R56)) ->  | T54: =IF(R54=R56,T56,T56+(T55-T56)*(R54-R56)/(R55-R56)) ->  | U54: =IF(R54=R56,U56,U56+(U55-U56)*(R54-R56)/(R55-R56)) ->  | V54: =IF(R54=R56,V56,V56+(V55-V56)*(R54-R56)/(R55-R56)) ->  | W54: =IF(R54=R56,W56,W56+(W55-W56)*(R54-R56)/(R55-R56)) ->  | X54: =IF(R54=R56,X56,X56+(X55-X56)*(R54-R56)/(R55-R56)) -> 
C55: 12 | D55: =N34 -> 232.7431483 | E55: 0.8672568517 | F55: 0.8439825369 | K55: =CEILING(K54,100) -> 0 | L55: =VLOOKUP(K55,$B$68:$H$80,2,TRUE) ->  | M55: =VLOOKUP(K55,$B$68:$H$80,3,TRUE) ->  | N55: =VLOOKUP(K55,$B$68:$H$80,4,TRUE) ->  | O55: =VLOOKUP(K55,$B$68:$H$80,5,TRUE) ->  | P55: =VLOOKUP(K55,$B$68:$H$80,6,TRUE) ->  | Q55: =VLOOKUP(K55,$B$68:$H$80,7,TRUE) ->  | R55: =CEILING(R54,100) -> 0 | S55: =VLOOKUP(R55,$B$68:$H$80,2,TRUE) ->  | T55: =VLOOKUP(R55,$B$68:$H$80,3,TRUE) ->  | U55: =VLOOKUP(R55,$B$68:$H$80,4,TRUE) ->  | V55: =VLOOKUP(R55,$B$68:$H$80,5,TRUE) ->  | W55: =VLOOKUP(R55,$B$68:$H$80,6,TRUE) ->  | X55: =VLOOKUP(R55,$B$68:$H$80,7,TRUE) -> 
C56: 13 | D56: =O34 -> 407.2638392 | E56: 0.6927361608 | F56: 0.6369250894 | K56: =MAX(FLOOR(K54,100),20) -> 20 | L56: =VLOOKUP(K56,$B$68:$H$80,2,TRUE) -> 1 | M56: =VLOOKUP(K56,$B$68:$H$80,3,TRUE) -> 1 | N56: =VLOOKUP(K56,$B$68:$H$80,4,TRUE) -> 1 | O56: =VLOOKUP(K56,$B$68:$H$80,5,TRUE) -> 1 | P56: =VLOOKUP(K56,$B$68:$H$80,6,TRUE) -> 1 | Q56: =VLOOKUP(K56,$B$68:$H$80,7,TRUE) -> 1 | R56: =MAX(FLOOR(R54,100),20) -> 20 | S56: =VLOOKUP(R56,$B$68:$H$80,2,TRUE) -> 1 | T56: =VLOOKUP(R56,$B$68:$H$80,3,TRUE) -> 1 | U56: =VLOOKUP(R56,$B$68:$H$80,4,TRUE) -> 1 | V56: =VLOOKUP(R56,$B$68:$H$80,5,TRUE) -> 1 | W56: =VLOOKUP(R56,$B$68:$H$80,6,TRUE) -> 1 | X56: =VLOOKUP(R56,$B$68:$H$80,7,TRUE) -> 1
C57: 14 | D57: =P34 -> 0 | E57: 0 | F57: 0 | K57: Temp-5 | R57: Temp-15
C58: 15 | D58: =Q34 -> 0 | E58: 0 | F58: 0 | K58: =D48 -> 0 | L58: =IF(K58=K60,L60,L60+(L59-L60)*(K58-K60)/(K59-K60)) ->  | M58: =IF(K58=K60,M60,M60+(M59-M60)*(K58-K60)/(K59-K60)) ->  | N58: =IF(K58=K60,N60,N60+(N59-N60)*(K58-K60)/(K59-K60)) ->  | O58: =IF(K58=K60,O60,O60+(O59-O60)*(K58-K60)/(K59-K60)) ->  | P58: =IF(K58=K60,P60,P60+(P59-P60)*(K58-K60)/(K59-K60)) ->  | Q58: =IF(K58=K60,Q60,Q60+(Q59-Q60)*(K58-K60)/(K59-K60)) ->  | R58: =D58 -> 0 | S58: =IF(R58=R60,S60,S60+(S59-S60)*(R58-R60)/(R59-R60)) ->  | T58: =IF(R58=R60,T60,T60+(T59-T60)*(R58-R60)/(R59-R60)) ->  | U58: =IF(R58=R60,U60,U60+(U59-U60)*(R58-R60)/(R59-R60)) ->  | V58: =IF(R58=R60,V60,V60+(V59-V60)*(R58-R60)/(R59-R60)) ->  | W58: =IF(R58=R60,W60,W60+(W59-W60)*(R58-R60)/(R59-R60)) ->  | X58: =IF(R58=R60,X60,X60+(X59-X60)*(R58-R60)/(R59-R60)) -> 
C59: 16 | D59: =R34 -> 0 | E59: 0 | F59: 0 | K59: =CEILING(K58,100) -> 0 | L59: =VLOOKUP(K59,$B$68:$H$80,2,TRUE) ->  | M59: =VLOOKUP(K59,$B$68:$H$80,3,TRUE) ->  | N59: =VLOOKUP(K59,$B$68:$H$80,4,TRUE) ->  | O59: =VLOOKUP(K59,$B$68:$H$80,5,TRUE) ->  | P59: =VLOOKUP(K59,$B$68:$H$80,6,TRUE) ->  | Q59: =VLOOKUP(K59,$B$68:$H$80,7,TRUE) ->  | R59: =CEILING(R58,100) -> 0 | S59: =VLOOKUP(R59,$B$68:$H$80,2,TRUE) ->  | T59: =VLOOKUP(R59,$B$68:$H$80,3,TRUE) ->  | U59: =VLOOKUP(R59,$B$68:$H$80,4,TRUE) ->  | V59: =VLOOKUP(R59,$B$68:$H$80,5,TRUE) ->  | W59: =VLOOKUP(R59,$B$68:$H$80,6,TRUE) ->  | X59: =VLOOKUP(R59,$B$68:$H$80,7,TRUE) -> 
C60: 17 | D60: =S34 -> 0 | E60: 0 | F60: 0 | K60: =MAX(FLOOR(K58,100),20) -> 20 | L60: =VLOOKUP(K60,$B$68:$H$80,2,TRUE) -> 1 | M60: =VLOOKUP(K60,$B$68:$H$80,3,TRUE) -> 1 | N60: =VLOOKUP(K60,$B$68:$H$80,4,TRUE) -> 1 | O60: =VLOOKUP(K60,$B$68:$H$80,5,TRUE) -> 1 | P60: =VLOOKUP(K60,$B$68:$H$80,6,TRUE) -> 1 | Q60: =VLOOKUP(K60,$B$68:$H$80,7,TRUE) -> 1 | R60: =MAX(FLOOR(R58,100),20) -> 20 | S60: =VLOOKUP(R60,$B$68:$H$80,2,TRUE) -> 1 | T60: =VLOOKUP(R60,$B$68:$H$80,3,TRUE) -> 1 | U60: =VLOOKUP(R60,$B$68:$H$80,4,TRUE) -> 1 | V60: =VLOOKUP(R60,$B$68:$H$80,5,TRUE) -> 1 | W60: =VLOOKUP(R60,$B$68:$H$80,6,TRUE) -> 1 | X60: =VLOOKUP(R60,$B$68:$H$80,7,TRUE) -> 1
C61: 18 | D61: =T34 -> 0 | E61: 0 | F61: 0 | K61: Temp-6 | R61: Temp-16
C62: 19 | D62: =U34 -> 0 | E62: 0 | F62: 0 | K62: =D49 -> 0 | L62: =IF(K62=K64,L64,L64+(L63-L64)*(K62-K64)/(K63-K64)) ->  | M62: =IF(K62=K64,M64,M64+(M63-M64)*(K62-K64)/(K63-K64)) ->  | N62: =IF(K62=K64,N64,N64+(N63-N64)*(K62-K64)/(K63-K64)) ->  | O62: =IF(K62=K64,O64,O64+(O63-O64)*(K62-K64)/(K63-K64)) ->  | P62: =IF(K62=K64,P64,P64+(P63-P64)*(K62-K64)/(K63-K64)) ->  | Q62: =IF(K62=K64,Q64,Q64+(Q63-Q64)*(K62-K64)/(K63-K64)) ->  | R62: =D59 -> 0 | S62: =IF(R62=R64,S64,S64+(S63-S64)*(R62-R64)/(R63-R64)) ->  | T62: =IF(R62=R64,T64,T64+(T63-T64)*(R62-R64)/(R63-R64)) ->  | U62: =IF(R62=R64,U64,U64+(U63-U64)*(R62-R64)/(R63-R64)) ->  | V62: =IF(R62=R64,V64,V64+(V63-V64)*(R62-R64)/(R63-R64)) ->  | W62: =IF(R62=R64,W64,W64+(W63-W64)*(R62-R64)/(R63-R64)) ->  | X62: =IF(R62=R64,X64,X64+(X63-X64)*(R62-R64)/(R63-R64)) -> 
C63: 20 | D63: =V34 -> 0 | E63: 0 | F63: 0 | K63: =CEILING(K62,100) -> 0 | L63: =VLOOKUP(K63,$B$68:$H$80,2,TRUE) ->  | M63: =VLOOKUP(K63,$B$68:$H$80,3,TRUE) ->  | N63: =VLOOKUP(K63,$B$68:$H$80,4,TRUE) ->  | O63: =VLOOKUP(K63,$B$68:$H$80,5,TRUE) ->  | P63: =VLOOKUP(K63,$B$68:$H$80,6,TRUE) ->  | Q63: =VLOOKUP(K63,$B$68:$H$80,7,TRUE) ->  | R63: =CEILING(R62,100) -> 0 | S63: =VLOOKUP(R63,$B$68:$H$80,2,TRUE) ->  | T63: =VLOOKUP(R63,$B$68:$H$80,3,TRUE) ->  | U63: =VLOOKUP(R63,$B$68:$H$80,4,TRUE) ->  | V63: =VLOOKUP(R63,$B$68:$H$80,5,TRUE) ->  | W63: =VLOOKUP(R63,$B$68:$H$80,6,TRUE) ->  | X63: =VLOOKUP(R63,$B$68:$H$80,7,TRUE) -> 
K64: =MAX(FLOOR(K62,100),20) -> 20 | L64: =VLOOKUP(K64,$B$68:$H$80,2,TRUE) -> 1 | M64: =VLOOKUP(K64,$B$68:$H$80,3,TRUE) -> 1 | N64: =VLOOKUP(K64,$B$68:$H$80,4,TRUE) -> 1 | O64: =VLOOKUP(K64,$B$68:$H$80,5,TRUE) -> 1 | P64: =VLOOKUP(K64,$B$68:$H$80,6,TRUE) -> 1 | Q64: =VLOOKUP(K64,$B$68:$H$80,7,TRUE) -> 1 | R64: =MAX(FLOOR(R62,100),20) -> 20 | S64: =VLOOKUP(R64,$B$68:$H$80,2,TRUE) -> 1 | T64: =VLOOKUP(R64,$B$68:$H$80,3,TRUE) -> 1 | U64: =VLOOKUP(R64,$B$68:$H$80,4,TRUE) -> 1 | V64: =VLOOKUP(R64,$B$68:$H$80,5,TRUE) -> 1 | W64: =VLOOKUP(R64,$B$68:$H$80,6,TRUE) -> 1 | X64: =VLOOKUP(R64,$B$68:$H$80,7,TRUE) -> 1
K65: Temp-7 | R65: Temp-17
B66: Tabel | C66: type (+Q) | E66: type (+AC) | G66: type (+C) | K66: =D50 -> 0 | L66: =IF(K66=K68,L68,L68+(L67-L68)*(K66-K68)/(K67-K68)) ->  | M66: =IF(K66=K68,M68,M68+(M67-M68)*(K66-K68)/(K67-K68)) ->  | N66: =IF(K66=K68,N68,N68+(N67-N68)*(K66-K68)/(K67-K68)) ->  | O66: =IF(K66=K68,O68,O68+(O67-O68)*(K66-K68)/(K67-K68)) ->  | P66: =IF(K66=K68,P68,P68+(P67-P68)*(K66-K68)/(K67-K68)) ->  | Q66: =IF(K66=K68,Q68,Q68+(Q67-Q68)*(K66-K68)/(K67-K68)) ->  | R66: =D60 -> 0 | S66: =IF(R66=R68,S68,S68+(S67-S68)*(R66-R68)/(R67-R68)) ->  | T66: =IF(R66=R68,T68,T68+(T67-T68)*(R66-R68)/(R67-R68)) ->  | U66: =IF(R66=R68,U68,U68+(U67-U68)*(R66-R68)/(R67-R68)) ->  | V66: =IF(R66=R68,V68,V68+(V67-V68)*(R66-R68)/(R67-R68)) ->  | W66: =IF(R66=R68,W68,W68+(W67-W68)*(R66-R68)/(R67-R68)) ->  | X66: =IF(R66=R68,X68,X68+(X67-X68)*(R66-R68)/(R67-R68)) -> 
B67: Q-stål | C67: E/Ek | D67: fy/fyk | E67: E/Ek | F67: fy/fyk | G67: E/Ek | H67: fy/fyk | K67: =CEILING(K66,100) -> 0 | L67: =VLOOKUP(K67,$B$68:$H$80,2,TRUE) ->  | M67: =VLOOKUP(K67,$B$68:$H$80,3,TRUE) ->  | N67: =VLOOKUP(K67,$B$68:$H$80,4,TRUE) ->  | O67: =VLOOKUP(K67,$B$68:$H$80,5,TRUE) ->  | P67: =VLOOKUP(K67,$B$68:$H$80,6,TRUE) ->  | Q67: =VLOOKUP(K67,$B$68:$H$80,7,TRUE) ->  | R67: =CEILING(R66,100) -> 0 | S67: =VLOOKUP(R67,$B$68:$H$80,2,TRUE) ->  | T67: =VLOOKUP(R67,$B$68:$H$80,3,TRUE) ->  | U67: =VLOOKUP(R67,$B$68:$H$80,4,TRUE) ->  | V67: =VLOOKUP(R67,$B$68:$H$80,5,TRUE) ->  | W67: =VLOOKUP(R67,$B$68:$H$80,6,TRUE) ->  | X67: =VLOOKUP(R67,$B$68:$H$80,7,TRUE) -> 
B68: 20 | C68: 1 | D68: 1 | E68: 1 | F68: 1 | G68: 1 | H68: 1 | K68: =MAX(FLOOR(K66,100),20) -> 20 | L68: =VLOOKUP(K68,$B$68:$H$80,2,TRUE) -> 1 | M68: =VLOOKUP(K68,$B$68:$H$80,3,TRUE) -> 1 | N68: =VLOOKUP(K68,$B$68:$H$80,4,TRUE) -> 1 | O68: =VLOOKUP(K68,$B$68:$H$80,5,TRUE) -> 1 | P68: =VLOOKUP(K68,$B$68:$H$80,6,TRUE) -> 1 | Q68: =VLOOKUP(K68,$B$68:$H$80,7,TRUE) -> 1 | R68: =MAX(FLOOR(R66,100),20) -> 20 | S68: =VLOOKUP(R68,$B$68:$H$80,2,TRUE) -> 1 | T68: =VLOOKUP(R68,$B$68:$H$80,3,TRUE) -> 1 | U68: =VLOOKUP(R68,$B$68:$H$80,4,TRUE) -> 1 | V68: =VLOOKUP(R68,$B$68:$H$80,5,TRUE) -> 1 | W68: =VLOOKUP(R68,$B$68:$H$80,6,TRUE) -> 1 | X68: =VLOOKUP(R68,$B$68:$H$80,7,TRUE) -> 1
B69: 100 | C69: 1 | D69: 0.96 | E69: 1 | F69: 0.98 | G69: 1 | H69: 0.99 | K69: Temp-8 | R69: Temp-18
B70: 200 | C70: 0.9 | D70: 0.88 | E70: 1 | F70: 0.94 | G70: 0.87 | H70: 0.95 | K70: =D51 -> 0 | L70: =IF(K70=K72,L72,L72+(L71-L72)*(K70-K72)/(K71-K72)) ->  | M70: =IF(K70=K72,M72,M72+(M71-M72)*(K70-K72)/(K71-K72)) ->  | N70: =IF(K70=K72,N72,N72+(N71-N72)*(K70-K72)/(K71-K72)) ->  | O70: =IF(K70=K72,O72,O72+(O71-O72)*(K70-K72)/(K71-K72)) ->  | P70: =IF(K70=K72,P72,P72+(P71-P72)*(K70-K72)/(K71-K72)) ->  | Q70: =IF(K70=K72,Q72,Q72+(Q71-Q72)*(K70-K72)/(K71-K72)) ->  | R70: =D61 -> 0 | S70: =IF(R70=R72,S72,S72+(S71-S72)*(R70-R72)/(R71-R72)) ->  | T70: =IF(R70=R72,T72,T72+(T71-T72)*(R70-R72)/(R71-R72)) ->  | U70: =IF(R70=R72,U72,U72+(U71-U72)*(R70-R72)/(R71-R72)) ->  | V70: =IF(R70=R72,V72,V72+(V71-V72)*(R70-R72)/(R71-R72)) ->  | W70: =IF(R70=R72,W72,W72+(W71-W72)*(R70-R72)/(R71-R72)) ->  | X70: =IF(R70=R72,X72,X72+(X71-X72)*(R70-R72)/(R71-R72)) -> 
B71: 300 | C71: 0.8 | D71: 0.77 | E71: 0.99 | F71: 0.89 | G71: 0.72 | H71: 0.89 | K71: =CEILING(K70,100) -> 0 | L71: =VLOOKUP(K71,$B$68:$H$80,2,TRUE) ->  | M71: =VLOOKUP(K71,$B$68:$H$80,3,TRUE) ->  | N71: =VLOOKUP(K71,$B$68:$H$80,4,TRUE) ->  | O71: =VLOOKUP(K71,$B$68:$H$80,5,TRUE) ->  | P71: =VLOOKUP(K71,$B$68:$H$80,6,TRUE) ->  | Q71: =VLOOKUP(K71,$B$68:$H$80,7,TRUE) ->  | R71: =CEILING(R70,100) -> 0 | S71: =VLOOKUP(R71,$B$68:$H$80,2,TRUE) ->  | T71: =VLOOKUP(R71,$B$68:$H$80,3,TRUE) ->  | U71: =VLOOKUP(R71,$B$68:$H$80,4,TRUE) ->  | V71: =VLOOKUP(R71,$B$68:$H$80,5,TRUE) ->  | W71: =VLOOKUP(R71,$B$68:$H$80,6,TRUE) ->  | X71: =VLOOKUP(R71,$B$68:$H$80,7,TRUE) -> 
B72: 400 | C72: 0.7 | D72: 0.65 | E72: 0.96 | F72: 0.78 | G72: 0.56 | H72: 0.78 | K72: =MAX(FLOOR(K70,100),20) -> 20 | L72: =VLOOKUP(K72,$B$68:$H$80,2,TRUE) -> 1 | M72: =VLOOKUP(K72,$B$68:$H$80,3,TRUE) -> 1 | N72: =VLOOKUP(K72,$B$68:$H$80,4,TRUE) -> 1 | O72: =VLOOKUP(K72,$B$68:$H$80,5,TRUE) -> 1 | P72: =VLOOKUP(K72,$B$68:$H$80,6,TRUE) -> 1 | Q72: =VLOOKUP(K72,$B$68:$H$80,7,TRUE) -> 1 | R72: =MAX(FLOOR(R70,100),20) -> 20 | S72: =VLOOKUP(R72,$B$68:$H$80,2,TRUE) -> 1 | T72: =VLOOKUP(R72,$B$68:$H$80,3,TRUE) -> 1 | U72: =VLOOKUP(R72,$B$68:$H$80,4,TRUE) -> 1 | V72: =VLOOKUP(R72,$B$68:$H$80,5,TRUE) -> 1 | W72: =VLOOKUP(R72,$B$68:$H$80,6,TRUE) -> 1 | X72: =VLOOKUP(R72,$B$68:$H$80,7,TRUE) -> 1
B73: 500 | C73: 0.6 | D73: 0.47 | E73: 0.79 | F73: 0.55 | G73: 0.4 | H73: 0.57 | K73: Temp-9 | R73: Temp-19
B74: 600 | C74: 0.31 | D74: 0.27 | E74: 0.48 | F74: 0.27 | G74: 0.24 | H74: 0.3 | K74: =D52 -> 0 | L74: =IF(K74=K76,L76,L76+(L75-L76)*(K74-K76)/(K75-K76)) ->  | M74: =IF(K74=K76,M76,M76+(M75-M76)*(K74-K76)/(K75-K76)) ->  | N74: =IF(K74=K76,N76,N76+(N75-N76)*(K74-K76)/(K75-K76)) ->  | O74: =IF(K74=K76,O76,O76+(O75-O76)*(K74-K76)/(K75-K76)) ->  | P74: =IF(K74=K76,P76,P76+(P75-P76)*(K74-K76)/(K75-K76)) ->  | Q74: =IF(K74=K76,Q76,Q76+(Q75-Q76)*(K74-K76)/(K75-K76)) ->  | R74: =D62 -> 0 | S74: =IF(R74=R76,S76,S76+(S75-S76)*(R74-R76)/(R75-R76)) ->  | T74: =IF(R74=R76,T76,T76+(T75-T76)*(R74-R76)/(R75-R76)) ->  | U74: =IF(R74=R76,U76,U76+(U75-U76)*(R74-R76)/(R75-R76)) ->  | V74: =IF(R74=R76,V76,V76+(V75-V76)*(R74-R76)/(R75-R76)) ->  | W74: =IF(R74=R76,W76,W76+(W75-W76)*(R74-R76)/(R75-R76)) ->  | X74: =IF(R74=R76,X76,X76+(X75-X76)*(R74-R76)/(R75-R76)) -> 
B75: 700 | C75: 0.13 | D75: 0.13 | E75: 0.21 | F75: 0.1 | G75: 0.08 | H75: 0.12 | K75: =CEILING(K74,100) -> 0 | L75: =VLOOKUP(K75,$B$68:$H$80,2,TRUE) ->  | M75: =VLOOKUP(K75,$B$68:$H$80,3,TRUE) ->  | N75: =VLOOKUP(K75,$B$68:$H$80,4,TRUE) ->  | O75: =VLOOKUP(K75,$B$68:$H$80,5,TRUE) ->  | P75: =VLOOKUP(K75,$B$68:$H$80,6,TRUE) ->  | Q75: =VLOOKUP(K75,$B$68:$H$80,7,TRUE) ->  | R75: =CEILING(R74,100) -> 0 | S75: =VLOOKUP(R75,$B$68:$H$80,2,TRUE) ->  | T75: =VLOOKUP(R75,$B$68:$H$80,3,TRUE) ->  | U75: =VLOOKUP(R75,$B$68:$H$80,4,TRUE) ->  | V75: =VLOOKUP(R75,$B$68:$H$80,5,TRUE) ->  | W75: =VLOOKUP(R75,$B$68:$H$80,6,TRUE) ->  | X75: =VLOOKUP(R75,$B$68:$H$80,7,TRUE) -> 
B76: 800 | C76: 0.09 | D76: 0.05 | E76: 0.08 | F76: 0 | G76: 0.06 | H76: 0.05 | K76: =MAX(FLOOR(K74,100),20) -> 20 | L76: =VLOOKUP(K76,$B$68:$H$80,2,TRUE) -> 1 | M76: =VLOOKUP(K76,$B$68:$H$80,3,TRUE) -> 1 | N76: =VLOOKUP(K76,$B$68:$H$80,4,TRUE) -> 1 | O76: =VLOOKUP(K76,$B$68:$H$80,5,TRUE) -> 1 | P76: =VLOOKUP(K76,$B$68:$H$80,6,TRUE) -> 1 | Q76: =VLOOKUP(K76,$B$68:$H$80,7,TRUE) -> 1 | R76: =MAX(FLOOR(R74,100),20) -> 20 | S76: =VLOOKUP(R76,$B$68:$H$80,2,TRUE) -> 1 | T76: =VLOOKUP(R76,$B$68:$H$80,3,TRUE) -> 1 | U76: =VLOOKUP(R76,$B$68:$H$80,4,TRUE) -> 1 | V76: =VLOOKUP(R76,$B$68:$H$80,5,TRUE) -> 1 | W76: =VLOOKUP(R76,$B$68:$H$80,6,TRUE) -> 1 | X76: =VLOOKUP(R76,$B$68:$H$80,7,TRUE) -> 1
B77: 900 | C77: 0.07 | D77: 0.02 | E77: 0.03 | F77: 0 | G77: 0.05 | H77: 0.02 | K77: Temp-10 | R77: Temp-20
B78: 1000 | C78: 0.04 | D78: 0.01 | E78: 0 | F78: 0 | G78: 0.03 | H78: 0.01 | K78: =D53 -> 0 | L78: =IF(K78=K80,L80,L80+(L79-L80)*(K78-K80)/(K79-K80)) ->  | M78: =IF(K78=K80,M80,M80+(M79-M80)*(K78-K80)/(K79-K80)) ->  | N78: =IF(K78=K80,N80,N80+(N79-N80)*(K78-K80)/(K79-K80)) ->  | O78: =IF(K78=K80,O80,O80+(O79-O80)*(K78-K80)/(K79-K80)) ->  | P78: =IF(K78=K80,P80,P80+(P79-P80)*(K78-K80)/(K79-K80)) ->  | Q78: =IF(K78=K80,Q80,Q80+(Q79-Q80)*(K78-K80)/(K79-K80)) ->  | R78: =D63 -> 0 | S78: =IF(R78=R80,S80,S80+(S79-S80)*(R78-R80)/(R79-R80)) ->  | T78: =IF(R78=R80,T80,T80+(T79-T80)*(R78-R80)/(R79-R80)) ->  | U78: =IF(R78=R80,U80,U80+(U79-U80)*(R78-R80)/(R79-R80)) ->  | V78: =IF(R78=R80,V80,V80+(V79-V80)*(R78-R80)/(R79-R80)) ->  | W78: =IF(R78=R80,W80,W80+(W79-W80)*(R78-R80)/(R79-R80)) ->  | X78: =IF(R78=R80,X80,X80+(X79-X80)*(R78-R80)/(R79-R80)) -> 
B79: 1100 | C79: 0.02 | D79: 0.01 | E79: 0 | F79: 0 | G79: 0.02 | H79: 0 | K79: =CEILING(K78,100) -> 0 | L79: =VLOOKUP(K79,$B$68:$H$80,2,TRUE) ->  | M79: =VLOOKUP(K79,$B$68:$H$80,3,TRUE) ->  | N79: =VLOOKUP(K79,$B$68:$H$80,4,TRUE) ->  | O79: =VLOOKUP(K79,$B$68:$H$80,5,TRUE) ->  | P79: =VLOOKUP(K79,$B$68:$H$80,6,TRUE) ->  | Q79: =VLOOKUP(K79,$B$68:$H$80,7,TRUE) ->  | R79: =CEILING(R78,100) -> 0 | S79: =VLOOKUP(R79,$B$68:$H$80,2,TRUE) ->  | T79: =VLOOKUP(R79,$B$68:$H$80,3,TRUE) ->  | U79: =VLOOKUP(R79,$B$68:$H$80,4,TRUE) ->  | V79: =VLOOKUP(R79,$B$68:$H$80,5,TRUE) ->  | W79: =VLOOKUP(R79,$B$68:$H$80,6,TRUE) ->  | X79: =VLOOKUP(R79,$B$68:$H$80,7,TRUE) -> 
B80: 1200 | C80: 0 | D80: 0 | E80: 0 | F80: 0 | G80: 0 | H80: 0 | K80: =MAX(FLOOR(K78,100),20) -> 20 | L80: =VLOOKUP(K80,$B$68:$H$80,2,TRUE) -> 1 | M80: =VLOOKUP(K80,$B$68:$H$80,3,TRUE) -> 1 | N80: =VLOOKUP(K80,$B$68:$H$80,4,TRUE) -> 1 | O80: =VLOOKUP(K80,$B$68:$H$80,5,TRUE) -> 1 | P80: =VLOOKUP(K80,$B$68:$H$80,6,TRUE) -> 1 | Q80: =VLOOKUP(K80,$B$68:$H$80,7,TRUE) -> 1 | R80: =MAX(FLOOR(R78,100),20) -> 20 | S80: =VLOOKUP(R80,$B$68:$H$80,2,TRUE) -> 1 | T80: =VLOOKUP(R80,$B$68:$H$80,3,TRUE) -> 1 | U80: =VLOOKUP(R80,$B$68:$H$80,4,TRUE) -> 1 | V80: =VLOOKUP(R80,$B$68:$H$80,5,TRUE) -> 1 | W80: =VLOOKUP(R80,$B$68:$H$80,6,TRUE) -> 1 | X80: =VLOOKUP(R80,$B$68:$H$80,7,TRUE) -> 1
B84: GRAF | M84: 1 | N84: 2 | O84: 3 | P84: 4 | Q84: 5 | R84: 6 | S84: 7 | T84: 8 | U84: 9 | V84: 10 | W84: 1 | X84: 2 | Y84: 3 | Z84: 4 | AA84: 5 | AB84: 6 | AC84: 7 | AD84: 8 | AE84: 9 | AF84: 10
B85: x | C85: 0 | D85: =E16 -> 0.42 | E85: =E16 -> 0.42 | F85: 0 | G85: 0 | H85: =E26 -> 0.04456053353 | I85: =D85-E26 -> 0.3754394665 | J85: =E85-E26 -> 0.3754394665 | K85: =E26 -> 0.04456053353 | L85: =E26 -> 0.04456053353 | M85: =E29 -> 0.06 | N85: =IF(N84>$E$31,M85,M85+$E$33) -> 0.21 | O85: 0.36 | P85: 0.36 | Q85: 0.36 | R85: 0.36 | S85: 0.36 | T85: 0.36 | U85: 0.36 | V85: 0.36 | W85: =E29 -> 0.06 | X85: =IF(X84>$E$37,W85,W85+$E$39) -> 0.21 | Y85: 0.36 | Z85: 0.36 | AA85: 0.36 | AB85: 0.36 | AC85: 0.36 | AD85: 0.36 | AE85: 0.36 | AF85: 0.36 | AG85: =IF(E15>E16,E15,E16) -> 0.54
B86: Opr rand | C86: 0 | D86: 0 | E86: =-E15 -> -0.54 | F86: =-E15 -> -0.54 | G86: 0
B87: Reduc rand | H87: =-E25 -> -0.04456053353 | I87: =-E25 -> -0.04456053353 | J87: =E86+E27 -> -0.4954394665 | K87: =F86+E27 -> -0.4954394665 | L87: =-E25 -> -0.04456053353
B88: Trykarm | M88: =-$E$32 -> -0.06 | N88: -0.06 | O88: -0.06 | P88: -0.06 | Q88: -0.06 | R88: -0.06 | S88: -0.06 | T88: -0.06 | U88: -0.06 | V88: -0.06
B89: Trækarm | W89: =-$E$15+$E$38 -> -0.48 | X89: -0.48 | Y89: -0.48 | Z89: -0.48 | AA89: -0.48 | AB89: -0.48 | AC89: -0.48 | AD89: -0.48 | AE89: -0.48 | AF89: -0.48
B90: Skala | AG90: =IF(E15>E16,-E15,-E16) -> -0.54
B92: Betontype | C92: =Makro!A3 -> 2
B93: Reduktionsparametre, beton | G93: Betontype, fc,t/fck
B94: q | C94: fc,t/fck | D94: ec1 | E94: ecu1,t | F94: Indeks | G94: 1 | H94: 2
B95: 20 | C95: =IF($C$92=1,G95,H95) -> 1 | D95: 0.0025 | E95: 0.02 | F95: 1 | G95: 1 | H95: 1
B96: 100 | C96: =IF($C$92=1,G96,H96) -> 1 | D96: 0.004 | E96: 0.0225 | F96: 2 | G96: 1 | H96: 1
B97: 200 | C97: 1 | D97: 0.0055 | E97: 0.025 | F97: 3 | G97: 0.95 | H97: 1
B98: 300 | C98: 0.9333333 | D98: 0.007 | E98: 0.0275 | F98: 4 | G98: 0.85 | H98: =H97-0.0666667 -> 0.9333333
B99: 400 | C99: 0.8666666 | D99: 0.01 | E99: 0.03 | F99: 5 | G99: 0.75 | H99: =H98-0.0666667 -> 0.8666666
B100: 500 | C100: 0.8 | D100: 0.015 | E100: 0.0325 | F100: 6 | G100: 0.6 | H100: 0.8
B101: 600 | C101: 0.6 | D101: 0.025 | E101: 0.035 | F101: 7 | G101: 0.45 | H101: =H100-0.2 -> 0.6
B102: 700 | C102: 0.4 | D102: 0.025 | E102: 0.0375 | F102: 8 | G102: 0.3 | H102: =H101-0.2 -> 0.4
B103: 800 | C103: 0.2 | D103: 0.025 | E103: 0.04 | F103: 9 | G103: 0.15 | H103: =H102-0.2 -> 0.2
B104: 900 | C104: 0 | D104: 0.025 | E104: 0.0425 | F104: 10 | G104: 0.08 | H104: 0
B105: 1000 | C105: 0 | D105: 0.025 | E105: 0.045 | F105: 11 | G105: 0.04 | H105: 0
B106: 1100 | C106: 0.002042648973 | D106: 0.025 | E106: 0.0475 | F106: 12 | G106: 0.01 | H106: =0+(1-0)/(1+(B106/100000)+(B106/1080)^2+(B106/690)^8+(B106/1000)^64) -> 0.002042648973
B107: 1200 | C107: 8.552261303e-06 | F107: 13 | G107: 0 | H107: =0+(1-0)/(1+(B107/100000)+(B107/1080)^2+(B107/690)^8+(B107/1000)^64) -> 8.552261303e-06

Sheet Ark1
B2: Tilstand: | C2: =Kold!$AO$5 -> 1
B4: L | C4: h | D4: b | E4: fck | F4: fcd | G4: Ecd | H4: Ac | I4: ac | J4: Esc | K4: fyd_c | L4: At | M4: at | N4: Est | O4: fyd_t | P4: Modenhed | Q4: 1+f | R4: uterm | S4: Iterationstyring | V4: Iterationsfakt.
B5: (m) | C5: (m) | D5: (m) | E5: (Mpa) | F5: (Mpa) | G5: (Mpa) | H5: (m2) | I5: (m) | J5: (Mpa) | K5: (Mpa) | L5: (m2) | M5: (m) | N5: (Mpa) | O5: (Mpa) | P5: (døgn) | R5: (m) | S5: Ncr-korr | T5: hc-step | U5: e-skift
B6: =Kold!$N$11/1000 -> 6 | C6: =IF(Kold!$AO$5=1,Kold!$N$12/1000,Brand!$AX$21) -> 0.54 | D6: =IF(Kold!$AO$5=1,Kold!$N$13/1000,Brand!$AX$22) -> 0.42 | E6: =IF(Kold!$AO$5=1,Kold!$N$7,Brand!$AX$14) -> 40 | F6: =IF(Kold!$AO$5=1,Kold!$Q$8,Brand!$AX$14) -> 28.57142857 | G6: =1000*22*((E6+8)/10)^0.3/IF(C2=1,Kold!N9,Brand!N9) -> 25157.47306 | H6: =Kold!$AP$40/1000000 -> 0.0006031857895 | I6: =IF(Kold!$AO$5=1,Kold!$N$14/1000,Brand!$AX$23) -> 0.06 | J6: =IF(Kold!$AO$5=1,200000,Brand!$AX$12) -> 200000 | K6: =IF(Kold!$AO$5=1,Kold!$Q$9,Brand!$AX$19) -> 458.3333333 | L6: =Kold!$AP$41/1000000 -> 0.0006031857895 | M6: =IF(Kold!$AO$5=1,Kold!$N$14/1000,Brand!$AX$24) -> 0.06 | N6: =IF(Kold!$AO$5=1,200000,Brand!$AX$13) -> 200000 | O6: =IF(Kold!$AO$5=1,Kold!$Q$9,Brand!$AX$20) -> 458.3333333 | Q6: =IF(Kold!$AO$5=1,Kold!$Q$16,IF(OR(Makro!$H$2=10,Brand!AR61=1),Brand!$Q$14,0))+1 -> 2.584689093 | R6: =IF(Kold!$AO$5=1,0,Brand!AT$11) -> 0 | S6: =MIN(1,15*C6/B6) -> 1 | T6: 0.15 | U6: -0.1 | V6: =MAX(1,IF(C2=1,0.05,0.08)*B6/C6) -> 1 | Y6: Checkpunkt | Z6: 18
M9: N | N9: M | O9: hc | P9: e0 | Q9: sac | R9: sat | U9: hc_0 | V9: 1/hc_0 | Y9: Test-fakt | Z9: hc | AA9: e0 | AB9: a' | AC9: b' | AD9: N' | AE9: tN' | AF9: t | AG9: Nc | AH9: sac | AI9: Nac | AJ9: sat | AK9: Nat | AL9: Mtot | AM9: u | AN9: N | AO9: Mo | AP9: x
L10: =IF($Z$6=29-ROW(),1,0) -> 0 | M10: =Q955 -> 0.0001 | N10: =R955 -> 0.1197242527 | O10: =C955 -> 0.1294560717 | P10: =D955 -> 0.0003274293193 | Q10: =K955 -> 90.81208847 | R10: =M955 -> 458.3274788 | S10: 1 | U10: =Y70 -> 0.1294560717 | V10: =1/U10 -> 7.724628029 | Y10: 0.5 | Z10: =$Z$15 -> 0.1539818791 | AA10: =Y10*$AA$15 -> 0.0002286983756 | AB10: =IF($C$2=1,AA10/($O$31*$O$30),2^(1/3)*$O$30/AA10) -> 0.04579025615 | AC10: =IF($C$2=1,-($O$31-2)*AA10/$O$30,3*($O$30/AA10)^2) -> -0.01464686655 | AD10: =IF($C$2=1,0.5*($O$31*AA10*$F$6/$O$30)*(1-AP10^2+(AB10-AC10)*(AC10^2*(1-AP10^2)+2*AC10*(1-AP10)+2*LN((1-AC10)/(1-AC10*AP10)))/(AC10^3)),$F$6*AC10*(LN((1-AB10+AB10^2)/(1+AB10)^2)/(6*AB10)+ATAN((2-AB10)/(AB10*3^0.5))/(AB10*3^0.5)-LN((AP10^2-AB10*AP10+AB10^2)/(AP10+AB10)^2)/(6*AB10)-ATAN((2*AP10-AB10)/(AB10*3^0.5))/(AB10*3^0.5))) -> 2.900191716 | AE10: =IF($C$2=1,($O$31*AA10*$F$6/$O$30)*(1-AP10^3-(AB10-AC10)*(-2*AC10^3*(1-AP10^3)-3*AC10^2*(1-AP10^2)-6*AC10*(1-AP10)-6*LN((1-AC10)/(1-AC10*AP10)))/(2*AC10^4))/3,$F$6*AC10*(LN((1+AB10^3)/(AB10^3+AP10^3)))/3) -> 1.923494893 | AF10: =AE10/AD10 -> 0.6632302558 | AG10: =AD10*Z10*$D$6 -> 0.1875623274 | AH10: =MAX(MIN($K$6,$Q$6*$J$6*AA10*(Z10-$I$6)/Z10),-$K$6) -> 72.15657235 | AI10: =AH10*$H$6 -> 0.04352381906 | AJ10: =MIN($O$6,$Q$6*$N$6*AA10*(C$6-Z10-$M$6)/Z10) -> 250.3072971 | AK10: =AJ10*$L$6 -> 0.1509818046 | AL10: =(0.5*$C$6-Z10+AF10*Z10)*AG10+(0.5*$C$6-$I$6)*AI10+(0.5*$C$6-$M$6)*AK10 -> 0.08176169517 | AM10: =0.1*$Q$6*AA10*$B$6^2/Z10+$R$6 -> 0.01381988012 | AN10: =AG10+AI10-AK10 -> 0.08010434187 | AO10: =AL10-AM10*AN10 -> 0.08065466277 | AP10: =IF(Z10<$C$6,0,(Z10-$C$6)/Z10) -> 0
L11: 1 | M11: =Q956 -> 0.1704754205 | N11: =R956 -> 0.1499322135 | O11: =C956 -> 0.1539818791 | P11: =D956 -> 0.0004573967513 | Q11: =K956 -> 144.3131447 | R11: =M956 -> 458.3333333 | S11: 2 | U11: =Y72 -> 0.1539818791 | V11: =1/U11 -> 6.494270663 | Y11: 0.6 | Z11: =$Z$15 -> 0.1539818791 | AA11: =Y11*$AA$15 -> 0.0002744380508 | AB11: 0.05494830739 | AC11: -0.01757623986 | AD11: =IF($C$2=1,0.5*($O$31*AA11*$F$6/$O$30)*(1-AP11^2+(AB11-AC11)*(AC11^2*(1-AP11^2)+2*AC11*(1-AP11)+2*LN((1-AC11)/(1-AC11*AP11)))/(AC11^3)),$F$6*AC11*(LN((1-AB11+AB11^2)/(1+AB11)^2)/(6*AB11)+ATAN((2-AB11)/(AB11*3^0.5))/(AB11*3^0.5)-LN((AP11^2-AB11*AP11+AB11^2)/(AP11+AB11)^2)/(6*AB11)-ATAN((2*AP11-AB11)/(AB11*3^0.5))/(AB11*3^0.5))) -> 3.45171375 | AE11: =IF($C$2=1,($O$31*AA11*$F$6/$O$30)*(1-AP11^3-(AB11-AC11)*(-2*AC11^3*(1-AP11^3)-3*AC11^2*(1-AP11^2)-6*AC11*(1-AP11)-6*LN((1-AC11)/(1-AC11*AP11)))/(2*AC11^4))/3,$F$6*AC11*(LN((1+AB11^3)/(AB11^3+AP11^3)))/3) -> 2.286840823 | AF11: 0.662523311 | AG11: 0.2232305751 | AH11: 86.58788682 | AI11: 0.05222858287 | AJ11: 300.3687565 | AK11: 0.1811781655 | AL11: 0.09768742982 | AM11: =0.1*$Q$6*AA11*$B$6^2/Z11+$R$6 -> 0.01658385614 | AN11: 0.09428099245 | AO11: 0.09612388741 | AP11: 0
L12: 0 | M12: =IF(ISERROR(Q957),M11,IF(AND(N11/M11>0.01,Q957>1.02*M11),Q957,M11)) -> 0.3164362129 | N12: =IF(ISERROR(Q957),N11,IF(AND(N11/M11>0.01,Q957>1.02*M11,ISNUMBER(Q957)),R957,N11)) -> 0.1735104795 | O12: =IF(AND(N11/M11>0.007,Q957>M11),C957,O11) -> 0.1739496446 | P12: =IF(AND(N11/M11>0.007,Q957>M11),D957,P11) -> 0.0005499419113 | Q12: =IF(AND(N11/M11>0.007,Q957>M11),K957,Q11) -> 186.2278176 | R12: =IF(AND(N11/M11>0.007,Q957>M11),M957,R11) -> 458.3333333 | S12: 3 | U12: =Y74 -> 0.1739496446 | V12: =1/U12 -> 5.748790129 | Y12: 0.7 | Z12: =$Z$15 -> 0.1539818791 | AA12: =Y12*$AA$15 -> 0.0003201777259 | AB12: 0.06410635862 | AC12: -0.02050561317 | AD12: 3.99387395 | AE12: 2.643183747 | AF12: 0.6618095063 | AG12: 0.2582933706 | AH12: 101.0192013 | AI12: 0.06093334668 | AJ12: 350.4302159 | AK12: 0.2113745265 | AL12: 0.1134731825 | AM12: 0.01934783217 | AN12: 0.1078521908 | AO12: 0.1113864764 | AP12: 0
L13: 0 | M13: =IF(ISERROR(Q958),M12,IF(AND(N12/M12>0.01,Q958>1.02*M12),Q958,M12)) -> 0.4702194705 | N13: =IF(ISERROR(Q958),N12,IF(AND(N12/M12>0.01,Q958>1.02*M12,ISNUMBER(Q958)),R958,N12)) -> 0.196696783 | O13: =IF(AND(N12/M12>0.007,Q958>M12),C958,O12) -> 0.1902071471 | P13: =IF(AND(N12/M12>0.007,Q958>M12),D958,P12) -> 0.0006483357234 | Q13: =IF(AND(N12/M12>0.007,Q958>M12),K958,Q12) -> 229.4279104 | R13: =IF(AND(N12/M12>0.007,Q958>M12),M958,R12) -> 458.3333333 | S13: 4 | U13: =Y76 -> 0.1902071471 | V13: =1/U13^(1/3) -> 1.738832395 | Y13: 0.8 | Z13: =$Z$15 -> 0.1539818791 | AA13: =Y13*$AA$15 -> 0.000365917401 | AB13: 0.07326440985 | AC13: -0.02343498649 | AD13: 4.526732728 | AE13: 2.992571877 | AF13: 0.6610887051 | AG13: 0.2927546209 | AH13: 115.4505158 | AI13: 0.0696381105 | AJ13: 400.4916754 | AK13: 0.2415708874 | AL13: 0.1291198866 | AM13: 0.02211180819 | AN13: 0.120821844 | AO13: 0.1264482971 | AP13: 0
L14: 0 | M14: 0.7401575351 | N14: 0.2336597362 | O14: 0.2097697917 | P14: 0.0008317346547 | Q14: 306.9759709 | R14: 458.3333333 | S14: 5 | U14: =1/V14^3 -> 0.2097697917 | V14: =V13+($V$28-$V$13)/15 -> 1.683006078 | Y14: 0.9 | Z14: =$Z$15 -> 0.1539818791 | AA14: =Y14*$AA$15 -> 0.0004116570762 | AB14: 0.08242246108 | AC14: -0.0263643598 | AD14: 5.050349945 | AE14: 3.335052964 | AF14: 0.6603607671 | AG14: 0.3266181973 | AH14: 129.8818302 | AI14: 0.07834287431 | AJ14: 450.5531348 | AK14: 0.2717672483 | AL14: 0.1446284667 | AM14: 0.02487578421 | AN14: 0.1331938233 | AO14: 0.1413151659 | AP14: 0
L15: 0 | M15: 1.034701656 | N15: 0.26872442 | O15: 0.2321097583 | P15: 0.001008101268 | Q15: 386.4155211 | R15: 458.3333333 | S15: 6 | U15: =1/V15^3 -> 0.2321097583 | V15: =V14+($V$28-$V$13)/15 -> 1.62717976 | Y15: 1 | Z15: =SUMPRODUCT(L10:L28,O10:O28) -> 0.1539818791 | AA15: =SUMPRODUCT(L10:L28,P10:P28) -> 0.0004573967513 | AB15: 0.09158051231 | AC15: -0.02929373311 | AD15: 5.564784915 | AE15: 3.6706743 | AF15: 0.6596255481 | AG15: 0.3598879359 | AH15: 144.3131447 | AI15: 0.08704763812 | AJ15: 458.3333333 | AK15: 0.2764601535 | AL15: 0.1546441132 | AM15: 0.02763976024 | AN15: 0.1704754205 | AO15: 0.1499322135 | AP15: 0
L16: 0 | M16: 1.392271357 | N16: 0.3035794014 | O16: 0.2577379418 | P16: 0.001222576549 | Q16: 458.3333333 | R16: 458.3333333 | S16: 7 | U16: 0.2577379418 | V16: 1.571353442 | Y16: =MIN(1.1,$O$6/ABS($AJ$15)) -> 1 | Z16: =$Z$15 -> 0.1539818791 | AA16: =Y16*$AA$15 -> 0.0004573967513 | AB16: 0.09158051231 | AC16: -0.02929373311 | AD16: 5.564784915 | AE16: 3.6706743 | AF16: 0.6596255481 | AG16: 0.3598879359 | AH16: 144.3131447 | AI16: 0.08704763812 | AJ16: 458.3333333 | AK16: 0.2764601535 | AL16: 0.1546441132 | AM16: 0.02763976024 | AN16: 0.1704754205 | AO16: 0.1499322135 | AP16: 0
L17: 0 | M17: 1.844779311 | N17: 0.3302791957 | O17: 0.2872822932 | P17: 0.001553280537 | Q17: 458.3333333 | R17: 458.3333333 | S17: 8 | U17: 0.2872822932 | V17: 1.515527125 | Y17: =MIN(1.2,$O$6/ABS($AJ$15)) -> 1 | Z17: =$Z$15 -> 0.1539818791 | AA17: =Y17*$AA$15 -> 0.0004573967513 | AB17: 0.09158051231 | AC17: -0.02929373311 | AD17: 5.564784915 | AE17: 3.6706743 | AF17: 0.6596255481 | AG17: 0.3598879359 | AH17: 144.3131447 | AI17: 0.08704763812 | AJ17: 458.3333333 | AK17: 0.2764601535 | AL17: 0.1546441132 | AM17: 0.02763976024 | AN17: 0.1704754205 | AO17: 0.1499322135 | AP17: 0
L18: 0 | M18: 2.401333305 | N18: 0.3416009047 | O18: 0.3215203423 | P18: 0.001973366606 | Q18: 458.3333333 | R18: 458.3333333 | S18: 9 | U18: 0.3215203423 | V18: 1.459700807 | Y18: =MIN(1.3,$O$6/ABS($AJ$15)) -> 1 | Z18: =$Z$15 -> 0.1539818791 | AA18: =Y18*$AA$15 -> 0.0004573967513 | AB18: 0.09158051231 | AC18: -0.02929373311 | AD18: 5.564784915 | AE18: 3.6706743 | AF18: 0.6596255481 | AG18: 0.3598879359 | AH18: 144.3131447 | AI18: 0.08704763812 | AJ18: 458.3333333 | AK18: 0.2764601535 | AL18: 0.1546441132 | AM18: 0.02763976024 | AN18: 0.1704754205 | AO18: 0.1499322135 | AP18: 0
L19: 0 | M19: 2.990882456 | N19: 0.3203077294 | O19: 0.3614224729 | P19: 0.002344545484 | Q19: 458.3333333 | R19: 397.6346338 | S19: 10 | U19: 0.3614224729 | V19: 1.403874489 | Y19: =MIN(1.5,$O$6/ABS($AJ$15)) -> 1 | Z19: =$Z$15 -> 0.1539818791 | AA19: =Y19*$AA$15 -> 0.0004573967513 | AB19: 0.09158051231 | AC19: -0.02929373311 | AD19: 5.564784915 | AE19: 3.6706743 | AF19: 0.6596255481 | AG19: 0.3598879359 | AH19: 144.3131447 | AI19: 0.08704763812 | AJ19: 458.3333333 | AK19: 0.2764601535 | AL19: 0.1546441132 | AM19: 0.02763976024 | AN19: 0.1704754205 | AO19: 0.1499322135 | AP19: 0
L20: 0 | M20: 3.505726571 | N20: 0.2806037132 | O20: 0.4082101177 | P20: 0.002379689803 | Q20: 458.3333333 | R20: 216.340651 | S20: 11 | U20: 0.4082101177 | V20: 1.348048172 | Y20: =MIN(2,$O$6/ABS($AJ$15)) -> 1 | Z20: =$Z$15 -> 0.1539818791 | AA20: =Y20*$AA$15 -> 0.0004573967513 | AB20: 0.09158051231 | AC20: -0.02929373311 | AD20: 5.564784915 | AE20: 3.6706743 | AF20: 0.6596255481 | AG20: 0.3598879359 | AH20: 144.3131447 | AI20: 0.08704763812 | AJ20: 458.3333333 | AK20: 0.2764601535 | AL20: 0.1546441132 | AM20: 0.02763976024 | AN20: 0.1704754205 | AO20: 0.1499322135 | AP20: 0
L21: 0 | M21: 4.07835751 | N21: 0.2248615146 | O21: 0.4634349203 | P21: 0.002399448908 | Q21: 458.3333333 | R21: 44.33580382 | S21: 12 | U21: 0.4634349203 | V21: 1.292221854
L22: 0 | M22: 4.684973049 | N22: 0.1482515073 | O22: 0.5290877597 | P22: 0.002362526735 | Q22: 458.3333333 | R22: -113.3079899 | S22: 13 | U22: 0.5290877597 | V22: 1.236395536
L23: 0 | M23: 5.19320257 | N23: 0.0747434401 | O23: 0.6077509315 | P23: 0.002240317151 | Q23: 458.3333333 | R23: -243.436812 | S23: 14 | U23: 0.6077509315 | V23: 1.180569219 | Y23: Lastpunkter | Z23: hc | AA23: e0 | AB23: a' | AC23: b' | AD23: N' | AE23: tN' | AF23: t | AG23: Nc | AH23: sac | AI23: Nac | AJ23: sat | AK23: Nat | AL23: Mtot | AM23: u | AN23: N | AO23: Mo | AP23: x
L24: 0 | M24: 5.501963564 | N24: 0.03573972621 | O24: 0.7028136984 | P24: 0.002089703091 | Q24: 458.3333333 | R24: -342.4715983 | S24: 15 | U24: 0.7028136984 | V24: 1.124742901 | Y24: =MAX(IF(Kold!AO5=1,Kold!BE12,Brand!BB34)/1000,M10) -> 1.33146 | Z24: =Z25+(Z28-Z27)*(Y24-AN25)/(Y28-Y27) -> 0.2529042106 | AA24: =AA25+(AA28-AA27)*(Y24-AN25)/(Y28-Y27) -> 0.001182124371 | AB24: =IF($C$2=1,AA24/($O$31*$O$30),2^(1/3)*$O$30/AA24) -> 0.2366863236 | AC24: =IF($C$2=1,-($O$31-2)*AA24/$O$30,3*($O$30/AA24)^2) -> -0.07570853033 | AD24: =IF($C$2=1,0.5*($O$31*AA24*$F$6/$O$30)*(1-AP24^2+(AB24-AC24)*(AC24^2*(1-AP24^2)+2*AC24*(1-AP24)+2*LN((1-AC24)/(1-AC24*AP24)))/(AC24^3)),$F$6*AC24*(LN((1-AB24+AB24^2)/(1+AB24)^2)/(6*AB24)+ATAN((2-AB24)/(AB24*3^0.5))/(AB24*3^0.5)-LN((AP24^2-AB24*AP24+AB24^2)/(AP24+AB24)^2)/(6*AB24)-ATAN((2*AP24-AB24)/(AB24*3^0.5))/(AB24*3^0.5))) -> 12.5355877 | AE24: =IF($C$2=1,($O$31*AA24*$F$6/$O$30)*(1-AP24^3-(AB24-AC24)*(-2*AC24^3*(1-AP24^3)-3*AC24^2*(1-AP24^2)-6*AC24*(1-AP24)-6*LN((1-AC24)/(1-AC24*AP24)))/(2*AC24^4))/3,$F$6*AC24*(LN((1+AB24^3)/(AB24^3+AP24^3)))/3) -> 8.108968062 | AF24: =AE24/AD24 -> 0.6468757794 | AG24: =AD24*Z24*$D$6 -> 1.331527223 | AH24: =MAX(MIN($K$6,$Q$6*$J$6*AA24*(Z24-$I$6)/Z24),-$K$6) -> 458.3333333 | AI24: =AH24*$H$6 -> 0.2764601535 | AJ24: =MIN($O$6,$Q$6*$N$6*AA24*(C$6-Z24-$M$6)/Z24) -> 458.3333333 | AK24: =AJ24*$L$6 -> 0.2764601535 | AL24: =(0.5*$C$6-Z24+AF24*Z24)*AG24+(0.5*$C$6-$I$6)*AI24+(0.5*$C$6-$M$6)*AK24 -> 0.3567114425 | AM24: =0.1*$Q$6*AA24*$B$6^2/Z24+$R$6 -> 0.04349285549 | AN24: =AG24+AI24-AK24 -> 1.331527223 | AO24: =AL24-AM24*AN24 -> 0.2987995215 | AP24: =IF(Z24<$C$6,0,(Z24-$C$6)/Z24) -> 0
L25: 0 | M25: 5.501963564 | N25: 0.03573972621 | O25: 0.7028136984 | P25: 0.002089703091 | Q25: 458.3333333 | R25: -342.4715983 | S25: 16 | U25: 0.8187825065 | V25: 1.068916584 | Y25: 1 | Z25: =Z27+(Z28-Z27)*(Y24*Y24/AN26-Y27)/(Y28-Y27) -> 0.2529505412 | AA25: =AA27+(AA28-AA27)*(Y24*Y24/AN26-Y27)/(Y28-Y27) -> 0.001182512099 | AB25: 0.236763955 | AC25: -0.07573336219 | AD25: 12.53874344 | AE25: 8.110916096 | AF25: 0.6468683354 | AG25: 1.332106414 | AH25: 458.3333333 | AI25: 0.2764601535 | AJ25: 458.3333333 | AK25: 0.2764601535 | AL25: 0.3567917965 | AM25: 0.04349915203 | AN25: 1.332106414 | AO25: 0.298846297 | AP25: 0
L26: 0 | M26: 5.501963564 | N26: 0.03573972621 | O26: 0.7028136984 | P26: 0.002089703091 | Q26: 458.3333333 | R26: -342.4715983 | S26: 17 | U26: 0.9617353345 | V26: 1.013090266 | Y26: =VLOOKUP(Y24,Result,7) -> 6 | Z26: =Z27+(Z28-Z27)*(Y24-Y27)/(Y28-Y27) -> 0.253379394 | AA26: =AA27+(AA28-AA27)*(Y24-Y27)/(Y28-Y27) -> 0.001186101051 | AB26: 0.2374825392 | AC26: -0.07596321473 | AD26: 12.56792594 | AE26: 8.128926905 | AF26: 0.6467993957 | AG26: 1.337470453 | AH26: 458.3333333 | AI26: 0.2764601535 | AJ26: 458.3333333 | AK26: 0.2764601535 | AL26: 0.3575350336 | AM26: 0.04355732582 | AN26: 1.337470453 | AO26: 0.2992783973 | AP26: 0
L27: 0 | M27: 5.501963564 | N27: 0.03573972621 | O27: 0.7028136984 | P27: 0.002089703091 | Q27: 458.3333333 | R27: -342.4715983 | S27: 18 | U27: 1.140000103 | V27: 0.9572639482 | Y27: =INDEX(Result,Y26,1) -> 1.034701656 | Z27: =INDEX(Result,Y26,3) -> 0.2321097583 | AA27: =INDEX(Result,Y26,4) -> 0.001008101268 | AB27: 0.2018432146 | AC27: -0.06456331274 | AD27: 11.05882249 | AE27: 7.189825343 | AF27: 0.6501438422 | AG27: 1.078081458 | AH27: 386.4155211 | AI27: 0.2330803512 | AJ27: 458.3333333 | AK27: 0.2764601535 | AL27: 0.3105398644 | AM27: 0.04041304485 | AN27: 1.034701656 | AO27: 0.26872442 | AP27: 0
L28: 0 | M28: 5.501963564 | N28: 0.03573972621 | O28: 0.7028136984 | P28: 0.002089703091 | Q28: 458.3333333 | R28: -342.4715983 | S28: 19 | U28: =Y101 -> 1.36518953 | V28: =1/U28^(1/3) -> 0.9014376305 | Y28: =INDEX(Result,Y26+1,1) -> 1.392271357 | Z28: =INDEX(Result,Y26+1,3) -> 0.2577379418 | AA28: =INDEX(Result,Y26+1,4) -> 0.001222576549 | AB28: 0.2447857061 | AC28: -0.07829926872 | AD28: 12.86163682 | AE28: 8.309840579 | AF28: 0.6460951038 | AG28: 1.392271357 | AH28: 458.3333333 | AI28: 0.2764601535 | AJ28: 458.3333333 | AK28: 0.2764601535 | AL28: 0.3650308896 | AM28: 0.04413757983 | AN28: 1.392271357 | AO28: 0.3035794014 | AP28: 0
M29: emax | O29: =IF(C2=1,0.0028,firsidig!G21) -> 0.0028 | P29: Konv.krit: | Q29: =IF(Y100<0.6*C6,1.003,1.001) -> 1.001 | U29: N_max | V29: =AP101 -> 5.770319258 | Y29: =MAX(IF(Kold!AO5=1,Kold!BF12,Brand!BC34)/1000,M10) -> 1.33146 | Z29: =Z30+(Z33-Z32)*(Y29-AN30)/(Y33-Y32) -> 0.2529042106 | AA29: =AA30+(AA33-AA32)*(Y29-AN30)/(Y33-Y32) -> 0.001182124371 | AB29: 0.2366863236 | AC29: -0.07570853033 | AD29: 12.5355877 | AE29: 8.108968062 | AF29: 0.6468757794 | AG29: 1.331527223 | AH29: 458.3333333 | AI29: 0.2764601535 | AJ29: 458.3333333 | AK29: 0.2764601535 | AL29: 0.3567114425 | AM29: 0.04349285549 | AN29: 1.331527223 | AO29: 0.2987995215 | AP29: 0
M30: e1 | O30: =IF(C2=1,0.7*(E6+8)^0.31/1000,firsidig!F21) -> 0.002324249914 | P30: Vælg checkpunkt: | U30: e | V30: =Z101 -> 0.001714134312 | Y30: 1 | Z30: =Z32+(Z33-Z32)*(Y29*Y29/AN31-Y32)/(Y33-Y32) -> 0.2529505412 | AA30: =AA32+(AA33-AA32)*(Y29*Y29/AN31-Y32)/(Y33-Y32) -> 0.001182512099 | AB30: 0.236763955 | AC30: -0.07573336219 | AD30: 12.53874344 | AE30: 8.110916096 | AF30: 0.6468683354 | AG30: 1.332106414 | AH30: 458.3333333 | AI30: 0.2764601535 | AJ30: 458.3333333 | AK30: 0.2764601535 | AL30: 0.3567917965 | AM30: 0.04349915203 | AN30: 1.332106414 | AO30: 0.298846297 | AP30: 0
M31: k | O31: =1.05*G6*O30/F6 -> 2.148855357 | P31: Stepmax: | Q31: =IF(Y100<0.6*C6,0.025,0.06)*0.5*(0.0024+O30)/(0.0024*V6) -> 0.05905312393 | Y31: =VLOOKUP(Y29,Result,7) -> 6 | Z31: =Z32+(Z33-Z32)*(Y29-Y32)/(Y33-Y32) -> 0.253379394 | AA31: =AA32+(AA33-AA32)*(Y29-Y32)/(Y33-Y32) -> 0.001186101051 | AB31: 0.2374825392 | AC31: -0.07596321473 | AD31: 12.56792594 | AE31: 8.128926905 | AF31: 0.6467993957 | AG31: 1.337470453 | AH31: 458.3333333 | AI31: 0.2764601535 | AJ31: 458.3333333 | AK31: 0.2764601535 | AL31: 0.3575350336 | AM31: 0.04355732582 | AN31: 1.337470453 | AO31: 0.2992783973 | AP31: 0
Y32: =INDEX(Result,Y31,1) -> 1.034701656 | Z32: =INDEX(Result,Y31,3) -> 0.2321097583 | AA32: =INDEX(Result,Y31,4) -> 0.001008101268 | AB32: 0.2018432146 | AC32: -0.06456331274 | AD32: 11.05882249 | AE32: 7.189825343 | AF32: 0.6501438422 | AG32: 1.078081458 | AH32: 386.4155211 | AI32: 0.2330803512 | AJ32: 458.3333333 | AK32: 0.2764601535 | AL32: 0.3105398644 | AM32: 0.04041304485 | AN32: 1.034701656 | AO32: 0.26872442 | AP32: 0
Y33: =INDEX(Result,Y31+1,1) -> 1.392271357 | Z33: =INDEX(Result,Y31+1,3) -> 0.2577379418 | AA33: =INDEX(Result,Y31+1,4) -> 0.001222576549 | AB33: 0.2447857061 | AC33: -0.07829926872 | AD33: 12.86163682 | AE33: 8.309840579 | AF33: =AE33/AD33 -> 0.6460951038 | AG33: =AD33*Z33*$D$6 -> 1.392271357 | AH33: 458.3333333 | AI33: 0.2764601535 | AJ33: 458.3333333 | AK33: 0.2764601535 | AL33: =(0.5*$C$6-Z33+AF33*Z33)*AG33+(0.5*$C$6-$I$6)*AI33+(0.5*$C$6-$M$6)*AK33 -> 0.3650308896 | AM33: =0.1*$Q$6*AA33*$B$6^2/Z33+$R$6 -> 0.04413757983 | AN33: =AG33+AI33-AK33 -> 1.392271357 | AO33: =AL33-AM33*AN33 -> 0.3035794014 | AP33: 0
B34: hc/hcm | C34: hc | D34: e0 | E34: a' | F34: b' | G34: N' | H34: tN' | I34: t | J34: Nc | K34: sac | L34: Nac | M34: sat | N34: Nat | O34: Mtot | P34: u | Q34: N | R34: Mo | S34: a'' | T34: b'' | U34: c'' | W34: x | Y34: =MAX(IF(Kold!$AO$5=1,Kold!$BG$12,Brand!$BD$34)/1000,$M$10) -> 1.33146 | Z34: =Z35+(Z38-Z37)*(Y34-AN35)/(Y38-Y37) -> 0.2529042106 | AA34: =AA35+(AA38-AA37)*(Y34-AN35)/(Y38-Y37) -> 0.001182124371 | AB34: 0.2366863236 | AC34: -0.07570853033 | AD34: 12.5355877 | AE34: 8.108968062 | AF34: 0.6468757794 | AG34: 1.331527223 | AH34: 458.3333333 | AI34: 0.2764601535 | AJ34: 458.3333333 | AK34: 0.2764601535 | AL34: 0.3567114425 | AM34: 0.04349285549 | AN34: 1.331527223 | AO34: 0.2987995215 | AP34: 0
B35: =C35/$Y$100 -> 0.08889774398 | C35: =U10 -> 0.1294560717 | D35: =Z70 -> 0.0003274293193 | E35: =IF($C$2=1,D35/($O$31*$O$30),2^(1/3)*$O$30/D35) -> 0.06555828113 | F35: =IF($C$2=1,-($O$31-2)*D35/$O$30,3*($O$30/D35)^2) -> -0.02097003764 | G35: =IF($C$2=1,0.5*($O$31*D35*$F$6/$O$30)*(1-W35^2+(E35-F35)*(F35^2*(1-W35^2)+2*F35*(1-W35)+2*LN((1-F35)/(1-F35*W35)))/(F35^3)),$F$6*F35*(LN((1-E35+E35^2)/(1+E35)^2)/(6*E35)+ATAN((2-E35)/(E35*3^0.5))/(E35*3^0.5)-LN((W35^2-E35*W35+E35^2)/(W35+E35)^2)/(6*E35)-ATAN((2*W35-E35)/(E35*3^0.5))/(E35*3^0.5))) -> 4.078972558 | H35: =IF($C$2=1,($O$31*D35*$F$6/$O$30)*(1-W35^3-(E35-F35)*(-2*F35^3*(1-W35^3)-3*F35^2*(1-W35^2)-6*F35*(1-W35)-6*LN((1-F35)/(1-F35*W35)))/(2*F35^4))/3,$F$6*F35*(LN((1+E35^3)/(E35^3+W35^3)))/3) -> 2.699038603 | I35: =H35/G35 -> 0.6616957003 | J35: =G35*C35*$D$6 -> 0.2217800608 | K35: =MAX(MIN($K$6,$Q$6*$J$6*D35*(C35-$I$6)/C35),-$K$6) -> 90.81208847 | L35: =K35*$H$6 -> 0.05477656128 | M35: =MIN($O$6,$Q$6*$N$6*D35*(C$6-C35-$M$6)/C35) -> 458.3274788 | N35: =M35*$L$6 -> 0.2764566221 | O35: =(0.5*$C$6-C35+I35*C35)*J35+(0.5*$C$6-$I$6)*L35+(0.5*$C$6-$M$6)*N35 -> 0.1197266062 | P35: =0.1*$Q$6*D35*$B$6^2/C35+$R$6 -> 0.02353455288 | Q35: =(J35+L35-N35) -> 0.0001 | R35: =O35-P35*Q35 -> 0.1197242527 | W35: =IF(C35<$C$6,0,(C35-$C$6)/C35) -> 0 | Y35: 1 | Z35: =Z37+(Z38-Z37)*(Y34*Y34/AN36-Y37)/(Y38-Y37) -> 0.2529505412 | AA35: =AA37+(AA38-AA37)*(Y34*Y34/AN36-Y37)/(Y38-Y37) -> 0.001182512099 | AB35: 0.236763955 | AC35: -0.07573336219 | AD35: 12.53874344 | AE35: 8.110916096 | AF35: 0.6468683354 | AG35: 1.332106414 | AH35: 458.3333333 | AI35: 0.2764601535 | AJ35: 458.3333333 | AK35: 0.2764601535 | AL35: 0.3567917965 | AM35: 0.04349915203 | AN35: 1.332106414 | AO35: 0.298846297 | AP35: 0
B36: 0.1057396651 | C36: =U11 -> 0.1539818791 | D36: =Z72 -> 0.0004549543444 | E36: 0.09109149075 | F36: =IF($C$2=1,-($O$31-2)*D36/$O$30,3*($O$30/D36)^2) -> -0.02913731045 | G36: =IF($C$2=1,0.5*($O$31*D36*$F$6/$O$30)*(1-W36^2+(E36-F36)*(F36^2*(1-W36^2)+2*F36*(1-W36)+2*LN((1-F36)/(1-F36*W36)))/(F36^3)),$F$6*F36*(LN((1-E36+E36^2)/(1+E36)^2)/(6*E36)+ATAN((2-E36)/(E36*3^0.5))/(E36*3^0.5)-LN((W36^2-E36*W36+E36^2)/(W36+E36)^2)/(6*E36)-ATAN((2*W36-E36)/(E36*3^0.5))/(E36*3^0.5))) -> 5.53754622 | H36: =IF($C$2=1,($O$31*D36*$F$6/$O$30)*(1-W36^3-(E36-F36)*(-2*F36^3*(1-W36^3)-3*F36^2*(1-W36^2)-6*F36*(1-W36)-6*LN((1-F36)/(1-F36*W36)))/(2*F36^4))/3,$F$6*F36*(LN((1+E36^3)/(E36^3+W36^3)))/3) -> 3.652925392 | I36: =H36/G36 -> 0.6596649937 | J36: =G36*C36*$D$6 -> 0.3581263444 | K36: =MAX(MIN($K$6,$Q$6*$J$6*D36*(C36-$I$6)/C36),-$K$6) -> 143.5425415 | L36: 0.0865828212 | M36: =MIN($O$6,$Q$6*$N$6*D36*(C$6-C36-$M$6)/C36) -> 458.3333333 | N36: 0.2764601535 | O36: =(0.5*$C$6-C36+I36*C36)*J36+(0.5*$C$6-$I$6)*L36+(0.5*$C$6-$M$6)*N36 -> 0.1541653748 | P36: =0.1*$Q$6*D36*$B$6^2/C36+$R$6 -> 0.02749216947 | Q36: =(J36+L36-N36) -> 0.1682490121 | R36: =O36-P36*Q36 -> 0.1495398445 | S36: =((R36-R35)*(Q36-Q37)-(R36-R37)*(Q36-Q35))/((Q36^2-Q35^2)*(Q36-Q37)-(Q36^2-Q37^2)*(Q36-Q35)) -> -0.05023788432 | T36: =-(S36*(Q36^2-Q35^2)-(R36-R35))/(Q36-Q35) -> 0.1857739832 | U36: =R36-S36*Q36^2-T36*Q36 -> 0.1197056758 | V36: =S36*Q35^2+T36*Q35+U36 -> 0.1197242527 | W36: =IF(C36<$C$6,0,(C36-$C$6)/C36) -> 0 | Y36: =VLOOKUP(Y34,Result,7) -> 6 | Z36: =Z37+(Z38-Z37)*(Y34-Y37)/(Y38-Y37) -> 0.253379394 | AA36: =AA37+(AA38-AA37)*(Y34-Y37)/(Y38-Y37) -> 0.001186101051 | AB36: 0.2374825392 | AC36: -0.07596321473 | AD36: 12.56792594 | AE36: 8.128926905 | AF36: 0.6467993957 | AG36: 1.337470453 | AH36: 458.3333333 | AI36: 0.2764601535 | AJ36: 458.3333333 | AK36: 0.2764601535 | AL36: 0.3575350336 | AM36: 0.04355732582 | AN36: 1.337470453 | AO36: 0.2992783973 | AP36: 0
B37: 0.1194515697 | C37: 0.1739496446 | D37: =Z74 -> 0.0005440999474 | E37: 0.1089403276 | F37: -0.03484659346 | G37: 6.514946625 | H37: 4.288211959 | I37: 0.6582113724 | J37: 0.475974513 | K37: 184.2495428 | L37: 0.111136706 | M37: 458.3333333 | N37: 0.2764601535 | O37: 0.1816098654 | P37: =0.1*$Q$6*D37*$B$6^2/C37+$R$6 -> 0.02910488911 | Q37: 0.3106510655 | R37: =O37-P37*Q37 -> 0.1725684006 | S37: -0.03590781203 | T37: 0.1789113105 | U37: 0.1204546619 | V37: 0.1495398445 | W37: 0 | Y37: =INDEX(Result,Y36,1) -> 1.034701656 | Z37: =INDEX(Result,Y36,3) -> 0.2321097583 | AA37: =INDEX(Result,Y36,4) -> 0.001008101268 | AB37: 0.2018432146 | AC37: -0.06456331274 | AD37: 11.05882249 | AE37: 7.189825343 | AF37: 0.6501438422 | AG37: 1.078081458 | AH37: 386.4155211 | AI37: 0.2330803512 | AJ37: 458.3333333 | AK37: 0.2764601535 | AL37: 0.3105398644 | AM37: 0.04041304485 | AN37: 1.034701656 | AO37: 0.26872442 | AP37: 0
B38: 0.1306156293 | C38: 0.1902071471 | D38: =Z76 -> 0.0006380595213 | E38: 0.1277530233 | F38: -0.04086418469 | G38: 7.508074364 | H38: 4.93015821 | I38: 0.6566474932 | J38: 0.5997975502 | K38: 225.7914493 | L38: 0.1361941936 | M38: 458.3333333 | N38: 0.2764601535 | O38: 0.2094311126 | P38: 0.03121369431 | Q38: 0.4595315903 | R38: 0.195087434 | S38: -0.04139135725 | T38: 0.1831346419 | U38: 0.119671864 | V38: 0.1725684006 | W38: 0 | Y38: =INDEX(Result,Y36+1,1) -> 1.392271357 | Z38: =INDEX(Result,Y36+1,3) -> 0.2577379418 | AA38: =INDEX(Result,Y36+1,4) -> 0.001222576549 | AB38: 0.2447857061 | AC38: -0.07829926872 | AD38: 12.86163682 | AE38: 8.309840579 | AF38: 0.6460951038 | AG38: 1.392271357 | AH38: 458.3333333 | AI38: 0.2764601535 | AJ38: 458.3333333 | AK38: 0.2764601535 | AL38: 0.3650308896 | AM38: 0.04413757983 | AN38: 1.392271357 | AO38: 0.3035794014 | AP38: 0
B39: 0.1440493365 | C39: 0.2097697917 | D39: =D38+($D$53-$D$38)/15 -> 0.0007097978406 | E39: 0.1421165535 | F39: -0.04545862743 | G39: 8.241029305 | H39: 5.401423437 | I39: 0.6554306795 | J39: 0.7260619804 | K39: 261.9716277 | L39: 0.1580175631 | M39: 458.3333333 | N39: 0.2764601535 | O39: 0.2347971249 | P39: 0.03148491591 | Q39: 0.6076193899 | R39: 0.2156662795 | S39: -0.1310633246 | T39: 0.2788281698 | U39: 0.09463362996 | V39: 0.195087434 | W39: 0 | Y39: =MAX(IF(Kold!$AO$5=1,Kold!$BH$12,Brand!$BD$34)/1000,$M$10) -> 1.33146 | Z39: =Z40+(Z43-Z42)*(Y39-AN40)/(Y43-Y42) -> 0.2529042106 | AA39: =AA40+(AA43-AA42)*(Y39-AN40)/(Y43-Y42) -> 0.001182124371 | AB39: =IF($C$2=1,AA39/($O$31*$O$30),2^(1/3)*$O$30/AA39) -> 0.2366863236 | AC39: =IF($C$2=1,-($O$31-2)*AA39/$O$30,3*($O$30/AA39)^2) -> -0.07570853033 | AD39: =IF($C$2=1,0.5*($O$31*AA39*$F$6/$O$30)*(1-AP39^2+(AB39-AC39)*(AC39^2*(1-AP39^2)+2*AC39*(1-AP39)+2*LN((1-AC39)/(1-AC39*AP39)))/(AC39^3)),$F$6*AC39*(LN((1-AB39+AB39^2)/(1+AB39)^2)/(6*AB39)+ATAN((2-AB39)/(AB39*3^0.5))/(AB39*3^0.5)-LN((AP39^2-AB39*AP39+AB39^2)/(AP39+AB39)^2)/(6*AB39)-ATAN((2*AP39-AB39)/(AB39*3^0.5))/(AB39*3^0.5))) -> 12.5355877 | AE39: =IF($C$2=1,($O$31*AA39*$F$6/$O$30)*(1-AP39^3-(AB39-AC39)*(-2*AC39^3*(1-AP39^3)-3*AC39^2*(1-AP39^2)-6*AC39*(1-AP39)-6*LN((1-AC39)/(1-AC39*AP39)))/(2*AC39^4))/3,$F$6*AC39*(LN((1+AB39^3)/(AB39^3+AP39^3)))/3) -> 8.108968062 | AF39: =AE39/AD39 -> 0.6468757794 | AG39: =AD39*Z39*$D$6 -> 1.331527223 | AH39: =MAX(MIN($K$6,$Q$6*$J$6*AA39*(Z39-$I$6)/Z39),-$K$6) -> 458.3333333 | AI39: =AH39*$H$6 -> 0.2764601535 | AJ39: =MIN($O$6,$Q$6*$N$6*AA39*(C$6-Z39-$M$6)/Z39) -> 458.3333333 | AK39: =AJ39*$L$6 -> 0.2764601535 | AL39: =(0.5*$C$6-Z39+AF39*Z39)*AG39+(0.5*$C$6-$I$6)*AI39+(0.5*$C$6-$M$6)*AK39 -> 0.3567114425 | AM39: =0.1*$Q$6*AA39*$B$6^2/Z39+$R$6 -> 0.04349285549 | AN39: =AG39+AI39-AK39 -> 1.331527223 | AO39: =AL39-AM39*AN39 -> 0.2987995215 | AP39: =IF(Z39<$C$6,0,(Z39-$C$6)/Z39) -> 0
B40: 0.1593902363 | C40: 0.2321097583 | D40: =D39+($D$53-$D$38)/15 -> 0.00078153616 | E40: 0.1564800837 | F40: -0.05005307016 | G40: 8.952315968 | H40: 5.8565462 | I40: 0.65419342 | J40: 0.872726356 | K40: 299.5707991 | L40: 0.1806968489 | M40: 431.4727913 | N40: 0.2602582562 | O40: 0.2581872359 | P40: 0.03133043959 | Q40: 0.7931649487 | R40: 0.2333370294 | S40: -0.07205063934 | T40: 0.1961641244 | U40: 0.1230743453 | V40: 0.2156662795 | W40: 0 | Y40: 1 | Z40: =Z42+(Z43-Z42)*(Y39*Y39/AN41-Y42)/(Y43-Y42) -> 0.2529505412 | AA40: =AA42+(AA43-AA42)*(Y39*Y39/AN41-Y42)/(Y43-Y42) -> 0.001182512099 | AB40: 0.236763955 | AC40: -0.07573336219 | AD40: 12.53874344 | AE40: 8.110916096 | AF40: 0.6468683354 | AG40: 1.332106414 | AH40: 458.3333333 | AI40: 0.2764601535 | AJ40: 458.3333333 | AK40: 0.2764601535 | AL40: 0.3567917965 | AM40: 0.04349915203 | AN40: 1.332106414 | AO40: 0.298846297 | AP40: 0
B41: 0.1769891614 | C41: 0.2577379418 | D41: 0.0008532744794 | E41: 0.1708436139 | F41: -0.0546475129 | G41: 9.642147587 | H41: 6.295696017 | I41: 0.6529350397 | J41: 1.043761855 | K41: 338.4065151 | L41: 0.204122001 | M41: 380.3768153 | N41: 0.2294378896 | O41: 0.2794968922 | P41: 0.03080499987 | Q41: 1.018445966 | R41: 0.2481236644 | S41: -0.02824147997 | T41: 0.1167989732 | U41: 0.1584631933 | V41: =S41*Q40^2+T41*Q40+U41 -> 0.2333370294 | W41: 0 | Y41: =VLOOKUP(Y39,Result,7) -> 6 | Z41: =Z42+(Z43-Z42)*(Y39-Y42)/(Y43-Y42) -> 0.253379394 | AA41: =AA42+(AA43-AA42)*(Y39-Y42)/(Y43-Y42) -> 0.001186101051 | AB41: 0.2374825392 | AC41: -0.07596321473 | AD41: 12.56792594 | AE41: 8.128926905 | AF41: 0.6467993957 | AG41: 1.337470453 | AH41: 458.3333333 | AI41: 0.2764601535 | AJ41: 458.3333333 | AK41: 0.2764601535 | AL41: 0.3575350336 | AM41: 0.04355732582 | AN41: 1.337470453 | AO41: 0.2992783973 | AP41: 0
B42: 0.1972773267 | C42: 0.2872822932 | D42: 0.0009250127987 | E42: 0.185207144 | F42: -0.05924195563 | G42: 10.31073442 | H42: 6.719039949 | I42: 0.6516548358 | J42: 1.2440784 | K42: 378.3056185 | L42: 0.2281885732 | M42: 320.7737403 | N42: 0.1934861618 | O42: 0.2999537101 | P42: 0.02996054395 | Q42: 1.278780812 | R42: 0.2616407414 | S42: -0.02587648946 | T42: 0.1113660536 | U42: 0.161543284 | V42: =S42*Q41^2+T42*Q41+U42 -> 0.2481236644 | W42: 0 | Y42: =INDEX(Result,Y41,1) -> 1.034701656 | Z42: =INDEX(Result,Y41,3) -> 0.2321097583 | AA42: =INDEX(Result,Y41,4) -> 0.001008101268 | AB42: 0.2018432146 | AC42: -0.06456331274 | AD42: 11.05882249 | AE42: 7.189825343 | AF42: 0.6501438422 | AG42: 1.078081458 | AH42: 386.4155211 | AI42: 0.2330803512 | AJ42: 458.3333333 | AK42: 0.2764601535 | AL42: 0.3105398644 | AM42: 0.04041304485 | AN42: 1.034701656 | AO42: 0.26872442 | AP42: 0
B43: 0.2207886636 | C43: 0.3215203423 | D43: 0.0009967511181 | E43: 0.1995706742 | F43: -0.06383639837 | G43: 10.95828383 | H43: 7.126742639 | I43: 0.6503520762 | J43: 1.47979069 | K43: 419.1042431 | L43: 0.2527977238 | M43: 253.9744955 | N43: 0.1531938066 | O43: 0.3184452363 | P43: 0.02884623166 | Q43: 1.579394607 | R43: 0.2728856536 | S43: -0.02706194262 | T43: 0.1147542867 | U43: 0.1591490248 | V43: 0.2616407414 | W43: 0 | Y43: =INDEX(Result,Y41+1,1) -> 1.392271357 | Z43: =INDEX(Result,Y41+1,3) -> 0.2577379418 | AA43: =INDEX(Result,Y41+1,4) -> 0.001222576549 | AB43: 0.2447857061 | AC43: -0.07829926872 | AD43: 12.86163682 | AE43: 8.309840579 | AF43: 0.6460951038 | AG43: 1.392271357 | AH43: 458.3333333 | AI43: 0.2764601535 | AJ43: 458.3333333 | AK43: 0.2764601535 | AL43: 0.3650308896 | AM43: 0.04413757983 | AN43: 1.392271357 | AO43: 0.3035794014 | AP43: 0
B44: 0.2481895367 | C44: 0.3614224729 | D44: 0.001068489437 | E44: 0.2139342044 | F44: -0.0684308411 | G44: 11.58500028 | H44: 7.518966363 | I44: 0.6490259974 | J44: 1.758573369 | K44: 458.3333333 | L44: 0.2764601535 | M44: 181.2156809 | N44: 0.1093067235 | O44: 0.332751012 | P44: 0.02750843549 | Q44: 1.925726799 | R44: 0.2797772806 | S44: -0.04476754482 | T44: 0.176814572 | U44: 0.1052977452 | V44: 0.2728856536 | W44: 0 | Y44: =MAX(IF(Kold!$AO$5=1,Kold!$BI$12,Brand!$BD$34)/1000,$M$10) -> 1.33146 | Z44: =Z45+(Z48-Z47)*(Y44-AN45)/(Y48-Y47) -> 0.2529042106 | AA44: =AA45+(AA48-AA47)*(Y44-AN45)/(Y48-Y47) -> 0.001182124371 | AB44: 0.2366863236 | AC44: -0.07570853033 | AD44: 12.5355877 | AE44: 8.108968062 | AF44: 0.6468757794 | AG44: 1.331527223 | AH44: 458.3333333 | AI44: 0.2764601535 | AJ44: 458.3333333 | AK44: 0.2764601535 | AL44: 0.3567114425 | AM44: 0.04349285549 | AN44: 1.331527223 | AO44: 0.2987995215 | AP44: 0
B45: 0.2803187062 | C45: 0.4082101177 | D45: 0.001140227757 | E45: 0.2282977346 | F45: -0.07302528384 | G45: 12.19108546 | H45: 7.895871069 | I45: 0.6476758035 | J45: 2.09014026 | K45: 458.3333333 | L45: 0.2764601535 | M45: 103.6595673 | N45: 0.06252597792 | O45: 0.3349161747 | P45: 0.02599074062 | Q45: 2.304074436 | R45: 0.2750315737 | S45: -0.03169230555 | T45: 0.1215089088 | U45: 0.1633128157 | V45: 0.2797772806 | W45: 0 | Y45: 1 | Z45: =Z47+(Z48-Z47)*(Y44*Y44/AN46-Y47)/(Y48-Y47) -> 0.2529505412 | AA45: =AA47+(AA48-AA47)*(Y44*Y44/AN46-Y47)/(Y48-Y47) -> 0.001182512099 | AB45: 0.236763955 | AC45: -0.07573336219 | AD45: 12.53874344 | AE45: 8.110916096 | AF45: 0.6468683354 | AG45: 1.332106414 | AH45: 458.3333333 | AI45: 0.2764601535 | AJ45: 458.3333333 | AK45: 0.2764601535 | AL45: 0.3567917965 | AM45: 0.04349915203 | AN45: 1.332106414 | AO45: 0.298846297 | AP45: 0
B46: 0.3182416889 | C46: 0.4634349203 | D46: 0.001211966076 | E46: 0.2426612647 | F46: -0.07761972657 | G46: 12.77673826 | H46: 8.257614423 | I46: 0.646300664 | J46: 2.486898405 | K46: 458.3333333 | L46: 0.2764601535 | M46: 22.39409641 | N46: 0.01350780072 | O46: 0.32471185 | P46: 0.02433394485 | Q46: 2.749850758 | R46: 0.2577971333 | S46: -0.03425130895 | T46: 0.1344419206 | U46: 0.1470993263 | V46: 0.2750315737 | W46: 0 | Y46: =VLOOKUP(Y44,Result,7) -> 6 | Z46: =Z47+(Z48-Z47)*(Y44-Y47)/(Y48-Y47) -> 0.253379394 | AA46: =AA47+(AA48-AA47)*(Y44-Y47)/(Y48-Y47) -> 0.001186101051 | AB46: 0.2374825392 | AC46: -0.07596321473 | AD46: 12.56792594 | AE46: 8.128926905 | AF46: 0.6467993957 | AG46: 1.337470453 | AH46: 458.3333333 | AI46: 0.2764601535 | AJ46: 458.3333333 | AK46: 0.2764601535 | AL46: 0.3575350336 | AM46: 0.04355732582 | AN46: 1.337470453 | AO46: 0.2992783973 | AP46: 0
B47: 0.3633256253 | C47: 0.5290877597 | D47: 0.001283704396 | E47: 0.2570247949 | F47: -0.08221416931 | G47: 13.34215489 | H47: 8.604351848 | I47: 0.6448997119 | J47: 2.964851754 | K47: 458.3333333 | L47: 0.2764601535 | M47: -61.56711901 | N47: -0.03713641129 | O47: 0.2937339367 | P47: 0.02257605866 | Q47: 3.278448319 | R47: 0.2197194951 | S47: -0.02134672287 | T47: 0.0566492162 | U47: 0.2634373133 | V47: 0.2577971333 | W47: 0 | Y47: =INDEX(Result,Y46,1) -> 1.034701656 | Z47: =INDEX(Result,Y46,3) -> 0.2321097583 | AA47: =INDEX(Result,Y46,4) -> 0.001008101268 | AB47: 0.2018432146 | AC47: -0.06456331274 | AD47: 11.05882249 | AE47: 7.189825343 | AF47: 0.6501438422 | AG47: 1.078081458 | AH47: 386.4155211 | AI47: 0.2330803512 | AJ47: 458.3333333 | AK47: 0.2764601535 | AL47: 0.3105398644 | AM47: 0.04041304485 | AN47: 1.034701656 | AO47: 0.26872442 | AP47: 0
B48: 0.4173437831 | C48: 0.6077509315 | D48: 0.001355442715 | E48: 0.2713883251 | F48: -0.08680861204 | G48: 13.67093091 | H48: 8.920193662 | I48: 0.6524935075 | J48: 3.489578819 | K48: 458.3333333 | L48: 0.2764601535 | M48: -147.2847955 | N48: -0.08884009563 | O48: 0.2445965387 | P48: 0.02075230518 | Q48: 3.854879068 | R48: 0.1645989119 | S48: 0.003189665885 | T48: -0.1183768777 | U48: 0.5735287293 | V48: 0.2197194951 | W48: 0.1114781204 | Y48: =INDEX(Result,Y46+1,1) -> 1.392271357 | Z48: =INDEX(Result,Y46+1,3) -> 0.2577379418 | AA48: =INDEX(Result,Y46+1,4) -> 0.001222576549 | AB48: 0.2447857061 | AC48: -0.07829926872 | AD48: 12.86163682 | AE48: 8.309840579 | AF48: 0.6460951038 | AG48: 1.392271357 | AH48: 458.3333333 | AI48: 0.2764601535 | AJ48: 458.3333333 | AK48: 0.2764601535 | AL48: 0.3650308896 | AM48: 0.04413757983 | AN48: 1.392271357 | AO48: 0.3035794014 | AP48: 0
B49: 0.4826235757 | C49: 0.7028136984 | D49: 0.001427181034 | E49: 0.2857518553 | F49: -0.09140305478 | G49: 13.45945876 | H49: 9.10725615 | I49: 0.6766435641 | J49: 3.972986637 | K49: 458.3333333 | L49: 0.2764601535 | M49: -233.8939785 | N49: -0.1410815241 | O49: 0.1982376127 | P49: 0.0188951202 | Q49: 4.390528314 | R49: 0.1152780525 | S49: 0.00442114354 | T49: -0.1285309126 | U49: 0.594371434 | V49: 0.1645989119 | W49: 0.231659825 | Y49: =MAX(IF(Kold!$AO$5=1,Kold!$BJ$12,Brand!$BD$34)/1000,$M$10) -> 1.33146 | Z49: =Z50+(Z53-Z52)*(Y49-AN50)/(Y53-Y52) -> 0.2529042106 | AA49: =AA50+(AA53-AA52)*(Y49-AN50)/(Y53-Y52) -> 0.001182124371 | AB49: 0.2366863236 | AC49: -0.07570853033 | AD49: 12.5355877 | AE49: 8.108968062 | AF49: 0.6468757794 | AG49: 1.331527223 | AH49: 458.3333333 | AI49: 0.2764601535 | AJ49: 458.3333333 | AK49: 0.2764601535 | AL49: 0.3567114425 | AM49: 0.04349285549 | AN49: 1.331527223 | AO49: 0.2987995215 | AP49: 0
B50: 0.5622595888 | C50: 0.8187825065 | D50: 0.001498919354 | E50: 0.3001153854 | F50: -0.09599749751 | G50: 12.82525533 | H50: 9.086445229 | I50: 0.70848065 | J50: 4.410459775 | K50: 458.3333333 | L50: 0.2764601535 | M50: -320.6040428 | N50: -0.1933838027 | O50: 0.1555333652 | P50: 0.01703415218 | Q50: 4.880303731 | R50: 0.0724015288 | S50: 0.005227494178 | T50: -0.136006454 | U50: 0.6116491992 | V50: 0.1152780525 | W50: 0.3404841998 | Y50: 1 | Z50: =Z52+(Z53-Z52)*(Y49*Y49/AN51-Y52)/(Y53-Y52) -> 0.2529505412 | AA50: =AA52+(AA53-AA52)*(Y49*Y49/AN51-Y52)/(Y53-Y52) -> 0.001182512099 | AB50: 0.236763955 | AC50: -0.07573336219 | AD50: 12.53874344 | AE50: 8.110916096 | AF50: 0.6468683354 | AG50: 1.332106414 | AH50: 458.3333333 | AI50: 0.2764601535 | AJ50: 458.3333333 | AK50: 0.2764601535 | AL50: 0.3567917965 | AM50: 0.04349915203 | AN50: 1.332106414 | AO50: 0.298846297 | AP50: 0
B51: 0.6604255823 | C51: 0.9617353345 | D51: 0.001570657673 | E51: 0.3144789156 | F51: -0.1005919402 | G51: 11.88475818 | H51: 8.831862205 | I51: 0.7431251081 | J51: 4.80059659 | K51: 458.3333333 | L51: 0.2764601535 | M51: -406.6986922 | N51: -0.2453148717 | O51: 0.116735035 | P51: 0.01519626221 | Q51: 5.322371616 | R51: 0.0358548803 | S51: 0.006105127404 | T51: -0.1449606608 | U51: 0.634445538 | V51: 0.0724015288 | W51: 0.4385149629 | Y51: =VLOOKUP(Y49,Result,7) -> 6 | Z51: =Z52+(Z53-Z52)*(Y49-Y52)/(Y53-Y52) -> 0.253379394 | AA51: =AA52+(AA53-AA52)*(Y49-Y52)/(Y53-Y52) -> 0.001186101051 | AB51: 0.2374825392 | AC51: -0.07596321473 | AD51: 12.56792594 | AE51: 8.128926905 | AF51: 0.6467993957 | AG51: 1.337470453 | AH51: 458.3333333 | AI51: 0.2764601535 | AJ51: 458.3333333 | AK51: 0.2764601535 | AL51: 0.3575350336 | AM51: 0.04355732582 | AN51: 1.337470453 | AO51: 0.2992783973 | AP51: 0
B52: 0.7828403564 | C52: 1.140000103 | D52: 0.001642395992 | E52: 0.3288424458 | F52: -0.105186383 | G52: 10.74216687 | H52: 8.355773647 | I52: 0.7778480585 | J52: 5.143349965 | K52: 458.3333333 | L52: 0.2764601535 | M52: -491.5359595 | N52: -0.2964875058 | O52: 0.08192872264 | P52: 0.01340552407 | Q52: 5.716297624 | R52: 0.005298757224 | S52: 0.007060930358 | T52: -0.1555114535 | U52: 0.6635251358 | V52: 0.0358548803 | W52: 0.5263158323 | Y52: =INDEX(Result,Y51,1) -> 1.034701656 | Z52: =INDEX(Result,Y51,3) -> 0.2321097583 | AA52: =INDEX(Result,Y51,4) -> 0.001008101268 | AB52: 0.2018432146 | AC52: -0.06456331274 | AD52: 11.05882249 | AE52: 7.189825343 | AF52: 0.6501438422 | AG52: 1.078081458 | AH52: 386.4155211 | AI52: 0.2330803512 | AJ52: 458.3333333 | AK52: 0.2764601535 | AL52: 0.3105398644 | AM52: 0.04041304485 | AN52: 1.034701656 | AO52: 0.26872442 | AP52: 0
B53: 0.937478387 | C53: 1.36518953 | D53: =$Z$101 -> 0.001714134312 | E53: 0.343205976 | F53: =IF($C$2=1,-($O$31-2)*D53/$O$30,3*($O$30/D53)^2) -> -0.1097808257 | G53: 9.487226227 | H53: 7.69493562 | I53: =H53/G53 -> 0.8110838126 | J53: =G53*C53*$D$6 -> 5.439782002 | K53: 458.3333333 | L53: 0.2764601535 | M53: =MIN($O$6,$Q$6*$N$6*D53*(C$6-C53-$M$6)/C53) -> -574.5482068 | N53: -0.3465593137 | O53: =(0.5*$C$6-C53+I53*C53)*J53+(0.5*$C$6-$I$6)*L53+(0.5*$C$6-$M$6)*N53 -> 0.05106571874 | P53: =0.1*$Q$6*D53*$B$6^2/C53+$R$6 -> 0.01168322419 | Q53: =(J53+L53-N53) -> 6.062801469 | R53: =O53-P53*Q53 -> -0.01976735003 | W53: 0.6044505263 | Y53: =INDEX(Result,Y51+1,1) -> 1.392271357 | Z53: =INDEX(Result,Y51+1,3) -> 0.2577379418 | AA53: =INDEX(Result,Y51+1,4) -> 0.001222576549 | AB53: 0.2447857061 | AC53: -0.07829926872 | AD53: 12.86163682 | AE53: 8.309840579 | AF53: 0.6460951038 | AG53: 1.392271357 | AH53: 458.3333333 | AI53: 0.2764601535 | AJ53: 458.3333333 | AK53: 0.2764601535 | AL53: 0.3650308896 | AM53: 0.04413757983 | AN53: 1.392271357 | AO53: 0.3035794014 | AP53: 0
B54: De | C54: hc | D54: e0 | E54: a' | F54: b' | G54: N' | H54: tN' | I54: t | J54: Nc | K54: sac | L54: Nac | M54: sat | N54: Nat | O54: Mtot | P54: u | Q54: N | R54: Mo | S54: a'' | T54: b'' | U54: c'' | W54: x | Y54: =MAX(IF(Kold!AO5=1,Kold!BK12,Brand!BH34)/1000,M10) -> 3.4581 | Z54: =Z55+(Z58-Z57)*(Y54-AN55)/(Y58-Y57) -> 0.403811416 | AA54: =AA55+(AA58-AA57)*(Y54-AN55)/(Y58-Y57) -> 0.002376385739 | AB54: =IF($C$2=1,AA54/($O$31*$O$30),2^(1/3)*$O$30/AA54) -> 0.4758027311 | AC54: =IF($C$2=1,-($O$31-2)*AA54/$O$30,3*($O$30/AA54)^2) -> -0.1521943683 | AD54: =IF($C$2=1,0.5*($O$31*AA54*$F$6/$O$30)*(1-AP54^2+(AB54-AC54)*(AC54^2*(1-AP54^2)+2*AC54*(1-AP54)+2*LN((1-AC54)/(1-AC54*AP54)))/(AC54^3)),$F$6*AC54*(LN((1-AB54+AB54^2)/(1+AB54)^2)/(6*AB54)+ATAN((2-AB54)/(AB54*3^0.5))/(AB54*3^0.5)-LN((AP54^2-AB54*AP54+AB54^2)/(AP54+AB54)^2)/(6*AB54)-ATAN((2*AP54-AB54)/(AB54*3^0.5))/(AB54*3^0.5))) -> 19.58389046 | AE54: =IF($C$2=1,($O$31*AA54*$F$6/$O$30)*(1-AP54^3-(AB54-AC54)*(-2*AC54^3*(1-AP54^3)-3*AC54^2*(1-AP54^2)-6*AC54*(1-AP54)-6*LN((1-AC54)/(1-AC54*AP54)))/(2*AC54^4))/3,$F$6*AC54*(LN((1+AB54^3)/(AB54^3+AP54^3)))/3) -> 12.13430423 | AF54: =AE54/AD54 -> 0.6196064186 | AG54: =AD54*Z54*$D$6 -> 3.321443386 | AH54: =MAX(MIN($K$6,$Q$6*$J$6*AA54*(Z54-$I$6)/Z54),-$K$6) -> 458.3333333 | AI54: =AH54*$H$6 -> 0.2764601535 | AJ54: =MIN($O$6,$Q$6*$N$6*AA54*(C$6-Z54-$M$6)/Z54) -> 231.7749802 | AK54: =AJ54*$L$6 -> 0.1398033744 | AL54: =(0.5*$C$6-Z54+AF54*Z54)*AG54+(0.5*$C$6-$I$6)*AI54+(0.5*$C$6-$M$6)*AK54 -> 0.4740072016 | AM54: =0.1*$Q$6*AA54*$B$6^2/Z54+$R$6 -> 0.05475819902 | AN54: =AG54+AI54-AK54 -> 3.458100165 | AO54: =AL54-AM54*AN54 -> 0.2846478646 | AP54: =IF(Z54<$C$6,0,(Z54-$C$6)/Z54) -> 0
C55: =$C$35 -> 0.1294560717 | D55: =$D$35 -> 0.0003274293193 | E55: =$E$35 -> 0.06555828113 | F55: =$F$35 -> -0.02097003764 | G55: =IF($C$2=1,0.5*($O$31*D55*$F$6/$O$30)*(1-W55^2+(E55-F55)*(F55^2*(1-W55^2)+2*F55*(1-W55)+2*LN((1-F55)/(1-F55*W55)))/(F55^3)),$F$6*F55*(LN((1-E55+E55^2)/(1+E55)^2)/(6*E55)+ATAN((2-E55)/(E55*3^0.5))/(E55*3^0.5)-LN((W55^2-E55*W55+E55^2)/(W55+E55)^2)/(6*E55)-ATAN((2*W55-E55)/(E55*3^0.5))/(E55*3^0.5))) -> 4.078972558 | H55: =IF($C$2=1,($O$31*D55*$F$6/$O$30)*(1-W55^3-(E55-F55)*(-2*F55^3*(1-W55^3)-3*F55^2*(1-W55^2)-6*F55*(1-W55)-6*LN((1-F55)/(1-F55*W55)))/(2*F55^4))/3,$F$6*F55*(LN((1+E55^3)/(E55^3+W55^3)))/3) -> 2.699038603 | I55: =$I$35 -> 0.6616957003 | J55: =$J$35 -> 0.2217800608 | K55: =$K$35 -> 90.81208847 | L55: =$L$35 -> 0.05477656128 | M55: =$M$35 -> 458.3274788 | N55: =$N$35 -> 0.2764566221 | O55: =$O$35 -> 0.1197266062 | P55: =$P$35 -> 0.02353455288 | Q55: =$Q$35 -> 0.0001 | R55: =$R$35 -> 0.1197242527 | W55: =IF(C55<$C$6,0,(C55-$C$6)/C55) -> 0 | Y55: 1 | Z55: =Z57+(Z58-Z57)*(Y54*Y54/AN56-Y57)/(Y58-Y57) -> 0.4038124467 | AA55: =AA57+(AA58-AA57)*(Y54*Y54/AN56-Y57)/(Y58-Y57) -> 0.002376386514 | AB55: =IF($C$2=1,AA55/($O$31*$O$30),2^(1/3)*$O$30/AA55) -> 0.4758028861 | AC55: =IF($C$2=1,-($O$31-2)*AA55/$O$30,3*($O$30/AA55)^2) -> -0.1521944178 | AD55: =IF($C$2=1,0.5*($O$31*AA55*$F$6/$O$30)*(1-AP55^2+(AB55-AC55)*(AC55^2*(1-AP55^2)+2*AC55*(1-AP55)+2*LN((1-AC55)/(1-AC55*AP55)))/(AC55^3)),$F$6*AC55*(LN((1-AB55+AB55^2)/(1+AB55)^2)/(6*AB55)+ATAN((2-AB55)/(AB55*3^0.5))/(AB55*3^0.5)-LN((AP55^2-AB55*AP55+AB55^2)/(AP55+AB55)^2)/(6*AB55)-ATAN((2*AP55-AB55)/(AB55*3^0.5))/(AB55*3^0.5))) -> 19.58389339 | AE55: =IF($C$2=1,($O$31*AA55*$F$6/$O$30)*(1-AP55^3-(AB55-AC55)*(-2*AC55^3*(1-AP55^3)-3*AC55^2*(1-AP55^2)-6*AC55*(1-AP55)-6*LN((1-AC55)/(1-AC55*AP55)))/(2*AC55^4))/3,$F$6*AC55*(LN((1+AB55^3)/(AB55^3+AP55^3)))/3) -> 12.13430563 | AF55: =AE55/AD55 -> 0.6196063975 | AG55: =AD55*Z55*$D$6 -> 3.321452359 | AH55: =MAX(MIN($K$6,$Q$6*$J$6*AA55*(Z55-$I$6)/Z55),-$K$6) -> 458.3333333 | AI55: =AH55*$H$6 -> 0.2764601535 | AJ55: =MIN($O$6,$Q$6*$N$6*AA55*(C$6-Z55-$M$6)/Z55) -> 231.7713289 | AK55: =AJ55*$L$6 -> 0.139801172 | AL55: =(0.5*$C$6-Z55+AF55*Z55)*AG55+(0.5*$C$6-$I$6)*AI55+(0.5*$C$6-$M$6)*AK55 -> 0.474006453 | AM55: =0.1*$Q$6*AA55*$B$6^2/Z55+$R$6 -> 0.0547580771 | AN55: =AG55+AI55-AK55 -> 3.458111341 | AO55: =AL55-AM55*AN55 -> 0.2846469256 | AP55: =IF(Z55<$C$6,0,(Z55-$C$6)/Z55) -> 0
B56: =0.25*D36*$Q$31 -> 6.716618821e-06 | C56: =C36 -> 0.1539818791 | D56: =D36+B56 -> 0.0004616709633 | E56: =IF($C$2=1,D56/($O$31*$O$30),2^(1/3)*$O$30/D56) -> 0.09243630003 | F56: =IF($C$2=1,-($O$31-2)*D56/$O$30,3*($O$30/D56)^2) -> -0.02956747275 | G56: =IF($C$2=1,0.5*($O$31*D56*$F$6/$O$30)*(1-W56^2+(E56-F56)*(F56^2*(1-W56^2)+2*F56*(1-W56)+2*LN((1-F56)/(1-F56*W56)))/(F56^3)),$F$6*F56*(LN((1-E56+E56^2)/(1+E56)^2)/(6*E56)+ATAN((2-E56)/(E56*3^0.5))/(E56*3^0.5)-LN((W56^2-E56*W56+E56^2)/(W56+E56)^2)/(6*E56)-ATAN((2*W56-E56)/(E56*3^0.5))/(E56*3^0.5))) -> 5.612390041 | H56: =IF($C$2=1,($O$31*D56*$F$6/$O$30)*(1-W56^3-(E56-F56)*(-2*F56^3*(1-W56^3)-3*F56^2*(1-W56^2)-6*F56*(1-W56)-6*LN((1-F56)/(1-F56*W56)))/(2*F56^4))/3,$F$6*F56*(LN((1+E56^3)/(E56^3+W56^3)))/3) -> 3.701688149 | I56: =H56/G56 -> 0.6595564673 | J56: =G56*C56*$D$6 -> 0.3629666731 | K56: =MAX(MIN($K$6,$Q$6*$J$6*D56*(C56-$I$6)/C56),-$K$6) -> 145.6617003 | L56: =K56*$H$6 -> 0.08786106772 | M56: =MIN($O$6,$Q$6*$N$6*D56*(C$6-C56-$M$6)/C56) -> 458.3333333 | N56: =M56*$L$6 -> 0.2764601535 | O56: =(0.5*$C$6-C56+I56*C56)*J56+(0.5*$C$6-$I$6)*L56+(0.5*$C$6-$M$6)*N56 -> 0.1554809703 | P56: =0.1*$Q$6*D56*$B$6^2/C56+$R$6 -> 0.02789804409 | Q56: =(J56+L56-N56) -> 0.1743675873 | R56: =O56-P56*Q56 -> 0.1506164557 | S56: =((R56-R55)*(Q56-Q57)-(R56-R57)*(Q56-Q55))/((Q56^2-Q55^2)*(Q56-Q57)-(Q56^2-Q57^2)*(Q56-Q55)) -> -0.04923292397 | T56: =-(S56*(Q56^2-Q55^2)-(R56-R55))/(Q56-Q55) -> 0.1858583316 | U56: =R56-S56*Q56^2-T56*Q56 -> 0.1197056674 | V56: =S36*Q56^2+T36*Q56+U36 -> 0.1505712016 | W56: =IF(C56<$C$6,0,(C56-$C$6)/C56) -> 0 | Y56: =VLOOKUP(Y54,Result,7) -> 10 | Z56: =Z57+(Z58-Z57)*(Y54-Y57)/(Y58-Y57) -> 0.4038819434 | AA56: =AA57+(AA58-AA57)*(Y54-Y57)/(Y58-Y57) -> 0.002376438716 | AB56: =IF($C$2=1,AA56/($O$31*$O$30),2^(1/3)*$O$30/AA56) -> 0.4758133381 | AC56: =IF($C$2=1,-($O$31-2)*AA56/$O$30,3*($O$30/AA56)^2) -> -0.1521977611 | AD56: =IF($C$2=1,0.5*($O$31*AA56*$F$6/$O$30)*(1-AP56^2+(AB56-AC56)*(AC56^2*(1-AP56^2)+2*AC56*(1-AP56)+2*LN((1-AC56)/(1-AC56*AP56)))/(AC56^3)),$F$6*AC56*(LN((1-AB56+AB56^2)/(1+AB56)^2)/(6*AB56)+ATAN((2-AB56)/(AB56*3^0.5))/(AB56*3^0.5)-LN((AP56^2-AB56*AP56+AB56^2)/(AP56+AB56)^2)/(6*AB56)-ATAN((2*AP56-AB56)/(AB56*3^0.5))/(AB56*3^0.5))) -> 19.58409054 | AE56: =IF($C$2=1,($O$31*AA56*$F$6/$O$30)*(1-AP56^3-(AB56-AC56)*(-2*AC56^3*(1-AP56^3)-3*AC56^2*(1-AP56^2)-6*AC56*(1-AP56)-6*LN((1-AC56)/(1-AC56*AP56)))/(2*AC56^4))/3,$F$6*AC56*(LN((1+AB56^3)/(AB56^3+AP56^3)))/3) -> 12.13439987 | AF56: =AE56/AD56 -> 0.6196049722 | AG56: =AD56*Z56*$D$6 -> 3.322057429 | AH56: =MAX(MIN($K$6,$Q$6*$J$6*AA56*(Z56-$I$6)/Z56),-$K$6) -> 458.3333333 | AI56: =AH56*$H$6 -> 0.2764601535 | AJ56: =MIN($O$6,$Q$6*$N$6*AA56*(C$6-Z56-$M$6)/Z56) -> 231.5251527 | AK56: =AJ56*$L$6 -> 0.139652682 | AL56: =(0.5*$C$6-Z56+AF56*Z56)*AG56+(0.5*$C$6-$I$6)*AI56+(0.5*$C$6-$M$6)*AK56 -> 0.473955961 | AM56: =0.1*$Q$6*AA56*$B$6^2/Z56+$R$6 -> 0.05474985744 | AN56: =AG56+AI56-AK56 -> 3.4588649 | AO56: =AL56-AM56*AN56 -> 0.2845836008 | AP56: =IF(Z56<$C$6,0,(Z56-$C$6)/Z56) -> 0
B57: =0.5*D37*$Q$31 -> 1.606540081e-05 | C57: 0.1739496446 | D57: 0.0005601653482 | E57: 0.1121569609 | F57: -0.03587549356 | G57: 6.687435626 | H57: 4.399973682 | I57: 0.6579463233 | J57: 0.4885763612 | K57: 189.6897984 | L57: 0.1144181908 | M57: 458.3333333 | N57: 0.2764601535 | O57: 0.1849297199 | P57: =0.1*$Q$6*D57*$B$6^2/C57+$R$6 -> 0.02996425642 | Q57: 0.3265343985 | R57: 0.1751453595 | S57: -0.0359946287 | T57: 0.1792272432 | U57: 0.1204594164 | V57: 0.1750466989 | W57: 0 | Y57: =INDEX(Result,Y56,1) -> 2.990882456 | Z57: =INDEX(Result,Y56,3) -> 0.3614224729 | AA57: =INDEX(Result,Y56,4) -> 0.002344545484 | AB57: =IF($C$2=1,AA57/($O$31*$O$30),2^(1/3)*$O$30/AA57) -> 0.4694276379 | AC57: =IF($C$2=1,-($O$31-2)*AA57/$O$30,3*($O$30/AA57)^2) -> -0.1501551759 | AD57: =IF($C$2=1,0.5*($O$31*AA57*$F$6/$O$30)*(1-AP57^2+(AB57-AC57)*(AC57^2*(1-AP57^2)+2*AC57*(1-AP57)+2*LN((1-AC57)/(1-AC57*AP57)))/(AC57^3)),$F$6*AC57*(LN((1-AB57+AB57^2)/(1+AB57)^2)/(6*AB57)+ATAN((2-AB57)/(AB57*3^0.5))/(AB57*3^0.5)-LN((AP57^2-AB57*AP57+AB57^2)/(AP57+AB57)^2)/(6*AB57)-ATAN((2*AP57-AB57)/(AB57*3^0.5))/(AB57*3^0.5))) -> 19.46192169 | AE57: =IF($C$2=1,($O$31*AA57*$F$6/$O$30)*(1-AP57^3-(AB57-AC57)*(-2*AC57^3*(1-AP57^3)-3*AC57^2*(1-AP57^2)-6*AC57*(1-AP57)-6*LN((1-AC57)/(1-AC57*AP57)))/(2*AC57^4))/3,$F$6*AC57*(LN((1+AB57^3)/(AB57^3+AP57^3)))/3) -> 12.07556055 | AF57: =AE57/AD57 -> 0.6204711303 | AG57: =AD57*Z57*$D$6 -> 2.954269863 | AH57: =MAX(MIN($K$6,$Q$6*$J$6*AA57*(Z57-$I$6)/Z57),-$K$6) -> 458.3333333 | AI57: =AH57*$H$6 -> 0.2764601535 | AJ57: =MIN($O$6,$Q$6*$N$6*AA57*(C$6-Z57-$M$6)/Z57) -> 397.6346338 | AK57: =AJ57*$L$6 -> 0.2398475605 | AL57: =(0.5*$C$6-Z57+AF57*Z57)*AG57+(0.5*$C$6-$I$6)*AI57+(0.5*$C$6-$M$6)*AK57 -> 0.50083951 | AM57: =0.1*$Q$6*AA57*$B$6^2/Z57+$R$6 -> 0.06036070732 | AN57: =AG57+AI57-AK57 -> 2.990882456 | AO57: =AL57-AM57*AN57 -> 0.3203077294 | AP57: =IF(Z57<$C$6,0,(Z57-$C$6)/Z57) -> 0
B58: =0.75*D38*$Q$31 -> 2.825955599e-05 | C58: 0.1902071471 | D58: 0.0006663190773 | E58: 0.1334111847 | F58: -0.04267405301 | G58: 7.799404416 | H58: 5.117739548 | I58: 0.6561705579 | J58: 0.6230710346 | K58: 235.7917172 | L58: 0.1422262131 | M58: 458.3333333 | N58: 0.2764601535 | O58: 0.2154052076 | P58: 0.03259614393 | Q58: 0.4888370942 | R58: 0.1994710033 | S58: -0.03831776503 | T58: 0.1811214623 | U58: 0.1200885924 | V58: 0.1993039209 | W58: 0 | Y58: =INDEX(Result,Y56+1,1) -> 3.505726571 | Z58: =INDEX(Result,Y56+1,3) -> 0.4082101177 | AA58: =INDEX(Result,Y56+1,4) -> 0.002379689803 | AB58: =IF($C$2=1,AA58/($O$31*$O$30),2^(1/3)*$O$30/AA58) -> 0.4764642747 | AC58: =IF($C$2=1,-($O$31-2)*AA58/$O$30,3*($O$30/AA58)^2) -> -0.1524059753 | AD58: =IF($C$2=1,0.5*($O$31*AA58*$F$6/$O$30)*(1-AP58^2+(AB58-AC58)*(AC58^2*(1-AP58^2)+2*AC58*(1-AP58)+2*LN((1-AC58)/(1-AC58*AP58)))/(AC58^3)),$F$6*AC58*(LN((1-AB58+AB58^2)/(1+AB58)^2)/(6*AB58)+ATAN((2-AB58)/(AB58*3^0.5))/(AB58*3^0.5)-LN((AP58^2-AB58*AP58+AB58^2)/(AP58+AB58)^2)/(6*AB58)-ATAN((2*AP58-AB58)/(AB58*3^0.5))/(AB58*3^0.5))) -> 19.59635071 | AE58: =IF($C$2=1,($O$31*AA58*$F$6/$O$30)*(1-AP58^3-(AB58-AC58)*(-2*AC58^3*(1-AP58^3)-3*AC58^2*(1-AP58^2)-6*AC58*(1-AP58)-6*LN((1-AC58)/(1-AC58*AP58)))/(2*AC58^4))/3,$F$6*AC58*(LN((1+AB58^3)/(AB58^3+AP58^3)))/3) -> 12.14025587 | AF58: =AE58/AD58 -> 0.6195161567 | AG58: =AD58*Z58*$D$6 -> 3.359760024 | AH58: =MAX(MIN($K$6,$Q$6*$J$6*AA58*(Z58-$I$6)/Z58),-$K$6) -> 458.3333333 | AI58: =AH58*$H$6 -> 0.2764601535 | AJ58: =MIN($O$6,$Q$6*$N$6*AA58*(C$6-Z58-$M$6)/Z58) -> 216.340651 | AK58: =AJ58*$L$6 -> 0.1304936064 | AL58: =(0.5*$C$6-Z58+AF58*Z58)*AG58+(0.5*$C$6-$I$6)*AI58+(0.5*$C$6-$M$6)*AK58 -> 0.4707664575 | AM58: =0.1*$Q$6*AA58*$B$6^2/Z58+$R$6 -> 0.05424346151 | AN58: =AG58+AI58-AK58 -> 3.505726571 | AO58: =AL58-AM58*AN58 -> 0.2806037132 | AP58: =IF(Z58<$C$6,0,(Z58-$C$6)/Z58) -> 0
B59: =D39*$Q$31 -> 4.191577985e-05 | C59: 0.2097697917 | D59: 0.0007517136205 | E59: 0.15050898 | F59: -0.04814310139 | G59: 8.6592428 | H59: 5.669295369 | I59: 0.6547102904 | J59: 0.7629079747 | K59: 277.4418707 | L59: 0.1673489938 | M59: 458.3333333 | N59: 0.2764601535 | O59: 0.2439266192 | P59: 0.03334419855 | Q59: 0.653796815 | R59: 0.2221262884 | S59: -0.04029503881 | T59: 0.1833807624 | U59: 0.1194566555 | V59: 0.2209075451 | W59: 0
B60: 4.615215171e-05 | C60: 0.2321097583 | D60: 0.0008276883117 | E60: 0.1657207215 | F60: -0.05300886032 | G60: 9.398560638 | H60: 6.140890948 | I60: 0.6533863199 | J60: 0.9162290078 | K60: 317.2613906 | L60: 0.1913675624 | M60: 456.9526075 | N60: 0.2756273193 | O60: 0.2717379186 | P60: 0.03318059992 | Q60: 0.8319692509 | R60: 0.2441326797 | S60: -0.1461420766 | T60: 0.3406446993 | U60: 0.06188233985 | V60: 0.2364053697 | W60: 0
B61: 5.038852357e-05 | C61: 0.2577379418 | D61: 0.0009036630029 | E61: 0.180932463 | F61: -0.05787461925 | G61: 10.1139667 | H61: 6.594692205 | I61: 0.6520381567 | J61: 1.094836244 | K61: 358.390477 | L61: 0.2161760428 | M61: 402.8392545 | N61: 0.2429869137 | O61: 0.2938418414 | P61: 0.03262413135 | Q61: 1.068025373 | R61: 0.2589984414 | S61: -0.02695328088 | T61: 0.1141866283 | U61: 0.167789245 | V61: =S41*Q61^2+T41*Q61+U41 -> 0.2509930197 | W61: 0
B62: 5.462489544e-05 | C62: 0.2872822932 | D62: 0.0009796376942 | E62: 0.1961442045 | F62: -0.06274037818 | G62: 10.80570841 | H62: 7.030895643 | I62: 0.6506649427 | J62: 1.30380125 | K62: 400.6457471 | L62: 0.2416638212 | M62: 339.7164318 | N62: 0.2049121241 | O62: 0.3149606918 | P62: 0.03172980766 | Q62: 1.340552947 | R62: 0.2724252046 | S62: -0.02469944063 | T62: 0.1087580775 | U62: 0.1710161685 | V62: 0.2643331967 | W62: 0
B63: 5.88612673e-05 | C63: 0.3215203423 | D63: 0.001055612385 | E63: 0.211355946 | F63: -0.06760613711 | G63: 11.47402956 | H63: 7.449694767 | I63: 0.6492657813 | J63: 1.549436243 | K63: 443.8536579 | L63: 0.2677262191 | M63: 268.9724829 | N63: 0.1622403794 | O63: 0.3339136568 | P63: 0.03054969175 | Q63: 1.654922082 | R63: 0.2833562973 | S63: -0.0382528919 | T63: 0.1493571024 | U63: 0.1409476922 | V63: 0.2749420699 | W63: 0
B64: 6.309763917e-05 | C64: 0.3614224729 | D64: 0.001131587077 | E64: 0.2265676875 | F64: -0.07247189604 | G64: 12.1191704 | H64: 7.851280143 | I64: 0.6478397352 | J64: 1.839659025 | K64: 458.3333333 | L64: 0.2764601535 | M64: 191.9170329 | N64: 0.115761627 | O64: 0.3449252234 | P64: 0.02913289454 | Q64: 2.000357551 | R64: 0.2866490178 | S64: -0.03386021453 | T64: 0.1333006383 | U64: 0.1554893689 | V64: 0.2798558977 | W64: 0
B65: 6.733401103e-05 | C65: 0.4082101177 | D65: 0.001207561768 | E65: 0.241779429 | F65: -0.07733765497 | G65: 12.74136769 | H65: 8.235839452 | I65: 0.6463858241 | J65: 2.184485185 | K65: 458.3333333 | L65: 0.2764601535 | M65: 109.7809885 | N65: 0.06621833224 | O65: 0.3464454826 | P65: 0.02752557505 | Q65: 2.394727006 | R65: 0.2805292447 | S65: -0.03051016824 | T65: 0.1185769015 | U65: 0.17153713 | V65: 0.272547064 | W65: 0 | Y65: hc | Z65: e0 | AA65: a' | AB65: b' | AC65: N' | AD65: tN' | AE65: t' | AF65: Nc | AG65: sac | AH65: Nac | AI65: sat | AJ65: Nat | AK65: Mtot | AL65: N | AM65: u | AN65: Mo | AP65: N | AQ65: A | AR65: B1 | AS65: B2 | AT65: B3 | AU65: C1 | AV65: C2 | AW65: x
B66: 7.157038289e-05 | C66: 0.4634349203 | D66: 0.001283536459 | E66: 0.2569911705 | F66: -0.0822034139 | G66: 13.34085476 | H66: 8.603557553 | I66: 0.6449030223 | J66: 2.596699544 | K66: 458.3333333 | L66: 0.2764601535 | M66: 23.71653776 | N66: 0.01430547855 | O66: 0.3348455141 | P66: 0.02577094031 | Q66: 2.858854219 | R66: 0.2611701527 | S66: -0.03306500219 | T66: 0.1319989292 | U66: 0.1540462887 | V66: 0.251511605 | W66: 0 | AW66: 0
B67: 7.580675476e-05 | C67: 0.5290877597 | D67: 0.00135951115 | E67: 0.272202912 | F67: -0.08706917284 | G67: 13.9178616 | H67: 8.95461653 | I67: 0.6433902557 | J67: 3.092783489 | K67: 458.3333333 | L67: 0.2764601535 | M67: -65.20284972 | N67: -0.03932943239 | O67: 0.301309252 | P67: 0.02390924545 | Q67: 3.408573075 | R67: 0.2198128418 | S67: -0.02064012285 | T67: 0.0541269013 | U67: 0.2751219358 | V67: 0.2085161731 | W67: 0 | Y67: =0.5*(-(AR67+AS67+AT67)+SQRT(MAX((AR67+AS67+AT67)^2+4*AQ67*(AU67+AV67),0)))/AQ67 -> 0.1278156033 | Z67: =0.05*O30 -> 0.0001162124957 | AA67: =IF($C$2=1,Z67/($O$31*$O$30),2^(1/3)*$O$30/Z67) -> 0.02326820176 | AB67: =IF($C$2=1,-($O$31-2)*Z67/$O$30,3*($O$30/Z67)^2) -> -0.007442767845 | AC67: =IF($C$2=1,0.5*($O$31*Z67*$F$6/$O$30)*(1-AW66^2+(AA67-AB67)*(AB67^2*(1-AW66^2)+2*AB67*(1-AW66)+2*LN((1-AB67)/(1-AB67*AW66)))/(AB67^3)),$F$6*AB67*(LN((1-AA67+AA67^2)/(1+AA67)^2)/(6*AA67)+ATAN((2-AA67)/(AA67*3^0.5))/(AA67*3^0.5)-LN((AW66^2-AA67*AW66+AA67^2)/(AW66+AA67)^2)/(6*AA67)-ATAN((2*AW66-AA67)/(AA67*3^0.5))/(AA67*3^0.5))) -> 1.503645621 | AD67: =IF($C$2=1,($O$31*Z67*$F$6/$O$30)*(1-AW66^3-(AA67-AB67)*(-2*AB67^3*(1-AW66^3)-3*AB67^2*(1-AW66^2)-6*AB67*(1-AW66)-6*LN((1-AB67)/(1-AB67*AW66)))/(2*AB67^4))/3,$F$6*AB67*(LN((1+AA67^3)/(AA67^3+AW66^3)))/3) -> 0.9998348468 | AE67: =AD67/AC67 -> 0.6649404839 | AF67: =AC67*Y67*$D$6 -> 0.08071953633 | AG67: =MAX(MIN($K$6,$Q$6*$J$6*Z67*(Y67-$I$6)/Y67),-$K$6) -> 31.87402355 | AH67: =AG67*$H$6 -> 0.01922595806 | AI67: =MIN($O$6,$Q$6*$N$6*Z67*(C$6-Y67-$M$6)/Y67) -> 165.5302498 | AJ67: =AI67*$L$6 -> 0.09984549439 | AK67: =(0.5*$C$6-Y67+AE67*Y67)*AF67+(0.5*$C$6-$I$6)*AH67+(0.5*$C$6-$M$6)*AJ67 -> 0.04334239834 | AL67: =AF67+AH67-AJ67 -> 0.0001 | AO67: 0 | AP67: =AO67*$AP$100 -> 0 | AQ67: =AC67*$D$6 -> 0.6315311608 | AR67: =$Q$6*Z67*$H$6*$J$6 -> 0.03623616555 | AS67: =$Q$6*Z67*$L$6*$N$6 -> 0.03623616555 | AT67: =-(AP67+0.0001) -> -0.0001 | AU67: =$I$6*$Q$6*Z67*$H$6*$J$6 -> 0.002174169933 | AV67: =($C$6-$M$6)*$Q$6*Z67*$L$6*$N$6 -> 0.01739335946 | AW67: 0
B68: 8.004312662e-05 | C68: 0.6077509315 | D68: 0.001435485842 | E68: 0.2874146535 | F68: -0.09193493177 | G68: 14.24359106 | H68: 9.272235944 | I68: 0.6509760008 | J68: 3.635753408 | K68: 458.3333333 | L68: 0.2764601535 | M68: -155.9824227 | N68: -0.09408638081 | O68: 0.2487371333 | P68: 0.02197779363 | Q68: 4.006299943 | R68: 0.1606874999 | S68: 0.003200529244 | T68: -0.1226485066 | U68: 0.6006843048 | V68: 0.1504709895 | W68: 0.1114781204 | Y68: =0.5*(-(AR68+AS68+AT68)+SQRT(MAX((AR68+AS68+AT68)^2+4*AQ68*(AU68+AV68),0)))/AQ68 -> 0.1294110811 | Z68: =MIN(Z67*$O$6/AI67,$O$30) -> 0.0003217784097 | AA68: 0.06442684941 | AB68: -0.02060812812 | AC68: =IF($C$2=1,0.5*($O$31*Z68*$F$6/$O$30)*(1-AW67^2+(AA68-AB68)*(AB68^2*(1-AW67^2)+2*AB68*(1-AW67)+2*LN((1-AB68)/(1-AB68*AW67)))/(AB68^3)),$F$6*AB68*(LN((1-AA68+AA68^2)/(1+AA68)^2)/(6*AA68)+ATAN((2-AA68)/(AA68*3^0.5))/(AA68*3^0.5)-LN((AW67^2-AA68*AW67+AA68^2)/(AW67+AA68)^2)/(6*AA68)-ATAN((2*AW67-AA68)/(AA68*3^0.5))/(AA68*3^0.5))) -> 4.01267833 | AD68: =IF($C$2=1,($O$31*Z68*$F$6/$O$30)*(1-AW67^3-(AA68-AB68)*(-2*AB68^3*(1-AW67^3)-3*AB68^2*(1-AW67^2)-6*AB68*(1-AW67)-6*LN((1-AB68)/(1-AB68*AW67)))/(2*AB68^4))/3,$F$6*AB68*(LN((1+AA68^3)/(AA68^3+AW67^3)))/3) -> 2.655527922 | AE68: 0.6617844003 | AF68: 0.2180997171 | AG68: =MAX(MIN($K$6,$Q$6*$J$6*Z68*(Y68-$I$6)/Y68),-$K$6) -> 89.21801372 | AH68: 0.05381503804 | AI68: 450.6318946 | AJ68: 0.2718147551 | AK68: 0.1177232072 | AL68: 0.0001 | AP68: =AP67 -> 0 | AQ68: 1.685324898 | AR68: =IF(AG67<$K$6,$Q$6*Z68*$H$6*$J$6,$H$6*$K$6) -> 0.1003335799 | AS68: =IF(AI67<$O$6,$Q$6*Z68*$L$6*$N$6,-$L$6*$O$6) -> 0.1003335799 | AT68: -0.0001 | AU68: =IF(AG67<$K$6,$I$6*$Q$6*Z68*$H$6*$J$6,0) -> 0.006020014795 | AV68: =IF(AI67<$O$6,($C$6-$M$6)*$Q$6*Z68*$L$6*$N$6,0) -> 0.04816011836 | AW68: 0
B69: 8.427949848e-05 | C69: 0.7028136984 | D69: 0.001511460533 | E69: 0.302626395 | F69: -0.0968006907 | G69: 13.99900076 | H69: 9.453295537 | I69: 0.6752835933 | J69: 4.132249589 | K69: 458.3333333 | L69: 0.2764601535 | M69: -247.7061486 | N69: -0.1494128288 | O69: 0.1993454141 | P69: 0.02001093608 | Q69: 4.558122572 | R69: 0.1081331147 | S69: 0.004438344583 | T69: -0.1332496802 | U69: 0.6232883059 | V69: 0.1003675864 | W69: 0.231659825 | Y69: 0.1294548641 | Z69: =IF(ABS(Z68-Z67)/Z68<0.0001,Z68,MIN(Z68*$O$6/AI68,$O$30)) -> 0.0003272777025 | AA69: 0.06552792423 | AB69: -0.02096032742 | AC69: 4.077195701 | AD69: 2.697872574 | AE69: 0.6616980817 | AF69: 0.2216813824 | AG69: 90.76930625 | AH69: 0.05475075565 | AI69: 458.1211011 | AJ69: 0.276332138 | AK69: 0.1196728827 | AL69: 0.0001 | AP69: =AP68 -> 0 | AQ69: 1.712422194 | AR69: =IF(AG68<$K$6,$Q$6*Z69*$H$6*$J$6,$H$6*$K$6) -> 0.1020483119 | AS69: =IF(AI68<$O$6,$Q$6*Z69*$L$6*$N$6,-$L$6*$O$6) -> 0.1020483119 | AT69: -0.0001 | AU69: =IF(AG68<$K$6,$I$6*$Q$6*Z69*$H$6*$J$6,0) -> 0.006122898713 | AV69: =IF(AI68<$O$6,($C$6-$M$6)*$Q$6*Z69*$L$6*$N$6,0) -> 0.04898318971 | AW69: 0
B70: 8.851587035e-05 | C70: 0.8187825065 | D70: 0.001587435224 | E70: 0.3178381365 | F70: -0.1016664496 | G70: 13.31123965 | H70: 9.415408097 | I70: 0.7073276677 | J70: 4.57758427 | K70: 458.3333333 | L70: 0.2764601535 | M70: -339.5367131 | N70: -0.2048037204 | O70: 0.1540462623 | P70: 0.01804007208 | Q70: 5.058848144 | R70: 0.0627842772 | S70: 0.005276416216 | T70: -0.1413093905 | U70: 0.6426132739 | V70: 0.05739494318 | W70: 0.3404841998 | Y70: 0.1294560717 | Z70: =IF(ABS(Z69-Z68)/Z69<0.001,Z69,MIN(Z69*$O$6/AI69,$O$30)) -> 0.0003274293193 | AA70: 0.06555828113 | AB70: =IF($C$2=1,-($O$31-2)*Z70/$O$30,3*($O$30/Z70)^2) -> -0.02097003764 | AC70: =IF($C$2=1,0.5*($O$31*Z70*$F$6/$O$30)*(1-AW69^2+(AA70-AB70)*(AB70^2*(1-AW69^2)+2*AB70*(1-AW69)+2*LN((1-AB70)/(1-AB70*AW69)))/(AB70^3)),$F$6*AB70*(LN((1-AA70+AA70^2)/(1+AA70)^2)/(6*AA70)+ATAN((2-AA70)/(AA70*3^0.5))/(AA70*3^0.5)-LN((AW69^2-AA70*AW69+AA70^2)/(AW69+AA70)^2)/(6*AA70)-ATAN((2*AW69-AA70)/(AA70*3^0.5))/(AA70*3^0.5))) -> 4.078972558 | AD70: 2.699038603 | AE70: 0.6616957003 | AF70: 0.2217800608 | AG70: 90.81208847 | AH70: 0.05477656128 | AI70: 458.3274788 | AJ70: 0.2764566221 | AK70: 0.1197266062 | AL70: 0.0001 | AP70: =AP69 -> 0 | AQ70: 1.713168474 | AR70: =IF(AG69<$K$6,$Q$6*Z70*$H$6*$J$6,$H$6*$K$6) -> 0.1020955875 | AS70: =IF(AI69<$O$6,$Q$6*Z70*$L$6*$N$6,-$L$6*$O$6) -> 0.1020955875 | AT70: -0.0001 | AU70: =IF(AG69<$K$6,$I$6*$Q$6*Z70*$H$6*$J$6,0) -> 0.006125735249 | AV70: =IF(AI69<$O$6,($C$6-$M$6)*$Q$6*Z70*$L$6*$N$6,0) -> 0.04900588199 | AW70: =IF(Y70<=$C$6,0,(Y70-$C$6)/Y70) -> 0
B71: 9.275224221e-05 | C71: 0.9617353345 | D71: 0.001663409915 | E71: 0.333049878 | F71: -0.1065322086 | G71: 12.30545826 | H71: 9.132882315 | I71: 0.7421814062 | J71: 4.970529486 | K71: 458.3333333 | L71: 0.2764601535 | M71: -430.7155205 | N71: -0.2598014813 | O71: 0.1130823346 | P71: 0.01609364897 | Q71: 5.506791121 | R71: 0.02445797136 | S71: 0.006204114728 | T71: -0.1511111183 | U71: 0.6684571176 | V71: 0.02131391079 | W71: 0.4385149629 | Y71: 0.1627760852 | Z71: =Z70 -> 0.0003274293193 | AA71: 0.06555828113 | AB71: -0.02097003764 | AC71: 4.078972558 | AD71: 2.699038603 | AE71: 0.6616957003 | AF71: 0.2788628575 | AG71: 106.8703773 | AH71: 0.06446269293 | AI71: 329.8611678 | AJ71: 0.1989675689 | AK71: 0.1152569486 | AL71: 0.1443579815 | AO71: =IF(C6<0.12,0.0125,0.025) -> 0.025 | AP71: =AO71*$AP$100 -> 0.1442579815 | AQ71: 1.713168474 | AR71: =$Q$6*Z71*$H$6*$J$6 -> 0.1020955875 | AS71: =$Q$6*Z71*$L$6*$N$6 -> 0.1020955875 | AT71: -0.1443579815 | AU71: =$I$6*$Q$6*Z71*$H$6*$J$6 -> 0.006125735249 | AV71: =($C$6-$M$6)*$Q$6*Z71*$L$6*$N$6 -> 0.04900588199 | AW71: 0
B72: 9.698861408e-05 | C72: 1.140000103 | D72: 0.001739384606 | E72: 0.3482616195 | F72: -0.1113979675 | G72: 11.09300086 | H72: 8.620335556 | I72: 0.7770968079 | J72: 5.311329291 | K72: 458.3333333 | L72: 0.2764601535 | M72: -520.5626935 | N72: -0.3139960192 | O72: 0.07651628589 | P72: 0.01419716215 | Q72: 5.901785464 | R72: -0.007272319301 | S72: 0.007231651217 | T72: -0.1628338471 | U72: 0.7018519506 | V72: -0.008330328649 | W72: 0.5263158323 | Y72: 0.1539818791 | Z72: =MIN(Z71*$O$6/AI71,$O$30) -> 0.0004549543444 | AA72: 0.09109149075 | AB72: -0.02913731045 | AC72: 5.53754622 | AD72: 3.652925392 | AE72: 0.6596649937 | AF72: 0.3581263444 | AG72: 143.5425415 | AH72: 0.0865828212 | AI72: 458.3333333 | AJ72: 0.2764601535 | AK72: 0.1541653748 | AL72: 0.1682490121 | AP72: =AP71 -> 0.1442579815 | AQ72: 2.325769412 | AR72: =IF(AG71<$K$6,$Q$6*Z72*$H$6*$J$6,$H$6*$K$6) -> 0.1418591077 | AS72: =IF(AI71<$O$6,$Q$6*Z72*$L$6*$N$6,-$L$6*$O$6) -> 0.1418591077 | AT72: -0.1443579815 | AU72: =IF(AG71<$K$6,$I$6*$Q$6*Z72*$H$6*$J$6,0) -> 0.008511546461 | AV72: =IF(AI71<$O$6,($C$6-$M$6)*$Q$6*Z72*$L$6*$N$6,0) -> 0.06809237169 | AW72: 0
B73: 0.0001012249859 | C73: 1.36518953 | D73: 0.001815359298 | E73: 0.363473361 | F73: =IF($C$2=1,-($O$31-2)*D73/$O$30,3*($O$30/D73)^2) -> -0.1162637264 | G73: 9.769136416 | H73: 7.917893524 | I73: 0.8105008659 | J73: 5.601423554 | K73: 458.3333333 | L73: 0.2764601535 | M73: -608.4770733 | N73: -0.3670247238 | O73: 0.04426501404 | P73: 0.01237315507 | Q73: 6.244908432 | R73: -0.03300420641 | W73: 0.6044505263 | Y73: 0.182541582 | Z73: =Z72 -> 0.0004549543444 | AA73: 0.09109149075 | AB73: -0.02913731045 | AC73: 5.53754622 | AD73: 3.652925392 | AE73: 0.6596649937 | AF73: 0.424549628 | AG73: 157.8802462 | AH73: 0.09523112097 | AI73: 383.2397746 | AJ73: 0.231164786 | AK73: 0.1567962711 | AL73: 0.2886159629 | AO73: =IF(C6<0.12,0.025,0.05) -> 0.05 | AP73: =AO73*$AP$100 -> 0.2885159629 | AQ73: 2.325769412 | AR73: =$Q$6*Z73*$H$6*$J$6 -> 0.1418591077 | AS73: =$Q$6*Z73*$L$6*$N$6 -> 0.1418591077 | AT73: -0.2886159629 | AU73: =$I$6*$Q$6*Z73*$H$6*$J$6 -> 0.008511546461 | AV73: =($C$6-$M$6)*$Q$6*Z73*$L$6*$N$6 -> 0.06809237169 | AW73: 0
B74: De | C74: hc | D74: e0 | E74: a' | F74: b' | G74: N' | H74: tN' | I74: t | J74: Nc | K74: sac | L74: Nac | M74: sat | N74: Nat | O74: Mtot | P74: u | Q74: N | R74: Mo | S74: a'' | T74: b'' | U74: c'' | W74: x | Y74: 0.1739496446 | Z74: =MIN(Z73*$O$6/AI73,$O$30) -> 0.0005440999474 | AA74: 0.1089403276 | AB74: -0.03484659346 | AC74: 6.514946625 | AD74: 4.288211959 | AE74: 0.6582113724 | AF74: 0.475974513 | AG74: 184.2495428 | AH74: 0.111136706 | AI74: 458.3333333 | AJ74: 0.2764601535 | AK74: 0.1816098654 | AL74: 0.3106510655 | AP74: =AP73 -> 0.2885159629 | AQ74: 2.736277582 | AR74: =IF(AG73<$K$6,$Q$6*Z74*$H$6*$J$6,$H$6*$K$6) -> 0.1696555577 | AS74: =IF(AI73<$O$6,$Q$6*Z74*$L$6*$N$6,-$L$6*$O$6) -> 0.1696555577 | AT74: -0.2886159629 | AU74: =IF(AG73<$K$6,$I$6*$Q$6*Z74*$H$6*$J$6,0) -> 0.01017933346 | AV74: =IF(AI73<$O$6,($C$6-$M$6)*$Q$6*Z74*$L$6*$N$6,0) -> 0.08143466769 | AW74: 0
C75: =$C$35 -> 0.1294560717 | D75: =$D$35 -> 0.0003274293193 | E75: =$E$35 -> 0.06555828113 | F75: =$F$35 -> -0.02097003764 | G75: =IF($C$2=1,0.5*($O$31*D75*$F$6/$O$30)*(1-W75^2+(E75-F75)*(F75^2*(1-W75^2)+2*F75*(1-W75)+2*LN((1-F75)/(1-F75*W75)))/(F75^3)),$F$6*F75*(LN((1-E75+E75^2)/(1+E75)^2)/(6*E75)+ATAN((2-E75)/(E75*3^0.5))/(E75*3^0.5)-LN((W75^2-E75*W75+E75^2)/(W75+E75)^2)/(6*E75)-ATAN((2*W75-E75)/(E75*3^0.5))/(E75*3^0.5))) -> 4.078972558 | H75: =IF($C$2=1,($O$31*D75*$F$6/$O$30)*(1-W75^3-(E75-F75)*(-2*F75^3*(1-W75^3)-3*F75^2*(1-W75^2)-6*F75*(1-W75)-6*LN((1-F75)/(1-F75*W75)))/(2*F75^4))/3,$F$6*F75*(LN((1+E75^3)/(E75^3+W75^3)))/3) -> 2.699038603 | I75: =$I$35 -> 0.6616957003 | J75: =$J$35 -> 0.2217800608 | K75: =$K$35 -> 90.81208847 | L75: =$L$35 -> 0.05477656128 | M75: =$M$35 -> 458.3274788 | N75: =$N$35 -> 0.2764566221 | O75: =$O$35 -> 0.1197266062 | P75: =$P$35 -> 0.02353455288 | Q75: =$Q$35 -> 0.0001 | R75: =$R$35 -> 0.1197242527 | W75: =IF(C75<$C$6,0,(C75-$C$6)/C75) -> 0 | Y75: 0.200872553 | Z75: =Z74 -> 0.0005440999474 | AA75: 0.1089403276 | AB75: -0.03484659346 | AC75: 6.514946625 | AD75: 4.288211959 | AE75: 0.6582113724 | AF75: 0.5496430638 | AG75: 197.2526179 | AH75: 0.118979976 | AI75: 390.8399361 | AJ75: 0.2357490954 | AK75: 0.1851604632 | AL75: 0.4328739444 | AO75: =IF(C6<0.12,0.0375,0.075) -> 0.075 | AP75: =AO75*$AP$100 -> 0.4327739444 | AQ75: 2.736277582 | AR75: =$Q$6*Z75*$H$6*$J$6 -> 0.1696555577 | AS75: =$Q$6*Z75*$L$6*$N$6 -> 0.1696555577 | AT75: -0.4328739444 | AU75: =$I$6*$Q$6*Z75*$H$6*$J$6 -> 0.01017933346 | AV75: =($C$6-$M$6)*$Q$6*Z75*$L$6*$N$6 -> 0.08143466769 | AW75: 0
B76: =IF(R56>$Q$29*V56,B56,-0.7*B56) -> -4.701633175e-06 | C76: =IF(Q56>Q55,C56,(1-$T$6)*C56+$T$6*C57) -> 0.1539818791 | D76: =D56+B76 -> 0.0004569693301 | E76: =IF($C$2=1,D76/($O$31*$O$30),2^(1/3)*$O$30/D76) -> 0.09149493354 | F76: =IF($C$2=1,-($O$31-2)*D76/$O$30,3*($O$30/D76)^2) -> -0.02926635914 | G76: =IF($C$2=1,0.5*($O$31*D76*$F$6/$O$30)*(1-W76^2+(E76-F76)*(F76^2*(1-W76^2)+2*F76*(1-W76)+2*LN((1-F76)/(1-F76*W76)))/(F76^3)),$F$6*F76*(LN((1-E76+E76^2)/(1+E76)^2)/(6*E76)+ATAN((2-E76)/(E76*3^0.5))/(E76*3^0.5)-LN((W76^2-E76*W76+E76^2)/(W76+E76)^2)/(6*E76)-ATAN((2*W76-E76)/(E76*3^0.5))/(E76*3^0.5))) -> 5.560020022 | H76: =IF($C$2=1,($O$31*D76*$F$6/$O$30)*(1-W76^3-(E76-F76)*(-2*F76^3*(1-W76^3)-3*F76^2*(1-W76^2)-6*F76*(1-W76)-6*LN((1-F76)/(1-F76*W76)))/(2*F76^4))/3,$F$6*F76*(LN((1+E76^3)/(E76^3+W76^3)))/3) -> 3.667569643 | I76: =H76/G76 -> 0.6596324526 | J76: =G76*C76*$D$6 -> 0.3595797789 | K76: =MAX(MIN($K$6,$Q$6*$J$6*D76*(C76-$I$6)/C76),-$K$6) -> 144.1782891 | L76: =K76*$H$6 -> 0.08696629516 | M76: =MIN($O$6,$Q$6*$N$6*D76*(C$6-C76-$M$6)/C76) -> 458.3333333 | N76: =M76*$L$6 -> 0.2764601535 | O76: =(0.5*$C$6-C76+I76*C76)*J76+(0.5*$C$6-$I$6)*L76+(0.5*$C$6-$M$6)*N76 -> 0.1545603621 | P76: =0.1*$Q$6*D76*$B$6^2/C76+$R$6 -> 0.02761393185 | Q76: =(J76+L76-N76) -> 0.1700859205 | R76: =O76-P76*Q76 -> 0.149863621 | S76: =((R76-R75)*(Q76-Q77)-(R76-R77)*(Q76-Q75))/((Q76^2-Q75^2)*(Q76-Q77)-(Q76^2-Q77^2)*(Q76-Q75)) -> -0.04990037308 | T76: =-(S76*(Q76^2-Q75^2)-(R76-R75))/(Q76-Q75) -> 0.1857974274 | U76: =R76-S76*Q76^2-T76*Q76 -> 0.1197056735 | V76: =S56*Q76^2+T56*Q76+U56 -> 0.1498932827 | W76: =IF(C76<$C$6,0,(C76-$C$6)/C76) -> 0 | Y76: 0.1902071471 | Z76: =MIN(Z75*$O$6/AI75,$O$30) -> 0.0006380595213 | AA76: 0.1277530233 | AB76: -0.04086418469 | AC76: 7.508074364 | AD76: 4.93015821 | AE76: 0.6566474932 | AF76: 0.5997975502 | AG76: 225.7914493 | AH76: 0.1361941936 | AI76: 458.3333333 | AJ76: 0.2764601535 | AK76: 0.2094311126 | AL76: 0.4595315903 | AP76: =AP75 -> 0.4327739444 | AQ76: 3.153391233 | AR76: =IF(AG75<$K$6,$Q$6*Z76*$H$6*$J$6,$H$6*$K$6) -> 0.1989530498 | AS76: =IF(AI75<$O$6,$Q$6*Z76*$L$6*$N$6,-$L$6*$O$6) -> 0.1989530498 | AT76: -0.4328739444 | AU76: =IF(AG75<$K$6,$I$6*$Q$6*Z76*$H$6*$J$6,0) -> 0.01193718299 | AV76: =IF(AI75<$O$6,($C$6-$M$6)*$Q$6*Z76*$L$6*$N$6,0) -> 0.09549746389 | AW76: 0
B77: =IF(R57>$Q$29*V57,B57,-0.7*B57) -> -1.124578057e-05 | C77: =IF(Q57>Q56,C57,(1-$T$6)*C57+$T$6*C58) -> 0.1739496446 | D77: =D57+B77 -> 0.0005489195676 | E77: 0.1099053176 | F77: -0.03515526349 | G77: 6.566809967 | H77: 4.321827501 | I77: 0.658131958 | J77: 0.4797635893 | K77: 185.8816195 | L77: 0.1121211514 | M77: 458.3333333 | N77: 0.2764601535 | O77: 0.1826077462 | P77: =0.1*$Q$6*D77*$B$6^2/C77+$R$6 -> 0.0293626993 | Q77: 0.3154245872 | R77: 0.1733460289 | S77: -0.0359127809 | T77: 0.1790063045 | U77: 0.1204560977 | V77: 0.1734108939 | W77: 0
B78: -1.978168919e-05 | C78: 0.1902071471 | D78: 0.0006465373881 | E78: 0.1294504717 | F78: -0.04140714519 | G78: 7.595829349 | H78: 4.986697949 | I78: 0.656504737 | J78: 0.6068080329 | K78: 228.7915297 | L78: 0.1380037995 | M78: 458.3333333 | N78: 0.2764601535 | O78: 0.211229642 | P78: 0.0316284292 | Q78: 0.4683516788 | R78: 0.1964164141 | S78: -0.03342447816 | T78: 0.1770560318 | U78: 0.1208236938 | V78: 0.1965120054 | W78: 0
B79: 4.191577985e-05 | C79: 0.2097697917 | D79: 0.0007936294003 | E79: 0.1589014064 | F79: -0.05082757534 | G79: 9.070101644 | H79: 5.931690363 | I79: 0.6539827883 | J79: 0.7991059998 | K79: 292.9121137 | L79: 0.1766804245 | M79: 458.3333333 | N79: 0.2764601535 | O79: 0.2529158647 | P79: 0.03520348119 | Q79: 0.6993262708 | R79: 0.2282971454 | S79: -0.03605483781 | T79: 0.1801274448 | U79: 0.1199621704 | V79: 0.22799306 | W79: 0 | Y79: hc | Z79: e0 | AA79: a' | AB79: b' | AC79: N' | AD79: tN' | AE79: t' | AF79: Nc | AG79: sac | AH79: Nac | AI79: sat | AJ79: Nat | AK79: Mtot | AL79: N | AM79: u | AN79: Mo | AP79: N | AQ79: A | AR79: B1 | AS79: B2 | AT79: B3 | AU79: C1 | AV79: C2 | AW79: gættet x | AX79: beregnet x | AY79: Max-valg | AZ79: hc' | BA79: sac | BB79: sat
B80: 4.615215171e-05 | C80: 0.2321097583 | D80: 0.0008738404634 | E80: 0.1749613592 | F80: -0.05596465047 | G80: 9.835981536 | H80: 6.418669353 | I80: 0.652570293 | J80: 0.9588714645 | K80: 334.9519821 | L80: 0.2020382758 | M80: 458.3333333 | N80: 0.2764601535 | O80: 0.2820548204 | P80: 0.03503076025 | Q80: 0.8844495868 | R80: 0.251071879 | S80: -0.1045058685 | T80: 0.2885385347 | U80: 0.0776239189 | V80: 0.2488456074 | W80: 0 | Y80: =$C$6 -> 0.54
B81: 5.038852357e-05 | C81: 0.2577379418 | D81: 0.0009540515265 | E81: 0.1910213121 | F81: -0.0611017256 | G81: 10.57537663 | H81: 6.885947683 | I81: 0.6511302554 | J81: 1.144783838 | K81: 378.3744388 | L81: 0.2282300846 | M81: 425.3016937 | N81: 0.2565359379 | O81: 0.3079570071 | P81: 0.03444326282 | Q81: 1.116477985 | R81: 0.2695018624 | S81: -0.06357851796 | T81: 0.2066458705 | U81: 0.1180383881 | V81: 0.2616782146 | W81: 0 | Y81: =0.5*(-(AR81+AS81+AT81)+SQRT((AR81+AS81+AT81)^2+4*AQ81*(AU81+AV81)))/AQ81 -> 0.6096480643 | Z81: =$O$30 -> 0.002324249914 | AA81: =IF($C$2=1,Z81/($O$31*$O$30),2^(1/3)*$O$30/Z81) -> 0.4653640352 | AB81: =IF($C$2=1,-($O$31-2)*Z81/$O$30,3*($O$30/Z81)^2) -> -0.1488553569 | AC81: =IF($C$2=1,0.5*($O$31*Z81*$F$6/$O$30)*(1-AW81^2+(AA81-AB81)*(AB81^2*(1-AW81^2)+2*AB81*(1-AW81)+2*LN((1-AB81)/(1-AB81*AW81)))/(AB81^3)),$F$6*AB81*(LN((1-AA81+AA81^2)/(1+AA81)^2)/(6*AA81)+ATAN((2-AA81)/(AA81*3^0.5))/(AA81*3^0.5)-LN((AW81^2-AA81*AW81+AA81^2)/(AW81+AA81)^2)/(6*AA81)-ATAN((2*AW81-AA81)/(AA81*3^0.5))/(AA81*3^0.5))) -> 19.38238213 | AD81: =IF($C$2=1,($O$31*Z81*$F$6/$O$30)*(1-AW81^3-(AA81-AB81)*(-2*AB81^3*(1-AW81^3)-3*AB81^2*(1-AW81^2)-6*AB81*(1-AW81)-6*LN((1-AB81)/(1-AB81*AW81)))/(2*AB81^4))/3,$F$6*AB81*(LN((1+AA81^3)/(AA81^3+AW81^3)))/3) -> 12.03679903 | AE81: =AD81/AC81 -> 0.6210175278 | AF81: =AC81*Y81*$D$6 -> 4.962901334 | AG81: =MAX(MIN($K$6,$Q$6*$J$6*Z81*(Y81-$I$6)/Y81),-$K$6) -> 458.3333333 | AH81: =AG81*$H$6 -> 0.2764601535 | AI81: =MIN($O$6,$Q$6*$N$6*Z81*(C$6-Y81-$M$6)/Y81) -> -255.5100384 | AJ81: =AI81*$L$6 -> -0.1541200242 | AK81: =(0.5*$C$6-Y81+AE81*Y81)*AF81+(0.5*$C$6-$I$6)*AH81+(0.5*$C$6-$M$6)*AJ81 -> 0.2190166302 | AL81: =AF81+AH81-AJ81 -> 5.393481512 | AM81: =0.1*$Q$6*Z81*$B$6^2/Y81+$R$6 -> 0.03547434908 | AN81: =AK81-AM81*AL81 -> 0.02768638433 | AO81: =IF(AN81=$AO$99,Z81,0) -> 0 | AP81: =IF($C$2=1,Kold!$Q$23/1000,Brand!$AT$43)*V6*S6 -> 5.770319258 | AQ81: =AC81*$D$6 -> 8.140600495 | AR81: =$Q$6*Z81*$H$6*$J$6 -> 0.724723311 | AS81: =$Q$6*Z81*$L$6*$N$6 -> 0.724723311 | AT81: =-(AP81+0.0001) -> -5.770419258 | AU81: =$I$6*$Q$6*Z81*$H$6*$J$6 -> 0.04348339866 | AV81: =($C$6-$M$6)*$Q$6*Z81*$L$6*$N$6 -> 0.3478671893 | AW81: =IF(Y80<$C$6,0,(Y80-$C$6)/Y80) -> 0
B82: 5.462489544e-05 | C82: 0.2872822932 | D82: 0.00103426259 | E82: 0.2070812649 | F82: -0.06623880073 | G82: 11.28857536 | H82: 7.333754347 | I82: 0.6496616371 | J82: 1.362063282 | K82: 422.9858756 | L82: 0.2551390693 | M82: 358.6591232 | N82: 0.2163380864 | O82: 0.3296810565 | P82: 0.03349907138 | Q82: 1.400864265 | R82: 0.2827534045 | S82: -0.02852889819 | T82: 0.1184139818 | U82: 0.172857189 | V82: 0.2749007795 | W82: 0 | Y82: 0.6797175865 | Z82: =0.95*$O$30 -> 0.002208037418 | AA82: 0.4420958335 | AB82: =IF($C$2=1,-($O$31-2)*Z82/$O$30,3*($O$30/Z82)^2) -> -0.1414125891 | AC82: =IF($C$2=1,0.5*($O$31*Z82*$F$6/$O$30)*(1-AW82^2+(AA82-AB82)*(AB82^2*(1-AW82^2)+2*AB82*(1-AW82)+2*LN((1-AB82)/(1-AB82*AW82)))/(AB82^3)),$F$6*AB82*(LN((1-AA82+AA82^2)/(1+AA82)^2)/(6*AA82)+ATAN((2-AA82)/(AA82*3^0.5))/(AA82*3^0.5)-LN((AW82^2-AA82*AW82+AA82^2)/(AW82+AA82)^2)/(6*AA82)-ATAN((2*AW82-AA82)/(AA82*3^0.5))/(AA82*3^0.5))) -> 18.53593636 | AD82: =IF($C$2=1,($O$31*Z82*$F$6/$O$30)*(1-AW82^3-(AA82-AB82)*(-2*AB82^3*(1-AW82^3)-3*AB82^2*(1-AW82^2)-6*AB82*(1-AW82)-6*LN((1-AB82)/(1-AB82*AW82)))/(2*AB82^4))/3,$F$6*AB82*(LN((1+AA82^3)/(AA82^3+AW82^3)))/3) -> 11.76739393 | AE82: =AD82/AC82 -> 0.6348421631 | AF82: =AC82*Y82*$D$6 -> 5.291664808 | AG82: =MAX(MIN($K$6,$Q$6*$J$6*Z82*(Y82-$I$6)/Y82),-$K$6) -> 458.3333333 | AH82: 0.2764601535 | AI82: -335.3764298 | AJ82: -0.2022942966 | AK82: =(0.5*$C$6-Y82+AE82*Y82)*AF82+(0.5*$C$6-$I$6)*AH82+(0.5*$C$6-$M$6)*AJ82 -> 0.1309108787 | AL82: =AF82+AH82-AJ82 -> 5.770419258 | AM82: =0.1*$Q$6*Z82*$B$6^2/Y82+$R$6 -> 0.03022656062 | AN82: =IF(Y82>5*$D$6,AN81-1,AK82-AM82*AL82) -> -0.04350904884 | AO82: 0 | AP82: =AP81 -> 5.770319258 | AQ82: =AC82*$D$6 -> 7.78509327 | AR82: =IF(AG81<$K$6,$Q$6*Z82*$H$6*$J$6,$H$6*$K$6) -> 0.2764601535 | AS82: =IF(AI81<$O$6,$Q$6*Z82*$L$6*$N$6,-$L$6*$O$6) -> 0.6884871455 | AT82: =-(AP82+0.0001) -> -5.770419258 | AU82: =IF(AG81<$K$6,$I$6*$Q$6*Z82*$H$6*$J$6,0) -> 0 | AV82: =IF(AI81<$O$6,($C$6-$M$6)*$Q$6*Z82*$L$6*$N$6,0) -> 0.3304738298 | AW82: =IF(Y81<=$C$6,0,(Y81-$C$6)/Y81) -> 0.1142430664 | AY82: =IF(AN82=$AO$99,AX82,0) -> 0 | BA82: =IF(AN82=$AO$99,AG82,0) -> 0 | BB82: =IF(AN82=$AO$99,AI82,0) -> 0
B83: 5.88612673e-05 | C83: 0.3215203423 | D83: 0.001114473653 | E83: 0.2231412177 | F83: -0.07137587585 | G83: 11.97586173 | H83: 7.762314659 | I83: 0.6481633502 | J83: 1.617202928 | K83: 458.3333333 | L83: 0.2764601535 | M83: 283.9704702 | N83: 0.1712869523 | O83: 0.347729418 | P83: 0.03225315184 | Q83: 1.722376129 | R83: 0.2921773592 | S83: -0.04044740064 | T83: 0.1556383301 | U83: 0.1441000455 | V83: 0.2847165539 | W83: 0 | Y83: 0.8055138401 | Z83: =Z82+($Z$98-$Z$82)/16 -> 0.002084561642 | AA83: 0.4173733691 | AB83: =IF($C$2=1,-($O$31-2)*Z83/$O$30,3*($O$30/Z83)^2) -> -0.1335046482 | AC83: =IF($C$2=1,0.5*($O$31*Z83*$F$6/$O$30)*(1-AW83^2+(AA83-AB83)*(AB83^2*(1-AW83^2)+2*AB83*(1-AW83)+2*LN((1-AB83)/(1-AB83*AW83)))/(AB83^3)),$F$6*AB83*(LN((1-AA83+AA83^2)/(1+AA83)^2)/(6*AA83)+ATAN((2-AA83)/(AA83*3^0.5))/(AA83*3^0.5)-LN((AW83^2-AA83*AW83+AA83^2)/(AW83+AA83)^2)/(6*AA83)-ATAN((2*AW83-AA83)/(AA83*3^0.5))/(AA83*3^0.5))) -> 15.46275663 | AD83: =IF($C$2=1,($O$31*Z83*$F$6/$O$30)*(1-AW83^3-(AA83-AB83)*(-2*AB83^3*(1-AW83^3)-3*AB83^2*(1-AW83^2)-6*AB83*(1-AW83)-6*LN((1-AB83)/(1-AB83*AW83)))/(2*AB83^4))/3,$F$6*AB83*(LN((1+AA83^3)/(AA83^3+AW83^3)))/3) -> 10.85115013 | AE83: =AD83/AC83 -> 0.7017603908 | AF83: =AC83*Y83*$D$6 -> 5.231295076 | AG83: =MAX(MIN($K$6,$Q$6*$J$6*Z83*(Y83-$I$6)/Y83),-$K$6) -> 458.3333333 | AH83: 0.2764601535 | AI83: -435.4612346 | AJ83: -0.2626640286 | AK83: =(0.5*$C$6-Y83+AE83*Y83)*AF83+(0.5*$C$6-$I$6)*AH83+(0.5*$C$6-$M$6)*AJ83 -> 0.1586007577 | AL83: =AF83+AH83-AJ83 -> 5.770419258 | AM83: =0.1*$Q$6*Z83*$B$6^2/Y83+$R$6 -> 0.02407978174 | AN83: =IF(Y83>5*$D$6,AN82-1,AK83-AM83*AL83) -> 0.01965032142 | AO83: 0 | AP83: =AP82 -> 5.770319258 | AQ83: =AC83*$D$6 -> 6.494357783 | AR83: =IF(AG82<$K$6,$Q$6*Z83*$H$6*$J$6,$H$6*$K$6) -> 0.2764601535 | AS83: =IF(AI82<$O$6,$Q$6*Z83*$L$6*$N$6,-$L$6*$O$6) -> 0.6499862196 | AT83: =-(AP83+0.0001) -> -5.770419258 | AU83: =IF(AG82<$K$6,$I$6*$Q$6*Z83*$H$6*$J$6,0) -> 0 | AV83: =IF(AI82<$O$6,($C$6-$M$6)*$Q$6*Z83*$L$6*$N$6,0) -> 0.3119933854 | AW83: =IF(AZ83<=$C$6,0,(AZ83-$C$6)/AZ83) -> 0.3448478157 | AX83: =IF(Y83<=$C$6,0,(Y83-$C$6)/Y83) -> 0.329620457 | AY83: 0 | AZ83: =Y82+(Y82-Y81)*(Z83-Z81)/(Z82-Z81) -> 0.8242359759 | BA83: 0 | BB83: 0
B84: 6.309763917e-05 | C84: 0.3614224729 | D84: 0.001194684716 | E84: 0.2392011706 | F84: -0.07651295098 | G84: 12.63751539 | H84: 8.171850335 | I84: 0.6466342541 | J84: 1.918342466 | K84: 458.3333333 | L84: 0.2764601535 | M84: 202.618385 | N84: 0.1222165305 | O84: 0.3566747626 | P84: 0.03075735359 | Q84: 2.072586089 | R84: 0.2929274994 | S84: -0.02720418313 | T84: 0.10538082 | U84: 0.1913753232 | V84: 0.2863160365 | W84: 0 | Y84: 0.984993596 | Z84: 0.001961085865 | AA84: 0.3926509047 | AB84: =IF($C$2=1,-($O$31-2)*Z84/$O$30,3*($O$30/Z84)^2) -> -0.1255967074 | AC84: =IF($C$2=1,0.5*($O$31*Z84*$F$6/$O$30)*(1-AW84^2+(AA84-AB84)*(AB84^2*(1-AW84^2)+2*AB84*(1-AW84)+2*LN((1-AB84)/(1-AB84*AW84)))/(AB84^3)),$F$6*AB84*(LN((1-AA84+AA84^2)/(1+AA84)^2)/(6*AA84)+ATAN((2-AA84)/(AA84*3^0.5))/(AA84*3^0.5)-LN((AW84^2-AA84*AW84+AA84^2)/(AW84+AA84)^2)/(6*AA84)-ATAN((2*AW84-AA84)/(AA84*3^0.5))/(AA84*3^0.5))) -> 12.52234013 | AD84: =IF($C$2=1,($O$31*Z84*$F$6/$O$30)*(1-AW84^3-(AA84-AB84)*(-2*AB84^3*(1-AW84^3)-3*AB84^2*(1-AW84^2)-6*AB84*(1-AW84)-6*LN((1-AB84)/(1-AB84*AW84)))/(2*AB84^4))/3,$F$6*AB84*(LN((1+AA84^3)/(AA84^3+AW84^3)))/3) -> 9.511664811 | AE84: =AD84/AC84 -> 0.7595756635 | AF84: =AC84*Y84*$D$6 -> 5.18045843 | AG84: =MAX(MIN($K$6,$Q$6*$J$6*Z84*(Y84-$I$6)/Y84),-$K$6) -> 458.3333333 | AH84: 0.2764601535 | AI84: -519.7414803 | AJ84: -0.3135006751 | AK84: =(0.5*$C$6-Y84+AE84*Y84)*AF84+(0.5*$C$6-$I$6)*AH84+(0.5*$C$6-$M$6)*AJ84 -> 0.1641275862 | AL84: =AF84+AH84-AJ84 -> 5.770419258 | AM84: =0.1*$Q$6*Z84*$B$6^2/Y84+$R$6 -> 0.01852567383 | AN84: 0.05722668113 | AO84: 0 | AP84: =AP83 -> 5.770319258 | AQ84: =AC84*$D$6 -> 5.259382854 | AR84: =IF(AG83<$K$6,$Q$6*Z84*$H$6*$J$6,$H$6*$K$6) -> 0.2764601535 | AS84: =IF(AI83<$O$6,$Q$6*Z84*$L$6*$N$6,-$L$6*$O$6) -> 0.6114852937 | AT84: =-(AP84+0.0001) -> -5.770419258 | AU84: =IF(AG83<$K$6,$I$6*$Q$6*Z84*$H$6*$J$6,0) -> 0 | AV84: =IF(AI83<$O$6,($C$6-$M$6)*$Q$6*Z84*$L$6*$N$6,0) -> 0.293512941 | AW84: =IF(AZ84<=$C$6,0,(AZ84-$C$6)/AZ84) -> 0.489171547 | AX84: =IF(Y84<=$C$6,0,(Y84-$C$6)/Y84) -> 0.4517730854 | AY84: 0 | AZ84: =Y83+(Y83-Y82)*(Z84-Z82)/(Z83-Z82) -> 1.057106347 | BA84: 0 | BB84: 0
B85: 6.733401103e-05 | C85: 0.4082101177 | D85: 0.001274895779 | E85: 0.2552611234 | F85: -0.08165002611 | G85: 13.27381171 | H85: 8.562579565 | I85: 0.6450731525 | J85: 2.275771781 | K85: 458.3333333 | L85: 0.2764601535 | M85: 115.9024098 | N85: 0.06991068656 | O85: 0.3574716768 | P85: 0.02906040947 | Q85: 2.482321247 | R85: 0.2853344049 | S85: -0.02947645441 | T85: 0.1157308051 | U85: 0.1796848863 | V85: 0.2778819136 | W85: 0 | Y85: 1.229826646 | Z85: 0.001837610088 | AA85: 0.3679284403 | AB85: -0.1176887666 | AC85: 9.959998232 | AD85: 8.043542809 | AE85: 0.8075847627 | AF85: 5.144609912 | AG85: 458.3333333 | AH85: 0.2764601535 | AI85: -579.1734477 | AJ85: -0.3493491933 | AK85: 0.1563309368 | AL85: 5.770419258 | AM85: 0.01390337636 | AN85: 0.07610262615 | AO85: 0 | AP85: 5.770319258 | AQ85: 4.183199257 | AR85: 0.2764601535 | AS85: 0.5729843678 | AT85: -5.770419258 | AU85: 0 | AV85: 0.2750324965 | AW85: 0.5982002669 | AX85: 0.5609137257 | AY85: 0 | AZ85: =Y84+(Y84-Y83)*(Z85-Z83)/(Z84-Z83) -> 1.343953108 | BA85: 0 | BB85: 0
B86: 7.157038289e-05 | C86: 0.4634349203 | D86: 0.001355106842 | E86: 0.2713210762 | F86: -0.08678710124 | G86: 13.88502189 | H86: 8.93471708 | I86: 0.6434787897 | J86: 2.702617685 | K86: 458.3333333 | L86: 0.2764601535 | M86: 25.03897911 | N86: 0.01510315638 | O86: 0.3443967422 | P86: 0.02720793577 | Q86: 2.963974683 | R86: 0.2637531094 | S86: -0.0320341029 | T86: 0.1296605157 | U86: 0.160866892 | V86: 0.2548069039 | W86: 0 | Y86: 1.572397216 | Z86: 0.001714134312 | AA86: 0.343205976 | AB86: -0.1097808257 | AC86: 7.756787553 | AD86: 6.577488066 | AE86: 0.8479654781 | AF86: 5.122635486 | AG86: 458.3333333 | AH86: 0.2764601535 | AI86: -615.604056 | AJ86: -0.3713236185 | AK86: 0.1385798834 | AL86: 5.770419258 | AM86: 0.01014362984 | AN86: 0.08004688635 | AO86: 0.001714134312 | AP86: 5.770319258 | AQ86: 3.257850772 | AR86: 0.2764601535 | AS86: 0.5344834419 | AT86: -5.770419258 | AU86: 0 | AV86: 0.2565520521 | AW86: 0.6859538946 | AX86: 0.6565753269 | AY86: 0.6565753269 | AZ86: =Y85+(Y85-Y84)*(Z86-Z84)/(Z85-Z84) -> 1.719492745 | BA86: 458.3333333 | BB86: -615.604056
B87: 7.580675476e-05 | C87: 0.5290877597 | D87: 0.001435317905 | E87: 0.2873810291 | F87: -0.09192417636 | G87: 14.47141302 | H87: 9.28847423 | I87: 0.6418498467 | J87: 3.215791948 | K87: 458.3333333 | L87: 0.2764601535 | M87: -68.83858043 | N87: -0.04152245348 | O87: 0.3082311223 | P87: 0.02524243224 | Q87: 3.533774555 | R87: 0.2190300576 | S87: -0.02003791494 | T87: 0.05171229448 | U87: 0.2865151845 | V87: 0.2086493761 | W87: 0 | Y87: 2.088490741 | Z87: 0.001590658535 | AA87: 0.3184835116 | AB87: -0.1018728849 | AC87: 5.827822919 | AD87: 5.147542486 | AE87: 0.8832702292 | AF87: 5.111968767 | AG87: 458.3333333 | AH87: 0.2764601535 | AI87: -633.2880266 | AJ87: -0.3819903383 | AK87: 0.1118282421 | AL87: 5.770419258 | AM87: 0.007086882248 | AN87: 0.07093396027 | AO87: 0 | AP87: 5.770319258 | AQ87: 2.447685626 | AR87: 0.2764601535 | AS87: 0.495982516 | AT87: -5.770419258 | AU87: 0 | AV87: 0.2380716077 | AW87: 0.7608014065 | AX87: 0.7414400795 | AY87: 0 | AZ87: 2.257538358 | BA87: 0 | BB87: 0
B88: 8.004312662e-05 | C88: 0.6077509315 | D88: 0.001515528968 | E88: 0.3034409819 | F88: -0.09706125149 | G88: 14.79183886 | H88: 9.606185706 | I88: 0.6494247129 | J88: 3.775696616 | K88: 458.3333333 | L88: 0.2764601535 | M88: -164.68005 | N88: -0.09933266599 | O88: 0.2521756597 | P88: 0.02320328208 | Q88: 4.151489435 | R88: 0.1558474792 | S88: 0.003195007025 | T88: -0.1268388441 | U88: 0.6273520872 | V88: 0.1466710133 | W88: 0.1114781204 | Y88: 2.951566087 | Z88: 0.001467182758 | AA88: 0.2937610472 | AB88: -0.09396494405 | AC88: 4.12281186 | AD88: 3.772358254 | AE88: 0.9149964592 | AF88: 5.110875701 | AG88: 458.3333333 | AH88: 0.2764601535 | AI88: -635.1001807 | AJ88: -0.3830834039 | AK88: 0.07525971514 | AL88: 5.770419258 | AM88: 0.004625327768 | AN88: -0.9290660397 | AO88: 0 | AP88: 5.770319258 | AQ88: 1.731580981 | AR88: 0.2764601535 | AS88: 0.4574815901 | AT88: -5.770419258 | AU88: 0 | AV88: 0.2195911632 | AW88: 0.826960668 | AX88: 0.8170462785 | AY88: 0 | AZ88: 3.12067779 | BA88: 0 | BB88: 0
B89: 8.427949848e-05 | C89: 0.7028136984 | D89: 0.001595740031 | E89: 0.3195009347 | F89: -0.1021983266 | G89: 14.51209516 | H89: 9.779554744 | I89: 0.6738899268 | J89: 4.283705693 | K89: 458.3333333 | L89: 0.2764601535 | M89: -261.5183187 | N89: -0.1577441335 | O89: 0.1997285743 | P89: 0.02112675195 | Q89: 4.71790998 | R89: 0.1000544605 | S89: 0.004436702597 | T89: -0.1378519381 | U89: 0.6516723755 | V89: 0.09341997776 | W89: 0.231659825 | Y89: 4.573796833 | Z89: 0.001343706982 | AA89: 0.2690385829 | AB89: -0.08605700321 | AC89: 2.664738592 | AD89: 2.512768201 | AE89: 0.942969869 | AF89: 5.118948631 | AG89: 458.3333333 | AH89: 0.2764601535 | AI89: -621.7163601 | AJ89: -0.3750104735 | AK89: 0.0261723361 | AL89: 5.770419258 | AM89: 0.002733622341 | AN89: -1.92906604 | AO89: 0 | AP89: 5.770319258 | AQ89: 1.119190208 | AR89: 0.2764601535 | AS89: 0.4189806642 | AT89: -5.770419258 | AU89: 0 | AV89: 0.2011107188 | AW89: 0.8845590647 | AX89: 0.8819361638 | AY89: 0 | AZ89: 4.677716779 | BA89: 0 | BB89: 0
B90: 8.851587035e-05 | C90: 0.8187825065 | D90: 0.001675951094 | E90: 0.3355608875 | F90: -0.1073354017 | G90: 13.76924732 | H90: 9.723049057 | I90: 0.7061423789 | J90: 4.73508791 | K90: 458.3333333 | L90: 0.2764601535 | M90: -358.4693834 | N90: -0.216223638 | O90: 0.1518353064 | P90: 0.01904599198 | Q90: 5.227771702 | R90: 0.05226720853 | S90: 0.005300280843 | T90: -0.1464408124 | U90: 0.6729718043 | V90: 0.0480823696 | W90: 0.3404841998 | Y90: 8.008920964 | Z90: 0.001220231205 | AA90: 0.2443161185 | AB90: -0.07814906237 | AC90: 1.526952836 | AD90: 1.474610829 | AE90: 0.9657212684 | AF90: 5.136282722 | AG90: 458.3333333 | AH90: 0.2764601535 | AI90: -592.9787948 | AJ90: -0.3576763825 | AK90: -0.04035179821 | AL90: 5.770419258 | AM90: 0.001417682342 | AN90: -2.92906604 | AO90: 0 | AP90: 5.770319258 | AQ90: 0.641320191 | AR90: 0.2764601535 | AS90: 0.3804797383 | AT90: -5.770419258 | AU90: 0 | AV90: 0.1826302744 | AW90: 0.9309309085 | AX90: 0.9325751868 | AY90: 0 | AZ90: 7.818258326 | BA90: 0 | BB90: 0
B91: 9.275224221e-05 | C91: 0.9617353345 | D91: 0.001756162157 | E91: 0.3516208404 | F91: -0.1124724769 | G91: 12.69734109 | H91: 9.411365645 | I91: 0.7412075941 | J91: 5.128822266 | K91: 458.3333333 | L91: 0.2764601535 | M91: -454.7323487 | N91: -0.2742880908 | O91: 0.1087265917 | P91: 0.01699103572 | Q91: 5.67957051 | R91: 0.01222480631 | S91: 0.006268864024 | T91: -0.1570054806 | U91: 0.7017304899 | V91: 0.01034022842 | W91: 0.4385149629 | Y91: 16.22542143 | Z91: 0.001096755428 | AA91: 0.2195936541 | AB91: -0.07024112154 | AC91: 0.7574969618 | AD91: 0.7438072328 | AE91: 0.9819276781 | AF91: 5.162097122 | AG91: 458.3333333 | AH91: 0.2764601535 | AI91: -550.1820305 | AJ91: -0.3318619824 | AK91: -0.1315552667 | AL91: 5.770419258 | AM91: 0.0006289623046 | AN91: -3.92906604 | AO91: 0 | AP91: 5.770319258 | AQ91: 0.3181487239 | AR91: 0.2764601535 | AS91: 0.3419788124 | AT91: -5.770419258 | AU91: 0 | AV91: 0.1641498299 | AW91: 0.9637076512 | AX91: 0.9667188922 | AY91: 0 | AZ91: 14.87916923 | BA91: 0 | BB91: 0
B92: 9.698861408e-05 | C92: 1.140000103 | D92: 0.001836373221 | E92: 0.3676807932 | F92: -0.117609552 | G92: 11.41495187 | H92: 8.861635263 | I92: 0.7763182329 | J92: 5.465479449 | K92: 458.3333333 | L92: 0.2764601535 | M92: -549.5894274 | N92: -0.3315045327 | O92: 0.07043797019 | P92: 0.01498880022 | Q92: 6.073444135 | R92: -0.02059567062 | S92: 0.007744543861 | T92: -0.1743491673 | U92: 0.752633408 | V92: -0.02035840286 | W92: 0.5263158323 | Y92: 38.6105595 | Z92: 0.0009732796516 | AA92: 0.1948711897 | AB92: -0.0623331807 | AC92: 0.320308009 | AD92: 0.3176650643 | AE92: 0.9917487398 | AF92: 5.194254005 | AG92: 458.3333333 | AH92: 0.2764601535 | AI92: -496.8702936 | AJ92: -0.2997051003 | AK92: -0.257248292 | AL92: 5.770419258 | AM92: 0.0002345537386 | AN92: -4.92906604 | AO92: 0 | AP92: 5.770319258 | AQ92: 0.1345293638 | AR92: 0.2764601535 | AS92: 0.3034778865 | AT92: -5.770419258 | AU92: 0 | AV92: 0.1456693855 | AW92: 0.9834652148 | AX92: 0.9860141887 | AY92: 0 | AZ92: 32.65842235 | BA92: 0 | BB92: 0
C93: =C73 -> 1.36518953 | D93: =D73+(D92-D72) -> 0.001912347912 | E93: 0.3828925347 | F93: -0.1224753109 | G93: 10.0128166 | H93: 8.109577577 | I93: 0.8099197158 | J93: 5.741144803 | K93: 458.3333333 | L93: 0.2764601535 | M93: -640.9859811 | N93: -0.3866336351 | O93: 0.03717077115 | P93: 0.01303421163 | Q93: 6.404238591 | R93: -0.04630342996 | W93: 0.6044505263 | Y93: 109.1002623 | Z93: 0.0008498038749 | AA93: 0.1701487254 | AB93: -0.05442523987 | AC93: 0.1141402682 | AD93: 0.1137709623 | AE93: 0.9967644558 | AF93: 5.230147943 | AG93: 439.0541693 | AH93: 0.2648312358 | AI93: -437.3630256 | AJ93: -0.2638111619 | AK93: -0.4338814002 | AL93: 5.758790341 | AM93: 7.247758654e-05 | AN93: -5.92906604 | AO93: 0 | AP93: 5.770319258 | AQ93: 0.04793891263 | AR93: 0.2764601535 | AS93: 0.2649769606 | AT93: -5.770419258 | AU93: 0 | AV93: 0.1271889411 | AW93: 0.9935236917 | AX93: 0.9950504244 | AY93: 0 | AZ93: 83.38083563 | BA93: 0 | BB93: 0
B94: De | C94: hc | D94: e0 | E94: a' | F94: b' | G94: N' | H94: tN' | I94: t | J94: Nc | K94: sac | L94: Nac | M94: sat | N94: Nat | O94: Mtot | P94: u | Q94: N | R94: Mo | S94: a'' | T94: b'' | U94: c'' | W94: x | Y94: 374.5786968 | Z94: 0.0007263280982 | AA94: 0.145426261 | AB94: -0.04651729903 | AC94: 0.03380174483 | AD94: 0.03376526097 | AE94: 0.9989206518 | AF94: 5.317793681 | AG94: 375.4063204 | AH94: 0.2264397578 | AI94: -374.985325 | AJ94: -0.2261858193 | AK94: -0.7141308182 | AL94: 5.770419258 | AM94: 1.804266069e-05 | AN94: -6.92906604 | AO94: 0 | AP94: 5.770319258 | AQ94: 0.01419673283 | AR94: 0.2264760347 | AS94: 0.2264760347 | AT94: -5.770419258 | AU94: 0.01358856208 | AV94: 0.1087084967 | AW94: 0.9978406881 | AX94: 0.9985583804 | AY94: 0 | AZ94: 250.0796679 | BA94: 0 | BB94: 0
C95: =$C$35 -> 0.1294560717 | D95: =$D$35 -> 0.0003274293193 | E95: =$E$35 -> 0.06555828113 | F95: =$F$35 -> -0.02097003764 | G95: =IF($C$2=1,0.5*($O$31*D95*$F$6/$O$30)*(1-W95^2+(E95-F95)*(F95^2*(1-W95^2)+2*F95*(1-W95)+2*LN((1-F95)/(1-F95*W95)))/(F95^3)),$F$6*F95*(LN((1-E95+E95^2)/(1+E95)^2)/(6*E95)+ATAN((2-E95)/(E95*3^0.5))/(E95*3^0.5)-LN((W95^2-E95*W95+E95^2)/(W95+E95)^2)/(6*E95)-ATAN((2*W95-E95)/(E95*3^0.5))/(E95*3^0.5))) -> 4.078972558 | H95: =IF($C$2=1,($O$31*D95*$F$6/$O$30)*(1-W95^3-(E95-F95)*(-2*F95^3*(1-W95^3)-3*F95^2*(1-W95^2)-6*F95*(1-W95)-6*LN((1-F95)/(1-F95*W95)))/(2*F95^4))/3,$F$6*F95*(LN((1+E95^3)/(E95^3+W95^3)))/3) -> 2.699038603 | I95: =$I$35 -> 0.6616957003 | J95: =$J$35 -> 0.2217800608 | K95: =$K$35 -> 90.81208847 | L95: =$L$35 -> 0.05477656128 | M95: =$M$35 -> 458.3274788 | N95: =$N$35 -> 0.2764566221 | O95: =$O$35 -> 0.1197266062 | P95: =$P$35 -> 0.02353455288 | Q95: =$Q$35 -> 0.0001 | R95: =$R$35 -> 0.1197242527 | W95: =IF(C95<$C$6,0,(C95-$C$6)/C95) -> 0 | Y95: 1597.986058 | Z95: 0.0006028523215 | AA95: 0.1207037966 | AB95: -0.0386093582 | AC95: 0.008037695374 | AD95: 0.008035299202 | AE95: 0.9997018832 | AF95: 5.394532562 | AG95: 311.6254629 | AH95: 0.1879680508 | AI95: -311.543555 | AJ95: -0.1879186452 | AK95: -1.11334803 | AL95: 5.770419258 | AM95: 3.510336603e-06 | AN95: -7.92906604 | AO95: 0 | AP95: 5.770319258 | AQ95: 0.003375832057 | AR95: 0.1879751088 | AS95: 0.1879751088 | AT95: -5.770419258 | AU95: 0.01127850653 | AV95: 0.09022805222 | AW95: 0.9994036678 | AX95: 0.9996620746 | AY95: 0 | AZ95: 905.5355658 | BA95: 0 | BB95: 0
B96: =IF(R76>$Q$29*V76,B76/0.5,IF(Q76>Q75,$U$6,-0.5)*B76) -> 4.701633175e-07 | C96: =IF(Q76>Q75,C76,(1-$T$6)*C76+$T$6*C77) -> 0.1539818791 | D96: =D76+B96 -> 0.0004574394934 | E96: =IF($C$2=1,D96/($O$31*$O$30),2^(1/3)*$O$30/D96) -> 0.09158907019 | F96: =IF($C$2=1,-($O$31-2)*D96/$O$30,3*($O$30/D96)^2) -> -0.0292964705 | G96: =IF($C$2=1,0.5*($O$31*D96*$F$6/$O$30)*(1-W96^2+(E96-F96)*(F96^2*(1-W96^2)+2*F96*(1-W96)+2*LN((1-F96)/(1-F96*W96)))/(F96^3)),$F$6*F96*(LN((1-E96+E96^2)/(1+E96)^2)/(6*E96)+ATAN((2-E96)/(E96*3^0.5))/(E96*3^0.5)-LN((W96^2-E96*W96+E96^2)/(W96+E96)^2)/(6*E96)-ATAN((2*W96-E96)/(E96*3^0.5))/(E96*3^0.5))) -> 5.565261361 | H96: =IF($C$2=1,($O$31*D96*$F$6/$O$30)*(1-W96^3-(E96-F96)*(-2*F96^3*(1-W96^3)-3*F96^2*(1-W96^2)-6*F96*(1-W96)-6*LN((1-F96)/(1-F96*W96)))/(2*F96^4))/3,$F$6*F96*(LN((1+E96^3)/(E96^3+W96^3)))/3) -> 3.670984733 | I96: =H96/G96 -> 0.6596248576 | J96: =G96*C96*$D$6 -> 0.3599187488 | K96: =MAX(MIN($K$6,$Q$6*$J$6*D96*(C96-$I$6)/C96),-$K$6) -> 144.3266303 | L96: =K96*$H$6 -> 0.08705577241 | M96: =MIN($O$6,$Q$6*$N$6*D96*(C$6-C96-$M$6)/C96) -> 458.3333333 | N96: =M96*$L$6 -> 0.2764601535 | O96: =(0.5*$C$6-C96+I96*C96)*J96+(0.5*$C$6-$I$6)*L96+(0.5*$C$6-$M$6)*N96 -> 0.1546524877 | P96: =0.1*$Q$6*D96*$B$6^2/C96+$R$6 -> 0.02764234308 | Q96: =(J96+L96-N96) -> 0.1705143677 | R96: =O96-P96*Q96 -> 0.149939071 | S96: =((R96-R95)*(Q96-Q97)-(R96-R97)*(Q96-Q95))/((Q96^2-Q95^2)*(Q96-Q97)-(Q96^2-Q97^2)*(Q96-Q95)) -> -0.04982635781 | T96: =-(S96*(Q96^2-Q95^2)-(R96-R95))/(Q96-Q95) -> 0.1858031519 | U96: =R96-S96*Q96^2-T96*Q96 -> 0.1197056729 | V96: =S76*Q96^2+T76*Q96+U76 -> 0.1499359435 | W96: =IF(C96<$C$6,0,(C96-$C$6)/C96) -> 0 | Y96: 8786.306232 | Z96: 0.0004793765448 | AA96: 0.09598133226 | AB96: -0.03070141736 | AC96: 0.001482686032 | AD96: 0.001482586983 | AE96: 0.9999331961 | AF96: 5.471480079 | AG96: 247.8061731 | AH96: 0.1494731622 | AI96: -247.7943275 | AJ96: -0.1494660171 | AK96: -1.73423507 | AL96: 5.770419258 | AM96: 5.076697145e-07 | AN96: -8.92906604 | AO96: 0 | AP96: 5.770319258 | AQ96: 0.0006227281334 | AR96: 0.1494741829 | AS96: 0.1494741829 | AT96: -5.770419258 | AU96: 0.008968450974 | AV96: 0.07174760779 | AW96: 0.9998664953 | AX96: 0.9999385407 | AY96: 0 | AZ96: 4044.800781 | BA96: 0 | BB96: 0
B97: =IF(R77>$Q$29*V77,B77/0.5,IF(Q77>Q76,$U$6,-0.5)*B77) -> 1.124578057e-06 | C97: =IF(Q77>Q76,C77,(1-$T$6)*C77+$T$6*C78) -> 0.1739496446 | D97: =D77+B97 -> 0.0005500441457 | E97: 0.1101304819 | F97: -0.0352272865 | G97: 6.578897021 | H97: 4.32966039 | I97: 0.6581134156 | J97: 0.4806466556 | K97: 186.2624374 | L97: 0.1123508554 | M97: 458.3333333 | N97: 0.2764601535 | O97: 0.1828403476 | P97: =0.1*$Q$6*D97*$B$6^2/C97+$R$6 -> 0.02942285502 | Q97: 0.3165373574 | R97: 0.1735269149 | S97: -0.03591685613 | T97: 0.1790285051 | U97: 0.1204564267 | V97: 0.1735199669 | W97: 0 | Y97: 66379.94678 | Z97: 0.0003559007681 | AA97: 0.07125886789 | AB97: -0.02279347653 | AC97: 0.0001990156995 | AD97: 0.0001990139372 | AE97: 0.9999911449 | AF97: 5.548473647 | AG97: 183.9784004 | AH97: 0.1109731567 | AI97: -183.9772363 | AJ97: -0.1109724545 | AK97: =(0.5*$C$6-Y97+AE97*Y97)*AF97+(0.5*$C$6-$I$6)*AH97+(0.5*$C$6-$M$6)*AJ97 -> -1.7633025 | AL97: 5.770419258 | AM97: 4.988877456e-08 | AN97: -9.92906604 | AO97: 0 | AP97: 5.770319258 | AQ97: 8.358659378e-05 | AR97: 0.110973257 | AS97: 0.110973257 | AT97: -5.770419258 | AU97: 0.00665839542 | AV97: 0.05326716336 | AW97: 0.9999766869 | AX97: 0.999991865 | AY97: 0 | AZ97: 23162.94658 | BA97: 0 | BB97: 0
B98: =IF(R78>$Q$29*V78,B78/0.75,IF(Q78>Q77,$U$6,-0.5)*B78) -> 1.978168919e-06 | C98: =IF(Q78>Q77,C78,(1-$T$6)*C78+$T$6*C79) -> 0.1902071471 | D98: 0.000648515557 | E98: 0.129846543 | F98: -0.04153383597 | G98: 7.616261573 | H98: 4.999857801 | I98: 0.6564713873 | J98: 0.608440302 | K98: 229.4915484 | L98: 0.1384260408 | M98: 458.3333333 | N98: 0.2764601535 | O98: 0.2116485211 | P98: 0.03172520067 | Q98: 0.4704061893 | R98: 0.1967247904 | S98: -0.03263542612 | T98: 0.1764462049 | U98: 0.1209450353 | V98: 0.1967157122 | W98: 0 | Y98: 780778.6461 | Z98: =0.1*$O$30 -> 0.0002324249914 | AA98: 0.04653640352 | AB98: -0.01488553569 | AC98: 1.715465365e-05 | AD98: 1.715444005e-05 | AE98: 0.9999875485 | AF98: 5.625474646 | AG98: 120.1492588 | AH98: 0.07247232553 | AI98: -120.1491942 | AJ98: -0.07247228655 | AK98: -53.17118693 | AL98: 5.770419258 | AM98: 2.769910314e-09 | AN98: -10.92906604 | AO98: 0 | AP98: 5.770319258 | AQ98: 7.204954534e-06 | AR98: 0.0724723311 | AS98: 0.0724723311 | AT98: =-(AP98+0.0001) -> -5.770419258 | AU98: 0.004348339866 | AV98: 0.03478671893 | AW98: 0.9999970259 | AX98: 0.9999993084 | AY98: 0 | AZ98: 181567.2279 | BA98: 0 | BB98: 0
B99: =IF(R79>$Q$29*V79,B79,IF(Q79>Q78,$U$6,-0.5)*B79) -> 4.191577985e-05 | C99: =IF(Q79>Q78,C79,(1-$T$6)*C79+$T$6*C80) -> 0.2097697917 | D99: 0.0008355451802 | E99: 0.1672938329 | F99: -0.0535120493 | G99: 9.473648144 | H99: 6.188642049 | I99: 0.6532480365 | J99: 0.8346597832 | K99: 308.3823566 | L99: 0.1860118553 | M99: 458.3333333 | N99: 0.2764601535 | O99: 0.2617657072 | P99: 0.03706276383 | Q99: 0.744211485 | R99: 0.2341831727 | S99: -0.03429069734 | T99: 0.1784567266 | U99: 0.1203655552 | V99: 0.2340460852 | W99: 0 | AG99: =MAX(BA82:BA98) -> 458.3333333 | AI99: =MAX(BB82:BB98) -> 0 | AO99: =MAX(AN82:AN98) -> 0.08004688635 | AP99: 5.770319258
B100: =IF(R80>$Q$29*V80,B80,IF(Q80>Q79,$U$6,-0.5)*B80) -> 4.615215171e-05 | C100: =IF(Q80>Q79,C80,(1-$T$6)*C80+$T$6*C81) -> 0.2321097583 | D100: 0.0009199926151 | E100: 0.184201997 | F100: -0.05892044063 | G100: 10.26463428 | H100: 6.689925597 | I100: 0.6517451487 | J100: 1.000659149 | K100: 352.6425736 | L100: 0.2127089892 | M100: 458.3333333 | N100: 0.2764601535 | O100: 0.2920168595 | P100: 0.03688092058 | Q100: 0.9369079842 | R100: 0.2574628306 | S100: -0.05496942063 | T100: 0.2132201309 | U100: 0.1059471565 | V100: 0.2562230828 | W100: 0 | Y100: =0.5*(-(AR100+AS100+AT100)+SQRT((AR100+AS100+AT100)^2+4*AQ100*(AU100+AV100)))/AQ100 -> 1.456235737 | Z100: =MAX(AO82:AO98) -> 0.001714134312 | AA100: 0.343205976 | AB100: =IF($C$2=1,-($O$31-2)*Z100/$O$30,3*($O$30/Z100)^2) -> -0.1097808257 | AC100: =IF($C$2=1,0.5*($O$31*Z100*$F$6/$O$30)*(1-AW100^2+(AA100-AB100)*(AB100^2*(1-AW100^2)+2*AB100*(1-AW100)+2*LN((1-AB100)/(1-AB100*AW100)))/(AB100^3)),$F$6*AB100*(LN((1-AA100+AA100^2)/(1+AA100)^2)/(6*AA100)+ATAN((2-AA100)/(AA100*3^0.5))/(AA100*3^0.5)-LN((AW100^2-AA100*AW100+AA100^2)/(AW100+AA100)^2)/(6*AA100)-ATAN((2*AW100-AA100)/(AA100*3^0.5))/(AA100*3^0.5))) -> 8.396813036 | AD100: =IF($C$2=1,($O$31*Z100*$F$6/$O$30)*(1-AW100^3-(AA100-AB100)*(-2*AB100^3*(1-AW100^3)-3*AB100^2*(1-AW100^2)-6*AB100*(1-AW100)-6*LN((1-AB100)/(1-AB100*AW100)))/(2*AB100^4))/3,$F$6*AB100*(LN((1+AA100^3)/(AA100^3+AW100^3)))/3) -> 7.007157868 | AE100: =AD100/AC100 -> 0.834502071 | AF100: =AC100*Y100*$D$6 -> 5.135650471 | AG100: =MAX(MIN($K$6,$Q$6*$J$6*Z100*(Y100-$I$6)/Y100),-$K$6) -> 458.3333333 | AH100: 0.2764601535 | AI100: =MIN($O$6,$Q$6*$N$6*Z100*(C$6-Y100-$M$6)/Y100) -> -594.0269807 | AJ100: -0.3583086334 | AK100: =(0.5*$C$6-Y100+AE100*Y100)*AF100+(0.5*$C$6-$I$6)*AH100+(0.5*$C$6-$M$6)*AJ100 -> 0.1317251473 | AL100: =AF100+AH100-AJ100 -> 5.770419258 | AM100: =0.1*$Q$6*Z100*$B$6^2/Y100+$R$6 -> 0.01095277017 | AN100: =AK100-AM100*AL100 -> 0.06852307139 | AO100: =IF(AN100=$AO$88,Z100,0) -> 0 | AP100: =AP99 -> 5.770319258 | AQ100: =AC100*$D$6 -> 3.526661475 | AR100: =IF(AG99<$K$6,$Q$6*Z100*$H$6*$J$6,$H$6*$K$6) -> 0.2764601535 | AS100: =IF(AI99<$O$6,$Q$6*Z100*$L$6*$N$6,-$L$6*$O$6) -> 0.5344834419 | AT100: =-(AP100+0.0001) -> -5.770419258 | AU100: =IF(AG99<$K$6,$I$6*$Q$6*Z100*$H$6*$J$6,0) -> 0 | AV100: =IF(AI99<$O$6,($C$6-$M$6)*$Q$6*Z100*$L$6*$N$6,0) -> 0.2565520521 | AW100: =MAX(AY82:AY98) -> 0.6565753269 | AX100: =IF(Y100<=$C$6,0,(Y100-$C$6)/Y100) -> 0.6291809174
B101: 5.038852357e-05 | C101: 0.2577379418 | D101: 0.00100444005 | E101: 0.2011101612 | F101: -0.06432883195 | G101: 11.02644866 | H101: 7.169519049 | I101: 0.6502110762 | J101: 1.193612357 | K101: 398.3584007 | L101: 0.2402841264 | M101: 447.7641329 | N101: 0.270084962 | O101: 0.3218440629 | P101: 0.0362623943 | Q101: 1.163811521 | R101: 0.2796414707 | S101: -0.1029709605 | T101: 0.3140579021 | U101: 0.0536070307 | V101: 0.2724208479 | W101: 0 | Y101: =0.5*(-(AR101+AS101+AT101)+SQRT((AR101+AS101+AT101)^2+4*AQ101*(AU101+AV101)))/AQ101 -> 1.36518953 | Z101: =Z100 -> 0.001714134312 | AA101: 0.343205976 | AB101: =IF($C$2=1,-($O$31-2)*Z101/$O$30,3*($O$30/Z101)^2) -> -0.1097808257 | AC101: =IF($C$2=1,0.5*($O$31*Z101*$F$6/$O$30)*(1-AW101^2+(AA101-AB101)*(AB101^2*(1-AW101^2)+2*AB101*(1-AW101)+2*LN((1-AB101)/(1-AB101*AW101)))/(AB101^3)),$F$6*AB101*(LN((1-AA101+AA101^2)/(1+AA101)^2)/(6*AA101)+ATAN((2-AA101)/(AA101*3^0.5))/(AA101*3^0.5)-LN((AW101^2-AA101*AW101+AA101^2)/(AW101+AA101)^2)/(6*AA101)-ATAN((2*AW101-AA101)/(AA101*3^0.5))/(AA101*3^0.5))) -> 8.977298406 | AD101: =IF($C$2=1,($O$31*Z101*$F$6/$O$30)*(1-AW101^3-(AA101-AB101)*(-2*AB101^3*(1-AW101^3)-3*AB101^2*(1-AW101^2)-6*AB101*(1-AW101)-6*LN((1-AB101)/(1-AB101*AW101)))/(2*AB101^4))/3,$F$6*AB101*(LN((1+AA101^3)/(AA101^3+AW101^3)))/3) -> 7.380375974 | AE101: =AD101/AC101 -> 0.8221154784 | AF101: =AC101*Y101*$D$6 -> 5.147399791 | AG101: =MAX(MIN($K$6,$Q$6*$J$6*Z101*(Y101-$I$6)/Y101),-$K$6) -> 458.3333333 | AH101: 0.2764601535 | AI101: =MIN($O$6,$Q$6*$N$6*Z101*(C$6-Y101-$M$6)/Y101) -> -574.5482068 | AJ101: -0.3465593137 | AK101: =(0.5*$C$6-Y101+AE101*Y101)*AF101+(0.5*$C$6-$I$6)*AH101+(0.5*$C$6-$M$6)*AJ101 -> 0.1250512259 | AL101: =AF101+AH101-AJ101 -> 5.770419258 | AM101: =0.1*$Q$6*Z101*$B$6^2/Y101+$R$6 -> 0.01168322419 | AN101: =AK101-AM101*AL101 -> 0.05763412407 | AO101: =IF(AN101=$AO$88,Z101,0) -> 0 | AP101: =AP100 -> 5.770319258 | AQ101: =AC101*$D$6 -> 3.770465331 | AR101: =IF(AG100<$K$6,$Q$6*Z101*$H$6*$J$6,$H$6*$K$6) -> 0.2764601535 | AS101: =IF(AI100<$O$6,$Q$6*Z101*$L$6*$N$6,-$L$6*$O$6) -> 0.5344834419 | AT101: =-(AP101+0.0001) -> -5.770419258 | AU101: =IF(AG100<$K$6,$I$6*$Q$6*Z101*$H$6*$J$6,0) -> 0 | AV101: =IF(AI100<$O$6,($C$6-$M$6)*$Q$6*Z101*$L$6*$N$6,0) -> 0.2565520521 | AW101: =IF(Y100<=$C$6,0,(Y100-$C$6)/Y100) -> 0.6291809174 | AX101: =IF(Y101<=$C$6,0,(Y101-$C$6)/Y101) -> 0.6044505263
B102: 5.462489544e-05 | C102: 0.2872822932 | D102: 0.001088887485 | E102: 0.2180183253 | F102: -0.06973722327 | G102: 11.75942474 | H102: 7.627687038 | I102: 0.6486445729 | J102: 1.418875292 | K102: 445.3260042 | L102: 0.2686143174 | M102: 377.6018146 | N102: 0.2277640487 | O102: 0.344117078 | P102: 0.03526833509 | Q102: 1.459725561 | R102: 0.2926349877 | S102: -0.03925561321 | T102: 0.1468983257 | U102: 0.161849557 | V102: 0.2849197654 | W102: 0
B103: 5.88612673e-05 | C103: 0.3215203423 | D103: 0.00117333492 | E103: 0.2349264895 | F103: -0.0751456146 | G103: 12.46389061 | H103: 8.06468974 | I103: 0.6470443293 | J103: 1.683105637 | K103: 458.3333333 | L103: 0.2764601535 | M103: 298.9684576 | N103: 0.1803335251 | O103: 0.3593622802 | P103: 0.03395661193 | Q103: 1.779232266 | R103: 0.2989455806 | S103: -0.03021233293 | T103: 0.1176075222 | U103: 0.1853366815 | V103: 0.2929737643 | W103: 0
B104: 6.309763917e-05 | C104: 0.3614224729 | D104: 0.001257782355 | E104: 0.2518346536 | F104: -0.08055400592 | G104: 13.14016907 | H104: 8.480782969 | I104: 0.6454089689 | J104: 1.994644007 | K104: 458.3333333 | L104: 0.2764601535 | M104: 213.3197371 | N104: 0.128671434 | O104: 0.3680035896 | P104: 0.03238181264 | Q104: 2.142432727 | R104: 0.2986277344 | S104: -0.02629484654 | T104: 0.102244453 | U104: 0.2002696909 | V104: 0.2922789508 | W104: 0
B105: 6.733401103e-05 | C105: 0.4082101177 | D105: 0.00134222979 | E105: 0.2687428178 | F105: -0.08596239725 | G105: 13.78857775 | H105: 8.876218271 | I105: 0.643737043 | J105: 2.364027518 | K105: 458.3333333 | L105: 0.2764601535 | M105: 122.0238311 | N105: 0.07360304088 | O105: 0.3679998393 | P105: 0.0305952439 | Q105: 2.566884631 | R105: 0.289465378 | S105: -0.02857028906 | T105: 0.1129602339 | U105: 0.1877561732 | V105: 0.2825351978 | W105: 0
B106: 7.157038289e-05 | C106: 0.4634349203 | D106: 0.001426677225 | E106: 0.285650982 | F106: -0.09137078857 | G106: 14.40942924 | H106: 9.251243015 | I106: 0.6420270268 | J106: 2.804689731 | K106: 458.3333333 | L106: 0.2764601535 | M106: 26.36142046 | N106: 0.01590083421 | O106: 0.353371928 | P106: 0.02864493123 | Q106: 3.065249051 | R106: 0.2655680797 | S106: -0.03113712682 | T106: 0.1274170074 | U106: 0.1675599325 | V106: 0.2573241865 | W106: 0
B107: 7.580675476e-05 | C107: 0.5290877597 | D107: 0.00151112466 | E107: 0.3025591461 | F107: -0.09677917989 | G107: 15.00303116 | H107: 9.60610048 | I107: 0.6402773132 | J107: 3.33392646 | K107: 458.3333333 | L107: 0.2764601535 | M107: -72.47431114 | N107: -0.04371547458 | O107: 0.3145074052 | P107: 0.02657561903 | Q107: 3.654102088 | R107: 0.2173973802 | S107: -0.01952711675 | T107: 0.04940527291 | U107: 0.297600555 | V107: 0.2079216885 | W107: 0
B108: 8.004312662e-05 | C108: 0.6077509315 | D108: 0.001595572095 | E108: 0.3194673103 | F108: -0.1021875712 | G108: 15.31593177 | H108: 9.922246437 | I108: 0.6478382501 | J108: 3.909474156 | K108: 458.3333333 | L108: 0.2764601535 | M108: -173.3776773 | N108: -0.1045789512 | O108: 0.2549214899 | P108: 0.02442877053 | Q108: 4.290513261 | R108: 0.150109526 | S108: 0.003171366182 | T108: -0.130925443 | U108: 0.6534667681 | V108: 0.1419636444 | W108: 0.1114781204
B109: 8.427949848e-05 | C109: 0.7028136984 | D109: 0.00168001953 | E109: 0.3363754744 | F109: -0.1075959625 | G109: 14.9990371 | H109: 10.08626752 | I109: 0.6724610019 | J109: 4.42744207 | K109: 458.3333333 | L109: 0.2764601535 | M109: -275.3304888 | N109: -0.1660754383 | O109: 0.1993978785 | P109: 0.02224256783 | Q109: 4.869977662 | R109: 0.09107707009 | S109: 0.004411767403 | T109: -0.1422881271 | U109: 0.6793845841 | V109: 0.08556038303 | W109: 0.231659825
B110: 8.851587035e-05 | C110: 0.8187825065 | D110: 0.001764466965 | E110: 0.3532836386 | F110: -0.1130043539 | G110: 14.19961096 | H110: 10.00963354 | I110: 0.7049230832 | J110: 4.883085082 | K110: 458.3333333 | L110: 0.2764601535 | M110: -377.4020536 | N110: -0.2276435557 | O110: 0.1489124604 | P110: 0.02005191188 | Q110: 5.387188791 | R110: 0.04088902552 | S110: 0.00529003125 | T110: -0.1512966256 | U110: 0.7024262657 | V110: 0.03789120805 | W110: 0.3404841998
B111: 9.275224221e-05 | C111: 0.9617353345 | D111: 0.0018489144 | E111: 0.3701918028 | F111: -0.1184127452 | G111: 13.06077319 | H111: 9.667608778 | I111: 0.7402018731 | J111: 5.27562297 | K111: 458.3333333 | L111: 0.2764601535 | M111: -478.749177 | N111: -0.2887747003 | O111: 0.1036806155 | P111: 0.01788842248 | Q111: 5.840857824 | R111: -0.0008031168809 | S111: 0.009857585991 | T111: -0.2025813431 | U111: 0.846148047 | V111: -0.001450016316 | W111: 0.4385149629
B112: -9.698861408e-06 | C112: 1.140000103 | D112: 0.001826674359 | E112: 0.3657388758 | F112: -0.1169883935 | G112: 11.38404523 | H112: 8.838542796 | I112: 0.7763973714 | J112: 5.450681351 | K112: 458.3333333 | L112: 0.2764601535 | M112: -546.686754 | N112: -0.3297536813 | O112: 0.07107538574 | P112: 0.01490963642 | Q112: 6.056895186 | R112: -0.01923071929 | S112: 0.01433073833 | T112: -0.2558018048 | U112: 1.004396831 | V112: -0.01926504868 | W112: 0.5263158323
C113: =C93+(C112-C92) -> 1.36518953 | D113: =D93+(D112-D92) -> 0.00190264905 | E113: 0.3809506173 | F113: -0.1218541525 | G113: 9.989602013 | H113: 8.091366568 | I113: 0.8099788718 | J113: 5.72783403 | K113: 458.3333333 | L113: 0.2764601535 | M113: -637.7350903 | N113: -0.3846727439 | O113: 0.03790531231 | P113: 0.01296810597 | Q113: 6.388966928 | R113: -0.04494748786 | W113: 0.6044505263
B114: De | C114: hc | D114: e0 | E114: a' | F114: b' | G114: N' | H114: tN' | I114: t | J114: Nc | K114: sac | L114: Nac | M114: sat | N114: Nat | O114: Mtot | P114: u | Q114: N | R114: Mo | S114: a'' | T114: b'' | U114: c'' | W114: x
C115: =$C$35 -> 0.1294560717 | D115: =$D$35 -> 0.0003274293193 | E115: =$E$35 -> 0.06555828113 | F115: =$F$35 -> -0.02097003764 | G115: =IF($C$2=1,0.5*($O$31*D115*$F$6/$O$30)*(1-W115^2+(E115-F115)*(F115^2*(1-W115^2)+2*F115*(1-W115)+2*LN((1-F115)/(1-F115*W115)))/(F115^3)),$F$6*F115*(LN((1-E115+E115^2)/(1+E115)^2)/(6*E115)+ATAN((2-E115)/(E115*3^0.5))/(E115*3^0.5)-LN((W115^2-E115*W115+E115^2)/(W115+E115)^2)/(6*E115)-ATAN((2*W115-E115)/(E115*3^0.5))/(E115*3^0.5))) -> 4.078972558 | H115: =IF($C$2=1,($O$31*D115*$F$6/$O$30)*(1-W115^3-(E115-F115)*(-2*F115^3*(1-W115^3)-3*F115^2*(1-W115^2)-6*F115*(1-W115)-6*LN((1-F115)/(1-F115*W115)))/(2*F115^4))/3,$F$6*F115*(LN((1+E115^3)/(E115^3+W115^3)))/3) -> 2.699038603 | I115: =$I$35 -> 0.6616957003 | J115: =$J$35 -> 0.2217800608 | K115: =$K$35 -> 90.81208847 | L115: =$L$35 -> 0.05477656128 | M115: =$M$35 -> 458.3274788 | N115: =$N$35 -> 0.2764566221 | O115: =$O$35 -> 0.1197266062 | P115: =$P$35 -> 0.02353455288 | Q115: =$Q$35 -> 0.0001 | R115: =$R$35 -> 0.1197242527 | W115: =IF(C115<$C$6,0,(C115-$C$6)/C115) -> 0
B116: =IF(R96>$Q$29*V96,B96,IF(Q96>Q95,$U$6,-0.5)*B96) -> -4.701633175e-08 | C116: =IF(Q96>Q95,C96,(1-$T$6)*C96+$T$6*C97) -> 0.1539818791 | D116: =D96+B116 -> 0.0004573924771 | E116: =IF($C$2=1,D116/($O$31*$O$30),2^(1/3)*$O$30/D116) -> 0.09157965652 | F116: =IF($C$2=1,-($O$31-2)*D116/$O$30,3*($O$30/D116)^2) -> -0.02929345937 | G116: =IF($C$2=1,0.5*($O$31*D116*$F$6/$O$30)*(1-W116^2+(E116-F116)*(F116^2*(1-W116^2)+2*F116*(1-W116)+2*LN((1-F116)/(1-F116*W116)))/(F116^3)),$F$6*F116*(LN((1-E116+E116^2)/(1+E116)^2)/(6*E116)+ATAN((2-E116)/(E116*3^0.5))/(E116*3^0.5)-LN((W116^2-E116*W116+E116^2)/(W116+E116)^2)/(6*E116)-ATAN((2*W116-E116)/(E116*3^0.5))/(E116*3^0.5))) -> 5.56473727 | H116: =IF($C$2=1,($O$31*D116*$F$6/$O$30)*(1-W116^3-(E116-F116)*(-2*F116^3*(1-W116^3)-3*F116^2*(1-W116^2)-6*F116*(1-W116)-6*LN((1-F116)/(1-F116*W116)))/(2*F116^4))/3,$F$6*F116*(LN((1+E116^3)/(E116^3+W116^3)))/3) -> 3.670643256 | I116: =H116/G116 -> 0.6596256172 | J116: =G116*C116*$D$6 -> 0.3598848546 | K116: =MAX(MIN($K$6,$Q$6*$J$6*D116*(C116-$I$6)/C116),-$K$6) -> 144.3117961 | L116: =K116*$H$6 -> 0.08704682469 | M116: =MIN($O$6,$Q$6*$N$6*D116*(C$6-C116-$M$6)/C116) -> 458.3333333 | N116: =M116*$L$6 -> 0.2764601535 | O116: =(0.5*$C$6-C116+I116*C116)*J116+(0.5*$C$6-$I$6)*L116+(0.5*$C$6-$M$6)*N116 -> 0.1546432758 | P116: =0.1*$Q$6*D116*$B$6^2/C116+$R$6 -> 0.02763950195 | Q116: =(J116+L116-N116) -> 0.1704715258 | R116: =O116-P116*Q116 -> 0.1499315277 | S116: =((R116-R115)*(Q116-Q117)-(R116-R117)*(Q116-Q115))/((Q116^2-Q115^2)*(Q116-Q117)-(Q116^2-Q117^2)*(Q116-Q115)) -> -0.04983368181 | T116: =-(S116*(Q116^2-Q115^2)-(R116-R115))/(Q116-Q115) -> 0.1858025754 | U116: =R116-S116*Q116^2-T116*Q116 -> 0.1197056729 | V116: =S96*Q116^2+T96*Q116+U96 -> 0.1499318388 | W116: =IF(C116<$C$6,0,(C116-$C$6)/C116) -> 0
B117: =IF(R97>$Q$29*V97,B97,IF(Q97>Q96,$U$6,-0.5)*B97) -> -1.124578057e-07 | C117: =IF(Q97>Q96,C97,(1-$T$6)*C97+$T$6*C98) -> 0.1739496446 | D117: =D97+B117 -> 0.0005499316879 | E117: 0.1101079655 | F117: -0.0352200842 | G117: 6.577688561 | H117: 4.328877283 | I117: 0.65811527 | J117: 0.4805583668 | K117: 186.2243556 | L117: 0.112327885 | M117: 458.3333333 | N117: 0.2764601535 | O117: 0.1828170915 | P117: =0.1*$Q$6*D117*$B$6^2/C117+$R$6 -> 0.02941683945 | Q117: 0.3164260983 | R117: 0.1735088358 | S117: -0.03591640227 | T117: 0.179026285 | U117: 0.1204563938 | V117: 0.1735095257 | W117: 0
B118: -1.978168919e-07 | C118: 0.1902071471 | D118: 0.0006483177401 | E118: 0.1298069359 | F118: -0.04152116689 | G118: 7.614219098 | H118: 4.998542373 | I118: 0.6564747229 | J118: 0.6082771348 | K118: 229.4215466 | L118: 0.1383838167 | M118: 458.3333333 | N118: 0.2764601535 | O118: 0.2116066464 | P118: 0.03171552352 | Q118: 0.470200798 | R118: 0.196693982 | S118: -0.03266965942 | T118: 0.1764723098 | U118: 0.1209394566 | V118: 0.1966948548 | W118: 0
B119: -4.191577985e-06 | C119: 0.2097697917 | D119: 0.0008313536022 | E119: 0.1664545902 | F119: -0.05324360191 | G119: 9.433621351 | H119: 6.163190876 | I119: 0.6533218418 | J119: 0.8311332902 | K119: 306.8353324 | L119: 0.1850787122 | M119: 458.3333333 | N119: 0.2764601535 | O119: 0.2608869722 | P119: 0.03687683557 | Q119: 0.7397518488 | R119: 0.2336072649 | S119: -0.03226530739 | T119: 0.175983063 | U119: 0.1210801031 | V119: 0.2336142543 | W119: 0
B120: 4.615215171e-05 | C120: 0.2321097583 | D120: 0.0009661447668 | E120: 0.1934426348 | F120: -0.06187623078 | G120: 10.68457401 | H120: 6.954703451 | I120: 0.650910691 | J120: 1.041597434 | K120: 370.3331651 | L120: 0.2233797026 | M120: 458.3333333 | N120: 0.2764601535 | O120: 0.3018001251 | P120: 0.03873108091 | Q120: 0.9885169829 | R120: 0.2635137938 | S120: -0.03078961884 | T120: 0.1734326764 | U120: 0.1221592111 | V120: 0.2630046377 | W120: 0
B121: 5.038852357e-05 | C121: 0.2577379418 | D121: 0.001054828574 | E121: 0.2111990103 | F121: -0.0675559383 | G121: 11.46725341 | H121: 7.445462326 | I121: 0.6492803517 | J121: 1.241329442 | K121: 418.3423626 | L121: 0.2523381683 | M121: 458.3333333 | N121: 0.2764601535 | O121: 0.333998161 | P121: 0.03808152577 | Q121: 1.217207457 | R121: 0.2876450438 | S121: -0.1143068491 | T121: 0.3576486724 | U121: 0.02166875382 | V121: 0.2833194944 | W121: 0
B122: 5.462489544e-05 | C122: 0.2872822932 | D122: 0.00114351238 | E122: 0.2289553858 | F122: -0.07323564582 | G122: 12.2183451 | H122: 7.912763922 | I122: 0.6476133925 | J122: 1.474247964 | K122: 458.3333333 | L122: 0.2764601535 | M122: 396.5445061 | N122: 0.239190011 | O122: 0.3570888285 | P122: 0.03703759881 | Q122: 1.511518106 | R122: 0.3011058273 | S122: -0.0533610823 | T122: 0.1913444005 | U122: 0.1337986716 | V122: 0.2942022474 | W122: 0
B123: 5.88612673e-05 | C123: 0.3215203423 | D123: 0.001232196187 | E123: 0.2467117612 | F123: -0.07891535334 | G123: 12.93822525 | H123: 8.356906415 | I123: 0.645908249 | J123: 1.747159096 | K123: 458.3333333 | L123: 0.2764601535 | M123: 313.966445 | N123: 0.189380098 | O123: 0.3706493624 | P123: 0.03566007203 | Q123: 1.834239152 | R123: 0.3052402622 | S123: -0.02396805896 | T123: 0.09300247938 | U123: 0.2152904082 | V123: 0.2994096254 | W123: 0
B124: 6.309763917e-05 | C124: 0.3614224729 | D124: 0.001320879994 | E124: 0.2644681367 | F124: -0.08459506086 | G124: 13.62726367 | H124: 8.778182749 | I124: 0.6441632714 | J124: 2.068583721 | K124: 458.3333333 | L124: 0.2764601535 | M124: 224.0210891 | N124: 0.1351263375 | O124: 0.3789156136 | P124: 0.0340062717 | Q124: 2.209917537 | R124: 0.3037645574 | S124: -0.02549138389 | T124: 0.09916304408 | U124: 0.2091155843 | V124: 0.2978044245 | W124: 0
B125: 6.733401103e-05 | C125: 0.4082101177 | D125: 0.001409563801 | E125: 0.2822245122 | F125: -0.09027476838 | G125: 14.28582402 | H125: 9.176880755 | I125: 0.6423767186 | J125: 2.449279519 | K125: 458.3333333 | L125: 0.2764601535 | M125: 128.1452523 | N125: 0.07729539521 | O125: 0.3780349828 | P125: 0.03213007833 | Q125: 2.648444278 | R125: 0.2929402607 | S125: -0.02777489986 | T125: 0.1102571908 | U125: 0.1957505228 | V125: 0.2865257056 | W125: 0
B126: 7.157038289e-05 | C126: 0.4634349203 | D126: 0.001498247608 | E126: 0.2999808877 | F126: -0.0959544759 | G126: 14.91426386 | H126: 9.553283265 | I126: 0.6405467516 | J126: 2.902952086 | K126: 458.3333333 | L126: 0.2764601535 | M126: 27.68386181 | N126: 0.01669851204 | O126: 0.3617773712 | P126: 0.03008192669 | Q126: 3.162713728 | R126: 0.2666368487 | S126: -0.0303568488 | T126: 0.1252613041 | U126: 0.1741234186 | V126: 0.2590863025 | W126: 0
B127: 7.580675476e-05 | C127: 0.5290877597 | D127: 0.001586931415 | E127: 0.3177372632 | F127: -0.1016341834 | G127: 15.51293483 | H127: 9.907668219 | I127: 0.6386714265 | J127: 3.447235654 | K127: 458.3333333 | L127: 0.2764601535 | M127: -76.11004185 | N127: -0.04590849568 | O127: 0.3201458343 | P127: 0.02790880582 | Q127: 3.769604303 | R127: 0.2149406798 | S127: -0.01909752346 | T127: 0.04720808005 | U127: 0.3083591138 | V127: 0.206360184 | W127: 0
B128: 8.004312662e-05 | C128: 0.6077509315 | D128: 0.001675615221 | E128: 0.3354936387 | F128: -0.1073138909 | G128: 15.8161234 | H128: 10.22061847 | I128: 0.6462151443 | J128: 4.037150767 | K128: 458.3333333 | L128: 0.2764601535 | M128: -182.0753046 | N128: -0.1098252363 | O128: 0.2569838367 | P128: 0.02565425898 | Q128: 4.423436157 | R128: 0.1435038599 | S128: 0.003127428044 | T128: -0.1348818468 | U128: 0.6789513784 | V128: 0.1363798778 | W128: 0.1114781204
B129: 8.427949848e-05 | C129: 0.7028136984 | D129: 0.001764299028 | E129: 0.3532500142 | F129: -0.1129935985 | G129: 15.46011713 | H129: 10.3736638 | I129: 0.6709951623 | J129: 4.56354448 | K129: 458.3333333 | L129: 0.2764601535 | M129: -289.1426589 | N129: -0.174406743 | O129: 0.1983639122 | P129: 0.0233583837 | Q129: 5.014411376 | R129: 0.0812353672 | S129: 0.004358063985 | T129: -0.1464964012 | U129: 0.7062480263 | V129: 0.07682427868 | W129: 0.231659825
B130: 8.851587035e-05 | C130: 0.8187825065 | D130: 0.001852982835 | E130: 0.3710063896 | F130: -0.118673306 | G130: 14.60265771 | H130: 10.27542243 | I130: 0.7036679648 | J130: 5.021688286 | K130: 458.3333333 | L130: 0.2764601535 | M130: -396.3347239 | N130: -0.2390634733 | O130: 0.1452894464 | P130: 0.02105783177 | Q130: 5.537211913 | R130: 0.02868776943 | S130: 0.005233860396 | T130: -0.155737475 | U130: 0.7305652655 | V130: 0.02686093282 | W130: 0.3404841998
B131: 9.275224221e-05 | C131: 0.9617353345 | D131: 0.001941666642 | E131: 0.3887627651 | F131: -0.1243530135 | G131: 13.39611466 | H131: 9.901902983 | I131: 0.7391623046 | J131: 5.411077061 | K131: 458.3333333 | L131: 0.2764601535 | M131: -502.7660053 | N131: -0.3032613098 | O131: 0.09795693464 | P131: 0.01878580923 | Q131: 5.990798525 | R131: -0.0145850636 | S131: 0.05737806336 | T131: -0.7568563911 | U131: 2.460309502 | V131: -0.01369048612 | W131: 0.4385149629
B132: -9.698861408e-06 | C132: 1.140000103 | D132: 0.001816975498 | E132: 0.3637969585 | F132: -0.1163672351 | G132: 11.35285332 | H132: 8.815220635 | I132: 0.7764762203 | J132: 5.435746661 | K132: 458.3333333 | L132: 0.2764601535 | M132: -543.7840806 | N132: -0.32800283 | O132: 0.07170626231 | P132: 0.01483047261 | Q132: 6.040209645 | R132: -0.01787290137 | S132: -0.02777574024 | T132: 0.2676297157 | U132: -0.6210387026 | V132: -0.01785514053 | W132: 0.5263158323
C133: =C113 -> 1.36518953 | D133: =D113+(D132-D112) -> 0.001892950189 | E133: 0.3790087 | F133: -0.121232994 | G133: 9.966132065 | H133: 8.072943615 | I133: 0.8100377922 | J133: 5.714376841 | K133: 458.3333333 | L133: 0.2764601535 | M133: -634.4841995 | N133: -0.3827118528 | O133: 0.03863430306 | P133: 0.01290200032 | Q133: 6.373548847 | R133: -0.04359722619 | W133: 0.6044505263
B134: De | C134: hc | D134: e0 | E134: a' | F134: b' | G134: N' | H134: tN' | I134: t | J134: Nc | K134: sac | L134: Nac | M134: sat | N134: Nat | O134: Mtot | P134: u | Q134: N | R134: Mo | S134: a'' | T134: b'' | U134: c'' | W134: x
C135: =$C$35 -> 0.1294560717 | D135: =$D$35 -> 0.0003274293193 | E135: =$E$35 -> 0.06555828113 | F135: =$F$35 -> -0.02097003764 | G135: =IF($C$2=1,0.5*($O$31*D135*$F$6/$O$30)*(1-W135^2+(E135-F135)*(F135^2*(1-W135^2)+2*F135*(1-W135)+2*LN((1-F135)/(1-F135*W135)))/(F135^3)),$F$6*F135*(LN((1-E135+E135^2)/(1+E135)^2)/(6*E135)+ATAN((2-E135)/(E135*3^0.5))/(E135*3^0.5)-LN((W135^2-E135*W135+E135^2)/(W135+E135)^2)/(6*E135)-ATAN((2*W135-E135)/(E135*3^0.5))/(E135*3^0.5))) -> 4.078972558 | H135: =IF($C$2=1,($O$31*D135*$F$6/$O$30)*(1-W135^3-(E135-F135)*(-2*F135^3*(1-W135^3)-3*F135^2*(1-W135^2)-6*F135*(1-W135)-6*LN((1-F135)/(1-F135*W135)))/(2*F135^4))/3,$F$6*F135*(LN((1+E135^3)/(E135^3+W135^3)))/3) -> 2.699038603 | I135: =$I$35 -> 0.6616957003 | J135: =$J$35 -> 0.2217800608 | K135: =$K$35 -> 90.81208847 | L135: =$L$35 -> 0.05477656128 | M135: =$M$35 -> 458.3274788 | N135: =$N$35 -> 0.2764566221 | O135: =$O$35 -> 0.1197266062 | P135: =$P$35 -> 0.02353455288 | Q135: =$Q$35 -> 0.0001 | R135: =$R$35 -> 0.1197242527 | W135: =IF(C135<$C$6,0,(C135-$C$6)/C135) -> 0
B136: =IF(R116>$Q$29*V116,B116,IF(Q116>Q115,$U$6,-0.5)*B116) -> 4.701633175e-09 | C136: =IF(Q116>Q115,C116,(1-$T$6)*C116+$T$6*C117) -> 0.1539818791 | D136: =D116+B136 -> 0.0004573971787 | E136: =IF($C$2=1,D136/($O$31*$O$30),2^(1/3)*$O$30/D136) -> 0.09158059789 | F136: =IF($C$2=1,-($O$31-2)*D136/$O$30,3*($O$30/D136)^2) -> -0.02929376048 | G136: =IF($C$2=1,0.5*($O$31*D136*$F$6/$O$30)*(1-W136^2+(E136-F136)*(F136^2*(1-W136^2)+2*F136*(1-W136)+2*LN((1-F136)/(1-F136*W136)))/(F136^3)),$F$6*F136*(LN((1-E136+E136^2)/(1+E136)^2)/(6*E136)+ATAN((2-E136)/(E136*3^0.5))/(E136*3^0.5)-LN((W136^2-E136*W136+E136^2)/(W136+E136)^2)/(6*E136)-ATAN((2*W136-E136)/(E136*3^0.5))/(E136*3^0.5))) -> 5.56478968 | H136: =IF($C$2=1,($O$31*D136*$F$6/$O$30)*(1-W136^3-(E136-F136)*(-2*F136^3*(1-W136^3)-3*F136^2*(1-W136^2)-6*F136*(1-W136)-6*LN((1-F136)/(1-F136*W136)))/(2*F136^4))/3,$F$6*F136*(LN((1+E136^3)/(E136^3+W136^3)))/3) -> 3.670677404 | I136: =H136/G136 -> 0.6596255412 | J136: =G136*C136*$D$6 -> 0.359888244 | K136: =MAX(MIN($K$6,$Q$6*$J$6*D136*(C136-$I$6)/C136),-$K$6) -> 144.3132796 | L136: =K136*$H$6 -> 0.08704771946 | M136: =MIN($O$6,$Q$6*$N$6*D136*(C$6-C136-$M$6)/C136) -> 458.3333333 | N136: =M136*$L$6 -> 0.2764601535 | O136: =(0.5*$C$6-C136+I136*C136)*J136+(0.5*$C$6-$I$6)*L136+(0.5*$C$6-$M$6)*N136 -> 0.154644197 | P136: =0.1*$Q$6*D136*$B$6^2/C136+$R$6 -> 0.02763978607 | Q136: =(J136+L136-N136) -> 0.17047581 | R136: =O136-P136*Q136 -> 0.149932282 | S136: =((R136-R135)*(Q136-Q137)-(R136-R137)*(Q136-Q135))/((Q136^2-Q135^2)*(Q136-Q137)-(Q136^2-Q137^2)*(Q136-Q135)) -> -0.0498329487 | T136: =-(S136*(Q136^2-Q135^2)-(R136-R135))/(Q136-Q135) -> 0.185802633 | U136: =R136-S136*Q136^2-T136*Q136 -> 0.1197056729 | V136: =S116*Q136^2+T116*Q136+U116 -> 0.1499322509 | W136: =IF(C136<$C$6,0,(C136-$C$6)/C136) -> 0
B137: =IF(R117>$Q$29*V117,B117,IF(Q117>Q116,$U$6,-0.5)*B117) -> 1.124578057e-08 | C137: =IF(Q117>Q116,C117,(1-$T$6)*C117+$T$6*C118) -> 0.1739496446 | D137: =D117+B137 -> 0.0005499429337 | E137: 0.1101102171 | F137: -0.03522080443 | G137: 6.57780941 | H137: 4.328955596 | I137: 0.6581150846 | J137: 0.4805671959 | K137: 186.2281638 | L137: 0.112330182 | M137: 458.3333333 | N137: 0.2764601535 | O137: 0.1828194172 | P137: =0.1*$Q$6*D137*$B$6^2/C137+$R$6 -> 0.029417441 | Q137: 0.3164372244 | R137: 0.1735106438 | S137: -0.03591644714 | T137: 0.179026507 | U137: 0.1204563971 | V137: 0.1735105748 | W137: 0
B138: 1.978168919e-08 | C138: 0.1902071471 | D138: 0.0006483375218 | E138: 0.1298108966 | F138: -0.0415224338 | G138: 7.614423353 | H138: 4.998673921 | I138: 0.6564743894 | J138: 0.6082934521 | K138: 229.4285467 | L138: 0.1383880391 | M138: 458.3333333 | N138: 0.2764601535 | O138: 0.211610834 | P138: 0.03171649124 | Q138: 0.4702213377 | R138: 0.1966970631 | S138: -0.03266588382 | T138: 0.1764694235 | U138: 0.1209400664 | V138: 0.1966969756 | W138: 0
B139: 4.191577985e-07 | C139: 0.2097697917 | D139: 0.00083177276 | E139: 0.1665385145 | F139: -0.05327044665 | G139: 9.437627303 | H139: 6.165738429 | I139: 0.6533144646 | J139: 0.8314862278 | K139: 306.9900348 | L139: 0.1851720265 | M139: 458.3333333 | N139: 0.2764601535 | O139: 0.260974908 | P139: 0.03689542839 | Q139: 0.7401981008 | R139: 0.233664982 | S139: -0.03165793025 | T139: 0.1752493769 | U139: 0.1212908917 | V139: 0.2336644887 | W139: 0
B140: 4.615215171e-05 | C140: 0.2321097583 | D140: 0.001012296919 | E140: 0.2026832726 | F140: -0.06483202094 | G140: 11.09585534 | H140: 7.213046277 | I140: 0.6500667189 | J140: 1.081691647 | K140: 388.0237567 | L140: 0.234050416 | M140: 458.3333333 | N140: 0.2764601535 | O140: 0.3114058001 | P140: 0.04058124124 | Q140: 1.039281909 | R140: 0.2692304502 | S140: -0.02907119486 | T140: 0.170646333 | U140: 0.1232808012 | V140: 0.2691485748 | W140: 0
B141: 5.038852357e-05 | C141: 0.2577379418 | D141: 0.001105217097 | E141: 0.2212878594 | F141: -0.07078304465 | G141: 11.8978608 | H141: 7.713832975 | I141: 0.6483378067 | J141: 1.287942665 | K141: 438.3263245 | L141: 0.2643922101 | M141: 458.3333333 | N141: 0.2764601535 | O141: 0.3445886559 | P141: 0.03990065725 | Q141: 1.275874721 | R141: 0.293680416 | S141: -0.1019685344 | T141: 0.3394150921 | U141: 0.0266194016 | V141: 0.2919085291 | W141: 0
B142: 5.462489544e-05 | C142: 0.2872822932 | D142: 0.001198137276 | E142: 0.2398924462 | F142: -0.07673406837 | G142: 12.66542406 | H142: 8.189054441 | I142: 0.6465677269 | J142: 1.528191868 | K142: 458.3333333 | L142: 0.2764601535 | M142: 415.4871975 | N142: 0.2506159733 | O142: 0.3681330835 | P142: 0.03880686252 | Q142: 1.554036048 | R142: 0.3078258202 | S142: -0.06722757118 | T142: 0.241101266 | U142: 0.09550223094 | V142: 0.3022862577 | W142: 0
B143: 5.88612673e-05 | C143: 0.3215203423 | D143: 0.001291057455 | E143: 0.258497033 | F143: -0.08268509209 | G143: 13.39897346 | H143: 8.63905008 | I143: 0.6447546227 | J143: 1.809377864 | K143: 458.3333333 | L143: 0.2764601535 | M143: 328.9644323 | N143: 0.1984266708 | O143: 0.3815936223 | P143: 0.03736353212 | Q143: 1.887411347 | R143: 0.3110732678 | S143: -0.02324389529 | T143: 0.08973375921 | U143: 0.2245109825 | V143: 0.3054424091 | W143: 0
B144: 6.309763917e-05 | C144: 0.3614224729 | D144: 0.001383977633 | E144: 0.2771016198 | F144: -0.0886361158 | G144: 14.09892985 | H144: 9.064153077 | I144: 0.6428965299 | J144: 2.140181439 | K144: 458.3333333 | L144: 0.2764601535 | M144: 234.7224412 | N144: 0.141581241 | O144: 0.3894146947 | P144: 0.03563073075 | Q144: 2.275060351 | R144: 0.3083526319 | S144: -0.02478052337 | T144: 0.09612993006 | U144: 0.2179127404 | V144: 0.3027766504 | W144: 0
B145: 6.733401103e-05 | C145: 0.4082101177 | D145: 0.001476897812 | E145: 0.2957062066 | F145: -0.09458713952 | G145: 14.76570669 | H145: 9.464690546 | I145: 0.6409913691 | J145: 2.531554563 | K145: 458.3333333 | L145: 0.2764601535 | M145: 134.2666736 | N145: 0.08098774953 | O145: 0.3875820516 | P145: 0.03366491275 | Q145: 2.727026967 | R145: 0.2957769267 | S145: -0.02707669244 | T145: 0.1076155683 | U145: 0.2036669609 | V145: 0.2898719222 | W145: 0
B146: 7.157038289e-05 | C146: 0.4634349203 | D146: 0.001569817991 | E146: 0.3143107934 | F146: -0.1005381632 | G146: 15.39971026 | H146: 9.840983672 | I146: 0.639036937 | J146: 2.997440668 | K146: 458.3333333 | L146: 0.2764601535 | M146: 29.00630316 | N146: 0.01749618987 | O146: 0.3696192799 | P146: 0.03151892215 | Q146: 3.256404632 | R146: 0.2669809158 | S146: -0.02967934701 | T146: 0.1231883739 | U146: 0.1805545991 | V146: 0.26011569 | W146: 0
B147: 7.580675476e-05 | C147: 0.5290877597 | D147: 0.001662738169 | E147: 0.3329153803 | F147: -0.1064891869 | G147: 16.0013398 | H147: 10.19334784 | I147: 0.6370308969 | J147: 3.555767471 | K147: 458.3333333 | L147: 0.2764601535 | M147: -79.74577256 | N147: -0.04810151678 | O147: 0.3251540222 | P147: 0.02924199261 | Q147: 3.880329141 | R147: 0.2116854662 | S147: -0.01874111197 | T147: 0.04512510242 | U147: 0.3187692816 | V147: 0.2039914656 | W147: 0
B148: 8.004312662e-05 | C148: 0.6077509315 | D148: 0.001755658348 | E148: 0.3515199671 | F148: -0.1124402107 | G148: 16.29266362 | H148: 10.50149903 | I148: 0.6445538482 | J148: 4.158790226 | K148: 458.3333333 | L148: 0.2764601535 | M148: -190.7729319 | N148: -0.1150715215 | O148: 0.2583717561 | P148: 0.02687974743 | Q148: 4.550321901 | R148: 0.1360602527 | S148: 0.003060524271 | T148: -0.1386768848 | U148: 0.7037152497 | V148: 0.1299502973 | W148: 0.1114781204
B149: 8.427949848e-05 | C149: 0.7028136984 | D149: 0.001848578527 | E149: 0.3701245539 | F149: -0.1183912344 | G149: 15.89562124 | H149: 10.64196981 | I149: 0.6694906511 | J149: 4.692097347 | K149: 458.3333333 | L149: 0.2764601535 | M149: -302.954829 | N149: -0.1827380477 | O149: 0.1966370657 | P149: 0.02447419958 | Q149: 5.151295548 | R149: 0.07056323041 | S149: 0.004268836949 | T149: -0.1503994722 | U149: 0.7320381629 | V149: 0.06724668092 | W149: 0.231659825
B150: 8.851587035e-05 | C150: 0.8187825065 | D150: 0.001941498705 | E150: 0.3887291407 | F150: -0.1243422581 | G150: 14.97870935 | H150: 10.52067221 | I150: 0.7023750819 | J150: 5.151008178 | K150: 458.3333333 | L150: 0.2764601535 | M150: -415.2673942 | N150: -0.250483391 | O150: 0.1409777513 | P150: 0.02206375167 | Q150: 5.677951723 | R150: 0.01570083452 | S150: 0.008960014463 | T150: -0.2012013935 | U150: 0.8692495106 | V150: 0.01503053672 | W150: 0.3404841998
B151: -9.275224221e-06 | C151: 0.9617353345 | D151: 0.001932391418 | E151: 0.3869056689 | F151: -0.1237589867 | G151: 13.36383446 | H151: 9.879453071 | I151: 0.7392678429 | J151: 5.398038156 | K151: 458.3333333 | L151: 0.2764601535 | M151: -500.3643225 | N151: -0.3018126489 | O151: 0.09855944805 | P151: 0.01869607056 | Q151: 5.976310959 | R151: -0.01317408332 | S151: 0.07427373803 | T151: -0.9623846847 | U151: 3.085553489 | V151: -0.01356793761 | W151: 0.4385149629
B152: -9.698861408e-06 | C152: 1.140000103 | D152: 0.001807276636 | E152: 0.3618550411 | F152: -0.1157460766 | G152: 11.32137573 | H152: 8.791668457 | I152: 0.7765547814 | J152: 5.420675191 | K152: 458.3333333 | L152: 0.2764601535 | M152: -540.8814072 | N152: -0.3262519786 | O152: 0.07233058669 | P152: 0.0147513088 | Q152: 6.023387324 | R152: -0.01652225974 | S152: -0.01513741697 | T152: 0.1105221984 | U152: -0.1330366941 | V152: -0.0167383095 | W152: 0.5263158323
C153: =C133 -> 1.36518953 | D153: =D133+(D152-D132) -> 0.001883251328 | E153: 0.3770667826 | F153: -0.1206118356 | G153: 9.9424064 | H153: 8.054308412 | I153: 0.8100964785 | J153: 5.700773029 | K153: 458.3333333 | L153: 0.2764601535 | M153: -631.2333087 | N153: -0.3807509617 | O153: 0.03935773172 | P153: 0.01283589466 | Q153: 6.357984144 | R153: -0.04225268301 | W153: 0.6044505263
B154: De | C154: hc | D154: e0 | E154: a' | F154: b' | G154: N' | H154: tN' | I154: t | J154: Nc | K154: sac | L154: Nac | M154: sat | N154: Nat | O154: Mtot | P154: u | Q154: N | R154: Mo | S154: a'' | T154: b'' | U154: c'' | W154: x
C155: =$C$35 -> 0.1294560717 | D155: =$D$35 -> 0.0003274293193 | E155: =$E$35 -> 0.06555828113 | F155: =$F$35 -> -0.02097003764 | G155: =IF($C$2=1,0.5*($O$31*D155*$F$6/$O$30)*(1-W155^2+(E155-F155)*(F155^2*(1-W155^2)+2*F155*(1-W155)+2*LN((1-F155)/(1-F155*W155)))/(F155^3)),$F$6*F155*(LN((1-E155+E155^2)/(1+E155)^2)/(6*E155)+ATAN((2-E155)/(E155*3^0.5))/(E155*3^0.5)-LN((W155^2-E155*W155+E155^2)/(W155+E155)^2)/(6*E155)-ATAN((2*W155-E155)/(E155*3^0.5))/(E155*3^0.5))) -> 4.078972558 | H155: =IF($C$2=1,($O$31*D155*$F$6/$O$30)*(1-W155^3-(E155-F155)*(-2*F155^3*(1-W155^3)-3*F155^2*(1-W155^2)-6*F155*(1-W155)-6*LN((1-F155)/(1-F155*W155)))/(2*F155^4))/3,$F$6*F155*(LN((1+E155^3)/(E155^3+W155^3)))/3) -> 2.699038603 | I155: =$I$35 -> 0.6616957003 | J155: =$J$35 -> 0.2217800608 | K155: =$K$35 -> 90.81208847 | L155: =$L$35 -> 0.05477656128 | M155: =$M$35 -> 458.3274788 | N155: =$N$35 -> 0.2764566221 | O155: =$O$35 -> 0.1197266062 | P155: =$P$35 -> 0.02353455288 | Q155: =$Q$35 -> 0.0001 | R155: =$R$35 -> 0.1197242527 | W155: =IF(C155<$C$6,0,(C155-$C$6)/C155) -> 0
B156: =IF(R136>$Q$29*V136,IF(B136=B96,1.22,1)*B136,IF(Q136>Q135,$U$6,-0.5)*B136) -> -4.701633175e-10 | C156: =IF(Q136>Q135,C136,(1-$T$6)*C136+$T$6*C137) -> 0.1539818791 | D156: =D136+B156 -> 0.0004573967085 | E156: =IF($C$2=1,D156/($O$31*$O$30),2^(1/3)*$O$30/D156) -> 0.09158050375 | F156: =IF($C$2=1,-($O$31-2)*D156/$O$30,3*($O$30/D156)^2) -> -0.02929373037 | G156: =IF($C$2=1,0.5*($O$31*D156*$F$6/$O$30)*(1-W156^2+(E156-F156)*(F156^2*(1-W156^2)+2*F156*(1-W156)+2*LN((1-F156)/(1-F156*W156)))/(F156^3)),$F$6*F156*(LN((1-E156+E156^2)/(1+E156)^2)/(6*E156)+ATAN((2-E156)/(E156*3^0.5))/(E156*3^0.5)-LN((W156^2-E156*W156+E156^2)/(W156+E156)^2)/(6*E156)-ATAN((2*W156-E156)/(E156*3^0.5))/(E156*3^0.5))) -> 5.564784439 | H156: =IF($C$2=1,($O$31*D156*$F$6/$O$30)*(1-W156^3-(E156-F156)*(-2*F156^3*(1-W156^3)-3*F156^2*(1-W156^2)-6*F156*(1-W156)-6*LN((1-F156)/(1-F156*W156)))/(2*F156^4))/3,$F$6*F156*(LN((1+E156^3)/(E156^3+W156^3)))/3) -> 3.670673989 | I156: =H156/G156 -> 0.6596255488 | J156: =G156*C156*$D$6 -> 0.3598879051 | K156: =MAX(MIN($K$6,$Q$6*$J$6*D156*(C156-$I$6)/C156),-$K$6) -> 144.3131312 | L156: =K156*$H$6 -> 0.08704762998 | M156: =MIN($O$6,$Q$6*$N$6*D156*(C$6-C156-$M$6)/C156) -> 458.3333333 | N156: =M156*$L$6 -> 0.2764601535 | O156: =(0.5*$C$6-C156+I156*C156)*J156+(0.5*$C$6-$I$6)*L156+(0.5*$C$6-$M$6)*N156 -> 0.1546441048 | P156: =0.1*$Q$6*D156*$B$6^2/C156+$R$6 -> 0.02763975766 | Q156: =(J156+L156-N156) -> 0.1704753816 | R156: =O156-P156*Q156 -> 0.1499322066 | S156: =((R156-R155)*(Q156-Q157)-(R156-R157)*(Q156-Q155))/((Q156^2-Q155^2)*(Q156-Q157)-(Q156^2-Q157^2)*(Q156-Q155)) -> -0.04983302195 | T156: =-(S156*(Q156^2-Q155^2)-(R156-R155))/(Q156-Q155) -> 0.1858026272 | U156: =R156-S156*Q156^2-T156*Q156 -> 0.1197056729 | V156: =S136*Q156^2+T136*Q156+U136 -> 0.1499322097 | W156: =IF(C156<$C$6,0,(C156-$C$6)/C156) -> 0
B157: =IF(R137>$Q$29*V137,IF(B137=B97,1.22,1)*B137,IF(Q137>Q136,$U$6,-0.5)*B137) -> -1.124578057e-09 | C157: =IF(Q137>Q136,C137,(1-$T$6)*C137+$T$6*C138) -> 0.1739496446 | D157: =D137+B157 -> 0.0005499418091 | E157: 0.110109992 | F157: -0.0352207324 | G157: 6.577797325 | H157: 4.328947765 | I157: 0.6581151031 | J157: 0.480566313 | K157: 186.227783 | L157: 0.1123299523 | M157: 458.3333333 | N157: 0.2764601535 | O157: 0.1828191846 | P157: =0.1*$Q$6*D157*$B$6^2/C157+$R$6 -> 0.02941738085 | Q157: 0.3164361117 | R157: 0.173510463 | S157: -0.03591644265 | T157: 0.1790264848 | U157: 0.1204563968 | V157: 0.1735104699 | W157: 0
B158: -1.978168919e-09 | C158: 0.1902071471 | D158: 0.0006483355436 | E158: 0.1298105005 | F158: -0.04152230711 | G158: 7.614402928 | H158: 4.998660767 | I158: 0.6564744227 | J158: 0.6082918204 | K158: 229.4278467 | L158: 0.1383876169 | M158: 458.3333333 | N158: 0.2764601535 | O158: 0.2116104153 | P158: 0.03171639447 | Q158: 0.4702192837 | R158: 0.196696755 | S158: -0.03266625779 | T158: 0.1764697093 | U158: 0.120940006 | V158: 0.1966967637 | W158: 0
B159: -4.191577985e-08 | C159: 0.2097697917 | D159: 0.0008317308442 | E159: 0.166530122 | F159: -0.05326776217 | G159: 9.437226741 | H159: 6.165483698 | I159: 0.6533152024 | J159: 0.8314509369 | K159: 306.9745645 | L159: 0.1851626951 | M159: 458.3333333 | N159: 0.2764601535 | O159: 0.2609661151 | P159: 0.03689356911 | Q159: 0.7401534785 | R159: 0.2336592116 | S159: -0.03168469276 | T159: 0.1752816498 | U159: 0.1212816244 | V159: 0.2336592532 | W159: 0
B160: -4.615215171e-06 | C160: 0.2321097583 | D160: 0.001007681703 | E160: 0.2017592088 | F160: -0.06453644192 | G160: 11.05511529 | H160: 7.187500343 | I160: 0.6501515501 | J160: 1.077720058 | K160: 386.2546975 | L160: 0.2329833447 | M160: 458.3333333 | N160: 0.2764601535 | O160: 0.3104531907 | P160: 0.04039622521 | Q160: 1.034243249 | R160: 0.2686736674 | S160: -0.02897167065 | T160: 0.1704676722 | U160: 0.1233584394 | V160: 0.268674351 | W160: 0
B161: 6.147399876e-05 | C161: 0.2577379418 | D161: 0.001166691096 | E161: 0.2335962553 | F161: -0.0747201144 | G161: 12.40949316 | H161: 8.031070068 | I161: 0.6471714813 | J161: 1.343326834 | K161: 458.3333333 | L161: 0.2764601535 | M161: 458.3333333 | N161: 0.2764601535 | O161: 0.3566529995 | P161: 0.04211999765 | Q161: 1.343326834 | R161: 0.3000720764 | S161: -0.07425864592 | T161: 0.2781406298 | U161: 0.06044003506 | V161: 0.2985598309 | W161: 0
B162: 6.664237243e-05 | C162: 0.2872822932 | D162: 0.001264779648 | E162: 0.2532356599 | F162: -0.08100214388 | G162: 13.1949507 | H162: 8.514330159 | I162: 0.6452718433 | J162: 1.592083792 | K162: 458.3333333 | L162: 0.2764601535 | M162: 438.5972811 | N162: 0.2645556472 | O162: 0.3812312706 | P162: 0.04096536425 | Q162: 1.603988298 | R162: 0.3155233057 | S162: -0.08792524964 | T162: 0.3184204177 | U162: 0.0309928702 | V162: 0.3092641932 | W162: 0
B163: 7.181074611e-05 | C163: 0.3215203423 | D163: 0.001362868201 | E163: 0.2728750645 | F163: -0.08728417335 | G163: 13.94284244 | H163: 8.969747086 | I163: 0.6433227032 | J163: 1.882821139 | K163: 458.3333333 | L163: 0.2764601535 | M163: 347.2619769 | N163: 0.2094634897 | O163: 0.3944856148 | P163: 0.03944175343 | Q163: 1.949817802 | R163: 0.3175813818 | S163: -0.02246696001 | T163: 0.08579434872 | U163: 0.2357126851 | V163: 0.3111070675 | W163: 0
B164: 7.697911978e-05 | C164: 0.3614224729 | D164: 0.001460956753 | E164: 0.2925144692 | F164: -0.09356620283 | G164: 14.65365693 | H164: 9.397707448 | I164: 0.6413216503 | J164: 2.224387589 | K164: 458.3333333 | L164: 0.2764601535 | M164: 247.7780907 | N164: 0.1494562233 | O164: 0.4016699018 | P164: 0.03761257079 | Q164: 2.351391519 | R164: 0.3132280219 | S164: -0.02402304322 | T164: 0.09248738835 | U164: 0.2285783781 | V164: 0.3069392864 | W164: 0
B165: 8.214749346e-05 | C165: 0.4082101177 | D165: 0.001559045305 | E165: 0.3121538738 | F165: -0.0998482323 | G165: 15.32787378 | H165: 9.798590439 | I165: 0.6392661227 | J165: 2.627937127 | K165: 458.3333333 | L165: 0.2764601535 | M165: 141.7348076 | N165: 0.0854924218 | O165: 0.3985756092 | P165: 0.03553741075 | Q165: 2.818904858 | R165: 0.2983990294 | S165: -0.02634051616 | T165: 0.1044694103 | U165: 0.2132173587 | V165: 0.2918675296 | W165: 0
B166: 8.731586713e-05 | C166: 0.4634349203 | D166: 0.001657133858 | E166: 0.3317932784 | F166: -0.1061302618 | G166: 15.96596379 | H166: 10.17276803 | I166: 0.6371533947 | J166: 3.107657766 | K166: 458.3333333 | L166: 0.2764601535 | M166: 30.61968161 | N166: 0.01846935683 | O166: 0.3784321548 | P166: 0.03327205662 | Q166: 3.365648563 | R166: 0.2664501052 | S166: -0.02897568797 | T166: 0.1207667711 | U166: 0.1882163161 | V166: 0.2589678908 | W166: 0
B167: 9.24842408e-05 | C167: 0.5290877597 | D167: 0.00175522241 | E167: 0.3514326831 | F167: -0.1124122913 | G167: 16.56838925 | H167: 10.52060515 | I167: 0.6349805639 | J167: 3.681775418 | K167: 458.3333333 | L167: 0.2764601535 | M167: -84.18136402 | N167: -0.05077700252 | O167: 0.3304214211 | P167: 0.03086848049 | Q167: 4.009012574 | R167: 0.2066692946 | S167: -0.01839638766 | T167: 0.04274801629 | U167: 0.3309620472 | V167: 0.1984658256 | W167: 0
